Workbook

Sheet Front
B3: Housing Need and Demand Assessment Tool
B4: Version 1.13
B7: Centre for Housing Market Analysis
B8: Scottish Government
B11: 2014-06-06
B20: PLEASE READ BEFORE USE
B21: Select area required on "Map" worksheet
B23: For single areas use "Scenario All" worksheet and vary assumptions compared with default (principal) scenario
B24: For areas with sub-areas , Sheets S1 to S20 as needed allow you to vary assumptions in the sub-areas compared with the area as a whole (All)
B26: All results are found in RawResultsCore and RawResults Scenario and a summary (over 4,5,6,7 year periods as required) in Results.
B27: ResultsSummary allows an easy comparision with the core scenario and Results Area gives detail for a specific HMA.
B28: ResultsSummaryCumulative and ResultsAreaCumulative provide cumulative results. Scroll down for the data.
B30: When using the graphs on "Scenario All" you can display the actual values by hovering the cursor over the data lines.
B32: Worksheets with the LIGHT GREEN tabs below show where you can make changes or input your own data
B33: Worksheets with the RED tabs below show your results. Results are cut in several different ways.
B34: Worksheets with the DARK GREEN tabs below show the data that have been pre-programmed into the Tool.
B36: Remember to save a copy of the Tool each time you run it.
B39: CHANGE LOG
B40: This log shows what changes have been made to each successive version of the Tool
B42: Version 1.13
B43: Right hand axis deleted from the household projections chart. This showed annual change in households.
B44: Section 5 renamed from 'Below Market Rent' to 'Splitting Need into Tenure'
B45: Three charts removed from the bottom of the Scenario All Sheet.
B46: Income and price scenario worksheet moved to the left of the workbook
B48: Version 1.12
B49: Correction to small area data issue in Argyll and Bute
B50: Constrained sub area totals code augmented to deal with zero new households.
B52: Version 1.11
B53: Tweak to SESPlan HMA data
B55: Version 1.1
B56: Non bug-fix update
C57: Falkirk and SESPlan HMA data added
C58: Intermediate rent renamed Below Market Rent
C59: AJW Estimates renamed HaTAP
B61: Version 1.04
B62: Revision to AJW Estimates
B63: Ability to use own household projections
C64: Version 1.04a Bug fix in own projections display
C65: Version 1.04b Bug fix in results
B67: Version 1.03
B68: Minor bug fixes and presentational tidying on results screens
B70: Version 1.02
B71: At request of GCV, additional results reporting added

Sheet Tool Schematic
F1: FrontEnd | K1: All Scenario

Sheet ScenarioAll
A1: =Data!C1 -> Selected | E1: =VLOOKUP($A$1,Map!$O$10:$AC$60,14,FALSE) -> Instructions | H1: =VLOOKUP($A$1,Map!$O$10:$AC$60,15,FALSE) -> 2-Highland Council-Badenoch & Strathspey HMA
A3: 1. Household Projections
A4: Choose NRS household projection variant. | X4: 2
X5: 1
X6: 1
X7: 1
X8: 1
X9: 1
X10: 1
C11: =D11-1 -> 2011 | D11: =D16 -> 2012 | E11: =D11+1 -> 2013 | F11: 2014 | G11: 2015 | H11: 2016 | I11: 2017 | J11: 2018 | K11: 2019 | L11: 2020 | M11: 2021 | N11: 2022
A12: Enter Projections Here | C12: 0 | D12: 0 | E12: 0 | F12: 0 | G12: 0 | H12: 0 | I12: 0 | J12: 0 | K12: 0 | L12: 0 | M12: 0 | N12: 0
D13: =N11+1 -> 2023 | E13: =D13+1 -> 2024 | F13: 2025 | G13: 2026 | H13: 2027 | I13: 2028 | J13: 2029 | K13: 2030 | L13: 2031 | M13: 2032 | N13: 2033
D14: 0 | E14: 0 | F14: 0 | G14: 0 | H14: 0 | I14: 0 | J14: 0 | K14: 0 | L14: 0 | M14: 0 | N14: 0
A16: 1a. Household growth Adjustment | D16: =C300 -> 2012 | E16: =D16+1 -> 2013 | F16: 2014 | G16: 2015 | H16: 2016 | I16: 2017 | J16: 2018 | K16: 2019 | L16: 2020 | M16: 2021 | N16: 2022
D17: 0 | E17: 0 | F17: 0 | G17: 0 | H17: 0 | I17: 0 | J17: 0 | K17: 0 | L17: 0 | M17: 0 | N17: 0
D18: =N16+1 -> 2023 | E18: =D18+1 -> 2024 | F18: 2025 | G18: 2026 | H18: 2027 | I18: 2028 | J18: 2029 | K18: 2030 | L18: 2031 | M18: 2032 | N18: 2033
D19: 0 | E19: 0 | F19: 0 | G19: 0 | H19: 0 | I19: 0 | J19: 0 | K19: 0 | L19: 0 | M19: 0 | N19: 0
A21: 2. Existing Need
A22: Either
A25: Total From HaTAP method | D25: =IF(B312=TRUE,SUM(C312:W312),"-") -> -
A26: Or own exisiting need figures
A29: Existing Need | B29: 2787
A31: 2a. Years to clear exisiting need
A34: Existing "Cleared" In? Enter Years | B34: 13
A41: 3. Income, Growth and Distribution
A43: Growth in median income scenario
A45: Change in income distribution
A48: Select part of income distribution interested in
B49: Example A | C49: 75 | D49: %ile
B50: Example B | C50: 25 | D50: %ile
B51: Example Year | C51: 2032
X52: 1
X53: 2
X54: 1
A57: 4. Prices and Afforability | X57: 1
X58: 1
X59: 1
X60: 1
B61: Percentile | C61: 0.25
B64: Income Ratio | C64: 4 | X64: 1
A114: 5. Split Need into Tenure
B115: Proportion of market who buy | C115: 0.5
B116: Upper income-to-rent threshold | C116: 0.25
A117: Lower income-to-rent treshohld | B117: Lower I-rent income limit | C117: 0.35
A118: Rent Growth Assumption
X122: 1
X123: 1
X127: 1
A269: Principal
A270: High migration
A271: Low migration
A272: Alternative headship
A273: Alternative headship with high migration
A274: Alternative headship with low migration
A275: Constrained Housing
A278: Small Area Income Estimates (HW)
A279: CACI Income Data
A299: Households
A300: Year | B300: =Map!T6-1 -> 2011 | C300: =B300+1 -> 2012 | D300: 2013 | E300: 2014 | F300: 2015 | G300: 2016 | H300: 2017 | I300: 2018 | J300: 2019 | K300: 2020 | L300: 2021 | M300: 2022 | N300: 2023 | O300: 2024 | P300: 2025 | Q300: 2026 | R300: 2027 | S300: 2028 | T300: 2029 | U300: 2030 | V300: 2031 | W300: 2032 | X300: Ref
A301: Core (Principal) | B301: =HLOOKUP($A$1,Data!$C$1:$AI$40,B300-($B$300-$X$301),FALSE) -> 103070.6741 | C301: =HLOOKUP($A$1,Data!$C$1:$AI$40,C300-($B$300-$X$301),FALSE) -> 103703.3778 | D301: =HLOOKUP($A$1,Data!$C$1:$AI$40,D300-($B$300-$X$301),FALSE) -> 104336.0816 | E301: =HLOOKUP($A$1,Data!$C$1:$AI$40,E300-($B$300-$X$301),FALSE) -> 105046.1796 | F301: =HLOOKUP($A$1,Data!$C$1:$AI$40,F300-($B$300-$X$301),FALSE) -> 105726.4116 | G301: =HLOOKUP($A$1,Data!$C$1:$AI$40,G300-($B$300-$X$301),FALSE) -> 106415.2705 | H301: =HLOOKUP($A$1,Data!$C$1:$AI$40,H300-($B$300-$X$301),FALSE) -> 107081.5184 | I301: =HLOOKUP($A$1,Data!$C$1:$AI$40,I300-($B$300-$X$301),FALSE) -> 107776.0394 | J301: =HLOOKUP($A$1,Data!$C$1:$AI$40,J300-($B$300-$X$301),FALSE) -> 108465.375 | K301: =HLOOKUP($A$1,Data!$C$1:$AI$40,K300-($B$300-$X$301),FALSE) -> 109059.9299 | L301: =HLOOKUP($A$1,Data!$C$1:$AI$40,L300-($B$300-$X$301),FALSE) -> 109663.593 | M301: =HLOOKUP($A$1,Data!$C$1:$AI$40,M300-($B$300-$X$301),FALSE) -> 110247.0135 | N301: =HLOOKUP($A$1,Data!$C$1:$AI$40,N300-($B$300-$X$301),FALSE) -> 110838.5968 | O301: =HLOOKUP($A$1,Data!$C$1:$AI$40,O300-($B$300-$X$301),FALSE) -> 111429.2451 | P301: =HLOOKUP($A$1,Data!$C$1:$AI$40,P300-($B$300-$X$301),FALSE) -> 111935.21 | Q301: =HLOOKUP($A$1,Data!$C$1:$AI$40,Q300-($B$300-$X$301),FALSE) -> 112415.217 | R301: =HLOOKUP($A$1,Data!$C$1:$AI$40,R300-($B$300-$X$301),FALSE) -> 112916.0275 | S301: =HLOOKUP($A$1,Data!$C$1:$AI$40,S300-($B$300-$X$301),FALSE) -> 113415.5569 | T301: =HLOOKUP($A$1,Data!$C$1:$AI$40,T300-($B$300-$X$301),FALSE) -> 113873.9639 | U301: =HLOOKUP($A$1,Data!$C$1:$AI$40,U300-($B$300-$X$301),FALSE) -> 114223.7414 | V301: =HLOOKUP($A$1,Data!$C$1:$AI$40,V300-($B$300-$X$301),FALSE) -> 114562.797 | W301: =HLOOKUP($A$1,Data!$C$1:$AI$40,W300-($B$300-$X$301),FALSE) -> 114877.3172 | X301: 19
A302: =CONCATENATE("User (",CHOOSE(X4,A269,A270,A271,A272,A273,A274,A275),")") -> User (High migration) | B302: =IF($B$308=TRUE,C12,HLOOKUP($A$1,Data!$C$1:$AI$184,B300-($B$300-$X$302)+24*($X$4-1),FALSE)) -> 103059.2187 | C302: =IF($B$308=TRUE,D12,HLOOKUP($A$1,Data!$C$1:$AI$184,C300-($B$300-$X$302)+24*($X$4-1),FALSE)) -> 103706.0558 | D302: =IF($B$308=TRUE,E12,HLOOKUP($A$1,Data!$C$1:$AI$184,D300-($B$300-$X$302)+24*($X$4-1),FALSE)) -> 104352.8928 | E302: =IF($B$308=TRUE,F12,HLOOKUP($A$1,Data!$C$1:$AI$184,E300-($B$300-$X$302)+24*($X$4-1),FALSE)) -> 105121.3174 | F302: =IF($B$308=TRUE,G12,HLOOKUP($A$1,Data!$C$1:$AI$184,F300-($B$300-$X$302)+24*($X$4-1),FALSE)) -> 105867.1829 | G302: =IF($B$308=TRUE,H12,HLOOKUP($A$1,Data!$C$1:$AI$184,G300-($B$300-$X$302)+24*($X$4-1),FALSE)) -> 106637.069 | H302: =IF($B$308=TRUE,I12,HLOOKUP($A$1,Data!$C$1:$AI$184,H300-($B$300-$X$302)+24*($X$4-1),FALSE)) -> 107426.5153 | I302: =IF($B$308=TRUE,J12,HLOOKUP($A$1,Data!$C$1:$AI$184,I300-($B$300-$X$302)+24*($X$4-1),FALSE)) -> 108251.5532 | J302: =IF($B$308=TRUE,K12,HLOOKUP($A$1,Data!$C$1:$AI$184,J300-($B$300-$X$302)+24*($X$4-1),FALSE)) -> 109110.5276 | K302: =IF($B$308=TRUE,L12,HLOOKUP($A$1,Data!$C$1:$AI$184,K300-($B$300-$X$302)+24*($X$4-1),FALSE)) -> 109875.9972 | L302: =IF($B$308=TRUE,M12,HLOOKUP($A$1,Data!$C$1:$AI$184,L300-($B$300-$X$302)+24*($X$4-1),FALSE)) -> 110657.2823 | M302: =IF($B$308=TRUE,N12,HLOOKUP($A$1,Data!$C$1:$AI$184,M300-($B$300-$X$302)+24*($X$4-1),FALSE)) -> 111416.1509 | N302: =IF($B$308=TRUE,D14,HLOOKUP($A$1,Data!$C$1:$AI$184,N300-($B$300-$X$302)+24*($X$4-1),FALSE)) -> 112193.243 | O302: =IF($B$308=TRUE,E14,HLOOKUP($A$1,Data!$C$1:$AI$184,O300-($B$300-$X$302)+24*($X$4-1),FALSE)) -> 112967.2319 | P302: =IF($B$308=TRUE,F14,HLOOKUP($A$1,Data!$C$1:$AI$184,P300-($B$300-$X$302)+24*($X$4-1),FALSE)) -> 113661.2447 | Q302: =IF($B$308=TRUE,G14,HLOOKUP($A$1,Data!$C$1:$AI$184,Q300-($B$300-$X$302)+24*($X$4-1),FALSE)) -> 114333.2774 | R302: =IF($B$308=TRUE,H14,HLOOKUP($A$1,Data!$C$1:$AI$184,R300-($B$300-$X$302)+24*($X$4-1),FALSE)) -> 115030.5438 | S302: =IF($B$308=TRUE,I14,HLOOKUP($A$1,Data!$C$1:$AI$184,S300-($B$300-$X$302)+24*($X$4-1),FALSE)) -> 115725.0622 | T302: =IF($B$308=TRUE,J14,HLOOKUP($A$1,Data!$C$1:$AI$184,T300-($B$300-$X$302)+24*($X$4-1),FALSE)) -> 116378.6709 | U302: =IF($B$308=TRUE,K14,HLOOKUP($A$1,Data!$C$1:$AI$184,U300-($B$300-$X$302)+24*($X$4-1),FALSE)) -> 116923.5563 | V302: =IF($B$308=TRUE,L14,HLOOKUP($A$1,Data!$C$1:$AI$184,V300-($B$300-$X$302)+24*($X$4-1),FALSE)) -> 117464.7443 | W302: =IF($B$308=TRUE,M14,HLOOKUP($A$1,Data!$C$1:$AI$184,W300-($B$300-$X$302)+24*($X$4-1),FALSE)) -> 117975.0067 | X302: 19
C303: =(C302-B302) -> 646.8370522 | D303: =(D302-C302) -> 646.8370522 | E303: 768.4245899 | F303: 745.8655271 | G303: 769.8860521 | H303: 789.4463408 | I303: 825.0378437 | J303: 858.9744471 | K303: 765.4696241 | L303: 781.2850311 | M303: 758.8685748 | N303: 777.0921031 | O303: 773.9889616 | P303: 694.0128021 | Q303: 672.0326514 | R303: 697.2663874 | S303: 694.5184282 | T303: 653.6087064 | U303: 544.885371 | V303: 541.18804 | W303: 510.2623516
A304: =CONCATENATE(A302, " Adjusted") -> User (High migration) Adjusted | B304: =B302*(1+D17) -> 103059.2187 | C304: =(B304+C303)*(1+E17) -> 103706.0558 | D304: 104352.8928 | E304: 105121.3174 | F304: 105867.1829 | G304: 106637.069 | H304: 107426.5153 | I304: 108251.5532 | J304: 109110.5276 | K304: 109875.9972 | L304: 110657.2823 | M304: =(L304+M303)*(1+D19) -> 111416.1509 | N304: 112193.243 | O304: 112967.2319 | P304: 113661.2447 | Q304: 114333.2774 | R304: 115030.5438 | S304: 115725.0622 | T304: 116378.6709 | U304: 116923.5563 | V304: 117464.7443 | W304: 117975.0067
A305: Principal Change | C305: =C301-B301 -> 632.7037359 | D305: =D301-C301 -> 632.7037359 | E305: 710.0979964 | F305: 680.2319902 | G305: 688.8589444 | H305: 666.2479134 | I305: 694.5209577 | J305: 689.335657 | K305: 594.5548744 | L305: 603.6631331 | M305: 583.4204814 | N305: 591.5832396 | O305: 590.6483308 | P305: 505.964936 | Q305: 480.0069927 | R305: 500.8105023 | S305: 499.5293993 | T305: 458.406929 | U305: 349.7775161 | V305: 339.0556575 | W305: 314.5202233
A306: =CONCATENATE(A302," Change") -> User (High migration) Change | C306: =C304-B304 -> 646.8370522 | D306: =D304-C304 -> 646.8370522 | E306: 768.4245899 | F306: 745.8655271 | G306: 769.8860521 | H306: 789.4463408 | I306: 825.0378437 | J306: 858.9744471 | K306: 765.4696241 | L306: 781.2850311 | M306: 758.8685748 | N306: 777.0921031 | O306: 773.9889616 | P306: 694.0128021 | Q306: 672.0326514 | R306: 697.2663874 | S306: 694.5184282 | T306: 653.6087064 | U306: 544.885371 | V306: 541.18804 | W306: 510.2623516
B308: FALSE
A309: Backlog Need | B309: FALSE | C309: =IF(C300-$B300<=$B$34,$B$29/ScenarioAll!$B$34,0) -> 214.3846154 | D309: =IF(D300-$B300<=$B$34,$B$29/ScenarioAll!$B$34,0) -> 214.3846154 | E309: =IF(E300-$B300<=$B$34,$B$29/ScenarioAll!$B$34,0) -> 214.3846154 | F309: =IF(F300-$B300<=$B$34,$B$29/ScenarioAll!$B$34,0) -> 214.3846154 | G309: =IF(G300-$B300<=$B$34,$B$29/ScenarioAll!$B$34,0) -> 214.3846154 | H309: =IF(H300-$B300<=$B$34,$B$29/ScenarioAll!$B$34,0) -> 214.3846154 | I309: =IF(I300-$B300<=$B$34,$B$29/ScenarioAll!$B$34,0) -> 214.3846154 | J309: =IF(J300-$B300<=$B$34,$B$29/ScenarioAll!$B$34,0) -> 214.3846154 | K309: =IF(K300-$B300<=$B$34,$B$29/ScenarioAll!$B$34,0) -> 214.3846154 | L309: =IF(L300-$B300<=$B$34,$B$29/ScenarioAll!$B$34,0) -> 214.3846154 | M309: =IF(M300-$B300<=$B$34,$B$29/ScenarioAll!$B$34,0) -> 214.3846154 | N309: =IF(N300-$B300<=$B$34,$B$29/ScenarioAll!$B$34,0) -> 214.3846154 | O309: =IF(O300-$B300<=$B$34,$B$29/ScenarioAll!$B$34,0) -> 214.3846154 | P309: =IF(P300-$B300<=$B$34,$B$29/ScenarioAll!$B$34,0) -> 0 | Q309: =IF(Q300-$B300<=$B$34,$B$29/ScenarioAll!$B$34,0) -> 0 | R309: =IF(R300-$B300<=$B$34,$B$29/ScenarioAll!$B$34,0) -> 0 | S309: =IF(S300-$B300<=$B$34,$B$29/ScenarioAll!$B$34,0) -> 0 | T309: =IF(T300-$B300<=$B$34,$B$29/ScenarioAll!$B$34,0) -> 0 | U309: =IF(U300-$B300<=$B$34,$B$29/ScenarioAll!$B$34,0) -> 0 | V309: =IF(V300-$B300<=$B$34,$B$29/ScenarioAll!$B$34,0) -> 0 | W309: =IF(W300-$B300<=$B$34,$B$29/ScenarioAll!$B$34,0) -> 0
A310: Backlog Need (TA) | C310: =IF(C300-$B300<=$B$34,HLOOKUP($A$1,Data!$C$1:$AJ$202,ScenarioAll!$X$310,FALSE)/ScenarioAll!$B$34,0) -> 72.61538462 | D310: =IF(D300-$B300<=$B$34,HLOOKUP($A$1,Data!$C$1:$AJ$202,ScenarioAll!$X$310,FALSE)/ScenarioAll!$B$34,0) -> 72.61538462 | E310: =IF(E300-$B300<=$B$34,HLOOKUP($A$1,Data!$C$1:$AJ$202,ScenarioAll!$X$310,FALSE)/ScenarioAll!$B$34,0) -> 72.61538462 | F310: =IF(F300-$B300<=$B$34,HLOOKUP($A$1,Data!$C$1:$AJ$202,ScenarioAll!$X$310,FALSE)/ScenarioAll!$B$34,0) -> 72.61538462 | G310: =IF(G300-$B300<=$B$34,HLOOKUP($A$1,Data!$C$1:$AJ$202,ScenarioAll!$X$310,FALSE)/ScenarioAll!$B$34,0) -> 72.61538462 | H310: =IF(H300-$B300<=$B$34,HLOOKUP($A$1,Data!$C$1:$AJ$202,ScenarioAll!$X$310,FALSE)/ScenarioAll!$B$34,0) -> 72.61538462 | I310: =IF(I300-$B300<=$B$34,HLOOKUP($A$1,Data!$C$1:$AJ$202,ScenarioAll!$X$310,FALSE)/ScenarioAll!$B$34,0) -> 72.61538462 | J310: =IF(J300-$B300<=$B$34,HLOOKUP($A$1,Data!$C$1:$AJ$202,ScenarioAll!$X$310,FALSE)/ScenarioAll!$B$34,0) -> 72.61538462 | K310: =IF(K300-$B300<=$B$34,HLOOKUP($A$1,Data!$C$1:$AJ$202,ScenarioAll!$X$310,FALSE)/ScenarioAll!$B$34,0) -> 72.61538462 | L310: =IF(L300-$B300<=$B$34,HLOOKUP($A$1,Data!$C$1:$AJ$202,ScenarioAll!$X$310,FALSE)/ScenarioAll!$B$34,0) -> 72.61538462 | M310: =IF(M300-$B300<=$B$34,HLOOKUP($A$1,Data!$C$1:$AJ$202,ScenarioAll!$X$310,FALSE)/ScenarioAll!$B$34,0) -> 72.61538462 | N310: =IF(N300-$B300<=$B$34,HLOOKUP($A$1,Data!$C$1:$AJ$202,ScenarioAll!$X$310,FALSE)/ScenarioAll!$B$34,0) -> 72.61538462 | O310: =IF(O300-$B300<=$B$34,HLOOKUP($A$1,Data!$C$1:$AJ$202,ScenarioAll!$X$310,FALSE)/ScenarioAll!$B$34,0) -> 72.61538462 | P310: =IF(P300-$B300<=$B$34,HLOOKUP($A$1,Data!$C$1:$AJ$202,ScenarioAll!$X$310,FALSE)/ScenarioAll!$B$34,0) -> 0 | Q310: =IF(Q300-$B300<=$B$34,HLOOKUP($A$1,Data!$C$1:$AJ$202,ScenarioAll!$X$310,FALSE)/ScenarioAll!$B$34,0) -> 0 | R310: =IF(R300-$B300<=$B$34,HLOOKUP($A$1,Data!$C$1:$AJ$202,ScenarioAll!$X$310,FALSE)/ScenarioAll!$B$34,0) -> 0 | S310: =IF(S300-$B300<=$B$34,HLOOKUP($A$1,Data!$C$1:$AJ$202,ScenarioAll!$X$310,FALSE)/ScenarioAll!$B$34,0) -> 0 | T310: =IF(T300-$B300<=$B$34,HLOOKUP($A$1,Data!$C$1:$AJ$202,ScenarioAll!$X$310,FALSE)/ScenarioAll!$B$34,0) -> 0 | U310: =IF(U300-$B300<=$B$34,HLOOKUP($A$1,Data!$C$1:$AJ$202,ScenarioAll!$X$310,FALSE)/ScenarioAll!$B$34,0) -> 0 | V310: =IF(V300-$B300<=$B$34,HLOOKUP($A$1,Data!$C$1:$AJ$202,ScenarioAll!$X$310,FALSE)/ScenarioAll!$B$34,0) -> 0 | W310: =IF(W300-$B300<=$B$34,HLOOKUP($A$1,Data!$C$1:$AJ$202,ScenarioAll!$X$310,FALSE)/ScenarioAll!$B$34,0) -> 0 | X310: 202
A311: Backlog Need (Traditional) | C311: =IF(C300-$B300<=$B$34,HLOOKUP($A$1,Data!$C$1:$AJ$201,ScenarioAll!$X311,FALSE)/ScenarioAll!$B$34,0) -> 0 | D311: =IF(D300-$B300<=$B$34,HLOOKUP($A$1,Data!$C$1:$AJ$201,ScenarioAll!$X311,FALSE)/ScenarioAll!$B$34,0) -> 0 | E311: =IF(E300-$B300<=$B$34,HLOOKUP($A$1,Data!$C$1:$AJ$201,ScenarioAll!$X311,FALSE)/ScenarioAll!$B$34,0) -> 0 | F311: =IF(F300-$B300<=$B$34,HLOOKUP($A$1,Data!$C$1:$AJ$201,ScenarioAll!$X311,FALSE)/ScenarioAll!$B$34,0) -> 0 | G311: =IF(G300-$B300<=$B$34,HLOOKUP($A$1,Data!$C$1:$AJ$201,ScenarioAll!$X311,FALSE)/ScenarioAll!$B$34,0) -> 0 | H311: =IF(H300-$B300<=$B$34,HLOOKUP($A$1,Data!$C$1:$AJ$201,ScenarioAll!$X311,FALSE)/ScenarioAll!$B$34,0) -> 0 | I311: =IF(I300-$B300<=$B$34,HLOOKUP($A$1,Data!$C$1:$AJ$201,ScenarioAll!$X311,FALSE)/ScenarioAll!$B$34,0) -> 0 | J311: =IF(J300-$B300<=$B$34,HLOOKUP($A$1,Data!$C$1:$AJ$201,ScenarioAll!$X311,FALSE)/ScenarioAll!$B$34,0) -> 0 | K311: =IF(K300-$B300<=$B$34,HLOOKUP($A$1,Data!$C$1:$AJ$201,ScenarioAll!$X311,FALSE)/ScenarioAll!$B$34,0) -> 0 | L311: =IF(L300-$B300<=$B$34,HLOOKUP($A$1,Data!$C$1:$AJ$201,ScenarioAll!$X311,FALSE)/ScenarioAll!$B$34,0) -> 0 | M311: =IF(M300-$B300<=$B$34,HLOOKUP($A$1,Data!$C$1:$AJ$201,ScenarioAll!$X311,FALSE)/ScenarioAll!$B$34,0) -> 0 | N311: =IF(N300-$B300<=$B$34,HLOOKUP($A$1,Data!$C$1:$AJ$201,ScenarioAll!$X311,FALSE)/ScenarioAll!$B$34,0) -> 0 | O311: =IF(O300-$B300<=$B$34,HLOOKUP($A$1,Data!$C$1:$AJ$201,ScenarioAll!$X311,FALSE)/ScenarioAll!$B$34,0) -> 0 | P311: =IF(P300-$B300<=$B$34,HLOOKUP($A$1,Data!$C$1:$AJ$201,ScenarioAll!$X311,FALSE)/ScenarioAll!$B$34,0) -> 0 | Q311: =IF(Q300-$B300<=$B$34,HLOOKUP($A$1,Data!$C$1:$AJ$201,ScenarioAll!$X311,FALSE)/ScenarioAll!$B$34,0) -> 0 | R311: =IF(R300-$B300<=$B$34,HLOOKUP($A$1,Data!$C$1:$AJ$201,ScenarioAll!$X311,FALSE)/ScenarioAll!$B$34,0) -> 0 | S311: =IF(S300-$B300<=$B$34,HLOOKUP($A$1,Data!$C$1:$AJ$201,ScenarioAll!$X311,FALSE)/ScenarioAll!$B$34,0) -> 0 | T311: =IF(T300-$B300<=$B$34,HLOOKUP($A$1,Data!$C$1:$AJ$201,ScenarioAll!$X311,FALSE)/ScenarioAll!$B$34,0) -> 0 | U311: =IF(U300-$B300<=$B$34,HLOOKUP($A$1,Data!$C$1:$AJ$201,ScenarioAll!$X311,FALSE)/ScenarioAll!$B$34,0) -> 0 | V311: =IF(V300-$B300<=$B$34,HLOOKUP($A$1,Data!$C$1:$AJ$201,ScenarioAll!$X311,FALSE)/ScenarioAll!$B$34,0) -> 0 | W311: =IF(W300-$B300<=$B$34,HLOOKUP($A$1,Data!$C$1:$AJ$201,ScenarioAll!$X311,FALSE)/ScenarioAll!$B$34,0) -> 0 | X311: 199
A312: Exisitng Scenario | B312: FALSE | C312: =IF($B$312=TRUE,C310,IF($B$310=TRUE,C311,C309)) -> 214.3846154 | D312: 214.3846154 | E312: 214.3846154 | F312: 214.3846154 | G312: 214.3846154 | H312: 214.3846154 | I312: 214.3846154 | J312: 214.3846154 | K312: 214.3846154 | L312: 214.3846154 | M312: 214.3846154 | N312: 214.3846154 | O312: 214.3846154 | P312: 0 | Q312: 0 | R312: 0 | S312: 0 | T312: 0 | U312: 0 | V312: 0 | W312: 0
A315: Overall | C315: =C300 -> 2012 | D315: =D300 -> 2013 | E315: 2014 | F315: 2015 | G315: 2016 | H315: 2017 | I315: 2018 | J315: 2019 | K315: 2020 | L315: 2021 | M315: 2022 | N315: 2023 | O315: 2024 | P315: 2025 | Q315: 2026 | R315: 2027 | S315: 2028 | T315: 2029 | U315: 2030 | V315: 2031 | W315: 2032
A316: Existing Principal | C316: =IF(C300-$B300<=CoreAssumptions!$F$10,HLOOKUP($A$1,Data!$C$1:$AJ$202,ScenarioAll!$X$310,FALSE)/CoreAssumptions!$F$10,0) -> 188.8 | D316: =IF(D300-$B300<=CoreAssumptions!$F$10,HLOOKUP($A$1,Data!$C$1:$AJ$202,ScenarioAll!$X$310,FALSE)/CoreAssumptions!$F$10,0) -> 188.8 | E316: =IF(E300-$B300<=CoreAssumptions!$F$10,HLOOKUP($A$1,Data!$C$1:$AJ$202,ScenarioAll!$X$310,FALSE)/CoreAssumptions!$F$10,0) -> 188.8 | F316: =IF(F300-$B300<=CoreAssumptions!$F$10,HLOOKUP($A$1,Data!$C$1:$AJ$202,ScenarioAll!$X$310,FALSE)/CoreAssumptions!$F$10,0) -> 188.8 | G316: =IF(G300-$B300<=CoreAssumptions!$F$10,HLOOKUP($A$1,Data!$C$1:$AJ$202,ScenarioAll!$X$310,FALSE)/CoreAssumptions!$F$10,0) -> 188.8 | H316: =IF(H300-$B300<=CoreAssumptions!$F$10,HLOOKUP($A$1,Data!$C$1:$AJ$202,ScenarioAll!$X$310,FALSE)/CoreAssumptions!$F$10,0) -> 0 | I316: =IF(I300-$B300<=CoreAssumptions!$F$10,HLOOKUP($A$1,Data!$C$1:$AJ$202,ScenarioAll!$X$310,FALSE)/CoreAssumptions!$F$10,0) -> 0 | J316: =IF(J300-$B300<=CoreAssumptions!$F$10,HLOOKUP($A$1,Data!$C$1:$AJ$202,ScenarioAll!$X$310,FALSE)/CoreAssumptions!$F$10,0) -> 0 | K316: =IF(K300-$B300<=CoreAssumptions!$F$10,HLOOKUP($A$1,Data!$C$1:$AJ$202,ScenarioAll!$X$310,FALSE)/CoreAssumptions!$F$10,0) -> 0 | L316: =IF(L300-$B300<=CoreAssumptions!$F$10,HLOOKUP($A$1,Data!$C$1:$AJ$202,ScenarioAll!$X$310,FALSE)/CoreAssumptions!$F$10,0) -> 0 | M316: =IF(M300-$B300<=CoreAssumptions!$F$10,HLOOKUP($A$1,Data!$C$1:$AJ$202,ScenarioAll!$X$310,FALSE)/CoreAssumptions!$F$10,0) -> 0 | N316: =IF(N300-$B300<=CoreAssumptions!$F$10,HLOOKUP($A$1,Data!$C$1:$AJ$202,ScenarioAll!$X$310,FALSE)/CoreAssumptions!$F$10,0) -> 0 | O316: =IF(O300-$B300<=CoreAssumptions!$F$10,HLOOKUP($A$1,Data!$C$1:$AJ$202,ScenarioAll!$X$310,FALSE)/CoreAssumptions!$F$10,0) -> 0 | P316: =IF(P300-$B300<=CoreAssumptions!$F$10,HLOOKUP($A$1,Data!$C$1:$AJ$202,ScenarioAll!$X$310,FALSE)/CoreAssumptions!$F$10,0) -> 0 | Q316: =IF(Q300-$B300<=CoreAssumptions!$F$10,HLOOKUP($A$1,Data!$C$1:$AJ$202,ScenarioAll!$X$310,FALSE)/CoreAssumptions!$F$10,0) -> 0 | R316: =IF(R300-$B300<=CoreAssumptions!$F$10,HLOOKUP($A$1,Data!$C$1:$AJ$202,ScenarioAll!$X$310,FALSE)/CoreAssumptions!$F$10,0) -> 0 | S316: =IF(S300-$B300<=CoreAssumptions!$F$10,HLOOKUP($A$1,Data!$C$1:$AJ$202,ScenarioAll!$X$310,FALSE)/CoreAssumptions!$F$10,0) -> 0 | T316: =IF(T300-$B300<=CoreAssumptions!$F$10,HLOOKUP($A$1,Data!$C$1:$AJ$202,ScenarioAll!$X$310,FALSE)/CoreAssumptions!$F$10,0) -> 0 | U316: =IF(U300-$B300<=CoreAssumptions!$F$10,HLOOKUP($A$1,Data!$C$1:$AJ$202,ScenarioAll!$X$310,FALSE)/CoreAssumptions!$F$10,0) -> 0 | V316: =IF(V300-$B300<=CoreAssumptions!$F$10,HLOOKUP($A$1,Data!$C$1:$AJ$202,ScenarioAll!$X$310,FALSE)/CoreAssumptions!$F$10,0) -> 0 | W316: =IF(W300-$B300<=CoreAssumptions!$F$10,HLOOKUP($A$1,Data!$C$1:$AJ$202,ScenarioAll!$X$310,FALSE)/CoreAssumptions!$F$10,0) -> 0
A317: Newly Arising Principal | C317: =C305 -> 632.7037359 | D317: =D305 -> 632.7037359 | E317: 710.0979964 | F317: 680.2319902 | G317: 688.8589444 | H317: 666.2479134 | I317: 694.5209577 | J317: 689.335657 | K317: 594.5548744 | L317: 603.6631331 | M317: 583.4204814 | N317: 591.5832396 | O317: 590.6483308 | P317: 505.964936 | Q317: 480.0069927 | R317: 500.8105023 | S317: 499.5293993 | T317: 458.406929 | U317: 349.7775161 | V317: 339.0556575 | W317: 314.5202233
A318: Newly Arising Scenario | C318: =C306 -> 646.8370522 | D318: 646.8370522 | E318: 768.4245899 | F318: 745.8655271 | G318: 769.8860521 | H318: 789.4463408 | I318: 825.0378437 | J318: 858.9744471 | K318: 765.4696241 | L318: 781.2850311 | M318: 758.8685748 | N318: 777.0921031 | O318: 773.9889616 | P318: 694.0128021 | Q318: 672.0326514 | R318: 697.2663874 | S318: 694.5184282 | T318: 653.6087064 | U318: 544.885371 | V318: 541.18804 | W318: 510.2623516
A319: Total Principal | C319: =C316+C317 -> 821.5037359 | D319: =D316+D317 -> 821.5037359 | E319: 898.8979964 | F319: 869.0319902 | G319: 877.6589444 | H319: 666.2479134 | I319: 694.5209577 | J319: 689.335657 | K319: 594.5548744 | L319: 603.6631331 | M319: 583.4204814 | N319: 591.5832396 | O319: 590.6483308 | P319: 505.964936 | Q319: 480.0069927 | R319: 500.8105023 | S319: 499.5293993 | T319: 458.406929 | U319: 349.7775161 | V319: 339.0556575 | W319: 314.5202233
A320: Total Scenario | C320: =C318+C312 -> 861.2216676 | D320: =D318+D312 -> 861.2216676 | E320: 982.8092053 | F320: 960.2501425 | G320: 984.2706675 | H320: 1003.830956 | I320: 1039.422459 | J320: 1073.359062 | K320: 979.8542394 | L320: 995.6696465 | M320: 973.2531902 | N320: 991.4767185 | O320: 988.373577 | P320: 694.0128021 | Q320: 672.0326514 | R320: 697.2663874 | S320: 694.5184282 | T320: 653.6087064 | U320: 544.885371 | V320: 541.18804 | W320: 510.2623516
A322: In Current Proportions | C322: =C315 -> 2012 | D322: =D315 -> 2013 | E322: 2014 | F322: 2015 | G322: 2016 | H322: 2017 | I322: 2018 | J322: 2019 | K322: 2020 | L322: 2021 | M322: 2022 | N322: 2023 | O322: 2024 | P322: 2025 | Q322: 2026 | R322: 2027 | S322: 2028 | T322: 2029 | U322: 2030 | V322: 2031 | W322: 2032
A323: Principal Private | C323: =-HLOOKUP($A$1,Data!$C$1:$AI$388,ScenarioAll!$X323,FALSE)*C319/100 -> -564.5373673 | D323: =-HLOOKUP($A$1,Data!$C$1:$AI$388,ScenarioAll!$X323,FALSE)*D319/100 -> -564.5373673 | E323: =-HLOOKUP($A$1,Data!$C$1:$AI$388,ScenarioAll!$X323,FALSE)*E319/100 -> -617.7227031 | F323: =-HLOOKUP($A$1,Data!$C$1:$AI$388,ScenarioAll!$X323,FALSE)*F319/100 -> -597.1987837 | G323: =-HLOOKUP($A$1,Data!$C$1:$AI$388,ScenarioAll!$X323,FALSE)*G319/100 -> -603.1272266 | H323: =-HLOOKUP($A$1,Data!$C$1:$AI$388,ScenarioAll!$X323,FALSE)*H319/100 -> -457.8455661 | I323: =-HLOOKUP($A$1,Data!$C$1:$AI$388,ScenarioAll!$X323,FALSE)*I319/100 -> -477.2748021 | J323: =-HLOOKUP($A$1,Data!$C$1:$AI$388,ScenarioAll!$X323,FALSE)*J319/100 -> -473.7114635 | K323: =-HLOOKUP($A$1,Data!$C$1:$AI$388,ScenarioAll!$X323,FALSE)*K319/100 -> -408.5781097 | L323: =-HLOOKUP($A$1,Data!$C$1:$AI$388,ScenarioAll!$X323,FALSE)*L319/100 -> -414.8373051 | M323: =-HLOOKUP($A$1,Data!$C$1:$AI$388,ScenarioAll!$X323,FALSE)*M319/100 -> -400.9265548 | N323: =-HLOOKUP($A$1,Data!$C$1:$AI$388,ScenarioAll!$X323,FALSE)*N319/100 -> -406.5360022 | O323: =-HLOOKUP($A$1,Data!$C$1:$AI$388,ScenarioAll!$X323,FALSE)*O319/100 -> -405.8935329 | P323: =-HLOOKUP($A$1,Data!$C$1:$AI$388,ScenarioAll!$X323,FALSE)*P319/100 -> -347.699104 | Q323: =-HLOOKUP($A$1,Data!$C$1:$AI$388,ScenarioAll!$X323,FALSE)*Q319/100 -> -329.8608054 | R323: =-HLOOKUP($A$1,Data!$C$1:$AI$388,ScenarioAll!$X323,FALSE)*R319/100 -> -344.1569772 | S323: =-HLOOKUP($A$1,Data!$C$1:$AI$388,ScenarioAll!$X323,FALSE)*S319/100 -> -343.2766032 | T323: =-HLOOKUP($A$1,Data!$C$1:$AI$388,ScenarioAll!$X323,FALSE)*T319/100 -> -315.0172416 | U323: =-HLOOKUP($A$1,Data!$C$1:$AI$388,ScenarioAll!$X323,FALSE)*U319/100 -> -240.3671091 | V323: =-HLOOKUP($A$1,Data!$C$1:$AI$388,ScenarioAll!$X323,FALSE)*V319/100 -> -232.9990478 | W323: =-HLOOKUP($A$1,Data!$C$1:$AI$388,ScenarioAll!$X323,FALSE)*W319/100 -> -216.1382974 | X323: 216
A324: Principal Social | C324: =-HLOOKUP($A$1,Data!$C$1:$AI$388,ScenarioAll!$X324,FALSE)*C319/100 -> -172.6800853 | D324: =-HLOOKUP($A$1,Data!$C$1:$AI$388,ScenarioAll!$X324,FALSE)*D319/100 -> -172.6800853 | E324: =-HLOOKUP($A$1,Data!$C$1:$AI$388,ScenarioAll!$X324,FALSE)*E319/100 -> -188.9483588 | F324: =-HLOOKUP($A$1,Data!$C$1:$AI$388,ScenarioAll!$X324,FALSE)*F319/100 -> -182.6705243 | G324: =-HLOOKUP($A$1,Data!$C$1:$AI$388,ScenarioAll!$X324,FALSE)*G319/100 -> -184.4839101 | H324: =-HLOOKUP($A$1,Data!$C$1:$AI$388,ScenarioAll!$X324,FALSE)*H319/100 -> -140.0453114 | I324: =-HLOOKUP($A$1,Data!$C$1:$AI$388,ScenarioAll!$X324,FALSE)*I319/100 -> -145.9883053 | J324: =-HLOOKUP($A$1,Data!$C$1:$AI$388,ScenarioAll!$X324,FALSE)*J319/100 -> -144.8983551 | K324: =-HLOOKUP($A$1,Data!$C$1:$AI$388,ScenarioAll!$X324,FALSE)*K319/100 -> -124.9754346 | L324: =-HLOOKUP($A$1,Data!$C$1:$AI$388,ScenarioAll!$X324,FALSE)*L319/100 -> -126.8899906 | M324: =-HLOOKUP($A$1,Data!$C$1:$AI$388,ScenarioAll!$X324,FALSE)*M319/100 -> -122.6349852 | N324: =-HLOOKUP($A$1,Data!$C$1:$AI$388,ScenarioAll!$X324,FALSE)*N319/100 -> -124.350797 | O324: =-HLOOKUP($A$1,Data!$C$1:$AI$388,ScenarioAll!$X324,FALSE)*O319/100 -> -124.1542791 | P324: =-HLOOKUP($A$1,Data!$C$1:$AI$388,ScenarioAll!$X324,FALSE)*P319/100 -> -106.3538295 | Q324: =-HLOOKUP($A$1,Data!$C$1:$AI$388,ScenarioAll!$X324,FALSE)*Q319/100 -> -100.8974699 | R324: =-HLOOKUP($A$1,Data!$C$1:$AI$388,ScenarioAll!$X324,FALSE)*R319/100 -> -105.2703676 | S324: =-HLOOKUP($A$1,Data!$C$1:$AI$388,ScenarioAll!$X324,FALSE)*S319/100 -> -105.0010797 | T324: =-HLOOKUP($A$1,Data!$C$1:$AI$388,ScenarioAll!$X324,FALSE)*T319/100 -> -96.35713647 | U324: =-HLOOKUP($A$1,Data!$C$1:$AI$388,ScenarioAll!$X324,FALSE)*U319/100 -> -73.52323388 | V324: =-HLOOKUP($A$1,Data!$C$1:$AI$388,ScenarioAll!$X324,FALSE)*V319/100 -> -71.2694992 | W324: =-HLOOKUP($A$1,Data!$C$1:$AI$388,ScenarioAll!$X324,FALSE)*W319/100 -> -66.11215093 | X324: 217
A325: Principal PRS | C325: =-HLOOKUP($A$1,Data!$C$1:$AI$388,ScenarioAll!$X325,FALSE)*C319/100 -> -84.2862833 | D325: =-HLOOKUP($A$1,Data!$C$1:$AI$388,ScenarioAll!$X325,FALSE)*D319/100 -> -84.2862833 | E325: =-HLOOKUP($A$1,Data!$C$1:$AI$388,ScenarioAll!$X325,FALSE)*E319/100 -> -92.22693443 | F325: =-HLOOKUP($A$1,Data!$C$1:$AI$388,ScenarioAll!$X325,FALSE)*F319/100 -> -89.16268219 | G325: =-HLOOKUP($A$1,Data!$C$1:$AI$388,ScenarioAll!$X325,FALSE)*G319/100 -> -90.04780769 | H325: =-HLOOKUP($A$1,Data!$C$1:$AI$388,ScenarioAll!$X325,FALSE)*H319/100 -> -68.35703592 | I325: =-HLOOKUP($A$1,Data!$C$1:$AI$388,ScenarioAll!$X325,FALSE)*I319/100 -> -71.25785026 | J325: =-HLOOKUP($A$1,Data!$C$1:$AI$388,ScenarioAll!$X325,FALSE)*J319/100 -> -70.72583841 | K325: =-HLOOKUP($A$1,Data!$C$1:$AI$388,ScenarioAll!$X325,FALSE)*K319/100 -> -61.00133011 | L325: =-HLOOKUP($A$1,Data!$C$1:$AI$388,ScenarioAll!$X325,FALSE)*L319/100 -> -61.93583746 | M325: =-HLOOKUP($A$1,Data!$C$1:$AI$388,ScenarioAll!$X325,FALSE)*M319/100 -> -59.85894139 | N325: =-HLOOKUP($A$1,Data!$C$1:$AI$388,ScenarioAll!$X325,FALSE)*N319/100 -> -60.69644038 | O325: =-HLOOKUP($A$1,Data!$C$1:$AI$388,ScenarioAll!$X325,FALSE)*O319/100 -> -60.60051874 | P325: =-HLOOKUP($A$1,Data!$C$1:$AI$388,ScenarioAll!$X325,FALSE)*P319/100 -> -51.91200243 | Q325: =-HLOOKUP($A$1,Data!$C$1:$AI$388,ScenarioAll!$X325,FALSE)*Q319/100 -> -49.24871745 | R325: =-HLOOKUP($A$1,Data!$C$1:$AI$388,ScenarioAll!$X325,FALSE)*R319/100 -> -51.38315754 | S325: =-HLOOKUP($A$1,Data!$C$1:$AI$388,ScenarioAll!$X325,FALSE)*S319/100 -> -51.25171636 | T325: =-HLOOKUP($A$1,Data!$C$1:$AI$388,ScenarioAll!$X325,FALSE)*T319/100 -> -47.03255091 | U325: =-HLOOKUP($A$1,Data!$C$1:$AI$388,ScenarioAll!$X325,FALSE)*U319/100 -> -35.88717315 | V325: =-HLOOKUP($A$1,Data!$C$1:$AI$388,ScenarioAll!$X325,FALSE)*V319/100 -> -34.78711046 | W325: =-HLOOKUP($A$1,Data!$C$1:$AI$388,ScenarioAll!$X325,FALSE)*W319/100 -> -32.26977491 | X325: 218
A326: Scenario Private | C326: =HLOOKUP($A$1,Data!$C$1:$AI$388,ScenarioAll!$X326,FALSE)*C320/100 -> 591.83153 | D326: =HLOOKUP($A$1,Data!$C$1:$AI$388,ScenarioAll!$X326,FALSE)*D320/100 -> 591.83153 | E326: =HLOOKUP($A$1,Data!$C$1:$AI$388,ScenarioAll!$X326,FALSE)*E320/100 -> 675.3864859 | F326: =HLOOKUP($A$1,Data!$C$1:$AI$388,ScenarioAll!$X326,FALSE)*F320/100 -> 659.8838979 | G326: =HLOOKUP($A$1,Data!$C$1:$AI$388,ScenarioAll!$X326,FALSE)*G320/100 -> 676.3908027 | H326: =HLOOKUP($A$1,Data!$C$1:$AI$388,ScenarioAll!$X326,FALSE)*H320/100 -> 689.8326331 | I326: =HLOOKUP($A$1,Data!$C$1:$AI$388,ScenarioAll!$X326,FALSE)*I320/100 -> 714.2911139 | J326: =HLOOKUP($A$1,Data!$C$1:$AI$388,ScenarioAll!$X326,FALSE)*J320/100 -> 737.6123477 | K326: =HLOOKUP($A$1,Data!$C$1:$AI$388,ScenarioAll!$X326,FALSE)*K320/100 -> 673.3558333 | L326: =HLOOKUP($A$1,Data!$C$1:$AI$388,ScenarioAll!$X326,FALSE)*L320/100 -> 684.2241811 | M326: =HLOOKUP($A$1,Data!$C$1:$AI$388,ScenarioAll!$X326,FALSE)*M320/100 -> 668.8195923 | N326: =HLOOKUP($A$1,Data!$C$1:$AI$388,ScenarioAll!$X326,FALSE)*N320/100 -> 681.3428009 | O326: =HLOOKUP($A$1,Data!$C$1:$AI$388,ScenarioAll!$X326,FALSE)*O320/100 -> 679.2103221 | P326: =HLOOKUP($A$1,Data!$C$1:$AI$388,ScenarioAll!$X326,FALSE)*P320/100 -> 476.9255976 | Q326: =HLOOKUP($A$1,Data!$C$1:$AI$388,ScenarioAll!$X326,FALSE)*Q320/100 -> 461.820838 | R326: =HLOOKUP($A$1,Data!$C$1:$AI$388,ScenarioAll!$X326,FALSE)*R320/100 -> 479.1614614 | S326: =HLOOKUP($A$1,Data!$C$1:$AI$388,ScenarioAll!$X326,FALSE)*S320/100 -> 477.2730639 | T326: =HLOOKUP($A$1,Data!$C$1:$AI$388,ScenarioAll!$X326,FALSE)*T320/100 -> 449.159903 | U326: =HLOOKUP($A$1,Data!$C$1:$AI$388,ScenarioAll!$X326,FALSE)*U320/100 -> 374.4452269 | V326: =HLOOKUP($A$1,Data!$C$1:$AI$388,ScenarioAll!$X326,FALSE)*V320/100 -> 371.9044211 | W326: =HLOOKUP($A$1,Data!$C$1:$AI$388,ScenarioAll!$X326,FALSE)*W320/100 -> 350.652288 | X326: 216
A327: Scenario Social | C327: =HLOOKUP($A$1,Data!$C$1:$AI$388,ScenarioAll!$X327,FALSE)*C320/100 -> 181.0287945 | D327: =HLOOKUP($A$1,Data!$C$1:$AI$388,ScenarioAll!$X327,FALSE)*D320/100 -> 181.0287945 | E327: =HLOOKUP($A$1,Data!$C$1:$AI$388,ScenarioAll!$X327,FALSE)*E320/100 -> 206.5864949 | F327: =HLOOKUP($A$1,Data!$C$1:$AI$388,ScenarioAll!$X327,FALSE)*F320/100 -> 201.84458 | G327: =HLOOKUP($A$1,Data!$C$1:$AI$388,ScenarioAll!$X327,FALSE)*G320/100 -> 206.8936943 | H327: =HLOOKUP($A$1,Data!$C$1:$AI$388,ScenarioAll!$X327,FALSE)*H320/100 -> 211.005267 | I327: =HLOOKUP($A$1,Data!$C$1:$AI$388,ScenarioAll!$X327,FALSE)*I320/100 -> 218.4866009 | J327: =HLOOKUP($A$1,Data!$C$1:$AI$388,ScenarioAll!$X327,FALSE)*J320/100 -> 225.6200749 | K327: =HLOOKUP($A$1,Data!$C$1:$AI$388,ScenarioAll!$X327,FALSE)*K320/100 -> 205.9653611 | L327: =HLOOKUP($A$1,Data!$C$1:$AI$388,ScenarioAll!$X327,FALSE)*L320/100 -> 209.2897597 | M327: =HLOOKUP($A$1,Data!$C$1:$AI$388,ScenarioAll!$X327,FALSE)*M320/100 -> 204.5778206 | N327: =HLOOKUP($A$1,Data!$C$1:$AI$388,ScenarioAll!$X327,FALSE)*N320/100 -> 208.4084062 | O327: =HLOOKUP($A$1,Data!$C$1:$AI$388,ScenarioAll!$X327,FALSE)*O320/100 -> 207.7561259 | P327: =HLOOKUP($A$1,Data!$C$1:$AI$388,ScenarioAll!$X327,FALSE)*P320/100 -> 145.881491 | Q327: =HLOOKUP($A$1,Data!$C$1:$AI$388,ScenarioAll!$X327,FALSE)*Q320/100 -> 141.2612633 | R327: =HLOOKUP($A$1,Data!$C$1:$AI$388,ScenarioAll!$X327,FALSE)*R320/100 -> 146.5653946 | S327: =HLOOKUP($A$1,Data!$C$1:$AI$388,ScenarioAll!$X327,FALSE)*S320/100 -> 145.9877736 | T327: =HLOOKUP($A$1,Data!$C$1:$AI$388,ScenarioAll!$X327,FALSE)*T320/100 -> 137.3885501 | U327: =HLOOKUP($A$1,Data!$C$1:$AI$388,ScenarioAll!$X327,FALSE)*U320/100 -> 114.534905 | V327: =HLOOKUP($A$1,Data!$C$1:$AI$388,ScenarioAll!$X327,FALSE)*V320/100 -> 113.757726 | W327: =HLOOKUP($A$1,Data!$C$1:$AI$388,ScenarioAll!$X327,FALSE)*W320/100 -> 107.2571463 | X327: 217
A328: Scenario PRS | C328: =HLOOKUP($A$1,Data!$C$1:$AI$388,ScenarioAll!$X328,FALSE)*C320/100 -> 88.3613431 | D328: =HLOOKUP($A$1,Data!$C$1:$AI$388,ScenarioAll!$X328,FALSE)*D320/100 -> 88.3613431 | E328: =HLOOKUP($A$1,Data!$C$1:$AI$388,ScenarioAll!$X328,FALSE)*E320/100 -> 100.8362245 | F328: =HLOOKUP($A$1,Data!$C$1:$AI$388,ScenarioAll!$X328,FALSE)*F320/100 -> 98.52166462 | G328: =HLOOKUP($A$1,Data!$C$1:$AI$388,ScenarioAll!$X328,FALSE)*G320/100 -> 100.9861705 | H328: =HLOOKUP($A$1,Data!$C$1:$AI$388,ScenarioAll!$X328,FALSE)*H320/100 -> 102.9930561 | I328: =HLOOKUP($A$1,Data!$C$1:$AI$388,ScenarioAll!$X328,FALSE)*I320/100 -> 106.6447443 | J328: =HLOOKUP($A$1,Data!$C$1:$AI$388,ScenarioAll!$X328,FALSE)*J320/100 -> 110.1266398 | K328: =HLOOKUP($A$1,Data!$C$1:$AI$388,ScenarioAll!$X328,FALSE)*K320/100 -> 100.533045 | L328: =HLOOKUP($A$1,Data!$C$1:$AI$388,ScenarioAll!$X328,FALSE)*L320/100 -> 102.1557057 | M328: =HLOOKUP($A$1,Data!$C$1:$AI$388,ScenarioAll!$X328,FALSE)*M320/100 -> 99.85577731 | N328: =HLOOKUP($A$1,Data!$C$1:$AI$388,ScenarioAll!$X328,FALSE)*N320/100 -> 101.7255113 | O328: =HLOOKUP($A$1,Data!$C$1:$AI$388,ScenarioAll!$X328,FALSE)*O320/100 -> 101.407129 | P328: =HLOOKUP($A$1,Data!$C$1:$AI$388,ScenarioAll!$X328,FALSE)*P320/100 -> 71.20571349 | Q328: =HLOOKUP($A$1,Data!$C$1:$AI$388,ScenarioAll!$X328,FALSE)*Q320/100 -> 68.95055003 | R328: =HLOOKUP($A$1,Data!$C$1:$AI$388,ScenarioAll!$X328,FALSE)*R320/100 -> 71.53953134 | S328: =HLOOKUP($A$1,Data!$C$1:$AI$388,ScenarioAll!$X328,FALSE)*S320/100 -> 71.25759073 | T328: =HLOOKUP($A$1,Data!$C$1:$AI$388,ScenarioAll!$X328,FALSE)*T320/100 -> 67.06025328 | U328: =HLOOKUP($A$1,Data!$C$1:$AI$388,ScenarioAll!$X328,FALSE)*U320/100 -> 55.90523906 | V328: =HLOOKUP($A$1,Data!$C$1:$AI$388,ScenarioAll!$X328,FALSE)*V320/100 -> 55.5258929 | W328: =HLOOKUP($A$1,Data!$C$1:$AI$388,ScenarioAll!$X328,FALSE)*W320/100 -> 52.35291727 | X328: 218
A330: Pri ces | B330: =B300 -> 2011 | C330: =B330+1 -> 2012 | D330: 2013 | E330: 2014 | F330: 2015 | G330: 2016 | H330: 2017 | I330: 2018 | J330: 2019 | K330: 2020 | L330: 2021 | M330: 2022 | N330: 2023 | O330: 2024 | P330: 2025 | Q330: 2026 | R330: 2027 | S330: 2028 | T330: 2029 | U330: 2030 | V330: 2031 | W330: 2032
A331: Principal Scenario | B331: =PriceScenarios!C3 -> 0.004 | C331: =PriceScenarios!D3 -> 0.017 | D331: =PriceScenarios!E3 -> 0.016 | E331: =PriceScenarios!F3 -> 0.036 | F331: =PriceScenarios!G3 -> 0.039 | G331: =PriceScenarios!H3 -> 0.04 | H331: =PriceScenarios!I3 -> 0.04 | I331: =PriceScenarios!J3 -> 0.045 | J331: =PriceScenarios!K3 -> 0.045 | K331: =PriceScenarios!L3 -> 0.045 | L331: =PriceScenarios!M3 -> 0.045 | M331: =PriceScenarios!N3 -> 0.045 | N331: =PriceScenarios!O3 -> 0.045 | O331: =PriceScenarios!P3 -> 0.045 | P331: =PriceScenarios!Q3 -> 0.045 | Q331: =PriceScenarios!R3 -> 0.045 | R331: =PriceScenarios!S3 -> 0.045 | S331: =PriceScenarios!T3 -> 0.045 | T331: =PriceScenarios!U3 -> 0.045 | U331: =PriceScenarios!V3 -> 0.045 | V331: =PriceScenarios!W3 -> 0.045 | W331: =PriceScenarios!X3 -> 0.045
A332: Principal Mean | B332: =HLOOKUP($A$1,Data!$C$1:$AI$207,ScenarioAll!$X332,FALSE) -> 156834.1823 | C332: =B332*(1+B331) -> 157461.519 | D332: =C332*(1+C331) -> 160138.3648 | E332: 162700.5787 | F332: 168557.7995 | G332: 175131.5537 | H332: 182136.8158 | I332: 189422.2885 | J332: 197946.2914 | K332: 206853.8746 | L332: 216162.2989 | M332: 225889.6024 | N332: 236054.6345 | O332: 246677.093 | P332: 257777.5622 | Q332: 269377.5525 | R332: 281499.5424 | S332: 294167.0218 | T332: 307404.5378 | U332: 321237.742 | V332: 335693.4404 | W332: 350799.6452 | X332: 206
A333: Principal Median | B333: =HLOOKUP($A$1,Data!$C$1:$AI$207,ScenarioAll!$X333,FALSE) -> 135642.1879 | C333: =B333*(1+B331) -> 136184.7566 | D333: =C333*(1+C331) -> 138499.8975 | E333: 140715.8958 | F333: 145781.6681 | G333: 151467.1531 | H333: 157525.8393 | I333: 163826.8728 | J333: 171199.0821 | K333: 178903.0408 | L333: 186953.6776 | M333: 195366.5931 | N333: 204158.0898 | O333: 213345.2039 | P333: 222945.738 | Q333: 232978.2963 | R333: 243462.3196 | S333: 254418.124 | T333: 265866.9396 | U333: 277830.9518 | V333: 290333.3447 | W333: 303398.3452 | X333: 207
A334: U | B334: =IF(B333<>0,LN(B333),0) -> 11.81777573 | C334: 11.82176775 | D334: 11.83862486 | E334: 11.85449821 | F334: 11.88986536 | G334: 11.92812407 | H334: 11.96734478 | I334: 12.0065655 | J334: 12.05058238 | K334: 12.09459927 | L334: 12.13861615 | M334: 12.18263304 | N334: 12.22664992 | O334: 12.27066681 | P334: 12.31468369 | Q334: 12.35870058 | R334: 12.40271746 | S334: 12.44673435 | T334: 12.49075124 | U334: 12.53476812 | V334: 12.57878501 | W334: 12.62280189
A335: Sigma2 | B335: =IF(B332<>0,2*LN(B332)-2*B334,0) -> 0.2903372728 | C335: 0.2903372728 | D335: 0.2903372728 | E335: 0.2903372728 | F335: 0.2903372728 | G335: 0.2903372728 | H335: 0.2903372728 | I335: 0.2903372728 | J335: 0.2903372728 | K335: 0.2903372728 | L335: 0.2903372728 | M335: 0.2903372728 | N335: 0.2903372728 | O335: 0.2903372728 | P335: 0.2903372728 | Q335: 0.2903372728 | R335: 0.2903372728 | S335: 0.2903372728 | T335: 0.2903372728 | U335: 0.2903372728 | V335: 0.2903372728 | W335: 0.2903372728
A338: =CONCATENATE("Principal ",$C$61*100,"%ile") -> Principal 25%ile | B338: =EXP(SQRT(B335)*NORMSINV(CoreAssumptions!$F$2)+B334) -> 94309.83184 | C338: =EXP(SQRT(C335)*NORMSINV(CoreAssumptions!$F$2)+C334) -> 94687.07116 | D338: =EXP(SQRT(D335)*NORMSINV(CoreAssumptions!$F$2)+D334) -> 96296.75137 | E338: =EXP(SQRT(E335)*NORMSINV(CoreAssumptions!$F$2)+E334) -> 97837.4994 | F338: =EXP(SQRT(F335)*NORMSINV(CoreAssumptions!$F$2)+F334) -> 101359.6494 | G338: =EXP(SQRT(G335)*NORMSINV(CoreAssumptions!$F$2)+G334) -> 105312.6757 | H338: =EXP(SQRT(H335)*NORMSINV(CoreAssumptions!$F$2)+H334) -> 109525.1827 | I338: =EXP(SQRT(I335)*NORMSINV(CoreAssumptions!$F$2)+I334) -> 113906.19 | J338: =EXP(SQRT(J335)*NORMSINV(CoreAssumptions!$F$2)+J334) -> 119031.9686 | K338: =EXP(SQRT(K335)*NORMSINV(CoreAssumptions!$F$2)+K334) -> 124388.4072 | L338: =EXP(SQRT(L335)*NORMSINV(CoreAssumptions!$F$2)+L334) -> 129985.8855 | M338: =EXP(SQRT(M335)*NORMSINV(CoreAssumptions!$F$2)+M334) -> 135835.2503 | N338: =EXP(SQRT(N335)*NORMSINV(CoreAssumptions!$F$2)+N334) -> 141947.8366 | O338: =EXP(SQRT(O335)*NORMSINV(CoreAssumptions!$F$2)+O334) -> 148335.4893 | P338: =EXP(SQRT(P335)*NORMSINV(CoreAssumptions!$F$2)+P334) -> 155010.5863 | Q338: =EXP(SQRT(Q335)*NORMSINV(CoreAssumptions!$F$2)+Q334) -> 161986.0627 | R338: =EXP(SQRT(R335)*NORMSINV(CoreAssumptions!$F$2)+R334) -> 169275.4355 | S338: =EXP(SQRT(S335)*NORMSINV(CoreAssumptions!$F$2)+S334) -> 176892.8301 | T338: =EXP(SQRT(T335)*NORMSINV(CoreAssumptions!$F$2)+T334) -> 184853.0074 | U338: =EXP(SQRT(U335)*NORMSINV(CoreAssumptions!$F$2)+U334) -> 193171.3928 | V338: =EXP(SQRT(V335)*NORMSINV(CoreAssumptions!$F$2)+V334) -> 201864.1054 | W338: =EXP(SQRT(W335)*NORMSINV(CoreAssumptions!$F$2)+W334) -> 210947.9902
A339: Income from Afford | B339: =IF(B338/CoreAssumptions!$F$3<=B419,B419,B338/CoreAssumptions!$F$3) -> 23577.45796 | C339: =IF(C338/CoreAssumptions!$F$3<=C419,C419,C338/CoreAssumptions!$F$3) -> 23671.76779 | D339: =IF(D338/CoreAssumptions!$F$3<=D419,D419,D338/CoreAssumptions!$F$3) -> 24074.18784 | E339: =IF(E338/CoreAssumptions!$F$3<=E419,E419,E338/CoreAssumptions!$F$3) -> 24459.37485 | F339: =IF(F338/CoreAssumptions!$F$3<=F419,F419,F338/CoreAssumptions!$F$3) -> 25339.91234 | G339: =IF(G338/CoreAssumptions!$F$3<=G419,G419,G338/CoreAssumptions!$F$3) -> 26328.16893 | H339: =IF(H338/CoreAssumptions!$F$3<=H419,H419,H338/CoreAssumptions!$F$3) -> 27381.29568 | I339: =IF(I338/CoreAssumptions!$F$3<=I419,I419,I338/CoreAssumptions!$F$3) -> 28476.54751 | J339: =IF(J338/CoreAssumptions!$F$3<=J419,J419,J338/CoreAssumptions!$F$3) -> 29757.99215 | K339: =IF(K338/CoreAssumptions!$F$3<=K419,K419,K338/CoreAssumptions!$F$3) -> 31097.10179 | L339: =IF(L338/CoreAssumptions!$F$3<=L419,L419,L338/CoreAssumptions!$F$3) -> 32496.47137 | M339: =IF(M338/CoreAssumptions!$F$3<=M419,M419,M338/CoreAssumptions!$F$3) -> 33958.81259 | N339: =IF(N338/CoreAssumptions!$F$3<=N419,N419,N338/CoreAssumptions!$F$3) -> 35486.95915 | O339: =IF(O338/CoreAssumptions!$F$3<=O419,O419,O338/CoreAssumptions!$F$3) -> 37083.87231 | P339: =IF(P338/CoreAssumptions!$F$3<=P419,P419,P338/CoreAssumptions!$F$3) -> 38752.64657 | Q339: =IF(Q338/CoreAssumptions!$F$3<=Q419,Q419,Q338/CoreAssumptions!$F$3) -> 40496.51566 | R339: =IF(R338/CoreAssumptions!$F$3<=R419,R419,R338/CoreAssumptions!$F$3) -> 42318.85887 | S339: =IF(S338/CoreAssumptions!$F$3<=S419,S419,S338/CoreAssumptions!$F$3) -> 44223.20752 | T339: =IF(T338/CoreAssumptions!$F$3<=T419,T419,T338/CoreAssumptions!$F$3) -> 46213.25186 | U339: =IF(U338/CoreAssumptions!$F$3<=U419,U419,U338/CoreAssumptions!$F$3) -> 48292.84819 | V339: =IF(V338/CoreAssumptions!$F$3<=V419,V419,V338/CoreAssumptions!$F$3) -> 50466.02636 | W339: =IF(W338/CoreAssumptions!$F$3<=W419,W419,W338/CoreAssumptions!$F$3) -> 52736.99755
B340: =IF(B339>B419,VLOOKUP(B339,B$419:$AA$499,B$418+3),10) -> 45 | C340: =IF(C339>C419,VLOOKUP(C339,C$419:$AA$499,C$418+3),10) -> 44 | D340: =IF(D339>D419,VLOOKUP(D339,D$419:$AA$499,D$418+3),10) -> 43 | E340: =IF(E339>E419,VLOOKUP(E339,E$419:$AA$499,E$418+3),10) -> 42 | F340: =IF(F339>F419,VLOOKUP(F339,F$419:$AA$499,F$418+3),10) -> 42 | G340: =IF(G339>G419,VLOOKUP(G339,G$419:$AA$499,G$418+3),10) -> 42 | H340: =IF(H339>H419,VLOOKUP(H339,H$419:$AA$499,H$418+3),10) -> 42 | I340: =IF(I339>I419,VLOOKUP(I339,I$419:$AA$499,I$418+3),10) -> 42 | J340: =IF(J339>J419,VLOOKUP(J339,J$419:$AA$499,J$418+3),10) -> 42 | K340: =IF(K339>K419,VLOOKUP(K339,K$419:$AA$499,K$418+3),10) -> 43 | L340: =IF(L339>L419,VLOOKUP(L339,L$419:$AA$499,L$418+3),10) -> 43 | M340: =IF(M339>M419,VLOOKUP(M339,M$419:$AA$499,M$418+3),10) -> 43 | N340: =IF(N339>N419,VLOOKUP(N339,N$419:$AA$499,N$418+3),10) -> 43 | O340: =IF(O339>O419,VLOOKUP(O339,O$419:$AA$499,O$418+3),10) -> 43 | P340: =IF(P339>P419,VLOOKUP(P339,P$419:$AA$499,P$418+3),10) -> 44 | Q340: =IF(Q339>Q419,VLOOKUP(Q339,Q$419:$AA$499,Q$418+3),10) -> 45 | R340: =IF(R339>R419,VLOOKUP(R339,R$419:$AA$499,R$418+3),10) -> 45 | S340: =IF(S339>S419,VLOOKUP(S339,S$419:$AA$499,S$418+3),10) -> 46 | T340: =IF(T339>T419,VLOOKUP(T339,T$419:$AA$499,T$418+3),10) -> 47 | U340: =IF(U339>U419,VLOOKUP(U339,U$419:$AA$499,U$418+3),10) -> 47 | V340: =IF(V339>V419,VLOOKUP(V339,V$419:$AA$499,V$418+3),10) -> 48 | W340: =IF(W339>W419,VLOOKUP(W339,W$419:$AA$499,W$418+3),10) -> 49
A341: Principal Market | C341: =C317*(100-C340)/100 -> 354.3140921 | D341: =D317*(100-D340)/100 -> 360.6411294 | E341: 411.8568379 | F341: 394.5345543 | G341: 399.5381877 | H341: 386.4237898 | I341: 402.8221555 | J341: 399.8146811 | K341: 338.8962784 | L341: 344.0879859 | M341: 332.5496744 | N341: 337.2024466 | O341: 336.6695485 | P341: 283.3403641 | Q341: 264.003846 | R341: 275.4457763 | S341: 269.7458756 | T341: 242.9556724 | U341: 185.3820835 | V341: 176.3089419 | W341: 160.4053139
A342: Princpal Subsidy | C342: =C316+(C317*(C340)/100) -> 467.1896438 | D342: =D316+(D317*(D340)/100) -> 460.8626064 | E342: 487.0411585 | F342: 474.4974359 | G342: 478.1207566 | H342: 279.8241236 | I342: 291.6988022 | J342: 289.5209759 | K342: 255.658596 | L342: 259.5751472 | M342: 250.870807 | N342: 254.380793 | O342: 253.9787822 | P342: 222.6245718 | Q342: 216.0031467 | R342: 225.364726 | S342: 229.7835237 | T342: 215.4512566 | U342: 164.3954326 | V342: 162.7467156 | W342: 154.1149094
A347: Scenario | B347: =VLOOKUP($X347,PriceScenarios!$B$3:$AD$21,B330-2009,FALSE) -> 0.004 | C347: =VLOOKUP($X347,PriceScenarios!$B$3:$AD$21,C330-2009,FALSE) -> 0.017 | D347: =VLOOKUP($X347,PriceScenarios!$B$3:$AD$21,D330-2009,FALSE) -> 0.016 | E347: =VLOOKUP($X347,PriceScenarios!$B$3:$AD$21,E330-2009,FALSE) -> 0.036 | F347: =VLOOKUP($X347,PriceScenarios!$B$3:$AD$21,F330-2009,FALSE) -> 0.039 | G347: =VLOOKUP($X347,PriceScenarios!$B$3:$AD$21,G330-2009,FALSE) -> 0.04 | H347: =VLOOKUP($X347,PriceScenarios!$B$3:$AD$21,H330-2009,FALSE) -> 0.04 | I347: =VLOOKUP($X347,PriceScenarios!$B$3:$AD$21,I330-2009,FALSE) -> 0.045 | J347: =VLOOKUP($X347,PriceScenarios!$B$3:$AD$21,J330-2009,FALSE) -> 0.045 | K347: =VLOOKUP($X347,PriceScenarios!$B$3:$AD$21,K330-2009,FALSE) -> 0.045 | L347: =VLOOKUP($X347,PriceScenarios!$B$3:$AD$21,L330-2009,FALSE) -> 0.045 | M347: =VLOOKUP($X347,PriceScenarios!$B$3:$AD$21,M330-2009,FALSE) -> 0.045 | N347: =VLOOKUP($X347,PriceScenarios!$B$3:$AD$21,N330-2009,FALSE) -> 0.045 | O347: =VLOOKUP($X347,PriceScenarios!$B$3:$AD$21,O330-2009,FALSE) -> 0.045 | P347: =VLOOKUP($X347,PriceScenarios!$B$3:$AD$21,P330-2009,FALSE) -> 0.045 | Q347: =VLOOKUP($X347,PriceScenarios!$B$3:$AD$21,Q330-2009,FALSE) -> 0.045 | R347: =VLOOKUP($X347,PriceScenarios!$B$3:$AD$21,R330-2009,FALSE) -> 0.045 | S347: =VLOOKUP($X347,PriceScenarios!$B$3:$AD$21,S330-2009,FALSE) -> 0.045 | T347: =VLOOKUP($X347,PriceScenarios!$B$3:$AD$21,T330-2009,FALSE) -> 0.045 | U347: =VLOOKUP($X347,PriceScenarios!$B$3:$AD$21,U330-2009,FALSE) -> 0.045 | V347: =VLOOKUP($X347,PriceScenarios!$B$3:$AD$21,V330-2009,FALSE) -> 0.045 | W347: =VLOOKUP($X347,PriceScenarios!$B$3:$AD$21,W330-2009,FALSE) -> 0.045 | X347: =CHOOSE(X60,PriceScenarios!$B$3,PriceScenarios!$B$4,PriceScenarios!$B$5,PriceScenarios!$B$6,PriceScenarios!$B$7,PriceScenarios!$B$8,PriceScenarios!$B$9,PriceScenarios!$B$10,PriceScenarios!$B$11,PriceScenarios!$B$12,PriceScenarios!$B$13,PriceScenarios!$B$14,PriceScenarios!$B$15,PriceScenarios!$B$16,PriceScenarios!$B$17,PriceScenarios!$B$18,PriceScenarios!$B$19,PriceScenarios!$B$20,PriceScenarios!$B$21) -> OBR estimates (Core)
A348: Scenario Mean | B348: =HLOOKUP($A$1,Data!$C$1:$AI$207,ScenarioAll!$X348,FALSE) -> 156834.1823 | C348: =B348*(1+B347) -> 157461.519 | D348: =C348*(1+C347) -> 160138.3648 | E348: 162700.5787 | F348: 168557.7995 | G348: 175131.5537 | H348: 182136.8158 | I348: 189422.2885 | J348: 197946.2914 | K348: 206853.8746 | L348: 216162.2989 | M348: 225889.6024 | N348: 236054.6345 | O348: 246677.093 | P348: 257777.5622 | Q348: 269377.5525 | R348: 281499.5424 | S348: 294167.0218 | T348: 307404.5378 | U348: 321237.742 | V348: =U348*(1+U347) -> 335693.4404 | W348: =V348*(1+V347) -> 350799.6452 | X348: 206
A349: Scenario Median | B349: =HLOOKUP($A$1,Data!$C$1:$AI$207,ScenarioAll!$X349,FALSE) -> 135642.1879 | C349: =B349*(1+B347) -> 136184.7566 | D349: =C349*(1+C347) -> 138499.8975 | E349: 140715.8958 | F349: 145781.6681 | G349: 151467.1531 | H349: 157525.8393 | I349: 163826.8728 | J349: 171199.0821 | K349: 178903.0408 | L349: 186953.6776 | M349: 195366.5931 | N349: 204158.0898 | O349: 213345.2039 | P349: 222945.738 | Q349: 232978.2963 | R349: 243462.3196 | S349: 254418.124 | T349: 265866.9396 | U349: 277830.9518 | V349: =U349*(1+U347) -> 290333.3447 | W349: =V349*(1+V347) -> 303398.3452 | X349: 207
A350: U | B350: =IF(B349<>0,LN(B349),0) -> 11.81777573 | C350: 11.82176775 | D350: 11.83862486 | E350: 11.85449821 | F350: 11.88986536 | G350: 11.92812407 | H350: 11.96734478 | I350: 12.0065655 | J350: 12.05058238 | K350: 12.09459927 | L350: 12.13861615 | M350: 12.18263304 | N350: 12.22664992 | O350: 12.27066681 | P350: 12.31468369 | Q350: 12.35870058 | R350: 12.40271746 | S350: 12.44673435 | T350: 12.49075124 | U350: 12.53476812 | V350: =IF(V349<>0,LN(V349),0) -> 12.57878501 | W350: =IF(W349<>0,LN(W349),0) -> 12.62280189
A351: Sigma2 | B351: =IF(B348<>0,2*LN(B348)-2*B350,0) -> 0.2903372728 | C351: 0.2903372728 | D351: 0.2903372728 | E351: 0.2903372728 | F351: 0.2903372728 | G351: 0.2903372728 | H351: 0.2903372728 | I351: 0.2903372728 | J351: 0.2903372728 | K351: 0.2903372728 | L351: 0.2903372728 | M351: 0.2903372728 | N351: 0.2903372728 | O351: 0.2903372728 | P351: 0.2903372728 | Q351: 0.2903372728 | R351: 0.2903372728 | S351: 0.2903372728 | T351: 0.2903372728 | U351: 0.2903372728 | V351: =IF(V348<>0,2*LN(V348)-2*V350,0) -> 0.2903372728 | W351: =IF(W348<>0,2*LN(W348)-2*W350,0) -> 0.2903372728
A353: =CONCATENATE("Scenario ",$C$61*100,"%ile") -> Scenario 25%ile | B353: =EXP(SQRT(B351)*NORMSINV($C$61)+B350) -> 94309.83184 | C353: 94687.07116 | D353: 96296.75137 | E353: 97837.4994 | F353: 101359.6494 | G353: 105312.6757 | H353: 109525.1827 | I353: 113906.19 | J353: 119031.9686 | K353: 124388.4072 | L353: 129985.8855 | M353: 135835.2503 | N353: 141947.8366 | O353: 148335.4893 | P353: 155010.5863 | Q353: 161986.0627 | R353: 169275.4355 | S353: 176892.8301 | T353: 184853.0074 | U353: 193171.3928 | V353: =EXP(SQRT(V351)*NORMSINV($C$61)+V350) -> 201864.1054 | W353: =EXP(SQRT(W351)*NORMSINV($C$61)+W350) -> 210947.9902
A354: Income from Afford | B354: =IF(B353/$C$64<=B510,B510,B353/$C$64) -> 23577.45796 | C354: =IF(C353/$C$64<=C510,C510,C353/$C$64) -> 23671.76779 | D354: 24074.18784 | E354: 24459.37485 | F354: 25339.91234 | G354: 26328.16893 | H354: 27381.29568 | I354: 28476.54751 | J354: 29757.99215 | K354: 31097.10179 | L354: 32496.47137 | M354: 33958.81259 | N354: 35486.95915 | O354: 37083.87231 | P354: 38752.64657 | Q354: 40496.51566 | R354: 42318.85887 | S354: 44223.20752 | T354: 46213.25186 | U354: 48292.84819 | V354: 50466.02636 | W354: 52736.99755
B355: =IF(B354>B510,VLOOKUP(B354,B510:$AA$590,B509+3),10) -> 45 | C355: =IF(C354>C510,VLOOKUP(C354,C510:$AA$590,C509+3),10) -> 44 | D355: =IF(D354>D510,VLOOKUP(D354,D510:$AA$590,D509+3),10) -> 43 | E355: =IF(E354>E510,VLOOKUP(E354,E510:$AA$590,E509+3),10) -> 42 | F355: =IF(F354>F510,VLOOKUP(F354,F510:$AA$590,F509+3),10) -> 42 | G355: =IF(G354>G510,VLOOKUP(G354,G510:$AA$590,G509+3),10) -> 42 | H355: =IF(H354>H510,VLOOKUP(H354,H510:$AA$590,H509+3),10) -> 42 | I355: =IF(I354>I510,VLOOKUP(I354,I510:$AA$590,I509+3),10) -> 42 | J355: =IF(J354>J510,VLOOKUP(J354,J510:$AA$590,J509+3),10) -> 42 | K355: =IF(K354>K510,VLOOKUP(K354,K510:$AA$590,K509+3),10) -> 43 | L355: =IF(L354>L510,VLOOKUP(L354,L510:$AA$590,L509+3),10) -> 43 | M355: =IF(M354>M510,VLOOKUP(M354,M510:$AA$590,M509+3),10) -> 43 | N355: =IF(N354>N510,VLOOKUP(N354,N510:$AA$590,N509+3),10) -> 43 | O355: =IF(O354>O510,VLOOKUP(O354,O510:$AA$590,O509+3),10) -> 43 | P355: =IF(P354>P510,VLOOKUP(P354,P510:$AA$590,P509+3),10) -> 44 | Q355: =IF(Q354>Q510,VLOOKUP(Q354,Q510:$AA$590,Q509+3),10) -> 45 | R355: =IF(R354>R510,VLOOKUP(R354,R510:$AA$590,R509+3),10) -> 45 | S355: =IF(S354>S510,VLOOKUP(S354,S510:$AA$590,S509+3),10) -> 46 | T355: =IF(T354>T510,VLOOKUP(T354,T510:$AA$590,T509+3),10) -> 47 | U355: =IF(U354>U510,VLOOKUP(U354,U510:$AA$590,U509+3),10) -> 47 | V355: =IF(V354>V510,VLOOKUP(V354,V510:$AA$590,V509+3),10) -> 48 | W355: =IF(W354>W510,VLOOKUP(W354,W510:$AA$590,W509+3),10) -> 49
A356: Scenario Market | C356: =IF(OR($B$312=TRUE,$B$309=FALSE),C318*(100-C355)/100,C320*(100-C355)/100) -> 362.2287492 | D356: =IF(OR($B$312=TRUE,$B$309=FALSE),D318*(100-D355)/100,D320*(100-D355)/100) -> 368.6971198 | E356: 445.6862621 | F356: 432.6020057 | G356: 446.5339102 | H356: 457.8788777 | I356: 478.5219493 | J356: 498.2051793 | K356: 436.3176857 | L356: 445.3324677 | M356: 432.5550876 | N356: 442.9424988 | O356: 441.1737081 | P356: 388.6471692 | Q356: 369.6179583 | R356: 383.496513 | S356: 375.0399512 | T356: 346.4126144 | U356: 288.7892466 | V356: 281.4177808 | W356: 260.2337993
A357: Scenario Subsidy | C357: =IF(OR($B$309=FALSE,$B$312=TRUE),C312+(C318*(C355)/100),C320*(C355)/100) -> 498.9929184 | D357: =IF(OR($B$309=FALSE,$B$312=TRUE),D312+(D318*(D355)/100),D320*(D355)/100) -> 492.5245478 | E357: 537.1229431 | F357: 527.6481368 | G357: 537.7367573 | H357: 545.9520785 | I357: 560.9005097 | J357: 575.1538832 | K357: 543.5365537 | L357: 550.3371788 | M357: 540.6981025 | N357: 548.5342197 | O357: 547.1998689 | P357: 305.3656329 | Q357: 302.4146931 | R357: 313.7698743 | S357: 319.478477 | T357: 307.196092 | U357: 256.0961243 | V357: 259.7702592 | W357: 250.0285523
A360: Intermediate
A362: Rents (Principal)
A363: Rises Principal | B363: =B331 -> 0.004 | C363: =C331 -> 0.017 | D363: 0.016 | E363: 0.036 | F363: 0.039 | G363: 0.04 | H363: 0.04 | I363: 0.045 | J363: 0.045 | K363: 0.045 | L363: 0.045 | M363: 0.045 | N363: 0.045 | O363: 0.045 | P363: 0.045 | Q363: 0.045 | R363: 0.045 | S363: 0.045 | T363: 0.045 | U363: 0.045 | V363: 0.045 | W363: 0.045
A365: Rent Median (Principal) | B365: =HLOOKUP($A$1,Data!$C$1:$AI$211,ScenarioAll!$X365,FALSE) -> 117.6923077 | C365: =B365*(1+B363) -> 118.1630769 | D365: =C365*(1+C363) -> 120.1718492 | E365: 122.0945988 | F365: 126.4900044 | G365: 131.4231145 | H365: 136.6800391 | I365: 142.1472407 | J365: 148.5438665 | K365: 155.2283405 | L365: 162.2136158 | M365: 169.5132286 | N365: 177.1413238 | O365: 185.1126834 | P365: 193.4427542 | Q365: 202.1476781 | R365: 211.2443236 | S365: 220.7503182 | T365: 230.6840825 | U365: 241.0648662 | V365: 251.9127852 | W365: 263.2488605 | X365: 210
A366: Rent 30th%ile (Principal) | B366: =HLOOKUP($A$1,Data!$C$1:$AI$211,ScenarioAll!$X366,FALSE) -> 110.7692308 | C366: =B366*(1+B363) -> 111.2123077 | D366: =C366*(1+C363) -> 113.1029169 | E366: 114.9125636 | F366: 119.0494159 | G366: 123.6923431 | H366: 128.6400368 | I366: 133.7856383 | J366: 139.805992 | K366: 146.0972617 | L366: 152.6716384 | M366: 159.5418622 | N366: 166.721246 | O366: 174.223702 | P366: 182.0637686 | Q366: 190.2566382 | R366: 198.8181869 | S366: 207.7650053 | T366: 217.1144306 | U366: 226.88458 | V366: 237.0943861 | W366: 247.7636334 | X366: 211
A367: Annual Rent Medain | B367: =B365*52 -> 6120 | C367: =C365*52 -> 6144.48 | D367: 6248.93616 | E367: 6348.919139 | F367: 6577.480228 | G367: 6834.001956 | H367: 7107.362035 | I367: 7391.656516 | J367: 7724.281059 | K367: 8071.873707 | L367: 8435.108024 | M367: 8814.687885 | N367: 9211.34884 | O367: 9625.859537 | P367: 10059.02322 | Q367: 10511.67926 | R367: 10984.70483 | S367: 11479.01655 | T367: 11995.57229 | U367: 12535.37304 | V367: 13099.46483 | W367: 13688.94075
A368: Annual Rent 30th | B368: =B366*52 -> 5760 | C368: 5783.04 | D368: 5881.35168 | E368: 5975.453307 | F368: 6190.569626 | G368: 6432.001841 | H368: 6689.281915 | I368: 6956.853192 | J368: 7269.911585 | K368: 7597.057607 | L368: 7938.925199 | M368: 8296.176833 | N368: 8669.50479 | O368: 9059.632506 | P368: 9467.315969 | Q368: 9893.345187 | R368: 10338.54572 | S368: 10803.78028 | T368: 11289.95039 | U368: 11797.99816 | V368: 12328.90808 | W368: 12883.70894
A370: Income above | B370: =B367/CoreAssumptions!$F$6 -> 24480 | C370: =C367/CoreAssumptions!$F$6 -> 24577.92 | D370: =D367/CoreAssumptions!$F$6 -> 24995.74464 | E370: =E367/CoreAssumptions!$F$6 -> 25395.67655 | F370: =F367/CoreAssumptions!$F$6 -> 26309.92091 | G370: =G367/CoreAssumptions!$F$6 -> 27336.00783 | H370: =H367/CoreAssumptions!$F$6 -> 28429.44814 | I370: =I367/CoreAssumptions!$F$6 -> 29566.62606 | J370: =J367/CoreAssumptions!$F$6 -> 30897.12424 | K370: =K367/CoreAssumptions!$F$6 -> 32287.49483 | L370: =L367/CoreAssumptions!$F$6 -> 33740.4321 | M370: =M367/CoreAssumptions!$F$6 -> 35258.75154 | N370: =N367/CoreAssumptions!$F$6 -> 36845.39536 | O370: =O367/CoreAssumptions!$F$6 -> 38503.43815 | P370: =P367/CoreAssumptions!$F$6 -> 40236.09287 | Q370: =Q367/CoreAssumptions!$F$6 -> 42046.71705 | R370: =R367/CoreAssumptions!$F$6 -> 43938.81931 | S370: =S367/CoreAssumptions!$F$6 -> 45916.06618 | T370: =T367/CoreAssumptions!$F$6 -> 47982.28916 | U370: =U367/CoreAssumptions!$F$6 -> 50141.49217 | V370: =V367/CoreAssumptions!$F$6 -> 52397.85932 | W370: =W367/CoreAssumptions!$F$6 -> 54755.76299
A371: Income below | B371: =B368/CoreAssumptions!$F$5 -> 16457.14286 | C371: =C368/CoreAssumptions!$F$5 -> 16522.97143 | D371: =D368/CoreAssumptions!$F$5 -> 16803.86194 | E371: =E368/CoreAssumptions!$F$5 -> 17072.72373 | F371: =F368/CoreAssumptions!$F$5 -> 17687.34179 | G371: =G368/CoreAssumptions!$F$5 -> 18377.14812 | H371: =H368/CoreAssumptions!$F$5 -> 19112.23404 | I371: =I368/CoreAssumptions!$F$5 -> 19876.7234 | J371: =J368/CoreAssumptions!$F$5 -> 20771.17596 | K371: =K368/CoreAssumptions!$F$5 -> 21705.87888 | L371: =L368/CoreAssumptions!$F$5 -> 22682.64343 | M371: =M368/CoreAssumptions!$F$5 -> 23703.36238 | N371: =N368/CoreAssumptions!$F$5 -> 24770.01369 | O371: =O368/CoreAssumptions!$F$5 -> 25884.6643 | P371: =P368/CoreAssumptions!$F$5 -> 27049.4742 | Q371: =Q368/CoreAssumptions!$F$5 -> 28266.70053 | R371: =R368/CoreAssumptions!$F$5 -> 29538.70206 | S371: =S368/CoreAssumptions!$F$5 -> 30867.94365 | T371: =T368/CoreAssumptions!$F$5 -> 32257.00112 | U371: =U368/CoreAssumptions!$F$5 -> 33708.56617 | V371: =V368/CoreAssumptions!$F$5 -> 35225.45164 | W371: =W368/CoreAssumptions!$F$5 -> 36810.59697
A372: Above percentile | B372: =VLOOKUP(B370,B$419:$AA$499,B$418+3) -> 46 | C372: =VLOOKUP(C370,C$419:$AA$499,C$418+3) -> 46 | D372: =VLOOKUP(D370,D$419:$AA$499,D$418+3) -> 45 | E372: =VLOOKUP(E370,E$419:$AA$499,E$418+3) -> 44 | F372: =VLOOKUP(F370,F$419:$AA$499,F$418+3) -> 44 | G372: =VLOOKUP(G370,G$419:$AA$499,G$418+3) -> 44 | H372: =VLOOKUP(H370,H$419:$AA$499,H$418+3) -> 44 | I372: =VLOOKUP(I370,I$419:$AA$499,I$418+3) -> 44 | J372: =VLOOKUP(J370,J$419:$AA$499,J$418+3) -> 44 | K372: =VLOOKUP(K370,K$419:$AA$499,K$418+3) -> 44 | L372: =VLOOKUP(L370,L$419:$AA$499,L$418+3) -> 44 | M372: =VLOOKUP(M370,M$419:$AA$499,M$418+3) -> 45 | N372: =VLOOKUP(N370,N$419:$AA$499,N$418+3) -> 45 | O372: =VLOOKUP(O370,O$419:$AA$499,O$418+3) -> 45 | P372: =VLOOKUP(P370,P$419:$AA$499,P$418+3) -> 46 | Q372: =VLOOKUP(Q370,Q$419:$AA$499,Q$418+3) -> 46 | R372: =VLOOKUP(R370,R$419:$AA$499,R$418+3) -> 47 | S372: =VLOOKUP(S370,S$419:$AA$499,S$418+3) -> 48 | T372: =VLOOKUP(T370,T$419:$AA$499,T$418+3) -> 48 | U372: =VLOOKUP(U370,U$419:$AA$499,U$418+3) -> 49 | V372: =VLOOKUP(V370,V$419:$AA$499,V$418+3) -> 50 | W372: =VLOOKUP(W370,W$419:$AA$499,W$418+3) -> 50
A373: Below percentile | B373: =VLOOKUP(B371,B$419:$AA$499,B$418+3) -> 29 | C373: =VLOOKUP(C371,C$419:$AA$499,C$418+3) -> 28 | D373: =VLOOKUP(D371,D$419:$AA$499,D$418+3) -> 28 | E373: =VLOOKUP(E371,E$419:$AA$499,E$418+3) -> 27 | F373: =VLOOKUP(F371,F$419:$AA$499,F$418+3) -> 27 | G373: =VLOOKUP(G371,G$419:$AA$499,G$418+3) -> 27 | H373: =VLOOKUP(H371,H$419:$AA$499,H$418+3) -> 27 | I373: =VLOOKUP(I371,I$419:$AA$499,I$418+3) -> 27 | J373: =VLOOKUP(J371,J$419:$AA$499,J$418+3) -> 27 | K373: =VLOOKUP(K371,K$419:$AA$499,K$418+3) -> 27 | L373: =VLOOKUP(L371,L$419:$AA$499,L$418+3) -> 27 | M373: =VLOOKUP(M371,M$419:$AA$499,M$418+3) -> 28 | N373: =VLOOKUP(N371,N$419:$AA$499,N$418+3) -> 28 | O373: =VLOOKUP(O371,O$419:$AA$499,O$418+3) -> 28 | P373: =VLOOKUP(P371,P$419:$AA$499,P$418+3) -> 28 | Q373: =VLOOKUP(Q371,Q$419:$AA$499,Q$418+3) -> 29 | R373: =VLOOKUP(R371,R$419:$AA$499,R$418+3) -> 30 | S373: =VLOOKUP(S371,S$419:$AA$499,S$418+3) -> 30 | T373: =VLOOKUP(T371,T$419:$AA$499,T$418+3) -> 31 | U373: =VLOOKUP(U371,U$419:$AA$499,U$418+3) -> 31 | V373: =VLOOKUP(V371,V$419:$AA$499,V$418+3) -> 32 | W373: =VLOOKUP(W371,W$419:$AA$499,W$418+3) -> 33
A377: Social Rent | C377: =C319-C378-C379-C380 -> 365.957046 | D377: =D319-D378-D379-D380 -> 365.957046 | E377: 380.526459 | F377: 372.4626374 | G377: 374.791915 | H377: 179.8869366 | I377: 187.5206586 | J377: 186.1206274 | K377: 160.5298161 | L377: 162.9890459 | M377: 163.3577348 | N377: 165.6433071 | O377: 165.3815326 | P377: 141.6701821 | Q377: 139.2020279 | R377: 150.2431507 | S377: 149.8588198 | T377: 142.106148 | U377: 108.43103 | V377: 108.4978104 | W377: 103.7916737
A378: BM Rent | C378: =(C372-C373)/100*C317 -> 113.8866725 | D378: =(D372-D373)/100*D317 -> 107.5596351 | E378: 120.7166594 | F378: 115.6394383 | G378: 117.1060205 | H378: 113.2621453 | I378: 118.0685628 | J378: 117.1870617 | K378: 101.0743286 | L378: 102.6227326 | M378: 99.18148184 | N378: 100.5691507 | O378: 100.4102162 | P378: 91.07368847 | Q378: 81.60118876 | R378: 85.13778539 | S378: 89.91529187 | T378: 77.92917792 | U378: 62.9599529 | V378: 61.03001835 | W378: 53.46843796
A379: PRS | C379: =(100-C372)/100*C317-C380 -> 164.5029713 | D379: =(100-D372)/100*D317-D380 -> 167.66649 | E379: 191.726459 | F379: 183.6626374 | G379: 185.991915 | H379: 179.8869366 | I379: 187.5206586 | J379: 186.1206274 | K379: 163.5025905 | L379: 166.0073616 | M379: 154.6064276 | N379: 156.7695585 | O379: 156.5218077 | P379: 131.5508834 | Q379: 127.2018531 | R379: 127.7066781 | S379: 124.8823498 | T379: 116.8937669 | U379: 85.69549144 | V379: 81.3733578 | W379: 77.0574547
A380: Buyers | C380: =C341*CoreAssumptions!$F$8 -> 177.157046 | D380: =D341*CoreAssumptions!$F$8 -> 180.3205647 | E380: =E341*CoreAssumptions!$F$8 -> 205.928419 | F380: =F341*CoreAssumptions!$F$8 -> 197.2672772 | G380: =G341*CoreAssumptions!$F$8 -> 199.7690939 | H380: =H341*CoreAssumptions!$F$8 -> 193.2118949 | I380: =I341*CoreAssumptions!$F$8 -> 201.4110777 | J380: =J341*CoreAssumptions!$F$8 -> 199.9073405 | K380: =K341*CoreAssumptions!$F$8 -> 169.4481392 | L380: =L341*CoreAssumptions!$F$8 -> 172.0439929 | M380: =M341*CoreAssumptions!$F$8 -> 166.2748372 | N380: =N341*CoreAssumptions!$F$8 -> 168.6012233 | O380: =O341*CoreAssumptions!$F$8 -> 168.3347743 | P380: =P341*CoreAssumptions!$F$8 -> 141.6701821 | Q380: =Q341*CoreAssumptions!$F$8 -> 132.001923 | R380: =R341*CoreAssumptions!$F$8 -> 137.7228881 | S380: =S341*CoreAssumptions!$F$8 -> 134.8729378 | T380: =T341*CoreAssumptions!$F$8 -> 121.4778362 | U380: =U341*CoreAssumptions!$F$8 -> 92.69104177 | V380: =V341*CoreAssumptions!$F$8 -> 88.15447095 | W380: =W341*CoreAssumptions!$F$8 -> 80.20265694
A382: Rents Scenario | B382: =B330 -> 2011 | C382: =B382+1 -> 2012 | D382: 2013 | E382: 2014 | F382: 2015 | G382: 2016 | H382: 2017 | I382: 2018 | J382: 2019 | K382: 2020 | L382: 2021 | M382: 2022 | N382: 2023 | O382: 2024 | P382: 2025 | Q382: 2026 | R382: 2027 | S382: 2028 | T382: 2029 | U382: 2030 | V382: 2031 | W382: 2032
A383: Rises Scenario | B383: =VLOOKUP($X383,PriceScenarios!$B$3:$AD$21,B382-2009,FALSE) -> 0.004 | C383: =VLOOKUP($X383,PriceScenarios!$B$3:$AD$21,C382-2009,FALSE) -> 0.017 | D383: =VLOOKUP($X383,PriceScenarios!$B$3:$AD$21,D382-2009,FALSE) -> 0.016 | E383: =VLOOKUP($X383,PriceScenarios!$B$3:$AD$21,E382-2009,FALSE) -> 0.036 | F383: =VLOOKUP($X383,PriceScenarios!$B$3:$AD$21,F382-2009,FALSE) -> 0.039 | G383: =VLOOKUP($X383,PriceScenarios!$B$3:$AD$21,G382-2009,FALSE) -> 0.04 | H383: =VLOOKUP($X383,PriceScenarios!$B$3:$AD$21,H382-2009,FALSE) -> 0.04 | I383: =VLOOKUP($X383,PriceScenarios!$B$3:$AD$21,I382-2009,FALSE) -> 0.045 | J383: =VLOOKUP($X383,PriceScenarios!$B$3:$AD$21,J382-2009,FALSE) -> 0.045 | K383: =VLOOKUP($X383,PriceScenarios!$B$3:$AD$21,K382-2009,FALSE) -> 0.045 | L383: =VLOOKUP($X383,PriceScenarios!$B$3:$AD$21,L382-2009,FALSE) -> 0.045 | M383: =VLOOKUP($X383,PriceScenarios!$B$3:$AD$21,M382-2009,FALSE) -> 0.045 | N383: =VLOOKUP($X383,PriceScenarios!$B$3:$AD$21,N382-2009,FALSE) -> 0.045 | O383: =VLOOKUP($X383,PriceScenarios!$B$3:$AD$21,O382-2009,FALSE) -> 0.045 | P383: =VLOOKUP($X383,PriceScenarios!$B$3:$AD$21,P382-2009,FALSE) -> 0.045 | Q383: =VLOOKUP($X383,PriceScenarios!$B$3:$AD$21,Q382-2009,FALSE) -> 0.045 | R383: =VLOOKUP($X383,PriceScenarios!$B$3:$AD$21,R382-2009,FALSE) -> 0.045 | S383: =VLOOKUP($X383,PriceScenarios!$B$3:$AD$21,S382-2009,FALSE) -> 0.045 | T383: =VLOOKUP($X383,PriceScenarios!$B$3:$AD$21,T382-2009,FALSE) -> 0.045 | U383: =VLOOKUP($X383,PriceScenarios!$B$3:$AD$21,U382-2009,FALSE) -> 0.045 | V383: =VLOOKUP($X383,PriceScenarios!$B$3:$AD$21,V382-2009,FALSE) -> 0.045 | W383: =VLOOKUP($X383,PriceScenarios!$B$3:$AD$21,W382-2009,FALSE) -> 0.045 | X383: =CHOOSE(X123,PriceScenarios!$B$3,PriceScenarios!$B$4,PriceScenarios!$B$5,PriceScenarios!$B$6,PriceScenarios!$B$7,PriceScenarios!$B$8,PriceScenarios!$B$9,PriceScenarios!$B$10,PriceScenarios!$B$11,PriceScenarios!$B$12,PriceScenarios!$B$13,PriceScenarios!$B$14,PriceScenarios!$B$15,PriceScenarios!$B$16,PriceScenarios!$B$17,PriceScenarios!$B$18,PriceScenarios!$B$19,PriceScenarios!$B$20,PriceScenarios!$B$21) -> OBR estimates (Core)
A385: Rent Median (Scenario) | B385: =HLOOKUP($A$1,Data!$C$1:$AI$211,ScenarioAll!$X385,FALSE) -> 117.6923077 | C385: =B385*(1+B383) -> 118.1630769 | D385: =C385*(1+C383) -> 120.1718492 | E385: 122.0945988 | F385: 126.4900044 | G385: 131.4231145 | H385: 136.6800391 | I385: 142.1472407 | J385: 148.5438665 | K385: 155.2283405 | L385: 162.2136158 | M385: 169.5132286 | N385: 177.1413238 | O385: 185.1126834 | P385: 193.4427542 | Q385: 202.1476781 | R385: 211.2443236 | S385: 220.7503182 | T385: 230.6840825 | U385: 241.0648662 | V385: =U385*(1+U383) -> 251.9127852 | W385: =V385*(1+V383) -> 263.2488605 | X385: 210
A386: Rent 30th (Scenario) | B386: =HLOOKUP($A$1,Data!$C$1:$AI$211,ScenarioAll!$X386,FALSE) -> 110.7692308 | C386: =B386*(1+B383) -> 111.2123077 | D386: =C386*(1+C383) -> 113.1029169 | E386: 114.9125636 | F386: 119.0494159 | G386: 123.6923431 | H386: 128.6400368 | I386: 133.7856383 | J386: 139.805992 | K386: 146.0972617 | L386: 152.6716384 | M386: 159.5418622 | N386: 166.721246 | O386: 174.223702 | P386: 182.0637686 | Q386: 190.2566382 | R386: 198.8181869 | S386: 207.7650053 | T386: 217.1144306 | U386: 226.88458 | V386: =U386*(1+U383) -> 237.0943861 | W386: =V386*(1+V383) -> 247.7636334 | X386: 211
A387: Annual Rent Medain | B387: =B385*52 -> 6120 | C387: =C385*52 -> 6144.48 | D387: 6248.93616 | E387: 6348.919139 | F387: 6577.480228 | G387: 6834.001956 | H387: 7107.362035 | I387: 7391.656516 | J387: 7724.281059 | K387: 8071.873707 | L387: 8435.108024 | M387: 8814.687885 | N387: 9211.34884 | O387: 9625.859537 | P387: 10059.02322 | Q387: 10511.67926 | R387: 10984.70483 | S387: 11479.01655 | T387: 11995.57229 | U387: 12535.37304 | V387: =V385*52 -> 13099.46483 | W387: =W385*52 -> 13688.94075
A388: Annual Rent 30th | B388: =B386*52 -> 5760 | C388: 5783.04 | D388: 5881.35168 | E388: 5975.453307 | F388: 6190.569626 | G388: 6432.001841 | H388: 6689.281915 | I388: 6956.853192 | J388: 7269.911585 | K388: 7597.057607 | L388: 7938.925199 | M388: 8296.176833 | N388: 8669.50479 | O388: 9059.632506 | P388: 9467.315969 | Q388: 9893.345187 | R388: 10338.54572 | S388: 10803.78028 | T388: 11289.95039 | U388: 11797.99816 | V388: =V386*52 -> 12328.90808 | W388: =W386*52 -> 12883.70894
A390: Income above | B390: =B387/$C$116 -> 24480 | C390: 24577.92 | D390: 24995.74464 | E390: 25395.67655 | F390: 26309.92091 | G390: 27336.00783 | H390: 28429.44814 | I390: 29566.62606 | J390: 30897.12424 | K390: 32287.49483 | L390: 33740.4321 | M390: 35258.75154 | N390: 36845.39536 | O390: 38503.43815 | P390: 40236.09287 | Q390: 42046.71705 | R390: 43938.81931 | S390: 45916.06618 | T390: 47982.28916 | U390: 50141.49217 | V390: =V387/$C$116 -> 52397.85932 | W390: =W387/$C$116 -> 54755.76299
A391: Income below | B391: =B388/$C$117 -> 16457.14286 | C391: 16522.97143 | D391: 16803.86194 | E391: 17072.72373 | F391: 17687.34179 | G391: 18377.14812 | H391: 19112.23404 | I391: 19876.7234 | J391: 20771.17596 | K391: 21705.87888 | L391: 22682.64343 | M391: 23703.36238 | N391: 24770.01369 | O391: 25884.6643 | P391: 27049.4742 | Q391: 28266.70053 | R391: 29538.70206 | S391: 30867.94365 | T391: 32257.00112 | U391: 33708.56617 | V391: =V388/$C$117 -> 35225.45164 | W391: =W388/$C$117 -> 36810.59697
A392: Above percentile | B392: =VLOOKUP(B390,B$510:$AA$590,B$509+3) -> 46 | C392: =VLOOKUP(C390,C$510:$AA$590,C$509+3) -> 46 | D392: =VLOOKUP(D390,D$510:$AA$590,D$509+3) -> 45 | E392: =VLOOKUP(E390,E$510:$AA$590,E$509+3) -> 44 | F392: =VLOOKUP(F390,F$510:$AA$590,F$509+3) -> 44 | G392: =VLOOKUP(G390,G$510:$AA$590,G$509+3) -> 44 | H392: =VLOOKUP(H390,H$510:$AA$590,H$509+3) -> 44 | I392: =VLOOKUP(I390,I$510:$AA$590,I$509+3) -> 44 | J392: =VLOOKUP(J390,J$510:$AA$590,J$509+3) -> 44 | K392: =VLOOKUP(K390,K$510:$AA$590,K$509+3) -> 44 | L392: =VLOOKUP(L390,L$510:$AA$590,L$509+3) -> 44 | M392: =VLOOKUP(M390,M$510:$AA$590,M$509+3) -> 45 | N392: =VLOOKUP(N390,N$510:$AA$590,N$509+3) -> 45 | O392: =VLOOKUP(O390,O$510:$AA$590,O$509+3) -> 45 | P392: =VLOOKUP(P390,P$510:$AA$590,P$509+3) -> 46 | Q392: =VLOOKUP(Q390,Q$510:$AA$590,Q$509+3) -> 46 | R392: =VLOOKUP(R390,R$510:$AA$590,R$509+3) -> 47 | S392: =VLOOKUP(S390,S$510:$AA$590,S$509+3) -> 48 | T392: =VLOOKUP(T390,T$510:$AA$590,T$509+3) -> 48 | U392: =VLOOKUP(U390,U$510:$AA$590,U$509+3) -> 49 | V392: =VLOOKUP(V390,V$510:$AA$590,V$509+3) -> 50 | W392: =VLOOKUP(W390,W$510:$AA$590,W$509+3) -> 50
A393: Below percentile | B393: =VLOOKUP(B391,B$510:$AA$590,B$509+3) -> 29 | C393: =VLOOKUP(C391,C$510:$AA$590,C$509+3) -> 28 | D393: =VLOOKUP(D391,D$510:$AA$590,D$509+3) -> 28 | E393: =VLOOKUP(E391,E$510:$AA$590,E$509+3) -> 27 | F393: =VLOOKUP(F391,F$510:$AA$590,F$509+3) -> 27 | G393: =VLOOKUP(G391,G$510:$AA$590,G$509+3) -> 27 | H393: =VLOOKUP(H391,H$510:$AA$590,H$509+3) -> 27 | I393: =VLOOKUP(I391,I$510:$AA$590,I$509+3) -> 27 | J393: =VLOOKUP(J391,J$510:$AA$590,J$509+3) -> 27 | K393: =VLOOKUP(K391,K$510:$AA$590,K$509+3) -> 27 | L393: =VLOOKUP(L391,L$510:$AA$590,L$509+3) -> 27 | M393: =VLOOKUP(M391,M$510:$AA$590,M$509+3) -> 28 | N393: =VLOOKUP(N391,N$510:$AA$590,N$509+3) -> 28 | O393: =VLOOKUP(O391,O$510:$AA$590,O$509+3) -> 28 | P393: =VLOOKUP(P391,P$510:$AA$590,P$509+3) -> 28 | Q393: =VLOOKUP(Q391,Q$510:$AA$590,Q$509+3) -> 29 | R393: =VLOOKUP(R391,R$510:$AA$590,R$509+3) -> 30 | S393: =VLOOKUP(S391,S$510:$AA$590,S$509+3) -> 30 | T393: =VLOOKUP(T391,T$510:$AA$590,T$509+3) -> 31 | U393: =VLOOKUP(U391,U$510:$AA$590,U$509+3) -> 31 | V393: =VLOOKUP(V391,V$510:$AA$590,V$509+3) -> 32 | W393: =VLOOKUP(W391,W$510:$AA$590,W$509+3) -> 33
A397: Social Rent | C397: =C320-C398-C399-C400 -> 395.49899 | D397: 395.49899 | E397: 421.8592547 | F397: 415.7683077 | G397: 422.2538494 | H397: 427.5351274 | I397: 437.1448332 | J397: 446.3077161 | K397: 421.0614139 | L397: 425.3315738 | M397: 426.8678163 | N397: 431.9704042 | O397: 431.1015246 | P397: 194.3235846 | Q397: 194.8894689 | R397: 209.1799162 | S397: 208.3555285 | T397: 202.618699 | U397: 168.914465 | V397: 173.1801728 | W397: 168.386576
A398: BM Rent | C398: =IF($B$312=TRUE,(C392-C393)/100*C318,IF($B$309=TRUE,(C392-C393)/100*C320,(C392-C393)/100*C318)) -> 116.4306694 | D398: =IF($B$312=TRUE,(D392-D393)/100*D318,IF($B$309=TRUE,(D392-D393)/100*D320,(D392-D393)/100*D318)) -> 109.9622989 | E398: 130.6321803 | F398: 126.7971396 | G398: 130.8806289 | H398: 134.2058779 | I398: 140.2564334 | J398: 146.025656 | K398: 130.1298361 | L398: 132.8184553 | M398: 129.0076577 | N398: 132.1056575 | O398: 131.5781235 | P398: 124.9223044 | Q398: 114.2455507 | R398: 118.5352859 | S398: 125.0133171 | T398: 111.1134801 | U398: 98.07936677 | V398: 97.4138472 | W398: 86.74459976
A399: PRS | C399: =IF($B$312=TRUE,(100-C392)/100*C318-C400,IF($B$309=TRUE,(100-C392)/100*C320-C400,(100-C392)/100*C318-C400)) -> 168.1776336 | D399: =IF($B$312=TRUE,(100-D392)/100*D318-D400,IF($B$309=TRUE,(100-D392)/100*D320-D400,(100-D392)/100*D318-D400)) -> 171.4118188 | E399: 207.4746393 | F399: 201.3836923 | G399: 207.8692341 | H399: 213.150512 | I399: 222.7602178 | J399: 231.9231007 | K399: 210.5041466 | L399: 214.8533836 | M399: 201.1001723 | N399: 205.9294073 | O399: 205.1070748 | P399: 180.4433285 | Q399: 178.0886526 | R399: 177.8029288 | S399: 173.629607 | T399: 166.6702201 | U399: 133.4969159 | V399: 129.8851296 | W399: 125.0142761
A400: Buyers | C400: =C356*$C$115 -> 181.1143746 | D400: =D356*$C$115 -> 184.3485599 | E400: 222.8431311 | F400: 216.3010029 | G400: 223.2669551 | H400: 228.9394388 | I400: 239.2609747 | J400: 249.1025896 | K400: 218.1588429 | L400: 222.6662339 | M400: 216.2775438 | N400: 221.4712494 | O400: 220.5868541 | P400: 194.3235846 | Q400: 184.8089791 | R400: 191.7482565 | S400: 187.5199756 | T400: 173.2063072 | U400: 144.3946233 | V400: 140.7088904 | W400: 130.1168996
A406: Income Change
A407: Principal | C407: =IncomeScenarios!C4 -> 0.02 | D407: =IncomeScenarios!D4 -> 0.03 | E407: =IncomeScenarios!E4 -> 0.04 | F407: =IncomeScenarios!F4 -> 0.04 | G407: =IncomeScenarios!G4 -> 0.04 | H407: =IncomeScenarios!H4 -> 0.04 | I407: =IncomeScenarios!I4 -> 0.04 | J407: =IncomeScenarios!J4 -> 0.04 | K407: =IncomeScenarios!K4 -> 0.04 | L407: =IncomeScenarios!L4 -> 0.04 | M407: =IncomeScenarios!M4 -> 0.04 | N407: =IncomeScenarios!N4 -> 0.04 | O407: =IncomeScenarios!O4 -> 0.04 | P407: =IncomeScenarios!P4 -> 0.03 | Q407: =IncomeScenarios!Q4 -> 0.03 | R407: =IncomeScenarios!R4 -> 0.03 | S407: =IncomeScenarios!S4 -> 0.03 | T407: =IncomeScenarios!T4 -> 0.03 | U407: =IncomeScenarios!U4 -> 0.03 | V407: =IncomeScenarios!V4 -> 0.03 | W407: =IncomeScenarios!W4 -> 0.03
A408: Principle Distribution | C408: =IncomeScenarios!C25 -> 0 | D408: =IncomeScenarios!D25 -> 0 | E408: =IncomeScenarios!E25 -> 0 | F408: =IncomeScenarios!F25 -> 0 | G408: =IncomeScenarios!G25 -> 0 | H408: =IncomeScenarios!H25 -> 0 | I408: =IncomeScenarios!I25 -> 0 | J408: =IncomeScenarios!J25 -> 0 | K408: =IncomeScenarios!K25 -> 0 | L408: =IncomeScenarios!L25 -> 0 | M408: =IncomeScenarios!M25 -> 0 | N408: =IncomeScenarios!N25 -> 0 | O408: =IncomeScenarios!O25 -> 0 | P408: =IncomeScenarios!P25 -> 0 | Q408: =IncomeScenarios!Q25 -> 0 | R408: =IncomeScenarios!R25 -> 0 | S408: =IncomeScenarios!S25 -> 0 | T408: =IncomeScenarios!T25 -> 0 | U408: =IncomeScenarios!U25 -> 0 | V408: =IncomeScenarios!V25 -> 0 | W408: =IncomeScenarios!W25 -> 0
A409: Scenario | C409: =OFFSET(IncomeScenarios!C2,$X$53,0) -> 0.02 | D409: =OFFSET(IncomeScenarios!D2,$X$53,0) -> 0.03 | E409: =OFFSET(IncomeScenarios!E2,$X$53,0) -> 0.04 | F409: =OFFSET(IncomeScenarios!F2,$X$53,0) -> 0.04 | G409: =OFFSET(IncomeScenarios!G2,$X$53,0) -> 0.04 | H409: =OFFSET(IncomeScenarios!H2,$X$53,0) -> 0.04 | I409: =OFFSET(IncomeScenarios!I2,$X$53,0) -> 0.04 | J409: =OFFSET(IncomeScenarios!J2,$X$53,0) -> 0.04 | K409: =OFFSET(IncomeScenarios!K2,$X$53,0) -> 0.04 | L409: =OFFSET(IncomeScenarios!L2,$X$53,0) -> 0.04 | M409: =OFFSET(IncomeScenarios!M2,$X$53,0) -> 0.04 | N409: =OFFSET(IncomeScenarios!N2,$X$53,0) -> 0.04 | O409: =OFFSET(IncomeScenarios!O2,$X$53,0) -> 0.04 | P409: =OFFSET(IncomeScenarios!P2,$X$53,0) -> 0.03 | Q409: =OFFSET(IncomeScenarios!Q2,$X$53,0) -> 0.03 | R409: =OFFSET(IncomeScenarios!R2,$X$53,0) -> 0.03 | S409: =OFFSET(IncomeScenarios!S2,$X$53,0) -> 0.03 | T409: =OFFSET(IncomeScenarios!T2,$X$53,0) -> 0.03 | U409: =OFFSET(IncomeScenarios!U2,$X$53,0) -> 0.03 | V409: =OFFSET(IncomeScenarios!V2,$X$53,0) -> 0.03 | W409: =OFFSET(IncomeScenarios!W2,$X$53,0) -> 0.03
A410: Scenario Distribution | C410: =OFFSET(IncomeScenarios!C24,$X$54,0) -> 0 | D410: =OFFSET(IncomeScenarios!D24,$X$54,0) -> 0 | E410: =OFFSET(IncomeScenarios!E24,$X$54,0) -> 0 | F410: =OFFSET(IncomeScenarios!F24,$X$54,0) -> 0 | G410: =OFFSET(IncomeScenarios!G24,$X$54,0) -> 0 | H410: =OFFSET(IncomeScenarios!H24,$X$54,0) -> 0 | I410: =OFFSET(IncomeScenarios!I24,$X$54,0) -> 0 | J410: =OFFSET(IncomeScenarios!J24,$X$54,0) -> 0 | K410: =OFFSET(IncomeScenarios!K24,$X$54,0) -> 0 | L410: =OFFSET(IncomeScenarios!L24,$X$54,0) -> 0 | M410: =OFFSET(IncomeScenarios!M24,$X$54,0) -> 0 | N410: =OFFSET(IncomeScenarios!N24,$X$54,0) -> 0 | O410: =OFFSET(IncomeScenarios!O24,$X$54,0) -> 0 | P410: =OFFSET(IncomeScenarios!P24,$X$54,0) -> 0 | Q410: =OFFSET(IncomeScenarios!Q24,$X$54,0) -> 0 | R410: =OFFSET(IncomeScenarios!R24,$X$54,0) -> 0 | S410: =OFFSET(IncomeScenarios!S24,$X$54,0) -> 0 | T410: =OFFSET(IncomeScenarios!T24,$X$54,0) -> 0 | U410: =OFFSET(IncomeScenarios!U24,$X$54,0) -> 0 | V410: =OFFSET(IncomeScenarios!V24,$X$54,0) -> 0 | W410: =OFFSET(IncomeScenarios!W24,$X$54,0) -> 0
A412: Principal
A413: Income
B414: =B382 -> 2011 | C414: =B414+1 -> 2012 | D414: 2013 | E414: 2014 | F414: 2015 | G414: 2016 | H414: 2017 | I414: 2018 | J414: 2019 | K414: 2020 | L414: 2021 | M414: 2022 | N414: 2023 | O414: 2024 | P414: 2025 | Q414: 2026 | R414: 2027 | S414: 2028 | T414: 2029 | U414: 2030 | V414: 2031 | W414: 2032
A415: Principal Median | B415: =B459 -> 26241.11161 | C415: =C459 -> 26765.93384 | D415: 27568.91186 | E415: 28671.66833 | F415: 29818.53507 | G415: 31011.27647 | H415: 32251.72753 | I415: 33541.79663 | J415: 34883.46849 | K415: 36278.80723 | L415: 37729.95952 | M415: 39239.1579 | N415: 40808.72422 | O415: 42441.07319 | P415: 43714.30538 | Q415: 45025.73455 | R415: 46376.50658 | S415: 47767.80178 | T415: 49200.83583 | U415: 50676.86091 | V415: 52197.16673 | W415: 53763.08174
A416: =CONCATENATE("Principal ",C49,"%ile") -> Principal 75%ile | B416: =VLOOKUP($C$49,$A$419:$W$499,25-B418,FALSE) -> 44308.53393 | C416: 45194.7046 | D416: 46550.54574 | E416: 48412.56757 | F416: 50349.07027 | G416: 52363.03309 | H416: 54457.55441 | I416: 56635.85659 | J416: 58901.29085 | K416: 61257.34248 | L416: 63707.63618 | M416: 66255.94163 | N416: 68906.17929 | O416: 71662.42647 | P416: 73812.29926 | Q416: 76026.66824 | R416: 78307.46828 | S416: 80656.69233 | T416: 83076.3931 | U416: 85568.6849 | V416: 88135.74544 | W416: 90779.81781
A417: =CONCATENATE("Principal",C50,"%ile") -> Principal25%ile | B417: =VLOOKUP($C$50,$A$419:$W$499,25-B418,FALSE) -> 14512.70043 | C417: 14802.95444 | D417: 15247.04307 | E417: 15856.9248 | F417: 16491.20179 | G417: 17150.84986 | H417: 17836.88386 | I417: 18550.35921 | J417: 19292.37358 | K417: 20064.06852 | L417: 20866.63126 | M417: 21701.29651 | N417: 22569.34837 | O417: 23472.12231 | P417: 24176.28598 | Q417: 24901.57456 | R417: 25648.62179 | S417: 26418.08045 | T417: 27210.62286 | U417: 28026.94155 | V417: 28867.74979 | W417: 29733.78229
A418: 2 | B418: 23 | C418: =B418-1 -> 22 | D418: 21 | E418: 20 | F418: 19 | G418: 18 | H418: 17 | I418: 16 | J418: 15 | K418: 14 | L418: 13 | M418: 12 | N418: 11 | O418: 10 | P418: 9 | Q418: 8 | R418: 7 | S418: 6 | T418: 5 | U418: 4 | V418: 3 | W418: 2 | Y418: =2011 -> 2011 | Z418: =CONCATENATE("Principal ",C51) -> Principal 2032
A419: =Data!B308 -> 10 | B419: =HLOOKUP($A$1,Data!$C$1:$AI$388,$X419,FALSE) -> 8377.300907 | C419: =B419*(1+C$407+(-(50-$A419)*(C$408/40))) -> 8544.846925 | D419: 8801.192333 | E419: 9153.240026 | F419: 9519.369627 | G419: 9900.144412 | H419: 10296.15019 | I419: 10707.9962 | J419: 11136.31604 | K419: 11581.76869 | L419: 12045.03943 | M419: 12526.84101 | N419: 13027.91465 | O419: 13549.03124 | P419: 13955.50217 | Q419: 14374.16724 | R419: 14805.39226 | S419: =R419*(1+S$407+(-(50-$A419)*(S$408/40))) -> 15249.55402 | T419: 15707.04065 | U419: 16178.25186 | V419: 16663.59942 | W419: 17163.5074 | X419: 308 | Y419: =B419 -> 8377.300907 | Z419: =OFFSET(B419,0,$C$51-2011) -> 17163.5074 | AA419: =A419 -> 10
A420: =Data!B309 -> 11 | B420: =HLOOKUP($A$1,Data!$C$1:$AI$388,$X420,FALSE) -> 8723.780184 | C420: 8898.255788 | D420: 9165.203462 | E420: 9531.8116 | F420: 9913.084064 | G420: 10309.60743 | H420: 10721.99172 | I420: 11150.87139 | J420: 11596.90625 | K420: 12060.7825 | L420: 12543.2138 | M420: 13044.94235 | N420: 13566.74004 | O420: 14109.40965 | P420: 14532.69194 | Q420: 14968.67269 | R420: 15417.73287 | S420: 15880.26486 | T420: 16356.67281 | U420: 16847.37299 | V420: 17352.79418 | W420: 17873.37801 | X420: =X419+1 -> 309 | Y420: =B420 -> 8723.780184 | Z420: 17873.37801 | AA420: =A420 -> 11
A421: =Data!B310 -> 12 | B421: =HLOOKUP($A$1,Data!$C$1:$AI$388,$X421,FALSE) -> 9070.259462 | C421: 9251.664651 | D421: 9529.214591 | E421: 9910.383174 | F421: 10306.7985 | G421: 10719.07044 | H421: 11147.83326 | I421: 11593.74659 | J421: 12057.49645 | K421: 12539.79631 | L421: 13041.38816 | M421: 13563.04369 | N421: 14105.56544 | O421: 14669.78806 | P421: 15109.8817 | Q421: 15563.17815 | R421: 16030.07349 | S421: 16510.9757 | T421: 17006.30497 | U421: 17516.49412 | V421: 18041.98894 | W421: 18583.24861 | X421: =X420+1 -> 310 | Y421: 9070.259462 | Z421: 18583.24861 | AA421: 12
A422: =Data!B311 -> 13 | B422: =HLOOKUP($A$1,Data!$C$1:$AI$388,$X422,FALSE) -> 9416.738739 | C422: 9605.073514 | D422: 9893.22572 | E422: 10288.95475 | F422: 10700.51294 | G422: 11128.53346 | H422: 11573.67479 | I422: 12036.62179 | J422: 12518.08666 | K422: 13018.81012 | L422: 13539.56253 | M422: 14081.14503 | N422: 14644.39083 | O422: 15230.16646 | P422: 15687.07146 | Q422: 16157.6836 | R422: 16642.41411 | S422: 17141.68653 | T422: 17655.93713 | U422: 18185.61524 | V422: 18731.1837 | W422: 19293.11921 | X422: 311 | Y422: 9416.738739 | Z422: 19293.11921 | AA422: 13
A423: =Data!B312 -> 14 | B423: =HLOOKUP($A$1,Data!$C$1:$AI$388,$X423,FALSE) -> 9763.218017 | C423: 9958.482377 | D423: 10257.23685 | E423: 10667.52632 | F423: 11094.22738 | G423: 11537.99647 | H423: 11999.51633 | I423: 12479.49698 | J423: 12978.67686 | K423: 13497.82394 | L423: 14037.73689 | M423: 14599.24637 | N423: 15183.21622 | O423: 15790.54487 | P423: 16264.26122 | Q423: 16752.18906 | R423: 17254.75473 | S423: 17772.39737 | T423: 18305.56929 | U423: 18854.73637 | V423: 19420.37846 | W423: 20002.98981 | X423: 312 | Y423: 9763.218017 | Z423: 20002.98981 | AA423: 14
A424: =Data!B313 -> 15 | B424: =HLOOKUP($A$1,Data!$C$1:$AI$388,$X424,FALSE) -> 10109.69729 | C424: 10311.89124 | D424: 10621.24798 | E424: 11046.0979 | F424: 11487.94181 | G424: 11947.45948 | H424: 12425.35786 | I424: 12922.37218 | J424: 13439.26707 | K424: 13976.83775 | L424: 14535.91126 | M424: 15117.34771 | N424: 15722.04162 | O424: 16350.92328 | P424: 16841.45098 | Q424: 17346.69451 | R424: 17867.09535 | S424: 18403.10821 | T424: 18955.20145 | U424: 19523.8575 | V424: 20109.57322 | W424: 20712.86042 | X424: 313 | Y424: 10109.69729 | Z424: 20712.86042 | AA424: 15
A425: =Data!B314 -> 16 | B425: =HLOOKUP($A$1,Data!$C$1:$AI$388,$X425,FALSE) -> 10456.17657 | C425: 10665.3001 | D425: 10985.25911 | E425: 11424.66947 | F425: 11881.65625 | G425: 12356.9225 | H425: 12851.1994 | I425: 13365.24738 | J425: 13899.85727 | K425: 14455.85156 | L425: 15034.08562 | M425: 15635.44905 | N425: 16260.86701 | O425: 16911.30169 | P425: 17418.64074 | Q425: 17941.19996 | R425: 18479.43596 | S425: 19033.81904 | T425: 19604.83361 | U425: 20192.97862 | V425: 20798.76798 | W425: 21422.73102 | X425: 314 | Y425: 10456.17657 | Z425: 21422.73102 | AA425: 16
A426: =Data!B315 -> 17 | B426: =HLOOKUP($A$1,Data!$C$1:$AI$388,$X426,FALSE) -> 10802.65585 | C426: 11018.70897 | D426: 11349.27024 | E426: 11803.24104 | F426: 12275.37069 | G426: 12766.38551 | H426: 13277.04093 | I426: 13808.12257 | J426: 14360.44747 | K426: 14934.86537 | L426: 15532.25999 | M426: 16153.55039 | N426: 16799.6924 | O426: 17471.6801 | P426: 17995.8305 | Q426: 18535.70542 | R426: 19091.77658 | S426: 19664.52988 | T426: 20254.46577 | U426: 20862.09975 | V426: 21487.96274 | W426: 22132.60162 | X426: 315 | Y426: 10802.65585 | Z426: 22132.60162 | AA426: 17
A427: =Data!B316 -> 18 | B427: =HLOOKUP($A$1,Data!$C$1:$AI$388,$X427,FALSE) -> 11149.13513 | C427: 11372.11783 | D427: 11713.28136 | E427: 12181.81262 | F427: 12669.08512 | G427: 13175.84853 | H427: 13702.88247 | I427: 14250.99777 | J427: 14821.03768 | K427: 15413.87919 | L427: 16030.43435 | M427: 16671.65173 | N427: 17338.5178 | O427: 18032.05851 | P427: 18573.02026 | Q427: 19130.21087 | R427: 19704.1172 | S427: 20295.24071 | T427: 20904.09794 | U427: 21531.22087 | V427: 22177.1575 | W427: 22842.47223 | X427: 316 | Y427: 11149.13513 | Z427: 22842.47223 | AA427: 18
A428: =Data!B317 -> 19 | B428: =HLOOKUP($A$1,Data!$C$1:$AI$388,$X428,FALSE) -> 11495.6144 | C428: 11725.52669 | D428: 12077.29249 | E428: 12560.38419 | F428: 13062.79956 | G428: 13585.31154 | H428: 14128.724 | I428: 14693.87296 | J428: 15281.62788 | K428: 15892.893 | L428: 16528.60872 | M428: 17189.75307 | N428: 17877.34319 | O428: 18592.43692 | P428: 19150.21003 | Q428: 19724.71633 | R428: 20316.45782 | S428: 20925.95155 | T428: 21553.7301 | U428: 22200.342 | V428: 22866.35226 | W428: 23552.34283 | X428: 317 | Y428: 11495.6144 | Z428: 23552.34283 | AA428: 19
A429: =Data!B318 -> 20 | B429: =HLOOKUP($A$1,Data!$C$1:$AI$388,$X429,FALSE) -> 12287.19481 | C429: 12532.9387 | D429: 12908.92686 | E429: 13425.28394 | F429: 13962.2953 | G429: 14520.78711 | H429: 15101.61859 | I429: 15705.68334 | J429: 16333.91067 | K429: 16987.2671 | L429: 17666.75778 | M429: 18373.42809 | N429: 19108.36522 | O429: 19872.69982 | P429: 20468.88082 | Q429: 21082.94724 | R429: 21715.43566 | S429: 22366.89873 | T429: 23037.90569 | U429: 23729.04286 | V429: 24440.91415 | W429: 25174.14157 | X429: 318 | Y429: 12287.19481 | Z429: 25174.14157 | AA429: 20
A430: =Data!B319 -> 21 | B430: =HLOOKUP($A$1,Data!$C$1:$AI$388,$X430,FALSE) -> 12732.29593 | C430: 12986.94185 | D430: 13376.55011 | E430: 13911.61211 | F430: 14468.07659 | G430: 15046.79966 | H430: 15648.67165 | I430: 16274.61851 | J430: 16925.60325 | K430: 17602.62738 | L430: 18306.73248 | M430: 19039.00178 | N430: 19800.56185 | O430: 20592.58432 | P430: 21210.36185 | Q430: 21846.67271 | R430: 22502.07289 | S430: 23177.13507 | T430: 23872.44913 | U430: 24588.6226 | V430: 25326.28128 | W430: 26086.06972 | X430: 319 | Y430: 12732.29593 | Z430: 26086.06972 | AA430: 21
A431: =Data!B320 -> 22 | B431: =HLOOKUP($A$1,Data!$C$1:$AI$388,$X431,FALSE) -> 13177.39706 | C431: 13440.945 | D431: 13844.17335 | E431: 14397.94028 | F431: 14973.85789 | G431: 15572.81221 | H431: 16195.7247 | I431: 16843.55369 | J431: 17517.29583 | K431: 18217.98767 | L431: 18946.70717 | M431: 19704.57546 | N431: 20492.75848 | O431: 21312.46882 | P431: 21951.84288 | Q431: 22610.39817 | R431: 23288.71011 | S431: 23987.37142 | T431: 24706.99256 | U431: 25448.20234 | V431: 26211.64841 | W431: 26997.99786 | X431: 320 | Y431: 13177.39706 | Z431: 26997.99786 | AA431: 22
A432: =Data!B321 -> 23 | B432: =HLOOKUP($A$1,Data!$C$1:$AI$388,$X432,FALSE) -> 13622.49818 | C432: 13894.94815 | D432: 14311.79659 | E432: 14884.26845 | F432: 15479.63919 | G432: 16098.82476 | H432: 16742.77775 | I432: 17412.48886 | J432: 18108.98841 | K432: 18833.34795 | L432: 19586.68187 | M432: 20370.14914 | N432: 21184.95511 | O432: 22032.35331 | P432: 22693.32391 | Q432: 23374.12363 | R432: 24075.34734 | S432: 24797.60776 | T432: 25541.53599 | U432: 26307.78207 | V432: 27097.01553 | W432: 27909.926 | X432: 321 | Y432: 13622.49818 | Z432: 27909.926 | AA432: 23
A433: =Data!B322 -> 24 | B433: =HLOOKUP($A$1,Data!$C$1:$AI$388,$X433,FALSE) -> 14067.59931 | C433: 14348.95129 | D433: 14779.41983 | E433: 15370.59663 | F433: 15985.42049 | G433: 16624.83731 | H433: 17289.8308 | I433: 17981.42403 | J433: 18700.681 | K433: 19448.70824 | L433: 20226.65657 | M433: 21035.72283 | N433: 21877.15174 | O433: 22752.23781 | P433: 23434.80495 | Q433: 24137.84909 | R433: 24861.98457 | S433: 25607.8441 | T433: 26376.07943 | U433: 27167.36181 | V433: 27982.38266 | W433: 28821.85414 | X433: 322 | Y433: 14067.59931 | Z433: 28821.85414 | AA433: 24
A434: =Data!B323 -> 25 | B434: =HLOOKUP($A$1,Data!$C$1:$AI$388,$X434,FALSE) -> 14512.70043 | C434: 14802.95444 | D434: 15247.04307 | E434: 15856.9248 | F434: 16491.20179 | G434: 17150.84986 | H434: 17836.88386 | I434: 18550.35921 | J434: 19292.37358 | K434: 20064.06852 | L434: 20866.63126 | M434: 21701.29651 | N434: 22569.34837 | O434: 23472.12231 | P434: 24176.28598 | Q434: 24901.57456 | R434: =Q434*(1+R$407+(-(50-$A434)*(R$408/40))) -> 25648.62179 | S434: 26418.08045 | T434: 27210.62286 | U434: 28026.94155 | V434: 28867.74979 | W434: 29733.78229 | X434: 323 | Y434: 14512.70043 | Z434: 29733.78229 | AA434: 25
A435: =Data!B324 -> 26 | B435: =HLOOKUP($A$1,Data!$C$1:$AI$388,$X435,FALSE) -> 14957.80156 | C435: 15256.95759 | D435: 15714.66632 | E435: 16343.25297 | F435: 16996.98309 | G435: 17676.86241 | H435: 18383.93691 | I435: 19119.29438 | J435: 19884.06616 | K435: 20679.42881 | L435: 21506.60596 | M435: 22366.8702 | N435: 23261.545 | O435: 24192.0068 | P435: 24917.76701 | Q435: 25665.30002 | R435: 26435.25902 | S435: =R435*(1+S$407+(-(50-$A435)*(S$408/40))) -> 27228.31679 | T435: 28045.16629 | U435: 28886.52128 | V435: 29753.11692 | W435: 30645.71043 | X435: 324 | Y435: 14957.80156 | Z435: 30645.71043 | AA435: 26
A436: =Data!B325 -> 27 | B436: =HLOOKUP($A$1,Data!$C$1:$AI$388,$X436,FALSE) -> 15402.90268 | C436: 15710.96074 | D436: 16182.28956 | E436: 16829.58114 | F436: 17502.76439 | G436: 18202.87496 | H436: 18930.98996 | I436: 19688.22956 | J436: 20475.75874 | K436: 21294.78909 | L436: 22146.58065 | M436: 23032.44388 | N436: 23953.74164 | O436: 24911.8913 | P436: 25659.24804 | Q436: 26429.02548 | R436: 27221.89625 | S436: 28038.55313 | T436: 28879.70973 | U436: 29746.10102 | V436: 30638.48405 | W436: 31557.63857 | X436: 325 | Y436: 15402.90268 | Z436: 31557.63857 | AA436: 27
A437: =Data!B326 -> 28 | B437: =HLOOKUP($A$1,Data!$C$1:$AI$388,$X437,FALSE) -> 15848.00381 | C437: 16164.96388 | D437: 16649.9128 | E437: 17315.90931 | F437: 18008.54568 | G437: 18728.88751 | H437: 19478.04301 | I437: 20257.16473 | J437: 21067.45132 | K437: 21910.14938 | L437: 22786.55535 | M437: 23698.01756 | N437: 24645.93827 | O437: 25631.7758 | P437: 26400.72907 | Q437: 27192.75094 | R437: 28008.53347 | S437: 28848.78948 | T437: 29714.25316 | U437: 30605.68076 | V437: 31523.85118 | W437: 32469.56671 | X437: 326 | Y437: 15848.00381 | Z437: 32469.56671 | AA437: 28
A438: =Data!B327 -> 29 | B438: =HLOOKUP($A$1,Data!$C$1:$AI$388,$X438,FALSE) -> 16293.10493 | C438: 16618.96703 | D438: 17117.53604 | E438: 17802.23748 | F438: 18514.32698 | G438: 19254.90006 | H438: 20025.09607 | I438: 20826.09991 | J438: 21659.1439 | K438: 22525.50966 | L438: 23426.53005 | M438: 24363.59125 | N438: 25338.1349 | O438: 26351.66029 | P438: 27142.2101 | Q438: 27956.47641 | R438: 28795.1707 | S438: 29659.02582 | T438: 30548.79659 | U438: 31465.26049 | V438: 32409.21831 | W438: 33381.49486 | X438: 327 | Y438: 16293.10493 | Z438: 33381.49486 | AA438: 29
A439: =Data!B328 -> 30 | B439: =HLOOKUP($A$1,Data!$C$1:$AI$388,$X439,FALSE) -> 16699.18822 | C439: 17033.17199 | D439: 17544.16715 | E439: 18245.93383 | F439: 18975.77119 | G439: 19734.80204 | H439: 20524.19412 | I439: 21345.16188 | J439: 22198.96836 | K439: 23086.92709 | L439: 24010.40418 | M439: 24970.82034 | N439: 25969.65316 | O439: 27008.43928 | P439: 27818.69246 | Q439: 28653.25323 | R439: 29512.85083 | S439: 30398.23636 | T439: 31310.18345 | U439: 32249.48895 | V439: 33216.97362 | W439: 34213.48283 | X439: 328 | Y439: 16699.18822 | Z439: 34213.48283 | AA439: 30
A440: =Data!B329 -> 31 | B440: =HLOOKUP($A$1,Data!$C$1:$AI$388,$X440,FALSE) -> 17105.27152 | C440: 17447.37695 | D440: 17970.79826 | E440: 18689.63019 | F440: 19437.21539 | G440: 20214.70401 | H440: 21023.29217 | I440: 21864.22386 | J440: 22738.79281 | K440: 23648.34452 | L440: 24594.2783 | M440: 25578.04944 | N440: 26601.17141 | O440: 27665.21827 | P440: 28495.17482 | Q440: 29350.03006 | R440: 30230.53096 | S440: 31137.44689 | T440: 32071.5703 | U440: 33033.71741 | V440: 34024.72893 | W440: 35045.4708 | X440: 329 | Y440: 17105.27152 | Z440: 35045.4708 | AA440: 31
A441: =Data!B330 -> 32 | B441: =HLOOKUP($A$1,Data!$C$1:$AI$388,$X441,FALSE) -> 17511.35481 | C441: 17861.5819 | D441: 18397.42936 | E441: 19133.32654 | F441: 19898.6596 | G441: 20694.60598 | H441: 21522.39022 | I441: 22383.28583 | J441: 23278.61726 | K441: 24209.76195 | L441: 25178.15243 | M441: 26185.27853 | N441: 27232.68967 | O441: 28321.99726 | P441: 29171.65717 | Q441: 30046.80689 | R441: 30948.2111 | S441: 31876.65743 | T441: 32832.95715 | U441: 33817.94587 | V441: 34832.48424 | W441: 35877.45877 | X441: 330 | Y441: 17511.35481 | Z441: 35877.45877 | AA441: 32
A442: =Data!B331 -> 33 | B442: =HLOOKUP($A$1,Data!$C$1:$AI$388,$X442,FALSE) -> 17917.4381 | C442: 18275.78686 | D442: 18824.06047 | E442: 19577.02289 | F442: 20360.1038 | G442: 21174.50795 | H442: 22021.48827 | I442: 22902.3478 | J442: 23818.44172 | K442: 24771.17938 | L442: 25762.02656 | M442: 26792.50762 | N442: 27864.20793 | O442: 28978.77624 | P442: 29848.13953 | Q442: 30743.58372 | R442: 31665.89123 | S442: 32615.86797 | T442: 33594.344 | U442: 34602.17432 | V442: 35640.23955 | W442: 36709.44674 | X442: 331 | Y442: 17917.4381 | Z442: 36709.44674 | AA442: 33
A443: =Data!B332 -> 34 | B443: =HLOOKUP($A$1,Data!$C$1:$AI$388,$X443,FALSE) -> 18323.52139 | C443: 18689.99182 | D443: 19250.69157 | E443: 20020.71924 | F443: 20821.54801 | G443: 21654.40993 | H443: 22520.58632 | I443: 23421.40978 | J443: 24358.26617 | K443: 25332.59682 | L443: 26345.90069 | M443: 27399.73672 | N443: 28495.72618 | O443: 29635.55523 | P443: 30524.62189 | Q443: 31440.36055 | R443: 32383.57136 | S443: 33355.0785 | T443: 34355.73086 | U443: 35386.40278 | V443: 36447.99487 | W443: 37541.43471 | X443: 332 | Y443: 18323.52139 | Z443: 37541.43471 | AA443: 34
A444: =Data!B333 -> 35 | B444: =HLOOKUP($A$1,Data!$C$1:$AI$388,$X444,FALSE) -> 18729.60468 | C444: 19104.19678 | D444: 19677.32268 | E444: 20464.41559 | F444: 21282.99221 | G444: 22134.3119 | H444: 23019.68438 | I444: 23940.47175 | J444: 24898.09062 | K444: 25894.01425 | L444: 26929.77482 | M444: 28006.96581 | N444: 29127.24444 | O444: 30292.33422 | P444: 31201.10425 | Q444: 32137.13737 | R444: 33101.25149 | S444: 34094.28904 | T444: 35117.11771 | U444: 36170.63124 | V444: 37255.75018 | W444: 38373.42268 | X444: 333 | Y444: 18729.60468 | Z444: 38373.42268 | AA444: 35
A445: =Data!B334 -> 36 | B445: =HLOOKUP($A$1,Data!$C$1:$AI$388,$X445,FALSE) -> 19135.68798 | C445: 19518.40174 | D445: 20103.95379 | E445: 20908.11194 | F445: 21744.43642 | G445: 22614.21387 | H445: 23518.78243 | I445: 24459.53373 | J445: 25437.91507 | K445: 26455.43168 | L445: 27513.64894 | M445: 28614.1949 | N445: 29758.7627 | O445: 30949.11321 | P445: 31877.5866 | Q445: 32833.9142 | R445: 33818.93163 | S445: 34833.49958 | T445: 35878.50456 | U445: 36954.8597 | V445: 38063.50549 | W445: 39205.41066 | X445: 334 | Y445: 19135.68798 | Z445: 39205.41066 | AA445: 36
A446: =Data!B335 -> 37 | B446: =HLOOKUP($A$1,Data!$C$1:$AI$388,$X446,FALSE) -> 19541.77127 | C446: 19932.60669 | D446: 20530.58489 | E446: 21351.80829 | F446: 22205.88062 | G446: 23094.11585 | H446: 24017.88048 | I446: 24978.5957 | J446: 25977.73953 | K446: 27016.84911 | L446: 28097.52307 | M446: 29221.424 | N446: 30390.28096 | O446: 31605.89219 | P446: 32554.06896 | Q446: 33530.69103 | R446: 34536.61176 | S446: 35572.71011 | T446: 36639.89142 | U446: 37739.08816 | V446: 38871.2608 | W446: 40037.39863 | X446: 335 | Y446: 19541.77127 | Z446: 40037.39863 | AA446: 37
A447: =Data!B336 -> 38 | B447: =HLOOKUP($A$1,Data!$C$1:$AI$388,$X447,FALSE) -> 19947.85456 | C447: 20346.81165 | D447: 20957.216 | E447: 21795.50464 | F447: 22667.32483 | G447: 23574.01782 | H447: 24516.97853 | I447: 25497.65767 | J447: 26517.56398 | K447: 27578.26654 | L447: 28681.3972 | M447: 29828.65309 | N447: 31021.79921 | O447: 32262.67118 | P447: 33230.55132 | Q447: 34227.46786 | R447: 35254.29189 | S447: 36311.92065 | T447: 37401.27827 | U447: 38523.31662 | V447: 39679.01611 | W447: 40869.3866 | X447: 336 | Y447: 19947.85456 | Z447: 40869.3866 | AA447: 38
A448: =Data!B337 -> 39 | B448: =HLOOKUP($A$1,Data!$C$1:$AI$388,$X448,FALSE) -> 20353.93785 | C448: 20761.01661 | D448: 21383.84711 | E448: 22239.20099 | F448: 23128.76903 | G448: 24053.91979 | H448: 25016.07658 | I448: 26016.71965 | J448: 27057.38843 | K448: 28139.68397 | L448: 29265.27133 | M448: 30435.88218 | N448: 31653.31747 | O448: 32919.45017 | P448: 33907.03367 | Q448: 34924.24468 | R448: 35971.97202 | S448: 37051.13118 | T448: 38162.66512 | U448: 39307.54507 | V448: 40486.77143 | W448: 41701.37457 | X448: 337 | Y448: 20353.93785 | Z448: 41701.37457 | AA448: 39
A449: =Data!B338 -> 40 | B449: =HLOOKUP($A$1,Data!$C$1:$AI$388,$X449,FALSE) -> 20877.90364 | C449: 21295.46171 | D449: 21934.32556 | E449: 22811.69859 | F449: 23724.16653 | G449: 24673.13319 | H449: 25660.05852 | I449: 26686.46086 | J449: 27753.91929 | K449: 28864.07607 | L449: 30018.63911 | M449: 31219.38467 | N449: 32468.16006 | O449: 33766.88646 | P449: 34779.89306 | Q449: 35823.28985 | R449: 36897.98854 | S449: 38004.9282 | T449: 39145.07604 | U449: 40319.42833 | V449: 41529.01118 | W449: 42774.88151 | X449: 338 | Y449: 20877.90364 | Z449: 42774.88151 | AA449: 40
A450: =Data!B339 -> 41 | B450: =HLOOKUP($A$1,Data!$C$1:$AI$388,$X450,FALSE) -> 21401.86943 | C450: =B450*(1+C$407+(-(50-$A450)*(C$408/40))) -> 21829.90682 | D450: 22484.80402 | E450: 23384.19618 | F450: 24319.56403 | G450: 25292.34659 | H450: 26304.04045 | I450: 27356.20207 | J450: 28450.45015 | K450: 29588.46816 | L450: 30772.00689 | M450: 32002.88716 | N450: 33283.00265 | O450: 34614.32275 | P450: 35652.75244 | Q450: 36722.33501 | R450: 37824.00506 | S450: 38958.72521 | T450: 40127.48697 | U450: 41331.31158 | V450: 42571.25092 | W450: 43848.38845 | X450: 339 | Y450: 21401.86943 | Z450: 43848.38845 | AA450: 41
A451: =Data!B340 -> 42 | B451: =HLOOKUP($A$1,Data!$C$1:$AI$388,$X451,FALSE) -> 21925.83521 | C451: 22364.35192 | D451: 23035.28248 | E451: 23956.69378 | F451: 24914.96153 | G451: 25911.55999 | H451: 26948.02239 | I451: 28025.94328 | J451: 29146.98101 | K451: 30312.86025 | L451: 31525.37467 | M451: 32786.38965 | N451: 34097.84524 | O451: 35461.75905 | P451: 36525.61182 | Q451: 37621.38017 | R451: 38750.02158 | S451: =R451*(1+S$407+(-(50-$A451)*(S$408/40))) -> 39912.52223 | T451: 41109.89789 | U451: 42343.19483 | V451: 43613.49067 | W451: 44921.89539 | X451: 340 | Y451: 21925.83521 | Z451: 44921.89539 | AA451: 42
A452: =Data!B341 -> 43 | B452: =HLOOKUP($A$1,Data!$C$1:$AI$388,$X452,FALSE) -> 22449.801 | C452: 22898.79702 | D452: 23585.76093 | E452: 24529.19137 | F452: 25510.35903 | G452: 26530.77339 | H452: 27592.00432 | I452: 28695.68449 | J452: 29843.51187 | K452: 31037.25235 | L452: 32278.74244 | M452: 33569.89214 | N452: 34912.68783 | O452: 36309.19534 | P452: 37398.4712 | Q452: 38520.42534 | R452: 39676.0381 | S452: 40866.31924 | T452: 42092.30882 | U452: 43355.07808 | V452: 44655.73042 | W452: 45995.40234 | X452: 341 | Y452: 22449.801 | Z452: 45995.40234 | AA452: 43
A453: =Data!B342 -> 44 | B453: =HLOOKUP($A$1,Data!$C$1:$AI$388,$X453,FALSE) -> 22973.76679 | C453: 23433.24213 | D453: 24136.23939 | E453: 25101.68897 | F453: 26105.75652 | G453: 27149.98679 | H453: 28235.98626 | I453: 29365.42571 | J453: 30540.04274 | K453: 31761.64444 | L453: 33032.11022 | M453: 34353.39463 | N453: 35727.53042 | O453: 37156.63163 | P453: 38271.33058 | Q453: 39419.4705 | R453: 40602.05461 | S453: 41820.11625 | T453: 43074.71974 | U453: 44366.96133 | V453: 45697.97017 | W453: 47068.90928 | X453: 342 | Y453: 22973.76679 | Z453: 47068.90928 | AA453: 44
A454: =Data!B343 -> 45 | B454: =HLOOKUP($A$1,Data!$C$1:$AI$388,$X454,FALSE) -> 23497.73258 | C454: 23967.68723 | D454: 24686.71785 | E454: 25674.18656 | F454: 26701.15402 | G454: 27769.20018 | H454: 28879.96819 | I454: 30035.16692 | J454: 31236.5736 | K454: 32486.03654 | L454: 33785.478 | M454: 35136.89712 | N454: 36542.37301 | O454: 38004.06793 | P454: 39144.18996 | Q454: 40318.51566 | R454: 41528.07113 | S454: 42773.91327 | T454: 44057.13066 | U454: 45378.84458 | V454: 46740.20992 | W454: 48142.41622 | X454: 343 | Y454: 23497.73258 | Z454: 48142.41622 | AA454: 45
A455: =Data!B344 -> 46 | B455: =HLOOKUP($A$1,Data!$C$1:$AI$388,$X455,FALSE) -> 24021.69837 | C455: 24502.13233 | D455: 25237.1963 | E455: 26246.68416 | F455: 27296.55152 | G455: 28388.41358 | H455: 29523.95013 | I455: 30704.90813 | J455: 31933.10446 | K455: 33210.42863 | L455: 34538.84578 | M455: 35920.39961 | N455: 37357.2156 | O455: 38851.50422 | P455: 40017.04935 | Q455: 41217.56083 | R455: 42454.08765 | S455: 43727.71028 | T455: 45039.54159 | U455: 46390.72784 | V455: 47782.44967 | W455: 49215.92316 | X455: 344 | Y455: 24021.69837 | Z455: 49215.92316 | AA455: 46
A456: =Data!B345 -> 47 | B456: =HLOOKUP($A$1,Data!$C$1:$AI$388,$X456,FALSE) -> 24545.66415 | C456: 25036.57744 | D456: 25787.67476 | E456: 26819.18175 | F456: 27891.94902 | G456: 29007.62698 | H456: 30167.93206 | I456: 31374.64934 | J456: 32629.63532 | K456: 33934.82073 | L456: 35292.21356 | M456: 36703.9021 | N456: 38172.05818 | O456: 39698.94051 | P456: 40889.90873 | Q456: 42116.60599 | R456: 43380.10417 | S456: 44681.50729 | T456: 46021.95251 | U456: 47402.61109 | V456: 48824.68942 | W456: 50289.4301 | X456: 345 | Y456: 24545.66415 | Z456: 50289.4301 | AA456: 47
A457: =Data!B346 -> 48 | B457: =HLOOKUP($A$1,Data!$C$1:$AI$388,$X457,FALSE) -> 25069.62994 | C457: 25571.02254 | D457: 26338.15322 | E457: 27391.67935 | F457: 28487.34652 | G457: 29626.84038 | H457: 30811.91399 | I457: 32044.39055 | J457: 33326.16618 | K457: 34659.21282 | L457: 36045.58134 | M457: 37487.40459 | N457: 38986.90077 | O457: 40546.3768 | P457: 41762.76811 | Q457: 43015.65115 | R457: 44306.12069 | S457: 45635.30431 | T457: 47004.36344 | U457: 48414.49434 | V457: 49866.92917 | W457: 51362.93705 | X457: 346 | Y457: 25069.62994 | Z457: 51362.93705 | AA457: 48
A458: =Data!B347 -> 49 | B458: =HLOOKUP($A$1,Data!$C$1:$AI$388,$X458,FALSE) -> 25593.59573 | C458: 26105.46764 | D458: 26888.63167 | E458: 27964.17694 | F458: 29082.74402 | G458: 30246.05378 | H458: 31455.89593 | I458: 32714.13177 | J458: 34022.69704 | K458: 35383.60492 | L458: 36798.94912 | M458: 38270.90708 | N458: 39801.74336 | O458: 41393.8131 | P458: 42635.62749 | Q458: 43914.69632 | R458: 45232.13721 | S458: 46589.10132 | T458: 47986.77436 | U458: 49426.37759 | V458: 50909.16892 | W458: 52436.44399 | X458: 347 | Y458: 25593.59573 | Z458: 52436.44399 | AA458: 49
A459: =Data!B348 -> 50 | B459: =HLOOKUP($A$1,Data!$C$1:$AI$388,$X459,FALSE) -> 26241.11161 | C459: 26765.93384 | D459: 27568.91186 | E459: 28671.66833 | F459: 29818.53507 | G459: 31011.27647 | H459: 32251.72753 | I459: 33541.79663 | J459: 34883.46849 | K459: 36278.80723 | L459: 37729.95952 | M459: 39239.1579 | N459: 40808.72422 | O459: 42441.07319 | P459: 43714.30538 | Q459: 45025.73455 | R459: 46376.50658 | S459: 47767.80178 | T459: 49200.83583 | U459: 50676.86091 | V459: 52197.16673 | W459: 53763.08174 | X459: 348 | Y459: 26241.11161 | Z459: 53763.08174 | AA459: 50
A460: =Data!B349 -> 51 | B460: =HLOOKUP($A$1,Data!$C$1:$AI$388,$X460,FALSE) -> 26888.62749 | C460: 27426.40004 | D460: 28249.19204 | E460: 29379.15973 | F460: 30554.32611 | G460: 31776.49916 | H460: 33047.55913 | I460: 34369.46149 | J460: 35744.23995 | K460: 37174.00955 | L460: 38660.96993 | M460: 40207.40873 | N460: 41815.70508 | O460: 43488.33328 | P460: 44792.98328 | Q460: 46136.77278 | R460: 47520.87596 | S460: 48946.50224 | T460: 50414.8973 | U460: 51927.34422 | V460: 53485.16455 | W460: 55089.71949 | X460: 349 | Y460: 26888.62749 | Z460: 55089.71949 | AA460: 51
A461: =Data!B350 -> 52 | B461: =HLOOKUP($A$1,Data!$C$1:$AI$388,$X461,FALSE) -> 27536.14337 | C461: 28086.86624 | D461: 28929.47223 | E461: 30086.65112 | F461: 31290.11716 | G461: 32541.72185 | H461: 33843.39072 | I461: 35197.12635 | J461: 36605.01141 | K461: 38069.21186 | L461: 39591.98034 | M461: 41175.65955 | N461: 42822.68593 | O461: 44535.59337 | P461: 45871.66117 | Q461: 47247.81101 | R461: 48665.24534 | S461: 50125.2027 | T461: 51628.95878 | U461: 53177.82754 | V461: 54773.16237 | W461: 56416.35724 | X461: 350 | Y461: 27536.14337 | Z461: 56416.35724 | AA461: 52
A462: =Data!B351 -> 53 | B462: =HLOOKUP($A$1,Data!$C$1:$AI$388,$X462,FALSE) -> 28183.65926 | C462: 28747.33244 | D462: 29609.75241 | E462: 30794.14251 | F462: 32025.90821 | G462: 33306.94454 | H462: 34639.22232 | I462: 36024.79121 | J462: 37465.78286 | K462: 38964.41418 | L462: 40522.99074 | M462: 42143.91037 | N462: 43829.66679 | O462: 45582.85346 | P462: 46950.33906 | Q462: 48358.84924 | R462: 49809.61471 | S462: 51303.90315 | T462: 52843.02025 | U462: 54428.31086 | V462: 56061.16018 | W462: 57742.99499 | X462: 351 | Y462: 28183.65926 | Z462: 57742.99499 | AA462: 53
A463: =Data!B352 -> 54 | B463: =HLOOKUP($A$1,Data!$C$1:$AI$388,$X463,FALSE) -> 28831.17514 | C463: 29407.79864 | D463: 30290.0326 | E463: 31501.6339 | F463: 32761.69926 | G463: 34072.16723 | H463: 35435.05392 | I463: 36852.45608 | J463: 38326.55432 | K463: 39859.61649 | L463: 41454.00115 | M463: 43112.1612 | N463: 44836.64764 | O463: 46630.11355 | P463: 48029.01696 | Q463: 49469.88747 | R463: 50953.98409 | S463: 52482.60361 | T463: 54057.08172 | U463: 55678.79417 | V463: 57349.158 | W463: 59069.63274 | X463: 352 | Y463: 28831.17514 | Z463: 59069.63274 | AA463: 54
A464: =Data!B353 -> 55 | B464: =HLOOKUP($A$1,Data!$C$1:$AI$388,$X464,FALSE) -> 29478.69102 | C464: 30068.26484 | D464: 30970.31278 | E464: 32209.1253 | F464: 33497.49031 | G464: 34837.38992 | H464: 36230.88552 | I464: 37680.12094 | J464: 39187.32577 | K464: 40754.81881 | L464: 42385.01156 | M464: 44080.41202 | N464: 45843.6285 | O464: 47677.37364 | P464: 49107.69485 | Q464: 50580.9257 | R464: 52098.35347 | S464: 53661.30407 | T464: 55271.14319 | U464: 56929.27749 | V464: 58637.15581 | W464: 60396.27049 | X464: 353 | Y464: 29478.69102 | Z464: 60396.27049 | AA464: 55
A465: =Data!B354 -> 56 | B465: =HLOOKUP($A$1,Data!$C$1:$AI$388,$X465,FALSE) -> 30126.2069 | C465: 30728.73104 | D465: 31650.59297 | E465: 32916.61669 | F465: 34233.28136 | G465: 35602.61261 | H465: 37026.71711 | I465: 38507.7858 | J465: 40048.09723 | K465: 41650.02112 | L465: 43316.02196 | M465: 45048.66284 | N465: 46850.60936 | O465: 48724.63373 | P465: 50186.37274 | Q465: 51691.96393 | R465: 53242.72284 | S465: 54840.00453 | T465: 56485.20466 | U465: 58179.7608 | V465: 59925.15363 | W465: 61722.90824 | X465: 354 | Y465: 30126.2069 | Z465: 61722.90824 | AA465: 56
A466: =Data!B355 -> 57 | B466: =HLOOKUP($A$1,Data!$C$1:$AI$388,$X466,FALSE) -> 30773.72278 | C466: =B466*(1+C$407+(-(50-$A466)*(C$408/40))) -> 31389.19724 | D466: 32330.87315 | E466: 33624.10808 | F466: 34969.0724 | G466: 36367.8353 | H466: 37822.54871 | I466: 39335.45066 | J466: 40908.86869 | K466: 42545.22343 | L466: 44247.03237 | M466: 46016.91367 | N466: 47857.59021 | O466: 49771.89382 | P466: 51265.05064 | Q466: 52803.00216 | R466: 54387.09222 | S466: 56018.70499 | T466: 57699.26614 | U466: 59430.24412 | V466: 61213.15144 | W466: 63049.54599 | X466: 355 | Y466: 30773.72278 | Z466: 63049.54599 | AA466: 57
A467: =Data!B356 -> 58 | B467: =HLOOKUP($A$1,Data!$C$1:$AI$388,$X467,FALSE) -> 31421.23866 | C467: 32049.66344 | D467: 33011.15334 | E467: 34331.59947 | F467: 35704.86345 | G467: 37133.05799 | H467: 38618.38031 | I467: 40163.11552 | J467: 41769.64014 | K467: 43440.42575 | L467: 45178.04278 | M467: 46985.16449 | N467: 48864.57107 | O467: 50819.15391 | P467: 52343.72853 | Q467: 53914.04038 | R467: 55531.4616 | S467: =R467*(1+S$407+(-(50-$A467)*(S$408/40))) -> 57197.40544 | T467: 58913.32761 | U467: 60680.72744 | V467: 62501.14926 | W467: 64376.18374 | X467: 356 | Y467: 31421.23866 | Z467: 64376.18374 | AA467: 58
A468: =Data!B357 -> 59 | B468: =HLOOKUP($A$1,Data!$C$1:$AI$388,$X468,FALSE) -> 32068.75454 | C468: 32710.12964 | D468: 33691.43352 | E468: 35039.09087 | F468: 36440.6545 | G468: 37898.28068 | H468: 39414.21191 | I468: 40990.78038 | J468: 42630.4116 | K468: 44335.62806 | L468: 46109.05319 | M468: 47953.41531 | N468: 49871.55193 | O468: 51866.414 | P468: 53422.40642 | Q468: 55025.07861 | R468: 56675.83097 | S468: 58376.1059 | T468: 60127.38908 | U468: 61931.21075 | V468: 63789.14707 | W468: 65702.82149 | X468: 357 | Y468: 32068.75454 | Z468: 65702.82149 | AA468: 59
A469: =Data!B358 -> 60 | B469: =HLOOKUP($A$1,Data!$C$1:$AI$388,$X469,FALSE) -> 32636.02857 | C469: 33288.74914 | D469: 34287.41161 | E469: 35658.90808 | F469: 37085.2644 | G469: 38568.67498 | H469: 40111.42198 | I469: 41715.87885 | J469: 43384.51401 | K469: 45119.89457 | L469: 46924.69035 | M469: 48801.67797 | N469: 50753.74508 | O469: 52783.89489 | P469: 54367.41174 | Q469: 55998.43409 | R469: 57678.38711 | S469: 59408.73872 | T469: 61191.00088 | U469: 63026.73091 | V469: 64917.53284 | W469: 66865.05882 | X469: 358 | Y469: 32636.02857 | Z469: 66865.05882 | AA469: 60
A470: =Data!B359 -> 61 | B470: =HLOOKUP($A$1,Data!$C$1:$AI$388,$X470,FALSE) -> 33203.30259 | C470: 33867.36864 | D470: 34883.3897 | E470: 36278.72529 | F470: 37729.8743 | G470: 39239.06927 | H470: 40808.63204 | I470: 42440.97733 | J470: 44138.61642 | K470: 45904.16108 | L470: 47740.32752 | M470: 49649.94062 | N470: 51635.93824 | O470: 53701.37577 | P470: 55312.41705 | Q470: 56971.78956 | R470: 58680.94325 | S470: 60441.37154 | T470: 62254.61269 | U470: 64122.25107 | V470: 66045.9186 | W470: 68027.29616 | X470: 359 | Y470: 33203.30259 | Z470: 68027.29616 | AA470: 61
A471: =Data!B360 -> 62 | B471: =HLOOKUP($A$1,Data!$C$1:$AI$388,$X471,FALSE) -> 33770.57661 | C471: 34445.98815 | D471: 35479.36779 | E471: 36898.5425 | F471: 38374.4842 | G471: 39909.46357 | H471: 41505.84211 | I471: 43166.0758 | J471: 44892.71883 | K471: 46688.42758 | L471: 48555.96469 | M471: 50498.20327 | N471: 52518.1314 | O471: 54618.85666 | P471: 56257.42236 | Q471: 57945.14503 | R471: 59683.49938 | S471: 61474.00436 | T471: 63318.22449 | U471: 65217.77123 | V471: 67174.30437 | W471: 69189.5335 | X471: 360 | Y471: 33770.57661 | Z471: 69189.5335 | AA471: 62
A472: =Data!B361 -> 63 | B472: =HLOOKUP($A$1,Data!$C$1:$AI$388,$X472,FALSE) -> 34337.85064 | C472: 35024.60765 | D472: 36075.34588 | E472: 37518.35971 | F472: 39019.0941 | G472: 40579.85787 | H472: 42203.05218 | I472: 43891.17427 | J472: 45646.82124 | K472: 47472.69409 | L472: 49371.60185 | M472: 51346.46593 | N472: 53400.32456 | O472: 55536.33755 | P472: 57202.42767 | Q472: 58918.5005 | R472: 60686.05552 | S472: 62506.63718 | T472: 64381.8363 | U472: 66313.29139 | V472: 68302.69013 | W472: 70351.77083 | X472: 361 | Y472: 34337.85064 | Z472: 70351.77083 | AA472: 63
A473: =Data!B362 -> 64 | B473: =HLOOKUP($A$1,Data!$C$1:$AI$388,$X473,FALSE) -> 34905.12466 | C473: 35603.22715 | D473: 36671.32397 | E473: 38138.17693 | F473: 39663.704 | G473: 41250.25216 | H473: 42900.26225 | I473: 44616.27274 | J473: 46400.92365 | K473: 48256.9606 | L473: 50187.23902 | M473: 52194.72858 | N473: 54282.51772 | O473: 56453.81843 | P473: 58147.43299 | Q473: 59891.85598 | R473: 61688.61166 | S473: 63539.27 | T473: 65445.4481 | U473: 67408.81155 | V473: 69431.07589 | W473: 71514.00817 | X473: 362 | Y473: 34905.12466 | Z473: 71514.00817 | AA473: 64
... 121 more rows

Sheet S1
A1: =Data!D1 -> 2-Highland Council-Badenoch & Strathspey HMA | E1: =VLOOKUP($A$1,Map!$O$10:$AC$60,14,FALSE) -> All | H1: =VLOOKUP($A$1,Map!$O$10:$AC$60,15,FALSE) -> 2-Highland Council-Caithness HMA
A3: 1. Household Projections
A4: Choose NRS household projection variant. | X4: 2
X5: 1
X6: 1
X7: 1
X8: 1
X9: 1
X10: 1
C11: =D11-1 -> 2011 | D11: =D16 -> 2012 | E11: =D11+1 -> 2013 | F11: 2014 | G11: 2015 | H11: 2016 | I11: 2017 | J11: 2018 | K11: 2019 | L11: 2020 | M11: 2021 | N11: 2022
A12: Enter Projections Here | C12: 0 | D12: 0 | E12: 0 | F12: 0 | G12: 0 | H12: 0 | I12: 0 | J12: 0 | K12: 0 | L12: 0 | M12: 0 | N12: 0
D13: =N11+1 -> 2023 | E13: =D13+1 -> 2024 | F13: 2025 | G13: 2026 | H13: 2027 | I13: 2028 | J13: 2029 | K13: 2030 | L13: 2031 | M13: 2032 | N13: 2033
D14: 0 | E14: 0 | F14: 0 | G14: 0 | H14: 0 | I14: 0 | J14: 0 | K14: 0 | L14: 0 | M14: 0 | N14: 0
A16: 1a. Household growth Adjustment | D16: =C300 -> 2012 | E16: =D16+1 -> 2013 | F16: 2014 | G16: 2015 | H16: 2016 | I16: 2017 | J16: 2018 | K16: 2019 | L16: 2020 | M16: 2021 | N16: 2022
D17: 0 | E17: 0 | F17: 0 | G17: 0 | H17: 0 | I17: 0 | J17: 0 | K17: 0 | L17: 0 | M17: 0 | N17: 0
D18: =N16+1 -> 2023 | E18: =D18+1 -> 2024 | F18: 2025 | G18: 2026 | H18: 2027 | I18: 2028 | J18: 2029 | K18: 2030 | L18: 2031 | M18: 2032 | N18: 2033
D19: 0 | E19: 0 | F19: 0 | G19: 0 | H19: 0 | I19: 0 | J19: 0 | K19: 0 | L19: 0 | M19: 0 | N19: 0
A21: 2. Existing Need
A22: Either
A25: Total From HaTAP method | D25: =IF(B312=TRUE,SUM(C312:W312),"-") -> -
A26: Or own exisiting need figures
A29: Existing Need | B29: 134
A31: 2a. Years to clear exisiting need
A34: Existing "Cleared" In? Enter Years | B34: 13
A41: 3. Income, Growth and Distribution
A43: Growth in median income scenario
A45: Change in income distribution
A48: Select part of income distribution interested in
B49: Example A | C49: 75 | D49: %ile
B50: Example B | C50: 25 | D50: %ile
B51: Example Year | C51: 2032
X52: 1
X53: 2
X54: 1
A57: 4. Prices and Afforability | X57: 1
X58: 1
X59: 1
X60: 1
B61: Percentile | C61: 0.25
B64: Income Ratio | C64: 4 | X64: 1
A114: 5. Split Need into Tenure
B115: Proportion of market who buy | C115: 0.5
B116: Upper income-to-rent threshold | C116: 0.25
A117: Lower income-to-rent treshohld | B117: Lower I-rent income limit | C117: 0.35
A118: Rent Growth Assumption
X122: 1
X123: 1
X127: 1
A269: Principal
A270: High migration
A271: Low migration
A272: Alternative headship
A273: Alternative headship with high migration
A274: Alternative headship with low migration
A275: Constrained Housing
A278: Small Area Income Estimates (HW)
A279: CACI Income Data
A299: Households
A300: Year | B300: =Map!T6-1 -> 2011 | C300: =B300+1 -> 2012 | D300: 2013 | E300: 2014 | F300: 2015 | G300: 2016 | H300: 2017 | I300: 2018 | J300: 2019 | K300: 2020 | L300: 2021 | M300: 2022 | N300: 2023 | O300: 2024 | P300: 2025 | Q300: 2026 | R300: 2027 | S300: 2028 | T300: 2029 | U300: 2030 | V300: 2031 | W300: 2032 | X300: Ref
A301: Core (Principal) | B301: =HLOOKUP($A$1,Data!$C$1:$AI$40,B300-($B$300-$X$301),FALSE) -> 6000.6783 | C301: =HLOOKUP($A$1,Data!$C$1:$AI$40,C300-($B$300-$X$301),FALSE) -> 6042.205784 | D301: =HLOOKUP($A$1,Data!$C$1:$AI$40,D300-($B$300-$X$301),FALSE) -> 6083.733268 | E301: =HLOOKUP($A$1,Data!$C$1:$AI$40,E300-($B$300-$X$301),FALSE) -> 6132.710243 | F301: =HLOOKUP($A$1,Data!$C$1:$AI$40,F300-($B$300-$X$301),FALSE) -> 6180.822027 | G301: =HLOOKUP($A$1,Data!$C$1:$AI$40,G300-($B$300-$X$301),FALSE) -> 6230.376911 | H301: =HLOOKUP($A$1,Data!$C$1:$AI$40,H300-($B$300-$X$301),FALSE) -> 6279.456889 | I301: =HLOOKUP($A$1,Data!$C$1:$AI$40,I300-($B$300-$X$301),FALSE) -> 6332.565932 | J301: =HLOOKUP($A$1,Data!$C$1:$AI$40,J300-($B$300-$X$301),FALSE) -> 6386.181661 | K301: =HLOOKUP($A$1,Data!$C$1:$AI$40,K300-($B$300-$X$301),FALSE) -> 6433.5986 | L301: =HLOOKUP($A$1,Data!$C$1:$AI$40,L300-($B$300-$X$301),FALSE) -> 6481.846313 | M301: =HLOOKUP($A$1,Data!$C$1:$AI$40,M300-($B$300-$X$301),FALSE) -> 6532.422059 | N301: =HLOOKUP($A$1,Data!$C$1:$AI$40,N300-($B$300-$X$301),FALSE) -> 6581.752694 | O301: =HLOOKUP($A$1,Data!$C$1:$AI$40,O300-($B$300-$X$301),FALSE) -> 6636.107473 | P301: =HLOOKUP($A$1,Data!$C$1:$AI$40,P300-($B$300-$X$301),FALSE) -> 6684.123804 | Q301: =HLOOKUP($A$1,Data!$C$1:$AI$40,Q300-($B$300-$X$301),FALSE) -> 6725.736265 | R301: =HLOOKUP($A$1,Data!$C$1:$AI$40,R300-($B$300-$X$301),FALSE) -> 6766.525294 | S301: =HLOOKUP($A$1,Data!$C$1:$AI$40,S300-($B$300-$X$301),FALSE) -> 6810.727772 | T301: =HLOOKUP($A$1,Data!$C$1:$AI$40,T300-($B$300-$X$301),FALSE) -> 6854.320633 | U301: =HLOOKUP($A$1,Data!$C$1:$AI$40,U300-($B$300-$X$301),FALSE) -> 6890.70711 | V301: =HLOOKUP($A$1,Data!$C$1:$AI$40,V300-($B$300-$X$301),FALSE) -> 6917.228871 | W301: =HLOOKUP($A$1,Data!$C$1:$AI$40,W300-($B$300-$X$301),FALSE) -> 6944.678229 | X301: 19
A302: =CONCATENATE("User (",CHOOSE(X4,A269,A270,A271,A272,A273,A274,A275),")") -> User (High migration) | B302: =IF($B$308=TRUE,C12,HLOOKUP($A$1,Data!$C$1:$AI$184,B300-($B$300-$X$302)+24*($X$4-1),FALSE)) -> 5998.918336 | C302: =IF($B$308=TRUE,D12,HLOOKUP($A$1,Data!$C$1:$AI$184,C300-($B$300-$X$302)+24*($X$4-1),FALSE)) -> 6042.205784 | D302: =IF($B$308=TRUE,E12,HLOOKUP($A$1,Data!$C$1:$AI$184,D300-($B$300-$X$302)+24*($X$4-1),FALSE)) -> 6085.493232 | E302: =IF($B$308=TRUE,F12,HLOOKUP($A$1,Data!$C$1:$AI$184,E300-($B$300-$X$302)+24*($X$4-1),FALSE)) -> 6139.144383 | F302: =IF($B$308=TRUE,G12,HLOOKUP($A$1,Data!$C$1:$AI$184,F300-($B$300-$X$302)+24*($X$4-1),FALSE)) -> 6192.043216 | G302: =IF($B$308=TRUE,H12,HLOOKUP($A$1,Data!$C$1:$AI$184,G300-($B$300-$X$302)+24*($X$4-1),FALSE)) -> 6247.951907 | H302: =IF($B$308=TRUE,I12,HLOOKUP($A$1,Data!$C$1:$AI$184,H300-($B$300-$X$302)+24*($X$4-1),FALSE)) -> 6306.398144 | I302: =IF($B$308=TRUE,J12,HLOOKUP($A$1,Data!$C$1:$AI$184,I300-($B$300-$X$302)+24*($X$4-1),FALSE)) -> 6369.145371 | J302: =IF($B$308=TRUE,K12,HLOOKUP($A$1,Data!$C$1:$AI$184,J300-($B$300-$X$302)+24*($X$4-1),FALSE)) -> 6435.546003 | K302: =IF($B$308=TRUE,L12,HLOOKUP($A$1,Data!$C$1:$AI$184,K300-($B$300-$X$302)+24*($X$4-1),FALSE)) -> 6495.977163 | L302: =IF($B$308=TRUE,M12,HLOOKUP($A$1,Data!$C$1:$AI$184,L300-($B$300-$X$302)+24*($X$4-1),FALSE)) -> 6557.631798 | M302: =IF($B$308=TRUE,N12,HLOOKUP($A$1,Data!$C$1:$AI$184,M300-($B$300-$X$302)+24*($X$4-1),FALSE)) -> 6621.916183 | N302: =IF($B$308=TRUE,D14,HLOOKUP($A$1,Data!$C$1:$AI$184,N300-($B$300-$X$302)+24*($X$4-1),FALSE)) -> 6685.1588 | O302: =IF($B$308=TRUE,E14,HLOOKUP($A$1,Data!$C$1:$AI$184,O300-($B$300-$X$302)+24*($X$4-1),FALSE)) -> 6753.761775 | P302: =IF($B$308=TRUE,F14,HLOOKUP($A$1,Data!$C$1:$AI$184,P300-($B$300-$X$302)+24*($X$4-1),FALSE)) -> 6816.183631 | Q302: =IF($B$308=TRUE,G14,HLOOKUP($A$1,Data!$C$1:$AI$184,Q300-($B$300-$X$302)+24*($X$4-1),FALSE)) -> 6872.273099 | R302: =IF($B$308=TRUE,H14,HLOOKUP($A$1,Data!$C$1:$AI$184,R300-($B$300-$X$302)+24*($X$4-1),FALSE)) -> 6927.631828 | S302: =IF($B$308=TRUE,I14,HLOOKUP($A$1,Data!$C$1:$AI$184,S300-($B$300-$X$302)+24*($X$4-1),FALSE)) -> 6986.714368 | T302: =IF($B$308=TRUE,J14,HLOOKUP($A$1,Data!$C$1:$AI$184,T300-($B$300-$X$302)+24*($X$4-1),FALSE)) -> 7045.500672 | U302: =IF($B$308=TRUE,K14,HLOOKUP($A$1,Data!$C$1:$AI$184,U300-($B$300-$X$302)+24*($X$4-1),FALSE)) -> 7097.091786 | V302: =IF($B$308=TRUE,L14,HLOOKUP($A$1,Data!$C$1:$AI$184,V300-($B$300-$X$302)+24*($X$4-1),FALSE)) -> 7138.553188 | W302: =IF($B$308=TRUE,M14,HLOOKUP($A$1,Data!$C$1:$AI$184,W300-($B$300-$X$302)+24*($X$4-1),FALSE)) -> 7181.062816 | X302: 19
C303: =(C302-B302) -> 43.28744773 | D303: =(D302-C302) -> 43.28744773 | E303: 53.65115128 | F303: 52.89883307 | G303: 55.90869112 | H303: 58.44623653 | I303: 62.74722748 | J303: 66.4006318 | K303: 60.43116026 | L303: 61.65463508 | M303: 64.28438472 | N303: 63.24261652 | O303: 68.60297567 | P303: 62.42185604 | Q303: 56.08946758 | R303: 55.35872884 | S303: 59.08254027 | T303: 58.78630351 | U303: 51.59111452 | V303: 41.46140232 | W303: 42.50962782
A304: =CONCATENATE(A302, " Adjusted") -> User (High migration) Adjusted | B304: =B302*(1+D17) -> 5998.918336 | C304: =(B304+C303)*(1+E17) -> 6042.205784 | D304: 6085.493232 | E304: 6139.144383 | F304: 6192.043216 | G304: 6247.951907 | H304: 6306.398144 | I304: 6369.145371 | J304: 6435.546003 | K304: 6495.977163 | L304: 6557.631798 | M304: =(L304+M303)*(1+D19) -> 6621.916183 | N304: 6685.1588 | O304: 6753.761775 | P304: 6816.183631 | Q304: 6872.273099 | R304: 6927.631828 | S304: 6986.714368 | T304: 7045.500672 | U304: 7097.091786 | V304: 7138.553188 | W304: 7181.062816
A305: Principal Change | C305: =C301-B301 -> 41.52748353 | D305: =D301-C301 -> 41.52748353 | E305: 48.97697504 | F305: 48.11178492 | G305: 49.5548834 | H305: 49.07997849 | I305: 53.1090427 | J305: 53.61572931 | K305: 47.41693833 | L305: 48.24771376 | M305: 50.57574557 | N305: 49.3306349 | O305: 54.35477925 | P305: 48.01633045 | Q305: 41.61246108 | R305: 40.7890291 | S305: 44.20247799 | T305: 43.59286078 | U305: 36.38647742 | V305: 26.52176115 | W305: 27.44935762
A306: =CONCATENATE(A302," Change") -> User (High migration) Change | C306: =C304-B304 -> 43.28744773 | D306: =D304-C304 -> 43.28744773 | E306: 53.65115128 | F306: 52.89883307 | G306: 55.90869112 | H306: 58.44623653 | I306: 62.74722748 | J306: 66.4006318 | K306: 60.43116026 | L306: 61.65463508 | M306: 64.28438472 | N306: 63.24261652 | O306: 68.60297567 | P306: 62.42185604 | Q306: 56.08946758 | R306: 55.35872884 | S306: 59.08254027 | T306: 58.78630351 | U306: 51.59111452 | V306: 41.46140232 | W306: 42.50962782
B308: FALSE
A309: Backlog Need | B309: FALSE | C309: =IF(C300-$B300<=$B$34,$B$29/'S1'!$B$34,0) -> 10.30769231 | D309: =IF(D300-$B300<=$B$34,$B$29/'S1'!$B$34,0) -> 10.30769231 | E309: =IF(E300-$B300<=$B$34,$B$29/'S1'!$B$34,0) -> 10.30769231 | F309: =IF(F300-$B300<=$B$34,$B$29/'S1'!$B$34,0) -> 10.30769231 | G309: =IF(G300-$B300<=$B$34,$B$29/'S1'!$B$34,0) -> 10.30769231 | H309: =IF(H300-$B300<=$B$34,$B$29/'S1'!$B$34,0) -> 10.30769231 | I309: =IF(I300-$B300<=$B$34,$B$29/'S1'!$B$34,0) -> 10.30769231 | J309: =IF(J300-$B300<=$B$34,$B$29/'S1'!$B$34,0) -> 10.30769231 | K309: =IF(K300-$B300<=$B$34,$B$29/'S1'!$B$34,0) -> 10.30769231 | L309: =IF(L300-$B300<=$B$34,$B$29/'S1'!$B$34,0) -> 10.30769231 | M309: =IF(M300-$B300<=$B$34,$B$29/'S1'!$B$34,0) -> 10.30769231 | N309: =IF(N300-$B300<=$B$34,$B$29/'S1'!$B$34,0) -> 10.30769231 | O309: =IF(O300-$B300<=$B$34,$B$29/'S1'!$B$34,0) -> 10.30769231 | P309: =IF(P300-$B300<=$B$34,$B$29/'S1'!$B$34,0) -> 0 | Q309: =IF(Q300-$B300<=$B$34,$B$29/'S1'!$B$34,0) -> 0 | R309: =IF(R300-$B300<=$B$34,$B$29/'S1'!$B$34,0) -> 0 | S309: =IF(S300-$B300<=$B$34,$B$29/'S1'!$B$34,0) -> 0 | T309: =IF(T300-$B300<=$B$34,$B$29/'S1'!$B$34,0) -> 0 | U309: =IF(U300-$B300<=$B$34,$B$29/'S1'!$B$34,0) -> 0 | V309: =IF(V300-$B300<=$B$34,$B$29/'S1'!$B$34,0) -> 0 | W309: =IF(W300-$B300<=$B$34,$B$29/'S1'!$B$34,0) -> 0
A310: Backlog Need (TA) | C310: =IF(C300-$B300<=$B$34,HLOOKUP($A$1,Data!$C$1:$AJ$202,'S1'!$X$310,FALSE)/'S1'!$B$34,0) -> 4.923076923 | D310: =IF(D300-$B300<=$B$34,HLOOKUP($A$1,Data!$C$1:$AJ$202,'S1'!$X$310,FALSE)/'S1'!$B$34,0) -> 4.923076923 | E310: =IF(E300-$B300<=$B$34,HLOOKUP($A$1,Data!$C$1:$AJ$202,'S1'!$X$310,FALSE)/'S1'!$B$34,0) -> 4.923076923 | F310: =IF(F300-$B300<=$B$34,HLOOKUP($A$1,Data!$C$1:$AJ$202,'S1'!$X$310,FALSE)/'S1'!$B$34,0) -> 4.923076923 | G310: =IF(G300-$B300<=$B$34,HLOOKUP($A$1,Data!$C$1:$AJ$202,'S1'!$X$310,FALSE)/'S1'!$B$34,0) -> 4.923076923 | H310: =IF(H300-$B300<=$B$34,HLOOKUP($A$1,Data!$C$1:$AJ$202,'S1'!$X$310,FALSE)/'S1'!$B$34,0) -> 4.923076923 | I310: =IF(I300-$B300<=$B$34,HLOOKUP($A$1,Data!$C$1:$AJ$202,'S1'!$X$310,FALSE)/'S1'!$B$34,0) -> 4.923076923 | J310: =IF(J300-$B300<=$B$34,HLOOKUP($A$1,Data!$C$1:$AJ$202,'S1'!$X$310,FALSE)/'S1'!$B$34,0) -> 4.923076923 | K310: =IF(K300-$B300<=$B$34,HLOOKUP($A$1,Data!$C$1:$AJ$202,'S1'!$X$310,FALSE)/'S1'!$B$34,0) -> 4.923076923 | L310: =IF(L300-$B300<=$B$34,HLOOKUP($A$1,Data!$C$1:$AJ$202,'S1'!$X$310,FALSE)/'S1'!$B$34,0) -> 4.923076923 | M310: =IF(M300-$B300<=$B$34,HLOOKUP($A$1,Data!$C$1:$AJ$202,'S1'!$X$310,FALSE)/'S1'!$B$34,0) -> 4.923076923 | N310: =IF(N300-$B300<=$B$34,HLOOKUP($A$1,Data!$C$1:$AJ$202,'S1'!$X$310,FALSE)/'S1'!$B$34,0) -> 4.923076923 | O310: =IF(O300-$B300<=$B$34,HLOOKUP($A$1,Data!$C$1:$AJ$202,'S1'!$X$310,FALSE)/'S1'!$B$34,0) -> 4.923076923 | P310: =IF(P300-$B300<=$B$34,HLOOKUP($A$1,Data!$C$1:$AJ$202,'S1'!$X$310,FALSE)/'S1'!$B$34,0) -> 0 | Q310: =IF(Q300-$B300<=$B$34,HLOOKUP($A$1,Data!$C$1:$AJ$202,'S1'!$X$310,FALSE)/'S1'!$B$34,0) -> 0 | R310: =IF(R300-$B300<=$B$34,HLOOKUP($A$1,Data!$C$1:$AJ$202,'S1'!$X$310,FALSE)/'S1'!$B$34,0) -> 0 | S310: =IF(S300-$B300<=$B$34,HLOOKUP($A$1,Data!$C$1:$AJ$202,'S1'!$X$310,FALSE)/'S1'!$B$34,0) -> 0 | T310: =IF(T300-$B300<=$B$34,HLOOKUP($A$1,Data!$C$1:$AJ$202,'S1'!$X$310,FALSE)/'S1'!$B$34,0) -> 0 | U310: =IF(U300-$B300<=$B$34,HLOOKUP($A$1,Data!$C$1:$AJ$202,'S1'!$X$310,FALSE)/'S1'!$B$34,0) -> 0 | V310: =IF(V300-$B300<=$B$34,HLOOKUP($A$1,Data!$C$1:$AJ$202,'S1'!$X$310,FALSE)/'S1'!$B$34,0) -> 0 | W310: =IF(W300-$B300<=$B$34,HLOOKUP($A$1,Data!$C$1:$AJ$202,'S1'!$X$310,FALSE)/'S1'!$B$34,0) -> 0 | X310: 202
A311: Backlog Need (Traditional) | C311: =IF(C300-$B300<=$B$34,HLOOKUP($A$1,Data!$C$1:$AJ$201,'S1'!$X311,FALSE)/'S1'!$B$34,0) -> 0 | D311: =IF(D300-$B300<=$B$34,HLOOKUP($A$1,Data!$C$1:$AJ$201,'S1'!$X311,FALSE)/'S1'!$B$34,0) -> 0 | E311: =IF(E300-$B300<=$B$34,HLOOKUP($A$1,Data!$C$1:$AJ$201,'S1'!$X311,FALSE)/'S1'!$B$34,0) -> 0 | F311: =IF(F300-$B300<=$B$34,HLOOKUP($A$1,Data!$C$1:$AJ$201,'S1'!$X311,FALSE)/'S1'!$B$34,0) -> 0 | G311: =IF(G300-$B300<=$B$34,HLOOKUP($A$1,Data!$C$1:$AJ$201,'S1'!$X311,FALSE)/'S1'!$B$34,0) -> 0 | H311: =IF(H300-$B300<=$B$34,HLOOKUP($A$1,Data!$C$1:$AJ$201,'S1'!$X311,FALSE)/'S1'!$B$34,0) -> 0 | I311: =IF(I300-$B300<=$B$34,HLOOKUP($A$1,Data!$C$1:$AJ$201,'S1'!$X311,FALSE)/'S1'!$B$34,0) -> 0 | J311: =IF(J300-$B300<=$B$34,HLOOKUP($A$1,Data!$C$1:$AJ$201,'S1'!$X311,FALSE)/'S1'!$B$34,0) -> 0 | K311: =IF(K300-$B300<=$B$34,HLOOKUP($A$1,Data!$C$1:$AJ$201,'S1'!$X311,FALSE)/'S1'!$B$34,0) -> 0 | L311: =IF(L300-$B300<=$B$34,HLOOKUP($A$1,Data!$C$1:$AJ$201,'S1'!$X311,FALSE)/'S1'!$B$34,0) -> 0 | M311: =IF(M300-$B300<=$B$34,HLOOKUP($A$1,Data!$C$1:$AJ$201,'S1'!$X311,FALSE)/'S1'!$B$34,0) -> 0 | N311: =IF(N300-$B300<=$B$34,HLOOKUP($A$1,Data!$C$1:$AJ$201,'S1'!$X311,FALSE)/'S1'!$B$34,0) -> 0 | O311: =IF(O300-$B300<=$B$34,HLOOKUP($A$1,Data!$C$1:$AJ$201,'S1'!$X311,FALSE)/'S1'!$B$34,0) -> 0 | P311: =IF(P300-$B300<=$B$34,HLOOKUP($A$1,Data!$C$1:$AJ$201,'S1'!$X311,FALSE)/'S1'!$B$34,0) -> 0 | Q311: =IF(Q300-$B300<=$B$34,HLOOKUP($A$1,Data!$C$1:$AJ$201,'S1'!$X311,FALSE)/'S1'!$B$34,0) -> 0 | R311: =IF(R300-$B300<=$B$34,HLOOKUP($A$1,Data!$C$1:$AJ$201,'S1'!$X311,FALSE)/'S1'!$B$34,0) -> 0 | S311: =IF(S300-$B300<=$B$34,HLOOKUP($A$1,Data!$C$1:$AJ$201,'S1'!$X311,FALSE)/'S1'!$B$34,0) -> 0 | T311: =IF(T300-$B300<=$B$34,HLOOKUP($A$1,Data!$C$1:$AJ$201,'S1'!$X311,FALSE)/'S1'!$B$34,0) -> 0 | U311: =IF(U300-$B300<=$B$34,HLOOKUP($A$1,Data!$C$1:$AJ$201,'S1'!$X311,FALSE)/'S1'!$B$34,0) -> 0 | V311: =IF(V300-$B300<=$B$34,HLOOKUP($A$1,Data!$C$1:$AJ$201,'S1'!$X311,FALSE)/'S1'!$B$34,0) -> 0 | W311: =IF(W300-$B300<=$B$34,HLOOKUP($A$1,Data!$C$1:$AJ$201,'S1'!$X311,FALSE)/'S1'!$B$34,0) -> 0 | X311: 199
A312: Exisitng Scenario | B312: FALSE | C312: =IF($B$312=TRUE,C310,IF($B$310=TRUE,C311,C309)) -> 10.30769231 | D312: 10.30769231 | E312: 10.30769231 | F312: 10.30769231 | G312: 10.30769231 | H312: 10.30769231 | I312: 10.30769231 | J312: 10.30769231 | K312: 10.30769231 | L312: 10.30769231 | M312: 10.30769231 | N312: 10.30769231 | O312: 10.30769231 | P312: 0 | Q312: 0 | R312: 0 | S312: 0 | T312: 0 | U312: 0 | V312: 0 | W312: 0
A315: Overall | C315: =C300 -> 2012 | D315: =D300 -> 2013 | E315: 2014 | F315: 2015 | G315: 2016 | H315: 2017 | I315: 2018 | J315: 2019 | K315: 2020 | L315: 2021 | M315: 2022 | N315: 2023 | O315: 2024 | P315: 2025 | Q315: 2026 | R315: 2027 | S315: 2028 | T315: 2029 | U315: 2030 | V315: 2031 | W315: 2032
A316: Existing Principal | C316: =IF(C300-$B300<=CoreAssumptions!$F$10,HLOOKUP($A$1,Data!$C$1:$AJ$202,'S1'!$X$310,FALSE)/CoreAssumptions!$F$10,0) -> 12.8 | D316: =IF(D300-$B300<=CoreAssumptions!$F$10,HLOOKUP($A$1,Data!$C$1:$AJ$202,'S1'!$X$310,FALSE)/CoreAssumptions!$F$10,0) -> 12.8 | E316: =IF(E300-$B300<=CoreAssumptions!$F$10,HLOOKUP($A$1,Data!$C$1:$AJ$202,'S1'!$X$310,FALSE)/CoreAssumptions!$F$10,0) -> 12.8 | F316: =IF(F300-$B300<=CoreAssumptions!$F$10,HLOOKUP($A$1,Data!$C$1:$AJ$202,'S1'!$X$310,FALSE)/CoreAssumptions!$F$10,0) -> 12.8 | G316: =IF(G300-$B300<=CoreAssumptions!$F$10,HLOOKUP($A$1,Data!$C$1:$AJ$202,'S1'!$X$310,FALSE)/CoreAssumptions!$F$10,0) -> 12.8 | H316: =IF(H300-$B300<=CoreAssumptions!$F$10,HLOOKUP($A$1,Data!$C$1:$AJ$202,'S1'!$X$310,FALSE)/CoreAssumptions!$F$10,0) -> 0 | I316: =IF(I300-$B300<=CoreAssumptions!$F$10,HLOOKUP($A$1,Data!$C$1:$AJ$202,'S1'!$X$310,FALSE)/CoreAssumptions!$F$10,0) -> 0 | J316: =IF(J300-$B300<=CoreAssumptions!$F$10,HLOOKUP($A$1,Data!$C$1:$AJ$202,'S1'!$X$310,FALSE)/CoreAssumptions!$F$10,0) -> 0 | K316: =IF(K300-$B300<=CoreAssumptions!$F$10,HLOOKUP($A$1,Data!$C$1:$AJ$202,'S1'!$X$310,FALSE)/CoreAssumptions!$F$10,0) -> 0 | L316: =IF(L300-$B300<=CoreAssumptions!$F$10,HLOOKUP($A$1,Data!$C$1:$AJ$202,'S1'!$X$310,FALSE)/CoreAssumptions!$F$10,0) -> 0 | M316: =IF(M300-$B300<=CoreAssumptions!$F$10,HLOOKUP($A$1,Data!$C$1:$AJ$202,'S1'!$X$310,FALSE)/CoreAssumptions!$F$10,0) -> 0 | N316: =IF(N300-$B300<=CoreAssumptions!$F$10,HLOOKUP($A$1,Data!$C$1:$AJ$202,'S1'!$X$310,FALSE)/CoreAssumptions!$F$10,0) -> 0 | O316: =IF(O300-$B300<=CoreAssumptions!$F$10,HLOOKUP($A$1,Data!$C$1:$AJ$202,'S1'!$X$310,FALSE)/CoreAssumptions!$F$10,0) -> 0 | P316: =IF(P300-$B300<=CoreAssumptions!$F$10,HLOOKUP($A$1,Data!$C$1:$AJ$202,'S1'!$X$310,FALSE)/CoreAssumptions!$F$10,0) -> 0 | Q316: =IF(Q300-$B300<=CoreAssumptions!$F$10,HLOOKUP($A$1,Data!$C$1:$AJ$202,'S1'!$X$310,FALSE)/CoreAssumptions!$F$10,0) -> 0 | R316: =IF(R300-$B300<=CoreAssumptions!$F$10,HLOOKUP($A$1,Data!$C$1:$AJ$202,'S1'!$X$310,FALSE)/CoreAssumptions!$F$10,0) -> 0 | S316: =IF(S300-$B300<=CoreAssumptions!$F$10,HLOOKUP($A$1,Data!$C$1:$AJ$202,'S1'!$X$310,FALSE)/CoreAssumptions!$F$10,0) -> 0 | T316: =IF(T300-$B300<=CoreAssumptions!$F$10,HLOOKUP($A$1,Data!$C$1:$AJ$202,'S1'!$X$310,FALSE)/CoreAssumptions!$F$10,0) -> 0 | U316: =IF(U300-$B300<=CoreAssumptions!$F$10,HLOOKUP($A$1,Data!$C$1:$AJ$202,'S1'!$X$310,FALSE)/CoreAssumptions!$F$10,0) -> 0 | V316: =IF(V300-$B300<=CoreAssumptions!$F$10,HLOOKUP($A$1,Data!$C$1:$AJ$202,'S1'!$X$310,FALSE)/CoreAssumptions!$F$10,0) -> 0 | W316: =IF(W300-$B300<=CoreAssumptions!$F$10,HLOOKUP($A$1,Data!$C$1:$AJ$202,'S1'!$X$310,FALSE)/CoreAssumptions!$F$10,0) -> 0
A317: Newly Arising Principal | C317: =C305 -> 41.52748353 | D317: =D305 -> 41.52748353 | E317: 48.97697504 | F317: 48.11178492 | G317: 49.5548834 | H317: 49.07997849 | I317: 53.1090427 | J317: 53.61572931 | K317: 47.41693833 | L317: 48.24771376 | M317: 50.57574557 | N317: 49.3306349 | O317: 54.35477925 | P317: 48.01633045 | Q317: 41.61246108 | R317: 40.7890291 | S317: 44.20247799 | T317: 43.59286078 | U317: 36.38647742 | V317: 26.52176115 | W317: 27.44935762
A318: Newly Arising Scenario | C318: =C306 -> 43.28744773 | D318: 43.28744773 | E318: 53.65115128 | F318: 52.89883307 | G318: 55.90869112 | H318: 58.44623653 | I318: 62.74722748 | J318: 66.4006318 | K318: 60.43116026 | L318: 61.65463508 | M318: 64.28438472 | N318: 63.24261652 | O318: 68.60297567 | P318: 62.42185604 | Q318: 56.08946758 | R318: 55.35872884 | S318: 59.08254027 | T318: 58.78630351 | U318: 51.59111452 | V318: 41.46140232 | W318: 42.50962782
A319: Total Principal | C319: =C316+C317 -> 54.32748353 | D319: =D316+D317 -> 54.32748353 | E319: 61.77697504 | F319: 60.91178492 | G319: 62.3548834 | H319: 49.07997849 | I319: 53.1090427 | J319: 53.61572931 | K319: 47.41693833 | L319: 48.24771376 | M319: 50.57574557 | N319: 49.3306349 | O319: 54.35477925 | P319: 48.01633045 | Q319: 41.61246108 | R319: 40.7890291 | S319: 44.20247799 | T319: 43.59286078 | U319: 36.38647742 | V319: 26.52176115 | W319: 27.44935762
A320: Total Scenario | C320: =C318+C312 -> 53.59514004 | D320: =D318+D312 -> 53.59514004 | E320: 63.95884359 | F320: 63.20652538 | G320: 66.21638343 | H320: 68.75392884 | I320: 73.05491979 | J320: 76.7083241 | K320: 70.73885257 | L320: 71.96232739 | M320: 74.59207703 | N320: 73.55030883 | O320: 78.91066798 | P320: 62.42185604 | Q320: 56.08946758 | R320: 55.35872884 | S320: 59.08254027 | T320: 58.78630351 | U320: 51.59111452 | V320: 41.46140232 | W320: 42.50962782
A322: In Current Proportions | C322: =C315 -> 2012 | D322: =D315 -> 2013 | E322: 2014 | F322: 2015 | G322: 2016 | H322: 2017 | I322: 2018 | J322: 2019 | K322: 2020 | L322: 2021 | M322: 2022 | N322: 2023 | O322: 2024 | P322: 2025 | Q322: 2026 | R322: 2027 | S322: 2028 | T322: 2029 | U322: 2030 | V322: 2031 | W322: 2032
A323: Principal Private | C323: =-HLOOKUP($A$1,Data!$C$1:$AI$388,'S1'!$X323,FALSE)*C319/100 -> -37.33384668 | D323: =-HLOOKUP($A$1,Data!$C$1:$AI$388,'S1'!$X323,FALSE)*D319/100 -> -37.33384668 | E323: =-HLOOKUP($A$1,Data!$C$1:$AI$388,'S1'!$X323,FALSE)*E319/100 -> -42.45313725 | F323: =-HLOOKUP($A$1,Data!$C$1:$AI$388,'S1'!$X323,FALSE)*F319/100 -> -41.8585786 | G323: =-HLOOKUP($A$1,Data!$C$1:$AI$388,'S1'!$X323,FALSE)*G319/100 -> -42.85027587 | H323: =-HLOOKUP($A$1,Data!$C$1:$AI$388,'S1'!$X323,FALSE)*H319/100 -> -33.72776122 | I323: =-HLOOKUP($A$1,Data!$C$1:$AI$388,'S1'!$X323,FALSE)*I319/100 -> -36.49653414 | J323: =-HLOOKUP($A$1,Data!$C$1:$AI$388,'S1'!$X323,FALSE)*J319/100 -> -36.84472918 | K323: =-HLOOKUP($A$1,Data!$C$1:$AI$388,'S1'!$X323,FALSE)*K319/100 -> -32.58492002 | L323: =-HLOOKUP($A$1,Data!$C$1:$AI$388,'S1'!$X323,FALSE)*L319/100 -> -33.1558289 | M323: =-HLOOKUP($A$1,Data!$C$1:$AI$388,'S1'!$X323,FALSE)*M319/100 -> -34.75565235 | N323: =-HLOOKUP($A$1,Data!$C$1:$AI$388,'S1'!$X323,FALSE)*N319/100 -> -33.9000123 | O323: =-HLOOKUP($A$1,Data!$C$1:$AI$388,'S1'!$X323,FALSE)*O319/100 -> -37.3526043 | P323: =-HLOOKUP($A$1,Data!$C$1:$AI$388,'S1'!$X323,FALSE)*P319/100 -> -32.99682229 | Q323: =-HLOOKUP($A$1,Data!$C$1:$AI$388,'S1'!$X323,FALSE)*Q319/100 -> -28.59608325 | R323: =-HLOOKUP($A$1,Data!$C$1:$AI$388,'S1'!$X323,FALSE)*R319/100 -> -28.0302208 | S323: =-HLOOKUP($A$1,Data!$C$1:$AI$388,'S1'!$X323,FALSE)*S319/100 -> -30.37594288 | T323: =-HLOOKUP($A$1,Data!$C$1:$AI$388,'S1'!$X323,FALSE)*T319/100 -> -29.95701393 | U323: =-HLOOKUP($A$1,Data!$C$1:$AI$388,'S1'!$X323,FALSE)*U319/100 -> -25.00478728 | V323: =-HLOOKUP($A$1,Data!$C$1:$AI$388,'S1'!$X323,FALSE)*V319/100 -> -18.22575426 | W323: =-HLOOKUP($A$1,Data!$C$1:$AI$388,'S1'!$X323,FALSE)*W319/100 -> -18.86319856 | X323: 216
A324: Principal Social | C324: =-HLOOKUP($A$1,Data!$C$1:$AI$388,'S1'!$X324,FALSE)*C319/100 -> -11.41963704 | D324: =-HLOOKUP($A$1,Data!$C$1:$AI$388,'S1'!$X324,FALSE)*D319/100 -> -11.41963704 | E324: =-HLOOKUP($A$1,Data!$C$1:$AI$388,'S1'!$X324,FALSE)*E319/100 -> -12.98552015 | F324: =-HLOOKUP($A$1,Data!$C$1:$AI$388,'S1'!$X324,FALSE)*F319/100 -> -12.80365719 | G324: =-HLOOKUP($A$1,Data!$C$1:$AI$388,'S1'!$X324,FALSE)*G319/100 -> -13.10699649 | H324: =-HLOOKUP($A$1,Data!$C$1:$AI$388,'S1'!$X324,FALSE)*H319/100 -> -10.31661148 | I324: =-HLOOKUP($A$1,Data!$C$1:$AI$388,'S1'!$X324,FALSE)*I319/100 -> -11.16352078 | J324: =-HLOOKUP($A$1,Data!$C$1:$AI$388,'S1'!$X324,FALSE)*J319/100 -> -11.2700263 | K324: =-HLOOKUP($A$1,Data!$C$1:$AI$388,'S1'!$X324,FALSE)*K319/100 -> -9.967040438 | L324: =-HLOOKUP($A$1,Data!$C$1:$AI$388,'S1'!$X324,FALSE)*L319/100 -> -10.14166943 | M324: =-HLOOKUP($A$1,Data!$C$1:$AI$388,'S1'!$X324,FALSE)*M319/100 -> -10.63102172 | N324: =-HLOOKUP($A$1,Data!$C$1:$AI$388,'S1'!$X324,FALSE)*N319/100 -> -10.36929946 | O324: =-HLOOKUP($A$1,Data!$C$1:$AI$388,'S1'!$X324,FALSE)*O319/100 -> -11.4253746 | P324: =-HLOOKUP($A$1,Data!$C$1:$AI$388,'S1'!$X324,FALSE)*P319/100 -> -10.09303266 | Q324: =-HLOOKUP($A$1,Data!$C$1:$AI$388,'S1'!$X324,FALSE)*Q319/100 -> -8.746939319 | R324: =-HLOOKUP($A$1,Data!$C$1:$AI$388,'S1'!$X324,FALSE)*R319/100 -> -8.573853917 | S324: =-HLOOKUP($A$1,Data!$C$1:$AI$388,'S1'!$X324,FALSE)*S319/100 -> -9.291360874 | T324: =-HLOOKUP($A$1,Data!$C$1:$AI$388,'S1'!$X324,FALSE)*T319/100 -> -9.163219337 | U324: =-HLOOKUP($A$1,Data!$C$1:$AI$388,'S1'!$X324,FALSE)*U319/100 -> -7.648437554 | V324: =-HLOOKUP($A$1,Data!$C$1:$AI$388,'S1'!$X324,FALSE)*V319/100 -> -5.574874194 | W324: =-HLOOKUP($A$1,Data!$C$1:$AI$388,'S1'!$X324,FALSE)*W319/100 -> -5.769854972 | X324: 217
A325: Principal PRS | C325: =-HLOOKUP($A$1,Data!$C$1:$AI$388,'S1'!$X325,FALSE)*C319/100 -> -5.57399981 | D325: =-HLOOKUP($A$1,Data!$C$1:$AI$388,'S1'!$X325,FALSE)*D319/100 -> -5.57399981 | E325: =-HLOOKUP($A$1,Data!$C$1:$AI$388,'S1'!$X325,FALSE)*E319/100 -> -6.33831764 | F325: =-HLOOKUP($A$1,Data!$C$1:$AI$388,'S1'!$X325,FALSE)*F319/100 -> -6.249549133 | G325: =-HLOOKUP($A$1,Data!$C$1:$AI$388,'S1'!$X325,FALSE)*G319/100 -> -6.397611036 | H325: =-HLOOKUP($A$1,Data!$C$1:$AI$388,'S1'!$X325,FALSE)*H319/100 -> -5.035605793 | I325: =-HLOOKUP($A$1,Data!$C$1:$AI$388,'S1'!$X325,FALSE)*I319/100 -> -5.448987781 | J325: =-HLOOKUP($A$1,Data!$C$1:$AI$388,'S1'!$X325,FALSE)*J319/100 -> -5.500973827 | K325: =-HLOOKUP($A$1,Data!$C$1:$AI$388,'S1'!$X325,FALSE)*K319/100 -> -4.864977873 | L325: =-HLOOKUP($A$1,Data!$C$1:$AI$388,'S1'!$X325,FALSE)*L319/100 -> -4.950215432 | M325: =-HLOOKUP($A$1,Data!$C$1:$AI$388,'S1'!$X325,FALSE)*M319/100 -> -5.189071495 | N325: =-HLOOKUP($A$1,Data!$C$1:$AI$388,'S1'!$X325,FALSE)*N319/100 -> -5.061323141 | O325: =-HLOOKUP($A$1,Data!$C$1:$AI$388,'S1'!$X325,FALSE)*O319/100 -> -5.576800351 | P325: =-HLOOKUP($A$1,Data!$C$1:$AI$388,'S1'!$X325,FALSE)*P319/100 -> -4.926475504 | Q325: =-HLOOKUP($A$1,Data!$C$1:$AI$388,'S1'!$X325,FALSE)*Q319/100 -> -4.269438507 | R325: =-HLOOKUP($A$1,Data!$C$1:$AI$388,'S1'!$X325,FALSE)*R319/100 -> -4.184954386 | S325: =-HLOOKUP($A$1,Data!$C$1:$AI$388,'S1'!$X325,FALSE)*S319/100 -> -4.535174242 | T325: =-HLOOKUP($A$1,Data!$C$1:$AI$388,'S1'!$X325,FALSE)*T319/100 -> -4.472627516 | U325: =-HLOOKUP($A$1,Data!$C$1:$AI$388,'S1'!$X325,FALSE)*U319/100 -> -3.733252583 | V325: =-HLOOKUP($A$1,Data!$C$1:$AI$388,'S1'!$X325,FALSE)*V319/100 -> -2.721132694 | W325: =-HLOOKUP($A$1,Data!$C$1:$AI$388,'S1'!$X325,FALSE)*W319/100 -> -2.816304092 | X325: 218
A326: Scenario Private | C326: =HLOOKUP($A$1,Data!$C$1:$AI$388,'S1'!$X326,FALSE)*C320/100 -> 36.83058024 | D326: =HLOOKUP($A$1,Data!$C$1:$AI$388,'S1'!$X326,FALSE)*D320/100 -> 36.83058024 | E326: =HLOOKUP($A$1,Data!$C$1:$AI$388,'S1'!$X326,FALSE)*E320/100 -> 43.95251732 | F326: =HLOOKUP($A$1,Data!$C$1:$AI$388,'S1'!$X326,FALSE)*F320/100 -> 43.43552424 | G326: =HLOOKUP($A$1,Data!$C$1:$AI$388,'S1'!$X326,FALSE)*G320/100 -> 45.50389869 | H326: =HLOOKUP($A$1,Data!$C$1:$AI$388,'S1'!$X326,FALSE)*H320/100 -> 47.2476999 | I326: =HLOOKUP($A$1,Data!$C$1:$AI$388,'S1'!$X326,FALSE)*I320/100 -> 50.20334088 | J326: =HLOOKUP($A$1,Data!$C$1:$AI$388,'S1'!$X326,FALSE)*J320/100 -> 52.71396032 | K326: =HLOOKUP($A$1,Data!$C$1:$AI$388,'S1'!$X326,FALSE)*K320/100 -> 48.61173949 | L326: =HLOOKUP($A$1,Data!$C$1:$AI$388,'S1'!$X326,FALSE)*L320/100 -> 49.45251138 | M326: =HLOOKUP($A$1,Data!$C$1:$AI$388,'S1'!$X326,FALSE)*M320/100 -> 51.25967533 | N326: =HLOOKUP($A$1,Data!$C$1:$AI$388,'S1'!$X326,FALSE)*N320/100 -> 50.54377223 | O326: =HLOOKUP($A$1,Data!$C$1:$AI$388,'S1'!$X326,FALSE)*O320/100 -> 54.22741104 | P326: =HLOOKUP($A$1,Data!$C$1:$AI$388,'S1'!$X326,FALSE)*P320/100 -> 42.89629947 | Q326: =HLOOKUP($A$1,Data!$C$1:$AI$388,'S1'!$X326,FALSE)*Q320/100 -> 38.54468212 | R326: =HLOOKUP($A$1,Data!$C$1:$AI$388,'S1'!$X326,FALSE)*R320/100 -> 38.04251846 | S326: =HLOOKUP($A$1,Data!$C$1:$AI$388,'S1'!$X326,FALSE)*S320/100 -> 40.60152167 | T326: =HLOOKUP($A$1,Data!$C$1:$AI$388,'S1'!$X326,FALSE)*T320/100 -> 40.39794777 | U326: =HLOOKUP($A$1,Data!$C$1:$AI$388,'S1'!$X326,FALSE)*U320/100 -> 35.4534139 | V326: =HLOOKUP($A$1,Data!$C$1:$AI$388,'S1'!$X326,FALSE)*V320/100 -> 28.49227567 | W326: =HLOOKUP($A$1,Data!$C$1:$AI$388,'S1'!$X326,FALSE)*W320/100 -> 29.21261624 | X326: 216
A327: Scenario Social | C327: =HLOOKUP($A$1,Data!$C$1:$AI$388,'S1'!$X327,FALSE)*C320/100 -> 11.26569844 | D327: =HLOOKUP($A$1,Data!$C$1:$AI$388,'S1'!$X327,FALSE)*D320/100 -> 11.26569844 | E327: =HLOOKUP($A$1,Data!$C$1:$AI$388,'S1'!$X327,FALSE)*E320/100 -> 13.44414892 | F327: =HLOOKUP($A$1,Data!$C$1:$AI$388,'S1'!$X327,FALSE)*F320/100 -> 13.28601163 | G327: =HLOOKUP($A$1,Data!$C$1:$AI$388,'S1'!$X327,FALSE)*G320/100 -> 13.9186838 | H327: =HLOOKUP($A$1,Data!$C$1:$AI$388,'S1'!$X327,FALSE)*H320/100 -> 14.45207584 | I327: =HLOOKUP($A$1,Data!$C$1:$AI$388,'S1'!$X327,FALSE)*I320/100 -> 15.35614414 | J327: =HLOOKUP($A$1,Data!$C$1:$AI$388,'S1'!$X327,FALSE)*J320/100 -> 16.12408973 | K327: =HLOOKUP($A$1,Data!$C$1:$AI$388,'S1'!$X327,FALSE)*K320/100 -> 14.86930681 | L327: =HLOOKUP($A$1,Data!$C$1:$AI$388,'S1'!$X327,FALSE)*L320/100 -> 15.12648122 | M327: =HLOOKUP($A$1,Data!$C$1:$AI$388,'S1'!$X327,FALSE)*M320/100 -> 15.67925459 | N327: =HLOOKUP($A$1,Data!$C$1:$AI$388,'S1'!$X327,FALSE)*N320/100 -> 15.46027492 | O327: =HLOOKUP($A$1,Data!$C$1:$AI$388,'S1'!$X327,FALSE)*O320/100 -> 16.58702241 | P327: =HLOOKUP($A$1,Data!$C$1:$AI$388,'S1'!$X327,FALSE)*P320/100 -> 13.12107414 | Q327: =HLOOKUP($A$1,Data!$C$1:$AI$388,'S1'!$X327,FALSE)*Q320/100 -> 11.79000608 | R327: =HLOOKUP($A$1,Data!$C$1:$AI$388,'S1'!$X327,FALSE)*R320/100 -> 11.6364048 | S327: =HLOOKUP($A$1,Data!$C$1:$AI$388,'S1'!$X327,FALSE)*S320/100 -> 12.41914996 | T327: =HLOOKUP($A$1,Data!$C$1:$AI$388,'S1'!$X327,FALSE)*T320/100 -> 12.356881 | U327: =HLOOKUP($A$1,Data!$C$1:$AI$388,'S1'!$X327,FALSE)*U320/100 -> 10.84445227 | V327: =HLOOKUP($A$1,Data!$C$1:$AI$388,'S1'!$X327,FALSE)*V320/100 -> 8.715186768 | W327: =HLOOKUP($A$1,Data!$C$1:$AI$388,'S1'!$X327,FALSE)*W320/100 -> 8.935523768 | X327: 217
A328: Scenario PRS | C328: =HLOOKUP($A$1,Data!$C$1:$AI$388,'S1'!$X328,FALSE)*C320/100 -> 5.498861368 | D328: =HLOOKUP($A$1,Data!$C$1:$AI$388,'S1'!$X328,FALSE)*D320/100 -> 5.498861368 | E328: =HLOOKUP($A$1,Data!$C$1:$AI$388,'S1'!$X328,FALSE)*E320/100 -> 6.562177353 | F328: =HLOOKUP($A$1,Data!$C$1:$AI$388,'S1'!$X328,FALSE)*F320/100 -> 6.484989504 | G328: =HLOOKUP($A$1,Data!$C$1:$AI$388,'S1'!$X328,FALSE)*G320/100 -> 6.79380094 | H328: =HLOOKUP($A$1,Data!$C$1:$AI$388,'S1'!$X328,FALSE)*H320/100 -> 7.054153099 | I328: =HLOOKUP($A$1,Data!$C$1:$AI$388,'S1'!$X328,FALSE)*I320/100 -> 7.49543477 | J328: =HLOOKUP($A$1,Data!$C$1:$AI$388,'S1'!$X328,FALSE)*J320/100 -> 7.870274053 | K328: =HLOOKUP($A$1,Data!$C$1:$AI$388,'S1'!$X328,FALSE)*K320/100 -> 7.257806274 | L328: =HLOOKUP($A$1,Data!$C$1:$AI$388,'S1'!$X328,FALSE)*L320/100 -> 7.38333479 | M328: =HLOOKUP($A$1,Data!$C$1:$AI$388,'S1'!$X328,FALSE)*M320/100 -> 7.653147103 | N328: =HLOOKUP($A$1,Data!$C$1:$AI$388,'S1'!$X328,FALSE)*N320/100 -> 7.546261686 | O328: =HLOOKUP($A$1,Data!$C$1:$AI$388,'S1'!$X328,FALSE)*O320/100 -> 8.096234535 | P328: =HLOOKUP($A$1,Data!$C$1:$AI$388,'S1'!$X328,FALSE)*P320/100 -> 6.40448243 | Q328: =HLOOKUP($A$1,Data!$C$1:$AI$388,'S1'!$X328,FALSE)*Q320/100 -> 5.754779374 | R328: =HLOOKUP($A$1,Data!$C$1:$AI$388,'S1'!$X328,FALSE)*R320/100 -> 5.679805579 | S328: =HLOOKUP($A$1,Data!$C$1:$AI$388,'S1'!$X328,FALSE)*S320/100 -> 6.061868632 | T328: =HLOOKUP($A$1,Data!$C$1:$AI$388,'S1'!$X328,FALSE)*T320/100 -> 6.03147474 | U328: =HLOOKUP($A$1,Data!$C$1:$AI$388,'S1'!$X328,FALSE)*U320/100 -> 5.29324835 | V328: =HLOOKUP($A$1,Data!$C$1:$AI$388,'S1'!$X328,FALSE)*V320/100 -> 4.253939878 | W328: =HLOOKUP($A$1,Data!$C$1:$AI$388,'S1'!$X328,FALSE)*W320/100 -> 4.361487815 | X328: 218
A330: Pri ces | B330: =B300 -> 2011 | C330: =B330+1 -> 2012 | D330: 2013 | E330: 2014 | F330: 2015 | G330: 2016 | H330: 2017 | I330: 2018 | J330: 2019 | K330: 2020 | L330: 2021 | M330: 2022 | N330: 2023 | O330: 2024 | P330: 2025 | Q330: 2026 | R330: 2027 | S330: 2028 | T330: 2029 | U330: 2030 | V330: 2031 | W330: 2032
A331: Principal Scenario | B331: =PriceScenarios!C3 -> 0.004 | C331: =PriceScenarios!D3 -> 0.017 | D331: =PriceScenarios!E3 -> 0.016 | E331: =PriceScenarios!F3 -> 0.036 | F331: =PriceScenarios!G3 -> 0.039 | G331: =PriceScenarios!H3 -> 0.04 | H331: =PriceScenarios!I3 -> 0.04 | I331: =PriceScenarios!J3 -> 0.045 | J331: =PriceScenarios!K3 -> 0.045 | K331: =PriceScenarios!L3 -> 0.045 | L331: =PriceScenarios!M3 -> 0.045 | M331: =PriceScenarios!N3 -> 0.045 | N331: =PriceScenarios!O3 -> 0.045 | O331: =PriceScenarios!P3 -> 0.045 | P331: =PriceScenarios!Q3 -> 0.045 | Q331: =PriceScenarios!R3 -> 0.045 | R331: =PriceScenarios!S3 -> 0.045 | S331: =PriceScenarios!T3 -> 0.045 | T331: =PriceScenarios!U3 -> 0.045 | U331: =PriceScenarios!V3 -> 0.045 | V331: =PriceScenarios!W3 -> 0.045 | W331: =PriceScenarios!X3 -> 0.045
A332: Principal Mean | B332: =HLOOKUP($A$1,Data!$C$1:$AI$207,'S1'!$X332,FALSE) -> 205450.5759 | C332: =B332*(1+B331) -> 206272.3782 | D332: =C332*(1+C331) -> 209779.0086 | E332: 213135.4728 | F332: 220808.3498 | G332: 229419.8754 | H332: 238596.6704 | I332: 248140.5373 | J332: 259306.8614 | K332: 270975.6702 | L332: 283169.5754 | M332: 295912.2063 | N332: 309228.2555 | O332: 323143.527 | P332: 337684.9857 | Q332: 352880.8101 | R332: 368760.4466 | S332: 385354.6667 | T332: 402695.6267 | U332: 420816.9299 | V332: 439753.6917 | W332: 459542.6078 | X332: 206
A333: Principal Median | B333: =HLOOKUP($A$1,Data!$C$1:$AI$207,'S1'!$X333,FALSE) -> 180911.5 | C333: =B333*(1+B331) -> 181635.146 | D333: =C333*(1+C331) -> 184722.9435 | E333: 187678.5106 | F333: 194434.937 | G333: 202017.8995 | H333: 210098.6155 | I333: 218502.5601 | J333: 228335.1753 | K333: 238610.2582 | L333: 249347.7198 | M333: 260568.3672 | N333: 272293.9437 | O333: 284547.1712 | P333: 297351.7939 | Q333: 310732.6246 | R333: 324715.5927 | S333: 339327.7944 | T333: 354597.5452 | U333: 370554.4347 | V333: 387229.3842 | W333: 404654.7065 | X333: 207
A334: U | B334: =IF(B333<>0,LN(B333),0) -> 12.10576324 | C334: 12.10975526 | D334: 12.12661238 | E334: 12.14248573 | F334: 12.17785287 | G334: 12.21611158 | H334: 12.2553323 | I334: 12.29455301 | J334: 12.3385699 | K334: 12.38258678 | L334: 12.42660367 | M334: 12.47062055 | N334: 12.51463744 | O334: 12.55865432 | P334: 12.60267121 | Q334: 12.64668809 | R334: 12.69070498 | S334: 12.73472186 | T334: 12.77873875 | U334: 12.82275564 | V334: 12.86677252 | W334: 12.91078941
A335: Sigma2 | B335: =IF(B332<>0,2*LN(B332)-2*B334,0) -> 0.254395074 | C335: 0.254395074 | D335: 0.254395074 | E335: 0.254395074 | F335: 0.254395074 | G335: 0.254395074 | H335: 0.254395074 | I335: 0.254395074 | J335: 0.254395074 | K335: 0.254395074 | L335: 0.254395074 | M335: 0.254395074 | N335: 0.254395074 | O335: 0.254395074 | P335: 0.254395074 | Q335: 0.254395074 | R335: 0.254395074 | S335: 0.254395074 | T335: 0.254395074 | U335: 0.254395074 | V335: 0.254395074 | W335: 0.254395074
A338: =CONCATENATE("Principal ",$C$61*100,"%ile") -> Principal 25%ile | B338: =EXP(SQRT(B335)*NORMSINV(CoreAssumptions!$F$2)+B334) -> 128742.1504 | C338: =EXP(SQRT(C335)*NORMSINV(CoreAssumptions!$F$2)+C334) -> 129257.119 | D338: =EXP(SQRT(D335)*NORMSINV(CoreAssumptions!$F$2)+D334) -> 131454.49 | E338: =EXP(SQRT(E335)*NORMSINV(CoreAssumptions!$F$2)+E334) -> 133557.7618 | F338: =EXP(SQRT(F335)*NORMSINV(CoreAssumptions!$F$2)+F334) -> 138365.8412 | G338: =EXP(SQRT(G335)*NORMSINV(CoreAssumptions!$F$2)+G334) -> 143762.1091 | H338: =EXP(SQRT(H335)*NORMSINV(CoreAssumptions!$F$2)+H334) -> 149512.5934 | I338: =EXP(SQRT(I335)*NORMSINV(CoreAssumptions!$F$2)+I334) -> 155493.0972 | J338: =EXP(SQRT(J335)*NORMSINV(CoreAssumptions!$F$2)+J334) -> 162490.2865 | K338: =EXP(SQRT(K335)*NORMSINV(CoreAssumptions!$F$2)+K334) -> 169802.3494 | L338: =EXP(SQRT(L335)*NORMSINV(CoreAssumptions!$F$2)+L334) -> 177443.4551 | M338: =EXP(SQRT(M335)*NORMSINV(CoreAssumptions!$F$2)+M334) -> 185428.4106 | N338: =EXP(SQRT(N335)*NORMSINV(CoreAssumptions!$F$2)+N334) -> 193772.6891 | O338: =EXP(SQRT(O335)*NORMSINV(CoreAssumptions!$F$2)+O334) -> 202492.4601 | P338: =EXP(SQRT(P335)*NORMSINV(CoreAssumptions!$F$2)+P334) -> 211604.6208 | Q338: =EXP(SQRT(Q335)*NORMSINV(CoreAssumptions!$F$2)+Q334) -> 221126.8288 | R338: =EXP(SQRT(R335)*NORMSINV(CoreAssumptions!$F$2)+R334) -> 231077.536 | S338: =EXP(SQRT(S335)*NORMSINV(CoreAssumptions!$F$2)+S334) -> 241476.0252 | T338: =EXP(SQRT(T335)*NORMSINV(CoreAssumptions!$F$2)+T334) -> 252342.4463 | U338: =EXP(SQRT(U335)*NORMSINV(CoreAssumptions!$F$2)+U334) -> 263697.8564 | V338: =EXP(SQRT(V335)*NORMSINV(CoreAssumptions!$F$2)+V334) -> 275564.2599 | W338: =EXP(SQRT(W335)*NORMSINV(CoreAssumptions!$F$2)+W334) -> 287964.6516
A339: Income from Afford | B339: =IF(B338/CoreAssumptions!$F$3<=B419,B419,B338/CoreAssumptions!$F$3) -> 32185.53759 | C339: =IF(C338/CoreAssumptions!$F$3<=C419,C419,C338/CoreAssumptions!$F$3) -> 32314.27974 | D339: =IF(D338/CoreAssumptions!$F$3<=D419,D419,D338/CoreAssumptions!$F$3) -> 32863.6225 | E339: =IF(E338/CoreAssumptions!$F$3<=E419,E419,E338/CoreAssumptions!$F$3) -> 33389.44045 | F339: =IF(F338/CoreAssumptions!$F$3<=F419,F419,F338/CoreAssumptions!$F$3) -> 34591.46031 | G339: =IF(G338/CoreAssumptions!$F$3<=G419,G419,G338/CoreAssumptions!$F$3) -> 35940.52726 | H339: =IF(H338/CoreAssumptions!$F$3<=H419,H419,H338/CoreAssumptions!$F$3) -> 37378.14835 | I339: =IF(I338/CoreAssumptions!$F$3<=I419,I419,I338/CoreAssumptions!$F$3) -> 38873.27429 | J339: =IF(J338/CoreAssumptions!$F$3<=J419,J419,J338/CoreAssumptions!$F$3) -> 40622.57163 | K339: =IF(K338/CoreAssumptions!$F$3<=K419,K419,K338/CoreAssumptions!$F$3) -> 42450.58735 | L339: =IF(L338/CoreAssumptions!$F$3<=L419,L419,L338/CoreAssumptions!$F$3) -> 44360.86379 | M339: =IF(M338/CoreAssumptions!$F$3<=M419,M419,M338/CoreAssumptions!$F$3) -> 46357.10266 | N339: =IF(N338/CoreAssumptions!$F$3<=N419,N419,N338/CoreAssumptions!$F$3) -> 48443.17228 | O339: =IF(O338/CoreAssumptions!$F$3<=O419,O419,O338/CoreAssumptions!$F$3) -> 50623.11503 | P339: =IF(P338/CoreAssumptions!$F$3<=P419,P419,P338/CoreAssumptions!$F$3) -> 52901.1552 | Q339: =IF(Q338/CoreAssumptions!$F$3<=Q419,Q419,Q338/CoreAssumptions!$F$3) -> 55281.70719 | R339: =IF(R338/CoreAssumptions!$F$3<=R419,R419,R338/CoreAssumptions!$F$3) -> 57769.38401 | S339: =IF(S338/CoreAssumptions!$F$3<=S419,S419,S338/CoreAssumptions!$F$3) -> 60369.00629 | T339: =IF(T338/CoreAssumptions!$F$3<=T419,T419,T338/CoreAssumptions!$F$3) -> 63085.61158 | U339: =IF(U338/CoreAssumptions!$F$3<=U419,U419,U338/CoreAssumptions!$F$3) -> 65924.4641 | V339: =IF(V338/CoreAssumptions!$F$3<=V419,V419,V338/CoreAssumptions!$F$3) -> 68891.06498 | W339: =IF(W338/CoreAssumptions!$F$3<=W419,W419,W338/CoreAssumptions!$F$3) -> 71991.1629
B340: =IF(B339>B419,VLOOKUP(B339,B$419:$AA$499,B$418+3),10) -> 58 | C340: =IF(C339>C419,VLOOKUP(C339,C$419:$AA$499,C$418+3),10) -> 58 | D340: =IF(D339>D419,VLOOKUP(D339,D$419:$AA$499,D$418+3),10) -> 57 | E340: =IF(E339>E419,VLOOKUP(E339,E$419:$AA$499,E$418+3),10) -> 56 | F340: =IF(F339>F419,VLOOKUP(F339,F$419:$AA$499,F$418+3),10) -> 56 | G340: =IF(G339>G419,VLOOKUP(G339,G$419:$AA$499,G$418+3),10) -> 55 | H340: =IF(H339>H419,VLOOKUP(H339,H$419:$AA$499,H$418+3),10) -> 55 | I340: =IF(I339>I419,VLOOKUP(I339,I$419:$AA$499,I$418+3),10) -> 55 | J340: =IF(J339>J419,VLOOKUP(J339,J$419:$AA$499,J$418+3),10) -> 56 | K340: =IF(K339>K419,VLOOKUP(K339,K$419:$AA$499,K$418+3),10) -> 56 | L340: =IF(L339>L419,VLOOKUP(L339,L$419:$AA$499,L$418+3),10) -> 56 | M340: =IF(M339>M419,VLOOKUP(M339,M$419:$AA$499,M$418+3),10) -> 56 | N340: =IF(N339>N419,VLOOKUP(N339,N$419:$AA$499,N$418+3),10) -> 57 | O340: =IF(O339>O419,VLOOKUP(O339,O$419:$AA$499,O$418+3),10) -> 57 | P340: =IF(P339>P419,VLOOKUP(P339,P$419:$AA$499,P$418+3),10) -> 58 | Q340: =IF(Q339>Q419,VLOOKUP(Q339,Q$419:$AA$499,Q$418+3),10) -> 58 | R340: =IF(R339>R419,VLOOKUP(R339,R$419:$AA$499,R$418+3),10) -> 59 | S340: =IF(S339>S419,VLOOKUP(S339,S$419:$AA$499,S$418+3),10) -> 60 | T340: =IF(T339>T419,VLOOKUP(T339,T$419:$AA$499,T$418+3),10) -> 60 | U340: =IF(U339>U419,VLOOKUP(U339,U$419:$AA$499,U$418+3),10) -> 61 | V340: =IF(V339>V419,VLOOKUP(V339,V$419:$AA$499,V$418+3),10) -> 62 | W340: =IF(W339>W419,VLOOKUP(W339,W$419:$AA$499,W$418+3),10) -> 62
A341: Principal Market | C341: =C317*(100-C340)/100 -> 17.44154308 | D341: =D317*(100-D340)/100 -> 17.85681792 | E341: 21.54986902 | F341: 21.16918537 | G341: 22.29969753 | H341: 22.08599032 | I341: 23.89906922 | J341: 23.59092089 | K341: 20.86345287 | L341: 21.22899406 | M341: 22.25332805 | N341: 21.21217301 | O341: 23.37255508 | P341: 20.16685879 | Q341: 17.47723365 | R341: 16.72350193 | S341: 17.6809912 | T341: 17.43714431 | U341: 14.19072619 | V341: 10.07826924 | W341: 10.4307559
A342: Princpal Subsidy | C342: =C316+(C317*(C340)/100) -> 36.88594045 | D342: =D316+(D317*(D340)/100) -> 36.47066561 | E342: 40.22710602 | F342: 39.74259956 | G342: 40.05518587 | H342: 26.99398817 | I342: 29.20997349 | J342: 30.02480841 | K342: 26.55348547 | L342: 27.01871971 | M342: 28.32241752 | N342: 28.11846189 | O342: 30.98222417 | P342: 27.84947166 | Q342: 24.13522743 | R342: 24.06552717 | S342: 26.5214868 | T342: 26.15571647 | U342: 22.19575123 | V342: 16.44349192 | W342: 17.01860172
A347: Scenario | B347: =VLOOKUP($X347,PriceScenarios!$B$3:$AD$21,B330-2009,FALSE) -> 0.004 | C347: =VLOOKUP($X347,PriceScenarios!$B$3:$AD$21,C330-2009,FALSE) -> 0.017 | D347: =VLOOKUP($X347,PriceScenarios!$B$3:$AD$21,D330-2009,FALSE) -> 0.016 | E347: =VLOOKUP($X347,PriceScenarios!$B$3:$AD$21,E330-2009,FALSE) -> 0.036 | F347: =VLOOKUP($X347,PriceScenarios!$B$3:$AD$21,F330-2009,FALSE) -> 0.039 | G347: =VLOOKUP($X347,PriceScenarios!$B$3:$AD$21,G330-2009,FALSE) -> 0.04 | H347: =VLOOKUP($X347,PriceScenarios!$B$3:$AD$21,H330-2009,FALSE) -> 0.04 | I347: =VLOOKUP($X347,PriceScenarios!$B$3:$AD$21,I330-2009,FALSE) -> 0.045 | J347: =VLOOKUP($X347,PriceScenarios!$B$3:$AD$21,J330-2009,FALSE) -> 0.045 | K347: =VLOOKUP($X347,PriceScenarios!$B$3:$AD$21,K330-2009,FALSE) -> 0.045 | L347: =VLOOKUP($X347,PriceScenarios!$B$3:$AD$21,L330-2009,FALSE) -> 0.045 | M347: =VLOOKUP($X347,PriceScenarios!$B$3:$AD$21,M330-2009,FALSE) -> 0.045 | N347: =VLOOKUP($X347,PriceScenarios!$B$3:$AD$21,N330-2009,FALSE) -> 0.045 | O347: =VLOOKUP($X347,PriceScenarios!$B$3:$AD$21,O330-2009,FALSE) -> 0.045 | P347: =VLOOKUP($X347,PriceScenarios!$B$3:$AD$21,P330-2009,FALSE) -> 0.045 | Q347: =VLOOKUP($X347,PriceScenarios!$B$3:$AD$21,Q330-2009,FALSE) -> 0.045 | R347: =VLOOKUP($X347,PriceScenarios!$B$3:$AD$21,R330-2009,FALSE) -> 0.045 | S347: =VLOOKUP($X347,PriceScenarios!$B$3:$AD$21,S330-2009,FALSE) -> 0.045 | T347: =VLOOKUP($X347,PriceScenarios!$B$3:$AD$21,T330-2009,FALSE) -> 0.045 | U347: =VLOOKUP($X347,PriceScenarios!$B$3:$AD$21,U330-2009,FALSE) -> 0.045 | V347: =VLOOKUP($X347,PriceScenarios!$B$3:$AD$21,V330-2009,FALSE) -> 0.045 | W347: =VLOOKUP($X347,PriceScenarios!$B$3:$AD$21,W330-2009,FALSE) -> 0.045 | X347: =CHOOSE(X60,PriceScenarios!$B$3,PriceScenarios!$B$4,PriceScenarios!$B$5,PriceScenarios!$B$6,PriceScenarios!$B$7,PriceScenarios!$B$8,PriceScenarios!$B$9,PriceScenarios!$B$10,PriceScenarios!$B$11,PriceScenarios!$B$12,PriceScenarios!$B$13,PriceScenarios!$B$14,PriceScenarios!$B$15,PriceScenarios!$B$16,PriceScenarios!$B$17,PriceScenarios!$B$18,PriceScenarios!$B$19,PriceScenarios!$B$20,PriceScenarios!$B$21) -> OBR estimates (Core)
A348: Scenario Mean | B348: =HLOOKUP($A$1,Data!$C$1:$AI$207,'S1'!$X348,FALSE) -> 205450.5759 | C348: =B348*(1+B347) -> 206272.3782 | D348: =C348*(1+C347) -> 209779.0086 | E348: 213135.4728 | F348: 220808.3498 | G348: 229419.8754 | H348: 238596.6704 | I348: 248140.5373 | J348: 259306.8614 | K348: 270975.6702 | L348: 283169.5754 | M348: 295912.2063 | N348: 309228.2555 | O348: 323143.527 | P348: 337684.9857 | Q348: 352880.8101 | R348: 368760.4466 | S348: 385354.6667 | T348: 402695.6267 | U348: 420816.9299 | V348: =U348*(1+U347) -> 439753.6917 | W348: =V348*(1+V347) -> 459542.6078 | X348: 206
A349: Scenario Median | B349: =HLOOKUP($A$1,Data!$C$1:$AI$207,'S1'!$X349,FALSE) -> 180911.5 | C349: =B349*(1+B347) -> 181635.146 | D349: =C349*(1+C347) -> 184722.9435 | E349: 187678.5106 | F349: 194434.937 | G349: 202017.8995 | H349: 210098.6155 | I349: 218502.5601 | J349: 228335.1753 | K349: 238610.2582 | L349: 249347.7198 | M349: 260568.3672 | N349: 272293.9437 | O349: 284547.1712 | P349: 297351.7939 | Q349: 310732.6246 | R349: 324715.5927 | S349: 339327.7944 | T349: 354597.5452 | U349: 370554.4347 | V349: =U349*(1+U347) -> 387229.3842 | W349: =V349*(1+V347) -> 404654.7065 | X349: 207
A350: U | B350: =IF(B349<>0,LN(B349),0) -> 12.10576324 | C350: 12.10975526 | D350: 12.12661238 | E350: 12.14248573 | F350: 12.17785287 | G350: 12.21611158 | H350: 12.2553323 | I350: 12.29455301 | J350: 12.3385699 | K350: 12.38258678 | L350: 12.42660367 | M350: 12.47062055 | N350: 12.51463744 | O350: 12.55865432 | P350: 12.60267121 | Q350: 12.64668809 | R350: 12.69070498 | S350: 12.73472186 | T350: 12.77873875 | U350: 12.82275564 | V350: =IF(V349<>0,LN(V349),0) -> 12.86677252 | W350: =IF(W349<>0,LN(W349),0) -> 12.91078941
A351: Sigma2 | B351: =IF(B348<>0,2*LN(B348)-2*B350,0) -> 0.254395074 | C351: 0.254395074 | D351: 0.254395074 | E351: 0.254395074 | F351: 0.254395074 | G351: 0.254395074 | H351: 0.254395074 | I351: 0.254395074 | J351: 0.254395074 | K351: 0.254395074 | L351: 0.254395074 | M351: 0.254395074 | N351: 0.254395074 | O351: 0.254395074 | P351: 0.254395074 | Q351: 0.254395074 | R351: 0.254395074 | S351: 0.254395074 | T351: 0.254395074 | U351: 0.254395074 | V351: =IF(V348<>0,2*LN(V348)-2*V350,0) -> 0.254395074 | W351: =IF(W348<>0,2*LN(W348)-2*W350,0) -> 0.254395074
A353: =CONCATENATE("Scenario ",$C$61*100,"%ile") -> Scenario 25%ile | B353: =EXP(SQRT(B351)*NORMSINV($C$61)+B350) -> 128742.1504 | C353: 129257.119 | D353: 131454.49 | E353: 133557.7618 | F353: 138365.8412 | G353: 143762.1091 | H353: 149512.5934 | I353: 155493.0972 | J353: 162490.2865 | K353: 169802.3494 | L353: 177443.4551 | M353: 185428.4106 | N353: 193772.6891 | O353: 202492.4601 | P353: 211604.6208 | Q353: 221126.8288 | R353: 231077.536 | S353: 241476.0252 | T353: 252342.4463 | U353: 263697.8564 | V353: =EXP(SQRT(V351)*NORMSINV($C$61)+V350) -> 275564.2599 | W353: =EXP(SQRT(W351)*NORMSINV($C$61)+W350) -> 287964.6516
A354: Income from Afford | B354: =IF(B353/$C$64<=B510,B510,B353/$C$64) -> 32185.53759 | C354: =IF(C353/$C$64<=C510,C510,C353/$C$64) -> 32314.27974 | D354: 32863.6225 | E354: 33389.44045 | F354: 34591.46031 | G354: 35940.52726 | H354: 37378.14835 | I354: 38873.27429 | J354: 40622.57163 | K354: 42450.58735 | L354: 44360.86379 | M354: 46357.10266 | N354: 48443.17228 | O354: 50623.11503 | P354: 52901.1552 | Q354: 55281.70719 | R354: 57769.38401 | S354: 60369.00629 | T354: 63085.61158 | U354: 65924.4641 | V354: 68891.06498 | W354: 71991.1629
B355: =IF(B354>B510,VLOOKUP(B354,B510:$AA$590,B509+3),10) -> 58 | C355: =IF(C354>C510,VLOOKUP(C354,C510:$AA$590,C509+3),10) -> 58 | D355: =IF(D354>D510,VLOOKUP(D354,D510:$AA$590,D509+3),10) -> 57 | E355: =IF(E354>E510,VLOOKUP(E354,E510:$AA$590,E509+3),10) -> 56 | F355: =IF(F354>F510,VLOOKUP(F354,F510:$AA$590,F509+3),10) -> 56 | G355: =IF(G354>G510,VLOOKUP(G354,G510:$AA$590,G509+3),10) -> 55 | H355: =IF(H354>H510,VLOOKUP(H354,H510:$AA$590,H509+3),10) -> 55 | I355: =IF(I354>I510,VLOOKUP(I354,I510:$AA$590,I509+3),10) -> 55 | J355: =IF(J354>J510,VLOOKUP(J354,J510:$AA$590,J509+3),10) -> 56 | K355: =IF(K354>K510,VLOOKUP(K354,K510:$AA$590,K509+3),10) -> 56 | L355: =IF(L354>L510,VLOOKUP(L354,L510:$AA$590,L509+3),10) -> 56 | M355: =IF(M354>M510,VLOOKUP(M354,M510:$AA$590,M509+3),10) -> 56 | N355: =IF(N354>N510,VLOOKUP(N354,N510:$AA$590,N509+3),10) -> 57 | O355: =IF(O354>O510,VLOOKUP(O354,O510:$AA$590,O509+3),10) -> 57 | P355: =IF(P354>P510,VLOOKUP(P354,P510:$AA$590,P509+3),10) -> 58 | Q355: =IF(Q354>Q510,VLOOKUP(Q354,Q510:$AA$590,Q509+3),10) -> 58 | R355: =IF(R354>R510,VLOOKUP(R354,R510:$AA$590,R509+3),10) -> 59 | S355: =IF(S354>S510,VLOOKUP(S354,S510:$AA$590,S509+3),10) -> 60 | T355: =IF(T354>T510,VLOOKUP(T354,T510:$AA$590,T509+3),10) -> 60 | U355: =IF(U354>U510,VLOOKUP(U354,U510:$AA$590,U509+3),10) -> 61 | V355: =IF(V354>V510,VLOOKUP(V354,V510:$AA$590,V509+3),10) -> 62 | W355: =IF(W354>W510,VLOOKUP(W354,W510:$AA$590,W509+3),10) -> 62
A356: Scenario Market | C356: =IF(OR($B$312=TRUE,$B$309=FALSE),C318*(100-C355)/100,C320*(100-C355)/100) -> 18.18072805 | D356: =IF(OR($B$312=TRUE,$B$309=FALSE),D318*(100-D355)/100,D320*(100-D355)/100) -> 18.61360252 | E356: 23.60650657 | F356: 23.27548655 | G356: 25.158911 | H356: 26.30080644 | I356: 28.23625237 | J356: 29.21627799 | K356: 26.58971052 | L356: 27.12803944 | M356: 28.28512928 | N356: 27.19432511 | O356: 29.49927954 | P356: 26.21717954 | Q356: 23.55757638 | R356: 22.69707883 | S356: 23.63301611 | T356: 23.5145214 | U356: 20.12053466 | V356: 15.75533288 | W356: 16.15365857
A357: Scenario Subsidy | C357: =IF(OR($B$309=FALSE,$B$312=TRUE),C312+(C318*(C355)/100),C320*(C355)/100) -> 35.41441199 | D357: =IF(OR($B$309=FALSE,$B$312=TRUE),D312+(D318*(D355)/100),D320*(D355)/100) -> 34.98153752 | E357: 40.35233703 | F357: 39.93103883 | G357: 41.05747242 | H357: 42.4531224 | I357: 44.81866742 | J357: 47.49204611 | K357: 44.14914205 | L357: 44.83428795 | M357: 46.30694775 | N357: 46.35598373 | O357: 49.41138844 | P357: 36.2046765 | Q357: 32.5318912 | R357: 32.66165002 | S357: 35.44952416 | T357: 35.27178211 | U357: 31.47057986 | V357: 25.70606944 | W357: 26.35596925
A360: Intermediate
A362: Rents (Principal)
A363: Rises Principal | B363: =B331 -> 0.004 | C363: =C331 -> 0.017 | D363: 0.016 | E363: 0.036 | F363: 0.039 | G363: 0.04 | H363: 0.04 | I363: 0.045 | J363: 0.045 | K363: 0.045 | L363: 0.045 | M363: 0.045 | N363: 0.045 | O363: 0.045 | P363: 0.045 | Q363: 0.045 | R363: 0.045 | S363: 0.045 | T363: 0.045 | U363: 0.045 | V363: 0.045 | W363: 0.045
A365: Rent Median (Principal) | B365: =HLOOKUP($A$1,Data!$C$1:$AI$211,'S1'!$X365,FALSE) -> 117.6923077 | C365: =B365*(1+B363) -> 118.1630769 | D365: =C365*(1+C363) -> 120.1718492 | E365: 122.0945988 | F365: 126.4900044 | G365: 131.4231145 | H365: 136.6800391 | I365: 142.1472407 | J365: 148.5438665 | K365: 155.2283405 | L365: 162.2136158 | M365: 169.5132286 | N365: 177.1413238 | O365: 185.1126834 | P365: 193.4427542 | Q365: 202.1476781 | R365: 211.2443236 | S365: 220.7503182 | T365: 230.6840825 | U365: 241.0648662 | V365: 251.9127852 | W365: 263.2488605 | X365: 210
A366: Rent 30th%ile (Principal) | B366: =HLOOKUP($A$1,Data!$C$1:$AI$211,'S1'!$X366,FALSE) -> 110.7692308 | C366: =B366*(1+B363) -> 111.2123077 | D366: =C366*(1+C363) -> 113.1029169 | E366: 114.9125636 | F366: 119.0494159 | G366: 123.6923431 | H366: 128.6400368 | I366: 133.7856383 | J366: 139.805992 | K366: 146.0972617 | L366: 152.6716384 | M366: 159.5418622 | N366: 166.721246 | O366: 174.223702 | P366: 182.0637686 | Q366: 190.2566382 | R366: 198.8181869 | S366: 207.7650053 | T366: 217.1144306 | U366: 226.88458 | V366: 237.0943861 | W366: 247.7636334 | X366: 211
A367: Annual Rent Medain | B367: =B365*52 -> 6120 | C367: =C365*52 -> 6144.48 | D367: 6248.93616 | E367: 6348.919139 | F367: 6577.480228 | G367: 6834.001956 | H367: 7107.362035 | I367: 7391.656516 | J367: 7724.281059 | K367: 8071.873707 | L367: 8435.108024 | M367: 8814.687885 | N367: 9211.34884 | O367: 9625.859537 | P367: 10059.02322 | Q367: 10511.67926 | R367: 10984.70483 | S367: 11479.01655 | T367: 11995.57229 | U367: 12535.37304 | V367: 13099.46483 | W367: 13688.94075
A368: Annual Rent 30th | B368: =B366*52 -> 5760 | C368: 5783.04 | D368: 5881.35168 | E368: 5975.453307 | F368: 6190.569626 | G368: 6432.001841 | H368: 6689.281915 | I368: 6956.853192 | J368: 7269.911585 | K368: 7597.057607 | L368: 7938.925199 | M368: 8296.176833 | N368: 8669.50479 | O368: 9059.632506 | P368: 9467.315969 | Q368: 9893.345187 | R368: 10338.54572 | S368: 10803.78028 | T368: 11289.95039 | U368: 11797.99816 | V368: 12328.90808 | W368: 12883.70894
A370: Income above | B370: =B367/CoreAssumptions!$F$6 -> 24480 | C370: =C367/CoreAssumptions!$F$6 -> 24577.92 | D370: =D367/CoreAssumptions!$F$6 -> 24995.74464 | E370: =E367/CoreAssumptions!$F$6 -> 25395.67655 | F370: =F367/CoreAssumptions!$F$6 -> 26309.92091 | G370: =G367/CoreAssumptions!$F$6 -> 27336.00783 | H370: =H367/CoreAssumptions!$F$6 -> 28429.44814 | I370: =I367/CoreAssumptions!$F$6 -> 29566.62606 | J370: =J367/CoreAssumptions!$F$6 -> 30897.12424 | K370: =K367/CoreAssumptions!$F$6 -> 32287.49483 | L370: =L367/CoreAssumptions!$F$6 -> 33740.4321 | M370: =M367/CoreAssumptions!$F$6 -> 35258.75154 | N370: =N367/CoreAssumptions!$F$6 -> 36845.39536 | O370: =O367/CoreAssumptions!$F$6 -> 38503.43815 | P370: =P367/CoreAssumptions!$F$6 -> 40236.09287 | Q370: =Q367/CoreAssumptions!$F$6 -> 42046.71705 | R370: =R367/CoreAssumptions!$F$6 -> 43938.81931 | S370: =S367/CoreAssumptions!$F$6 -> 45916.06618 | T370: =T367/CoreAssumptions!$F$6 -> 47982.28916 | U370: =U367/CoreAssumptions!$F$6 -> 50141.49217 | V370: =V367/CoreAssumptions!$F$6 -> 52397.85932 | W370: =W367/CoreAssumptions!$F$6 -> 54755.76299
A371: Income below | B371: =B368/CoreAssumptions!$F$5 -> 16457.14286 | C371: =C368/CoreAssumptions!$F$5 -> 16522.97143 | D371: =D368/CoreAssumptions!$F$5 -> 16803.86194 | E371: =E368/CoreAssumptions!$F$5 -> 17072.72373 | F371: =F368/CoreAssumptions!$F$5 -> 17687.34179 | G371: =G368/CoreAssumptions!$F$5 -> 18377.14812 | H371: =H368/CoreAssumptions!$F$5 -> 19112.23404 | I371: =I368/CoreAssumptions!$F$5 -> 19876.7234 | J371: =J368/CoreAssumptions!$F$5 -> 20771.17596 | K371: =K368/CoreAssumptions!$F$5 -> 21705.87888 | L371: =L368/CoreAssumptions!$F$5 -> 22682.64343 | M371: =M368/CoreAssumptions!$F$5 -> 23703.36238 | N371: =N368/CoreAssumptions!$F$5 -> 24770.01369 | O371: =O368/CoreAssumptions!$F$5 -> 25884.6643 | P371: =P368/CoreAssumptions!$F$5 -> 27049.4742 | Q371: =Q368/CoreAssumptions!$F$5 -> 28266.70053 | R371: =R368/CoreAssumptions!$F$5 -> 29538.70206 | S371: =S368/CoreAssumptions!$F$5 -> 30867.94365 | T371: =T368/CoreAssumptions!$F$5 -> 32257.00112 | U371: =U368/CoreAssumptions!$F$5 -> 33708.56617 | V371: =V368/CoreAssumptions!$F$5 -> 35225.45164 | W371: =W368/CoreAssumptions!$F$5 -> 36810.59697
A372: Above percentile | B372: =VLOOKUP(B370,B$419:$AA$499,B$418+3) -> 45 | C372: =VLOOKUP(C370,C$419:$AA$499,C$418+3) -> 45 | D372: =VLOOKUP(D370,D$419:$AA$499,D$418+3) -> 44 | E372: =VLOOKUP(E370,E$419:$AA$499,E$418+3) -> 43 | F372: =VLOOKUP(F370,F$419:$AA$499,F$418+3) -> 43 | G372: =VLOOKUP(G370,G$419:$AA$499,G$418+3) -> 43 | H372: =VLOOKUP(H370,H$419:$AA$499,H$418+3) -> 43 | I372: =VLOOKUP(I370,I$419:$AA$499,I$418+3) -> 43 | J372: =VLOOKUP(J370,J$419:$AA$499,J$418+3) -> 43 | K372: =VLOOKUP(K370,K$419:$AA$499,K$418+3) -> 43 | L372: =VLOOKUP(L370,L$419:$AA$499,L$418+3) -> 44 | M372: =VLOOKUP(M370,M$419:$AA$499,M$418+3) -> 44 | N372: =VLOOKUP(N370,N$419:$AA$499,N$418+3) -> 44 | O372: =VLOOKUP(O370,O$419:$AA$499,O$418+3) -> 44 | P372: =VLOOKUP(P370,P$419:$AA$499,P$418+3) -> 45 | Q372: =VLOOKUP(Q370,Q$419:$AA$499,Q$418+3) -> 45 | R372: =VLOOKUP(R370,R$419:$AA$499,R$418+3) -> 46 | S372: =VLOOKUP(S370,S$419:$AA$499,S$418+3) -> 47 | T372: =VLOOKUP(T370,T$419:$AA$499,T$418+3) -> 47 | U372: =VLOOKUP(U370,U$419:$AA$499,U$418+3) -> 48 | V372: =VLOOKUP(V370,V$419:$AA$499,V$418+3) -> 49 | W372: =VLOOKUP(W370,W$419:$AA$499,W$418+3) -> 49
A373: Below percentile | B373: =VLOOKUP(B371,B$419:$AA$499,B$418+3) -> 29 | C373: =VLOOKUP(C371,C$419:$AA$499,C$418+3) -> 29 | D373: =VLOOKUP(D371,D$419:$AA$499,D$418+3) -> 28 | E373: =VLOOKUP(E371,E$419:$AA$499,E$418+3) -> 27 | F373: =VLOOKUP(F371,F$419:$AA$499,F$418+3) -> 27 | G373: =VLOOKUP(G371,G$419:$AA$499,G$418+3) -> 27 | H373: =VLOOKUP(H371,H$419:$AA$499,H$418+3) -> 27 | I373: =VLOOKUP(I371,I$419:$AA$499,I$418+3) -> 27 | J373: =VLOOKUP(J371,J$419:$AA$499,J$418+3) -> 27 | K373: =VLOOKUP(K371,K$419:$AA$499,K$418+3) -> 27 | L373: =VLOOKUP(L371,L$419:$AA$499,L$418+3) -> 27 | M373: =VLOOKUP(M371,M$419:$AA$499,M$418+3) -> 28 | N373: =VLOOKUP(N371,N$419:$AA$499,N$418+3) -> 28 | O373: =VLOOKUP(O371,O$419:$AA$499,O$418+3) -> 28 | P373: =VLOOKUP(P371,P$419:$AA$499,P$418+3) -> 29 | Q373: =VLOOKUP(Q371,Q$419:$AA$499,Q$418+3) -> 29 | R373: =VLOOKUP(R371,R$419:$AA$499,R$418+3) -> 30 | S373: =VLOOKUP(S371,S$419:$AA$499,S$418+3) -> 30 | T373: =VLOOKUP(T371,T$419:$AA$499,T$418+3) -> 31 | U373: =VLOOKUP(U371,U$419:$AA$499,U$418+3) -> 31 | V373: =VLOOKUP(V371,V$419:$AA$499,V$418+3) -> 32 | W373: =VLOOKUP(W371,W$419:$AA$499,W$418+3) -> 32
A377: Social Rent | C377: =C319-C378-C379-C380 -> 24.84297022 | D377: =D319-D378-D379-D380 -> 24.42769539 | E377: 26.02378326 | F377: 25.79018193 | G377: 26.17981852 | H377: 13.25159419 | I377: 14.33944153 | J377: 14.47624691 | K377: 12.80257335 | L377: 13.02688272 | M377: 14.16120876 | N377: 13.81257777 | O377: 15.21933819 | P377: 13.92473583 | Q377: 12.06761371 | R377: 12.23670873 | S377: 13.2607434 | T377: 13.51378684 | U377: 11.279808 | V377: 8.486963569 | W377: 8.783794438
A378: BM Rent | C378: =(C372-C373)/100*C317 -> 6.644397364 | D378: =(D372-D373)/100*D317 -> 6.644397364 | E378: 7.836316007 | F378: 7.697885588 | G378: 7.928781343 | H378: 7.852796558 | I378: 8.497446832 | J378: 8.578516689 | K378: 7.586710133 | L378: 8.20211134 | M378: 8.092119291 | N378: 7.892901584 | O378: 8.69676468 | P378: 7.682612872 | Q378: 6.657993772 | R378: 6.526244656 | S378: 7.514421259 | T378: 6.974857725 | U378: 6.185701161 | V378: 4.508699396 | W378: 4.666390795
A379: PRS | C379: =(100-C372)/100*C317-C380 -> 14.1193444 | D379: =(100-D372)/100*D317-D380 -> 14.32698182 | E379: 17.14194127 | F379: 16.83912472 | G379: 17.09643477 | H379: 16.93259258 | I379: 18.32261973 | J379: 18.76550526 | K379: 16.59592842 | L379: 16.40422268 | M379: 17.19575349 | N379: 17.01906904 | O379: 18.75239884 | P379: 16.32555235 | Q379: 14.14823677 | R379: 13.66432475 | S379: 14.58681774 | T379: 14.38564406 | U379: 11.82560516 | V379: 8.486963569 | W379: 8.783794438
A380: Buyers | C380: =C341*CoreAssumptions!$F$8 -> 8.720771541 | D380: =D341*CoreAssumptions!$F$8 -> 8.928408958 | E380: =E341*CoreAssumptions!$F$8 -> 10.77493451 | F380: =F341*CoreAssumptions!$F$8 -> 10.58459268 | G380: =G341*CoreAssumptions!$F$8 -> 11.14984876 | H380: =H341*CoreAssumptions!$F$8 -> 11.04299516 | I380: =I341*CoreAssumptions!$F$8 -> 11.94953461 | J380: =J341*CoreAssumptions!$F$8 -> 11.79546045 | K380: =K341*CoreAssumptions!$F$8 -> 10.43172643 | L380: =L341*CoreAssumptions!$F$8 -> 10.61449703 | M380: =M341*CoreAssumptions!$F$8 -> 11.12666402 | N380: =N341*CoreAssumptions!$F$8 -> 10.6060865 | O380: =O341*CoreAssumptions!$F$8 -> 11.68627754 | P380: =P341*CoreAssumptions!$F$8 -> 10.08342939 | Q380: =Q341*CoreAssumptions!$F$8 -> 8.738616826 | R380: =R341*CoreAssumptions!$F$8 -> 8.361750966 | S380: =S341*CoreAssumptions!$F$8 -> 8.840495598 | T380: =T341*CoreAssumptions!$F$8 -> 8.718572157 | U380: =U341*CoreAssumptions!$F$8 -> 7.095363097 | V380: =V341*CoreAssumptions!$F$8 -> 5.039134619 | W380: =W341*CoreAssumptions!$F$8 -> 5.215377948
A382: Rents Scenario | B382: =B330 -> 2011 | C382: =B382+1 -> 2012 | D382: 2013 | E382: 2014 | F382: 2015 | G382: 2016 | H382: 2017 | I382: 2018 | J382: 2019 | K382: 2020 | L382: 2021 | M382: 2022 | N382: 2023 | O382: 2024 | P382: 2025 | Q382: 2026 | R382: 2027 | S382: 2028 | T382: 2029 | U382: 2030 | V382: 2031 | W382: 2032
A383: Rises Scenario | B383: =VLOOKUP($X383,PriceScenarios!$B$3:$AD$21,B382-2009,FALSE) -> 0.004 | C383: =VLOOKUP($X383,PriceScenarios!$B$3:$AD$21,C382-2009,FALSE) -> 0.017 | D383: =VLOOKUP($X383,PriceScenarios!$B$3:$AD$21,D382-2009,FALSE) -> 0.016 | E383: =VLOOKUP($X383,PriceScenarios!$B$3:$AD$21,E382-2009,FALSE) -> 0.036 | F383: =VLOOKUP($X383,PriceScenarios!$B$3:$AD$21,F382-2009,FALSE) -> 0.039 | G383: =VLOOKUP($X383,PriceScenarios!$B$3:$AD$21,G382-2009,FALSE) -> 0.04 | H383: =VLOOKUP($X383,PriceScenarios!$B$3:$AD$21,H382-2009,FALSE) -> 0.04 | I383: =VLOOKUP($X383,PriceScenarios!$B$3:$AD$21,I382-2009,FALSE) -> 0.045 | J383: =VLOOKUP($X383,PriceScenarios!$B$3:$AD$21,J382-2009,FALSE) -> 0.045 | K383: =VLOOKUP($X383,PriceScenarios!$B$3:$AD$21,K382-2009,FALSE) -> 0.045 | L383: =VLOOKUP($X383,PriceScenarios!$B$3:$AD$21,L382-2009,FALSE) -> 0.045 | M383: =VLOOKUP($X383,PriceScenarios!$B$3:$AD$21,M382-2009,FALSE) -> 0.045 | N383: =VLOOKUP($X383,PriceScenarios!$B$3:$AD$21,N382-2009,FALSE) -> 0.045 | O383: =VLOOKUP($X383,PriceScenarios!$B$3:$AD$21,O382-2009,FALSE) -> 0.045 | P383: =VLOOKUP($X383,PriceScenarios!$B$3:$AD$21,P382-2009,FALSE) -> 0.045 | Q383: =VLOOKUP($X383,PriceScenarios!$B$3:$AD$21,Q382-2009,FALSE) -> 0.045 | R383: =VLOOKUP($X383,PriceScenarios!$B$3:$AD$21,R382-2009,FALSE) -> 0.045 | S383: =VLOOKUP($X383,PriceScenarios!$B$3:$AD$21,S382-2009,FALSE) -> 0.045 | T383: =VLOOKUP($X383,PriceScenarios!$B$3:$AD$21,T382-2009,FALSE) -> 0.045 | U383: =VLOOKUP($X383,PriceScenarios!$B$3:$AD$21,U382-2009,FALSE) -> 0.045 | V383: =VLOOKUP($X383,PriceScenarios!$B$3:$AD$21,V382-2009,FALSE) -> 0.045 | W383: =VLOOKUP($X383,PriceScenarios!$B$3:$AD$21,W382-2009,FALSE) -> 0.045 | X383: =CHOOSE(X123,PriceScenarios!$B$3,PriceScenarios!$B$4,PriceScenarios!$B$5,PriceScenarios!$B$6,PriceScenarios!$B$7,PriceScenarios!$B$8,PriceScenarios!$B$9,PriceScenarios!$B$10,PriceScenarios!$B$11,PriceScenarios!$B$12,PriceScenarios!$B$13,PriceScenarios!$B$14,PriceScenarios!$B$15,PriceScenarios!$B$16,PriceScenarios!$B$17,PriceScenarios!$B$18,PriceScenarios!$B$19,PriceScenarios!$B$20,PriceScenarios!$B$21) -> OBR estimates (Core)
A385: Rent Median (Scenario) | B385: =HLOOKUP($A$1,Data!$C$1:$AI$211,'S1'!$X385,FALSE) -> 117.6923077 | C385: =B385*(1+B383) -> 118.1630769 | D385: =C385*(1+C383) -> 120.1718492 | E385: 122.0945988 | F385: 126.4900044 | G385: 131.4231145 | H385: 136.6800391 | I385: 142.1472407 | J385: 148.5438665 | K385: 155.2283405 | L385: 162.2136158 | M385: 169.5132286 | N385: 177.1413238 | O385: 185.1126834 | P385: 193.4427542 | Q385: 202.1476781 | R385: 211.2443236 | S385: 220.7503182 | T385: 230.6840825 | U385: 241.0648662 | V385: =U385*(1+U383) -> 251.9127852 | W385: =V385*(1+V383) -> 263.2488605 | X385: 210
A386: Rent 30th (Scenario) | B386: =HLOOKUP($A$1,Data!$C$1:$AI$211,'S1'!$X386,FALSE) -> 110.7692308 | C386: =B386*(1+B383) -> 111.2123077 | D386: =C386*(1+C383) -> 113.1029169 | E386: 114.9125636 | F386: 119.0494159 | G386: 123.6923431 | H386: 128.6400368 | I386: 133.7856383 | J386: 139.805992 | K386: 146.0972617 | L386: 152.6716384 | M386: 159.5418622 | N386: 166.721246 | O386: 174.223702 | P386: 182.0637686 | Q386: 190.2566382 | R386: 198.8181869 | S386: 207.7650053 | T386: 217.1144306 | U386: 226.88458 | V386: =U386*(1+U383) -> 237.0943861 | W386: =V386*(1+V383) -> 247.7636334 | X386: 211
A387: Annual Rent Medain | B387: =B385*52 -> 6120 | C387: =C385*52 -> 6144.48 | D387: 6248.93616 | E387: 6348.919139 | F387: 6577.480228 | G387: 6834.001956 | H387: 7107.362035 | I387: 7391.656516 | J387: 7724.281059 | K387: 8071.873707 | L387: 8435.108024 | M387: 8814.687885 | N387: 9211.34884 | O387: 9625.859537 | P387: 10059.02322 | Q387: 10511.67926 | R387: 10984.70483 | S387: 11479.01655 | T387: 11995.57229 | U387: 12535.37304 | V387: =V385*52 -> 13099.46483 | W387: =W385*52 -> 13688.94075
A388: Annual Rent 30th | B388: =B386*52 -> 5760 | C388: 5783.04 | D388: 5881.35168 | E388: 5975.453307 | F388: 6190.569626 | G388: 6432.001841 | H388: 6689.281915 | I388: 6956.853192 | J388: 7269.911585 | K388: 7597.057607 | L388: 7938.925199 | M388: 8296.176833 | N388: 8669.50479 | O388: 9059.632506 | P388: 9467.315969 | Q388: 9893.345187 | R388: 10338.54572 | S388: 10803.78028 | T388: 11289.95039 | U388: 11797.99816 | V388: =V386*52 -> 12328.90808 | W388: =W386*52 -> 12883.70894
A390: Income above | B390: =B387/$C$116 -> 24480 | C390: 24577.92 | D390: 24995.74464 | E390: 25395.67655 | F390: 26309.92091 | G390: 27336.00783 | H390: 28429.44814 | I390: 29566.62606 | J390: 30897.12424 | K390: 32287.49483 | L390: 33740.4321 | M390: 35258.75154 | N390: 36845.39536 | O390: 38503.43815 | P390: 40236.09287 | Q390: 42046.71705 | R390: 43938.81931 | S390: 45916.06618 | T390: 47982.28916 | U390: 50141.49217 | V390: =V387/$C$116 -> 52397.85932 | W390: =W387/$C$116 -> 54755.76299
A391: Income below | B391: =B388/$C$117 -> 16457.14286 | C391: 16522.97143 | D391: 16803.86194 | E391: 17072.72373 | F391: 17687.34179 | G391: 18377.14812 | H391: 19112.23404 | I391: 19876.7234 | J391: 20771.17596 | K391: 21705.87888 | L391: 22682.64343 | M391: 23703.36238 | N391: 24770.01369 | O391: 25884.6643 | P391: 27049.4742 | Q391: 28266.70053 | R391: 29538.70206 | S391: 30867.94365 | T391: 32257.00112 | U391: 33708.56617 | V391: =V388/$C$117 -> 35225.45164 | W391: =W388/$C$117 -> 36810.59697
A392: Above percentile | B392: =VLOOKUP(B390,B$510:$AA$590,B$509+3) -> 45 | C392: =VLOOKUP(C390,C$510:$AA$590,C$509+3) -> 45 | D392: =VLOOKUP(D390,D$510:$AA$590,D$509+3) -> 44 | E392: =VLOOKUP(E390,E$510:$AA$590,E$509+3) -> 43 | F392: =VLOOKUP(F390,F$510:$AA$590,F$509+3) -> 43 | G392: =VLOOKUP(G390,G$510:$AA$590,G$509+3) -> 43 | H392: =VLOOKUP(H390,H$510:$AA$590,H$509+3) -> 43 | I392: =VLOOKUP(I390,I$510:$AA$590,I$509+3) -> 43 | J392: =VLOOKUP(J390,J$510:$AA$590,J$509+3) -> 43 | K392: =VLOOKUP(K390,K$510:$AA$590,K$509+3) -> 43 | L392: =VLOOKUP(L390,L$510:$AA$590,L$509+3) -> 44 | M392: =VLOOKUP(M390,M$510:$AA$590,M$509+3) -> 44 | N392: =VLOOKUP(N390,N$510:$AA$590,N$509+3) -> 44 | O392: =VLOOKUP(O390,O$510:$AA$590,O$509+3) -> 44 | P392: =VLOOKUP(P390,P$510:$AA$590,P$509+3) -> 45 | Q392: =VLOOKUP(Q390,Q$510:$AA$590,Q$509+3) -> 45 | R392: =VLOOKUP(R390,R$510:$AA$590,R$509+3) -> 46 | S392: =VLOOKUP(S390,S$510:$AA$590,S$509+3) -> 47 | T392: =VLOOKUP(T390,T$510:$AA$590,T$509+3) -> 47 | U392: =VLOOKUP(U390,U$510:$AA$590,U$509+3) -> 48 | V392: =VLOOKUP(V390,V$510:$AA$590,V$509+3) -> 49 | W392: =VLOOKUP(W390,W$510:$AA$590,W$509+3) -> 49
A393: Below percentile | B393: =VLOOKUP(B391,B$510:$AA$590,B$509+3) -> 29 | C393: =VLOOKUP(C391,C$510:$AA$590,C$509+3) -> 29 | D393: =VLOOKUP(D391,D$510:$AA$590,D$509+3) -> 28 | E393: =VLOOKUP(E391,E$510:$AA$590,E$509+3) -> 27 | F393: =VLOOKUP(F391,F$510:$AA$590,F$509+3) -> 27 | G393: =VLOOKUP(G391,G$510:$AA$590,G$509+3) -> 27 | H393: =VLOOKUP(H391,H$510:$AA$590,H$509+3) -> 27 | I393: =VLOOKUP(I391,I$510:$AA$590,I$509+3) -> 27 | J393: =VLOOKUP(J391,J$510:$AA$590,J$509+3) -> 27 | K393: =VLOOKUP(K391,K$510:$AA$590,K$509+3) -> 27 | L393: =VLOOKUP(L391,L$510:$AA$590,L$509+3) -> 27 | M393: =VLOOKUP(M391,M$510:$AA$590,M$509+3) -> 28 | N393: =VLOOKUP(N391,N$510:$AA$590,N$509+3) -> 28 | O393: =VLOOKUP(O391,O$510:$AA$590,O$509+3) -> 28 | P393: =VLOOKUP(P391,P$510:$AA$590,P$509+3) -> 29 | Q393: =VLOOKUP(Q391,Q$510:$AA$590,Q$509+3) -> 29 | R393: =VLOOKUP(R391,R$510:$AA$590,R$509+3) -> 30 | S393: =VLOOKUP(S391,S$510:$AA$590,S$509+3) -> 30 | T393: =VLOOKUP(T391,T$510:$AA$590,T$509+3) -> 31 | U393: =VLOOKUP(U391,U$510:$AA$590,U$509+3) -> 31 | V393: =VLOOKUP(V391,V$510:$AA$590,V$509+3) -> 32 | W393: =VLOOKUP(W391,W$510:$AA$590,W$509+3) -> 32
A397: Social Rent | C397: =C320-C398-C399-C400 -> 22.86105215 | D397: 22.42817767 | E397: 24.79350315 | F397: 24.59037724 | G397: 25.40303891 | H397: 26.08817617 | I397: 27.24944373 | J397: 28.23586289 | K397: 26.62410558 | L397: 26.95444378 | M397: 28.30732003 | N397: 28.01562493 | O397: 29.5165255 | P397: 18.10233825 | Q397: 16.2659456 | R397: 16.60761865 | S397: 17.72476208 | T397: 18.22375409 | U397: 15.9932455 | V397: 13.26764874 | W397: 13.6030809
A398: BM Rent | C398: =IF($B$312=TRUE,(C392-C393)/100*C318,IF($B$309=TRUE,(C392-C393)/100*C320,(C392-C393)/100*C318)) -> 6.925991637 | D398: =IF($B$312=TRUE,(D392-D393)/100*D318,IF($B$309=TRUE,(D392-D393)/100*D320,(D392-D393)/100*D318)) -> 6.925991637 | E398: 8.584184206 | F398: 8.463813291 | G398: 8.945390579 | H398: 9.351397845 | I398: 10.0395564 | J398: 10.62410109 | K398: 9.668985642 | L398: 10.48128796 | M398: 10.28550156 | N398: 10.11881864 | O398: 10.97647611 | P398: 9.987496966 | Q398: 8.974314812 | R398: 8.857396615 | S398: 10.04403185 | T398: 9.405808562 | U398: 8.770489468 | V398: 7.048438394 | W398: 7.22663673
A399: PRS | C399: =IF($B$312=TRUE,(100-C392)/100*C318-C400,IF($B$309=TRUE,(100-C392)/100*C320-C400,(100-C392)/100*C318-C400)) -> 14.71773223 | D399: =IF($B$312=TRUE,(100-D392)/100*D318-D400,IF($B$309=TRUE,(100-D392)/100*D320-D400,(100-D392)/100*D318-D400)) -> 14.93416947 | E399: 18.77790295 | F399: 18.51459157 | G399: 19.28849844 | H399: 20.1639516 | I399: 21.64779348 | J399: 23.24022113 | K399: 21.15090609 | L399: 20.96257593 | M399: 21.8566908 | N399: 21.8187027 | O399: 23.66802661 | P399: 21.22343105 | Q399: 19.07041898 | R399: 18.54517416 | S399: 19.49723829 | T399: 19.39948016 | U399: 16.76711222 | V399: 13.26764874 | W399: 13.6030809
A400: Buyers | C400: =C356*$C$115 -> 9.090364024 | D400: =D356*$C$115 -> 9.306801262 | E400: 11.80325328 | F400: 11.63774328 | G400: 12.5794555 | H400: 13.15040322 | I400: 14.11812618 | J400: 14.608139 | K400: 13.29485526 | L400: 13.56401972 | M400: 14.14256464 | N400: 13.59716255 | O400: 14.74963977 | P400: 13.10858977 | Q400: 11.77878819 | R400: 11.34853941 | S400: 11.81650805 | T400: 11.7572607 | U400: 10.06026733 | V400: 7.877666441 | W400: 8.076829286
A406: Income Change
A407: Principal | C407: =IncomeScenarios!C4 -> 0.02 | D407: =IncomeScenarios!D4 -> 0.03 | E407: =IncomeScenarios!E4 -> 0.04 | F407: =IncomeScenarios!F4 -> 0.04 | G407: =IncomeScenarios!G4 -> 0.04 | H407: =IncomeScenarios!H4 -> 0.04 | I407: =IncomeScenarios!I4 -> 0.04 | J407: =IncomeScenarios!J4 -> 0.04 | K407: =IncomeScenarios!K4 -> 0.04 | L407: =IncomeScenarios!L4 -> 0.04 | M407: =IncomeScenarios!M4 -> 0.04 | N407: =IncomeScenarios!N4 -> 0.04 | O407: =IncomeScenarios!O4 -> 0.04 | P407: =IncomeScenarios!P4 -> 0.03 | Q407: =IncomeScenarios!Q4 -> 0.03 | R407: =IncomeScenarios!R4 -> 0.03 | S407: =IncomeScenarios!S4 -> 0.03 | T407: =IncomeScenarios!T4 -> 0.03 | U407: =IncomeScenarios!U4 -> 0.03 | V407: =IncomeScenarios!V4 -> 0.03 | W407: =IncomeScenarios!W4 -> 0.03
A408: Principle Distribution | C408: =IncomeScenarios!C25 -> 0 | D408: =IncomeScenarios!D25 -> 0 | E408: =IncomeScenarios!E25 -> 0 | F408: =IncomeScenarios!F25 -> 0 | G408: =IncomeScenarios!G25 -> 0 | H408: =IncomeScenarios!H25 -> 0 | I408: =IncomeScenarios!I25 -> 0 | J408: =IncomeScenarios!J25 -> 0 | K408: =IncomeScenarios!K25 -> 0 | L408: =IncomeScenarios!L25 -> 0 | M408: =IncomeScenarios!M25 -> 0 | N408: =IncomeScenarios!N25 -> 0 | O408: =IncomeScenarios!O25 -> 0 | P408: =IncomeScenarios!P25 -> 0 | Q408: =IncomeScenarios!Q25 -> 0 | R408: =IncomeScenarios!R25 -> 0 | S408: =IncomeScenarios!S25 -> 0 | T408: =IncomeScenarios!T25 -> 0 | U408: =IncomeScenarios!U25 -> 0 | V408: =IncomeScenarios!V25 -> 0 | W408: =IncomeScenarios!W25 -> 0
A409: Scenario | C409: =OFFSET(IncomeScenarios!C2,$X$53,0) -> 0.02 | D409: =OFFSET(IncomeScenarios!D2,$X$53,0) -> 0.03 | E409: =OFFSET(IncomeScenarios!E2,$X$53,0) -> 0.04 | F409: =OFFSET(IncomeScenarios!F2,$X$53,0) -> 0.04 | G409: =OFFSET(IncomeScenarios!G2,$X$53,0) -> 0.04 | H409: =OFFSET(IncomeScenarios!H2,$X$53,0) -> 0.04 | I409: =OFFSET(IncomeScenarios!I2,$X$53,0) -> 0.04 | J409: =OFFSET(IncomeScenarios!J2,$X$53,0) -> 0.04 | K409: =OFFSET(IncomeScenarios!K2,$X$53,0) -> 0.04 | L409: =OFFSET(IncomeScenarios!L2,$X$53,0) -> 0.04 | M409: =OFFSET(IncomeScenarios!M2,$X$53,0) -> 0.04 | N409: =OFFSET(IncomeScenarios!N2,$X$53,0) -> 0.04 | O409: =OFFSET(IncomeScenarios!O2,$X$53,0) -> 0.04 | P409: =OFFSET(IncomeScenarios!P2,$X$53,0) -> 0.03 | Q409: =OFFSET(IncomeScenarios!Q2,$X$53,0) -> 0.03 | R409: =OFFSET(IncomeScenarios!R2,$X$53,0) -> 0.03 | S409: =OFFSET(IncomeScenarios!S2,$X$53,0) -> 0.03 | T409: =OFFSET(IncomeScenarios!T2,$X$53,0) -> 0.03 | U409: =OFFSET(IncomeScenarios!U2,$X$53,0) -> 0.03 | V409: =OFFSET(IncomeScenarios!V2,$X$53,0) -> 0.03 | W409: =OFFSET(IncomeScenarios!W2,$X$53,0) -> 0.03
A410: Scenario Distribution | C410: =OFFSET(IncomeScenarios!C24,$X$54,0) -> 0 | D410: =OFFSET(IncomeScenarios!D24,$X$54,0) -> 0 | E410: =OFFSET(IncomeScenarios!E24,$X$54,0) -> 0 | F410: =OFFSET(IncomeScenarios!F24,$X$54,0) -> 0 | G410: =OFFSET(IncomeScenarios!G24,$X$54,0) -> 0 | H410: =OFFSET(IncomeScenarios!H24,$X$54,0) -> 0 | I410: =OFFSET(IncomeScenarios!I24,$X$54,0) -> 0 | J410: =OFFSET(IncomeScenarios!J24,$X$54,0) -> 0 | K410: =OFFSET(IncomeScenarios!K24,$X$54,0) -> 0 | L410: =OFFSET(IncomeScenarios!L24,$X$54,0) -> 0 | M410: =OFFSET(IncomeScenarios!M24,$X$54,0) -> 0 | N410: =OFFSET(IncomeScenarios!N24,$X$54,0) -> 0 | O410: =OFFSET(IncomeScenarios!O24,$X$54,0) -> 0 | P410: =OFFSET(IncomeScenarios!P24,$X$54,0) -> 0 | Q410: =OFFSET(IncomeScenarios!Q24,$X$54,0) -> 0 | R410: =OFFSET(IncomeScenarios!R24,$X$54,0) -> 0 | S410: =OFFSET(IncomeScenarios!S24,$X$54,0) -> 0 | T410: =OFFSET(IncomeScenarios!T24,$X$54,0) -> 0 | U410: =OFFSET(IncomeScenarios!U24,$X$54,0) -> 0 | V410: =OFFSET(IncomeScenarios!V24,$X$54,0) -> 0 | W410: =OFFSET(IncomeScenarios!W24,$X$54,0) -> 0
A412: Principal
A413: Income
B414: =B382 -> 2011 | C414: =B414+1 -> 2012 | D414: 2013 | E414: 2014 | F414: 2015 | G414: 2016 | H414: 2017 | I414: 2018 | J414: 2019 | K414: 2020 | L414: 2021 | M414: 2022 | N414: 2023 | O414: 2024 | P414: 2025 | Q414: 2026 | R414: 2027 | S414: 2028 | T414: 2029 | U414: 2030 | V414: 2031 | W414: 2032
A415: Principal Median | B415: =B459 -> 26827.97374 | C415: =C459 -> 27364.53321 | D415: 28185.46921 | E415: 29312.88798 | F415: 30485.40349 | G415: 31704.81963 | H415: 32973.01242 | I415: 34291.93292 | J415: 35663.61023 | K415: 37090.15464 | L415: 38573.76083 | M415: 40116.71126 | N415: 41721.37971 | O415: 43390.2349 | P415: 44691.94195 | Q415: 46032.70021 | R415: 47413.68121 | S415: 48836.09165 | T415: 50301.1744 | U415: 51810.20963 | V415: 53364.51592 | W415: 54965.4514
A416: =CONCATENATE("Principal ",C49,"%ile") -> Principal 75%ile | B416: =VLOOKUP($C$49,$A$419:$W$499,25-B418,FALSE) -> 45975.78256 | C416: 46895.29821 | D416: 48302.15716 | E416: 50234.24345 | F416: 52243.61318 | G416: 54333.35771 | H416: 56506.69202 | I416: 58766.9597 | J416: 61117.63809 | K416: 63562.34361 | L416: 66104.83736 | M416: 68749.03085 | N416: 71498.99209 | O416: 74358.95177 | P416: 76589.72032 | Q416: 78887.41193 | R416: 81254.03429 | S416: 83691.65532 | T416: 86202.40498 | U416: 88788.47713 | V416: 91452.13144 | W416: 94195.69538
A417: =CONCATENATE("Principal",C50,"%ile") -> Principal25%ile | B417: =VLOOKUP($C$50,$A$419:$W$499,25-B418,FALSE) -> 14724.55337 | C417: 15019.04443 | D417: 15469.61577 | E417: 16088.4004 | F417: 16731.93641 | G417: 17401.21387 | H417: 18097.26243 | I417: 18821.15292 | J417: 19573.99904 | K417: 20356.959 | L417: 21171.23736 | M417: 22018.08686 | N417: 22898.81033 | O417: 23814.76274 | P417: 24529.20562 | Q417: 25265.08179 | R417: 26023.03425 | S417: 26803.72527 | T417: 27607.83703 | U417: 28436.07214 | V417: 29289.15431 | W417: 30167.82894
A418: 2 | B418: 23 | C418: =B418-1 -> 22 | D418: 21 | E418: 20 | F418: 19 | G418: 18 | H418: 17 | I418: 16 | J418: 15 | K418: 14 | L418: 13 | M418: 12 | N418: 11 | O418: 10 | P418: 9 | Q418: 8 | R418: 7 | S418: 6 | T418: 5 | U418: 4 | V418: 3 | W418: 2 | Y418: =2011 -> 2011 | Z418: =CONCATENATE("Principal ",C51) -> Principal 2032
A419: =Data!B308 -> 10 | B419: =HLOOKUP($A$1,Data!$C$1:$AI$388,$X419,FALSE) -> 8639.94503 | C419: =B419*(1+C$407+(-(50-$A419)*(C$408/40))) -> 8812.74393 | D419: 9077.126248 | E419: 9440.211298 | F419: 9817.81975 | G419: 10210.53254 | H419: 10618.95384 | I419: 11043.712 | J419: 11485.46048 | K419: 11944.87889 | L419: 12422.67405 | M419: 12919.58101 | N419: 13436.36425 | O419: 13973.81882 | P419: 14393.03339 | Q419: 14824.82439 | R419: 15269.56912 | S419: =R419*(1+S$407+(-(50-$A419)*(S$408/40))) -> 15727.65619 | T419: 16199.48588 | U419: 16685.47046 | V419: 17186.03457 | W419: 17701.61561 | X419: 308 | Y419: =B419 -> 8639.94503 | Z419: =OFFSET(B419,0,$C$51-2011) -> 17701.61561 | AA419: =A419 -> 10
A420: =Data!B309 -> 11 | B420: =HLOOKUP($A$1,Data!$C$1:$AI$388,$X420,FALSE) -> 9032.432432 | C420: 9213.081081 | D420: 9489.473514 | E420: 9869.052454 | F420: 10263.81455 | G420: 10674.36713 | H420: 11101.34182 | I420: 11545.39549 | J420: 12007.21131 | K420: 12487.49976 | L420: 12986.99976 | M420: 13506.47975 | N420: 14046.73894 | O420: 14608.60849 | P420: 15046.86675 | Q420: 15498.27275 | R420: 15963.22093 | S420: 16442.11756 | T420: 16935.38109 | U420: 17443.44252 | V420: 17966.7458 | W420: 18505.74817 | X420: =X419+1 -> 309 | Y420: =B420 -> 9032.432432 | Z420: 18505.74817 | AA420: =A420 -> 11
A421: =Data!B310 -> 12 | B421: =HLOOKUP($A$1,Data!$C$1:$AI$388,$X421,FALSE) -> 9424.919835 | C421: 9613.418232 | D421: 9901.820779 | E421: 10297.89361 | F421: 10709.80935 | G421: 11138.20173 | H421: 11583.7298 | I421: 12047.07899 | J421: 12528.96215 | K421: 13030.12064 | L421: 13551.32546 | M421: 14093.37848 | N421: 14657.11362 | O421: 15243.39816 | P421: 15700.70011 | Q421: 16171.72111 | R421: 16656.87274 | S421: 17156.57893 | T421: 17671.27629 | U421: 18201.41458 | V421: 18747.45702 | W421: 19309.88073 | X421: =X420+1 -> 310 | Y421: 9424.919835 | Z421: 19309.88073 | AA421: 12
A422: =Data!B311 -> 13 | B422: =HLOOKUP($A$1,Data!$C$1:$AI$388,$X422,FALSE) -> 9817.407238 | C422: 10013.75538 | D422: 10314.16804 | E422: 10726.73477 | F422: 11155.80416 | G422: 11602.03632 | H422: 12066.11778 | I422: 12548.76249 | J422: 13050.71299 | K422: 13572.74151 | L422: 14115.65117 | M422: 14680.27721 | N422: 15267.4883 | O422: 15878.18783 | P422: 16354.53347 | Q422: 16845.16947 | R422: 17350.52456 | S422: 17871.04029 | T422: 18407.1715 | U422: 18959.38665 | V422: 19528.16825 | W422: 20114.01329 | X422: 311 | Y422: 9817.407238 | Z422: 20114.01329 | AA422: 13
A423: =Data!B312 -> 14 | B423: =HLOOKUP($A$1,Data!$C$1:$AI$388,$X423,FALSE) -> 10209.89464 | C423: 10414.09253 | D423: 10726.51531 | E423: 11155.57592 | F423: 11601.79896 | G423: 12065.87092 | H423: 12548.50575 | I423: 13050.44598 | J423: 13572.46382 | K423: 14115.36238 | L423: 14679.97687 | M423: 15267.17595 | N423: 15877.86298 | O423: 16512.9775 | P423: 17008.36683 | Q423: 17518.61783 | R423: 18044.17637 | S423: 18585.50166 | T423: 19143.06671 | U423: 19717.35871 | V423: 20308.87947 | W423: 20918.14586 | X423: 312 | Y423: 10209.89464 | Z423: 20918.14586 | AA423: 14
A424: =Data!B313 -> 15 | B424: =HLOOKUP($A$1,Data!$C$1:$AI$388,$X424,FALSE) -> 10602.38204 | C424: 10814.42968 | D424: 11138.86257 | E424: 11584.41708 | F424: 12047.79376 | G424: 12529.70551 | H424: 13030.89373 | I424: 13552.12948 | J424: 14094.21466 | K424: 14657.98325 | L424: 15244.30258 | M424: 15854.07468 | N424: 16488.23767 | O424: 17147.76717 | P424: 17662.20019 | Q424: 18192.06619 | R424: 18737.82818 | S424: 19299.96302 | T424: 19878.96192 | U424: 20475.33077 | V424: 21089.5907 | W424: 21722.27842 | X424: 313 | Y424: 10602.38204 | Z424: 21722.27842 | AA424: 15
A425: =Data!B314 -> 16 | B425: =HLOOKUP($A$1,Data!$C$1:$AI$388,$X425,FALSE) -> 10994.86945 | C425: 11214.76683 | D425: 11551.20984 | E425: 12013.25823 | F425: 12493.78856 | G425: 12993.54011 | H425: 13513.28171 | I425: 14053.81298 | J425: 14615.9655 | K425: 15200.60412 | L425: 15808.62828 | M425: 16440.97341 | N425: 17098.61235 | O425: 17782.55684 | P425: 18316.03355 | Q425: 18865.51455 | R425: 19431.47999 | S425: 20014.42439 | T425: 20614.85712 | U425: 21233.30284 | V425: 21870.30192 | W425: 22526.41098 | X425: 314 | Y425: 10994.86945 | Z425: 22526.41098 | AA425: 16
A426: =Data!B315 -> 17 | B426: =HLOOKUP($A$1,Data!$C$1:$AI$388,$X426,FALSE) -> 11387.35685 | C426: 11615.10399 | D426: 11963.5571 | E426: 12442.09939 | F426: 12939.78336 | G426: 13457.3747 | H426: 13995.66969 | I426: 14555.49647 | J426: 15137.71633 | K426: 15743.22499 | L426: 16372.95399 | M426: 17027.87215 | N426: 17708.98703 | O426: 18417.34651 | P426: 18969.86691 | Q426: 19538.96292 | R426: 20125.1318 | S426: 20728.88576 | T426: 21350.75233 | U426: 21991.2749 | V426: 22651.01315 | W426: 23330.54354 | X426: 315 | Y426: 11387.35685 | Z426: 23330.54354 | AA426: 17
A427: =Data!B316 -> 18 | B427: =HLOOKUP($A$1,Data!$C$1:$AI$388,$X427,FALSE) -> 11779.84425 | C427: 12015.44114 | D427: 12375.90437 | E427: 12870.94054 | F427: 13385.77817 | G427: 13921.20929 | H427: 14478.05767 | I427: 15057.17997 | J427: 15659.46717 | K427: 16285.84586 | L427: 16937.27969 | M427: 17614.77088 | N427: 18319.36171 | O427: 19052.13618 | P427: 19623.70027 | Q427: 20212.41128 | R427: 20818.78362 | S427: 21443.34712 | T427: 22086.64754 | U427: 22749.24696 | V427: 23431.72437 | W427: 24134.6761 | X427: 316 | Y427: 11779.84425 | Z427: 24134.6761 | AA427: 18
A428: =Data!B317 -> 19 | B428: =HLOOKUP($A$1,Data!$C$1:$AI$388,$X428,FALSE) -> 12172.33165 | C428: 12415.77829 | D428: 12788.25164 | E428: 13299.7817 | F428: 13831.77297 | G428: 14385.04389 | H428: 14960.44564 | I428: 15558.86347 | J428: 16181.21801 | K428: 16828.46673 | L428: 17501.6054 | M428: 18201.66961 | N428: 18929.7364 | O428: 19686.92585 | P428: 20277.53363 | Q428: 20885.85964 | R428: 21512.43543 | S428: 22157.80849 | T428: 22822.54274 | U428: 23507.21903 | V428: 24212.4356 | W428: 24938.80867 | X428: 317 | Y428: 12172.33165 | Z428: 24938.80867 | AA428: 19
A429: =Data!B318 -> 20 | B429: =HLOOKUP($A$1,Data!$C$1:$AI$388,$X429,FALSE) -> 12924.77477 | C429: 13183.27027 | D429: 13578.76838 | E429: 14121.91911 | F429: 14686.79588 | G429: 15274.26771 | H429: 15885.23842 | I429: 16520.64796 | J429: 17181.47388 | K429: 17868.73283 | L429: 18583.48215 | M429: 19326.82143 | N429: 20099.89429 | O429: 20903.89006 | P429: 21531.00676 | Q429: 22176.93696 | R429: 22842.24507 | S429: 23527.51243 | T429: 24233.3378 | U429: 24960.33793 | V429: 25709.14807 | W429: 26480.42251 | X429: 318 | Y429: 12924.77477 | Z429: 26480.42251 | AA429: 20
A430: =Data!B319 -> 21 | B430: =HLOOKUP($A$1,Data!$C$1:$AI$388,$X430,FALSE) -> 13284.73049 | C430: 13550.4251 | D430: 13956.93786 | E430: 14515.21537 | F430: 15095.82399 | G430: 15699.65694 | H430: 16327.64322 | I430: 16980.74895 | J430: 17659.97891 | K430: 18366.37807 | L430: 19101.03319 | M430: 19865.07452 | N430: 20659.6775 | O430: 21486.0646 | P430: 22130.64653 | Q430: 22794.56593 | R430: 23478.40291 | S430: 24182.755 | T430: 24908.23765 | U430: 25655.48477 | V430: 26425.14932 | W430: 27217.9038 | X430: 319 | Y430: 13284.73049 | Z430: 27217.9038 | AA430: 21
A431: =Data!B320 -> 22 | B431: =HLOOKUP($A$1,Data!$C$1:$AI$388,$X431,FALSE) -> 13644.68621 | C431: 13917.57994 | D431: 14335.10733 | E431: 14908.51163 | F431: 15504.85209 | G431: 16125.04618 | H431: 16770.04802 | I431: 17440.84994 | J431: 18138.48394 | K431: 18864.0233 | L431: 19618.58423 | M431: 20403.3276 | N431: 21219.4607 | O431: 22068.23913 | P431: 22730.28631 | Q431: 23412.1949 | R431: 24114.56074 | S431: 24837.99757 | T431: 25583.13749 | U431: 26350.63162 | V431: 27141.15057 | W431: 27955.38508 | X431: 320 | Y431: 13644.68621 | Z431: 27955.38508 | AA431: 22
A432: =Data!B321 -> 23 | B432: =HLOOKUP($A$1,Data!$C$1:$AI$388,$X432,FALSE) -> 14004.64193 | C432: 14284.73477 | D432: 14713.27681 | E432: 15301.80788 | F432: 15913.8802 | G432: 16550.43541 | H432: 17212.45282 | I432: 17900.95094 | J432: 18616.98897 | K432: 19361.66853 | L432: 20136.13527 | M432: 20941.58069 | N432: 21779.24391 | O432: 22650.41367 | P432: 23329.92608 | Q432: 24029.82386 | R432: 24750.71858 | S432: 25493.24014 | T432: 26258.03734 | U432: 27045.77846 | V432: 27857.15181 | W432: 28692.86637 | X432: 321 | Y432: 14004.64193 | Z432: 28692.86637 | AA432: 23
A433: =Data!B322 -> 24 | B433: =HLOOKUP($A$1,Data!$C$1:$AI$388,$X433,FALSE) -> 14364.59765 | C433: 14651.8896 | D433: 15091.44629 | E433: 15695.10414 | F433: 16322.90831 | G433: 16975.82464 | H433: 17654.85762 | I433: 18361.05193 | J433: 19095.49401 | K433: 19859.31377 | L433: 20653.68632 | M433: 21479.83377 | N433: 22339.02712 | O433: 23232.58821 | P433: 23929.56585 | Q433: 24647.45283 | R433: 25386.87641 | S433: 26148.48271 | T433: 26932.93719 | U433: 27740.9253 | V433: 28573.15306 | W433: 29430.34765 | X433: 322 | Y433: 14364.59765 | Z433: 29430.34765 | AA433: 24
A434: =Data!B323 -> 25 | B434: =HLOOKUP($A$1,Data!$C$1:$AI$388,$X434,FALSE) -> 14724.55337 | C434: 15019.04443 | D434: 15469.61577 | E434: 16088.4004 | F434: 16731.93641 | G434: 17401.21387 | H434: 18097.26243 | I434: 18821.15292 | J434: 19573.99904 | K434: 20356.959 | L434: 21171.23736 | M434: 22018.08686 | N434: 22898.81033 | O434: 23814.76274 | P434: 24529.20562 | Q434: 25265.08179 | R434: =Q434*(1+R$407+(-(50-$A434)*(R$408/40))) -> 26023.03425 | S434: 26803.72527 | T434: 27607.83703 | U434: 28436.07214 | V434: 29289.15431 | W434: 30167.82894 | X434: 323 | Y434: 14724.55337 | Z434: 30167.82894 | AA434: 25
A435: =Data!B324 -> 26 | B435: =HLOOKUP($A$1,Data!$C$1:$AI$388,$X435,FALSE) -> 15084.50909 | C435: 15386.19927 | D435: 15847.78525 | E435: 16481.69665 | F435: 17140.96452 | G435: 17826.6031 | H435: 18539.66723 | I435: 19281.25392 | J435: 20052.50407 | K435: 20854.60423 | L435: 21688.7884 | M435: 22556.33994 | N435: 23458.59354 | O435: 24396.93728 | P435: 25128.8454 | Q435: 25882.71076 | R435: 26659.19208 | S435: =R435*(1+S$407+(-(50-$A435)*(S$408/40))) -> 27458.96784 | T435: 28282.73688 | U435: 29131.21899 | V435: 30005.15556 | W435: 30905.31022 | X435: 324 | Y435: 15084.50909 | Z435: 30905.31022 | AA435: 26
A436: =Data!B325 -> 27 | B436: =HLOOKUP($A$1,Data!$C$1:$AI$388,$X436,FALSE) -> 15444.4648 | C436: 15753.3541 | D436: 16225.95472 | E436: 16874.99291 | F436: 17549.99263 | G436: 18251.99233 | H436: 18982.07203 | I436: 19741.35491 | J436: 20531.0091 | K436: 21352.24947 | L436: 22206.33945 | M436: 23094.59302 | N436: 24018.37675 | O436: 24979.11182 | P436: 25728.48517 | Q436: 26500.33973 | R436: 27295.34992 | S436: 28114.21041 | T436: 28957.63673 | U436: 29826.36583 | V436: 30721.1568 | W436: 31642.79151 | X436: 325 | Y436: 15444.4648 | Z436: 31642.79151 | AA436: 27
A437: =Data!B326 -> 28 | B437: =HLOOKUP($A$1,Data!$C$1:$AI$388,$X437,FALSE) -> 15804.42052 | C437: 16120.50893 | D437: 16604.1242 | E437: 17268.28917 | F437: 17959.02074 | G437: 18677.38156 | H437: 19424.47683 | I437: 20201.4559 | J437: 21009.51414 | K437: 21849.8947 | L437: 22723.89049 | M437: 23632.84611 | N437: 24578.15995 | O437: 25561.28635 | P437: 26328.12494 | Q437: 27117.96869 | R437: 27931.50775 | S437: 28769.45298 | T437: 29632.53657 | U437: 30521.51267 | V437: 31437.15805 | W437: 32380.27279 | X437: 326 | Y437: 15804.42052 | Z437: 32380.27279 | AA437: 28
A438: =Data!B327 -> 29 | B438: =HLOOKUP($A$1,Data!$C$1:$AI$388,$X438,FALSE) -> 16164.37624 | C438: 16487.66377 | D438: 16982.29368 | E438: 17661.58543 | F438: 18368.04884 | G438: 19102.7708 | H438: 19866.88163 | I438: 20661.55689 | J438: 21488.01917 | K438: 22347.53994 | L438: 23241.44153 | M438: 24171.09919 | N438: 25137.94316 | O438: 26143.46089 | P438: 26927.76472 | Q438: 27735.59766 | R438: 28567.66559 | S438: 29424.69555 | T438: 30307.43642 | U438: 31216.65951 | V438: 32153.1593 | W438: 33117.75408 | X438: 327 | Y438: 16164.37624 | Z438: 33117.75408 | AA438: 29
A439: =Data!B328 -> 30 | B439: =HLOOKUP($A$1,Data!$C$1:$AI$388,$X439,FALSE) -> 16617.18583 | C439: 16949.52955 | D439: 17458.01543 | E439: 18156.33605 | F439: 18882.58949 | G439: 19637.89307 | H439: 20423.40879 | I439: 21240.34515 | J439: 22089.95895 | K439: 22973.55731 | L439: 23892.4996 | M439: 24848.19959 | N439: 25842.12757 | O439: 26875.81267 | P439: 27682.08705 | Q439: 28512.54967 | R439: 29367.92616 | S439: 30248.96394 | T439: 31156.43286 | U439: 32091.12584 | V439: 33053.85962 | W439: 34045.47541 | X439: 328 | Y439: 16617.18583 | Z439: 34045.47541 | AA439: 30
A440: =Data!B329 -> 31 | B440: =HLOOKUP($A$1,Data!$C$1:$AI$388,$X440,FALSE) -> 17069.99542 | C440: 17411.39533 | D440: 17933.73719 | E440: 18651.08667 | F440: 19397.13014 | G440: 20173.01535 | H440: 20979.93596 | I440: 21819.1334 | J440: 22691.89874 | K440: 23599.57469 | L440: 24543.55767 | M440: 25525.29998 | N440: 26546.31198 | O440: 27608.16446 | P440: 28436.40939 | Q440: 29289.50167 | R440: 30168.18672 | S440: 31073.23233 | T440: 32005.4293 | U440: 32965.59217 | V440: 33954.55994 | W440: 34973.19674 | X440: 329 | Y440: 17069.99542 | Z440: 34973.19674 | AA440: 31
A441: =Data!B330 -> 32 | B441: =HLOOKUP($A$1,Data!$C$1:$AI$388,$X441,FALSE) -> 17522.80501 | C441: 17873.26111 | D441: 18409.45894 | E441: 19145.8373 | F441: 19911.67079 | G441: 20708.13762 | H441: 21536.46313 | I441: 22397.92165 | J441: 23293.83852 | K441: 24225.59206 | L441: 25194.61574 | M441: 26202.40037 | N441: 27250.49639 | O441: 28340.51624 | P441: 29190.73173 | Q441: 30066.45368 | R441: 30968.44729 | S441: 31897.50071 | T441: 32854.42573 | U441: 33840.0585 | V441: 34855.26026 | W441: 35900.91807 | X441: 330 | Y441: 17522.80501 | Z441: 35900.91807 | AA441: 32
A442: =Data!B331 -> 33 | B442: =HLOOKUP($A$1,Data!$C$1:$AI$388,$X442,FALSE) -> 17975.6146 | C442: 18335.12689 | D442: 18885.1807 | E442: 19640.58792 | F442: 20426.21144 | G442: 21243.2599 | H442: 22092.99029 | I442: 22976.70991 | J442: 23895.7783 | K442: 24851.60943 | L442: 25845.67381 | M442: 26879.50076 | N442: 27954.6808 | O442: 29072.86803 | P442: 29945.05407 | Q442: 30843.40569 | R442: 31768.70786 | S442: 32721.7691 | T442: 33703.42217 | U442: 34714.52483 | V442: 35755.96058 | W442: 36828.6394 | X442: 331 | Y442: 17975.6146 | Z442: 36828.6394 | AA442: 33
A443: =Data!B332 -> 34 | B443: =HLOOKUP($A$1,Data!$C$1:$AI$388,$X443,FALSE) -> 18428.42419 | C443: 18796.99267 | D443: 19360.90245 | E443: 20135.33855 | F443: 20940.75209 | G443: 21778.38217 | H443: 22649.51746 | I443: 23555.49816 | J443: 24497.71809 | K443: 25477.62681 | L443: 26496.73188 | M443: 27556.60116 | N443: 28658.8652 | O443: 29805.21981 | P443: 30699.37641 | Q443: 31620.3577 | R443: 32568.96843 | S443: 33546.03748 | T443: 34552.41861 | U443: 35588.99116 | V443: 36656.6609 | W443: 37756.36073 | X443: 332 | Y443: 18428.42419 | Z443: 37756.36073 | AA443: 34
A444: =Data!B333 -> 35 | B444: =HLOOKUP($A$1,Data!$C$1:$AI$388,$X444,FALSE) -> 18881.23378 | C444: 19258.85845 | D444: 19836.62421 | E444: 20630.08917 | F444: 21455.29274 | G444: 22313.50445 | H444: 23206.04463 | I444: 24134.28641 | J444: 25099.65787 | K444: 26103.64418 | L444: 27147.78995 | M444: 28233.70155 | N444: 29363.04961 | O444: 30537.5716 | P444: 31453.69874 | Q444: 32397.30971 | R444: 33369.229 | S444: 34370.30587 | T444: 35401.41504 | U444: 36463.4575 | V444: 37557.36122 | W444: 38684.08206 | X444: 333 | Y444: 18881.23378 | Z444: 38684.08206 | AA444: 35
A445: =Data!B334 -> 36 | B445: =HLOOKUP($A$1,Data!$C$1:$AI$388,$X445,FALSE) -> 19334.04337 | C445: 19720.72423 | D445: 20312.34596 | E445: 21124.8398 | F445: 21969.83339 | G445: 22848.62673 | H445: 23762.57179 | I445: 24713.07467 | J445: 25701.59765 | K445: 26729.66156 | L445: 27798.84802 | M445: 28910.80194 | N445: 30067.23402 | O445: 31269.92338 | P445: 32208.02108 | Q445: 33174.26171 | R445: 34169.48957 | S445: 35194.57425 | T445: 36250.41148 | U445: 37337.92383 | V445: 38458.06154 | W445: 39611.80339 | X445: 334 | Y445: 19334.04337 | Z445: 39611.80339 | AA445: 36
A446: =Data!B335 -> 37 | B446: =HLOOKUP($A$1,Data!$C$1:$AI$388,$X446,FALSE) -> 19786.85295 | C446: 20182.59001 | D446: 20788.06771 | E446: 21619.59042 | F446: 22484.37404 | G446: 23383.749 | H446: 24319.09896 | I446: 25291.86292 | J446: 26303.53744 | K446: 27355.67893 | L446: 28449.90609 | M446: 29587.90233 | N446: 30771.41843 | O446: 32002.27517 | P446: 32962.34342 | Q446: 33951.21372 | R446: 34969.75013 | S446: 36018.84264 | T446: 37099.40792 | U446: 38212.39016 | V446: 39358.76186 | W446: 40539.52472 | X446: 335 | Y446: 19786.85295 | Z446: 40539.52472 | AA446: 37
A447: =Data!B336 -> 38 | B447: =HLOOKUP($A$1,Data!$C$1:$AI$388,$X447,FALSE) -> 20239.66254 | C447: 20644.45579 | D447: 21263.78947 | E447: 22114.34105 | F447: 22998.91469 | G447: 23918.87128 | H447: 24875.62613 | I447: 25870.65117 | J447: 26905.47722 | K447: 27981.69631 | L447: 29100.96416 | M447: 30265.00273 | N447: 31475.60284 | O447: 32734.62695 | P447: 33716.66576 | Q447: 34728.16573 | R447: 35770.0107 | S447: 36843.11102 | T447: 37948.40436 | U447: 39086.85649 | V447: 40259.46218 | W447: 41467.24605 | X447: 336 | Y447: 20239.66254 | Z447: 41467.24605 | AA447: 38
A448: =Data!B337 -> 39 | B448: =HLOOKUP($A$1,Data!$C$1:$AI$388,$X448,FALSE) -> 20692.47213 | C448: 21106.32158 | D448: 21739.51122 | E448: 22609.09167 | F448: 23513.45534 | G448: 24453.99355 | H448: 25432.15329 | I448: 26449.43943 | J448: 27507.417 | K448: 28607.71368 | L448: 29752.02223 | M448: 30942.10312 | N448: 32179.78724 | O448: 33466.97873 | P448: 34470.9881 | Q448: 35505.11774 | R448: 36570.27127 | S448: 37667.37941 | T448: 38797.40079 | U448: 39961.32282 | V448: 41160.1625 | W448: 42394.96738 | X448: 337 | Y448: 20692.47213 | Z448: 42394.96738 | AA448: 39
A449: =Data!B338 -> 40 | B449: =HLOOKUP($A$1,Data!$C$1:$AI$388,$X449,FALSE) -> 21245.81616 | C449: 21670.73248 | D449: 22320.85445 | E449: 23213.68863 | F449: 24142.23618 | G449: 25107.92562 | H449: 26112.24265 | I449: 27156.73235 | J449: 28243.00165 | K449: 29372.72171 | L449: 30547.63058 | M449: 31769.53581 | N449: 33040.31724 | O449: 34361.92993 | P449: 35392.78783 | Q449: 36454.57146 | R449: 37548.2086 | S449: 38674.65486 | T449: 39834.89451 | U449: 41029.94134 | V449: 42260.83958 | W449: 43528.66477 | X449: 338 | Y449: 21245.81616 | Z449: 43528.66477 | AA449: 40
A450: =Data!B339 -> 41 | B450: =HLOOKUP($A$1,Data!$C$1:$AI$388,$X450,FALSE) -> 21799.16018 | C450: =B450*(1+C$407+(-(50-$A450)*(C$408/40))) -> 22235.14338 | D450: 22902.19768 | E450: 23818.28559 | F450: 24771.01701 | G450: 25761.85769 | H450: 26792.332 | I450: 27864.02528 | J450: 28978.58629 | K450: 30137.72974 | L450: 31343.23893 | M450: 32596.96849 | N450: 33900.84723 | O450: 35256.88112 | P450: 36314.58755 | Q450: 37404.02518 | R450: 38526.14594 | S450: 39681.93031 | T450: 40872.38822 | U450: 42098.55987 | V450: 43361.51667 | W450: 44662.36217 | X450: 339 | Y450: 21799.16018 | Z450: 44662.36217 | AA450: 41
A451: =Data!B340 -> 42 | B451: =HLOOKUP($A$1,Data!$C$1:$AI$388,$X451,FALSE) -> 22352.5042 | C451: 22799.55428 | D451: 23483.54091 | E451: 24422.88255 | F451: 25399.79785 | G451: 26415.78976 | H451: 27472.42135 | I451: 28571.31821 | J451: 29714.17094 | K451: 30902.73777 | L451: 32138.84729 | M451: 33424.40118 | N451: 34761.37722 | O451: 36151.83231 | P451: 37236.38728 | Q451: 38353.4789 | R451: 39504.08327 | S451: =R451*(1+S$407+(-(50-$A451)*(S$408/40))) -> 40689.20577 | T451: 41909.88194 | U451: 43167.1784 | V451: 44462.19375 | W451: 45796.05956 | X451: 340 | Y451: 22352.5042 | Z451: 45796.05956 | AA451: 42
A452: =Data!B341 -> 43 | B452: =HLOOKUP($A$1,Data!$C$1:$AI$388,$X452,FALSE) -> 22905.84822 | C452: 23363.96519 | D452: 24064.88414 | E452: 25027.47951 | F452: 26028.57869 | G452: 27069.72183 | H452: 28152.51071 | I452: 29278.61114 | J452: 30449.75558 | K452: 31667.7458 | L452: 32934.45564 | M452: 34251.83386 | N452: 35621.90722 | O452: 37046.78351 | P452: 38158.18701 | Q452: 39302.93262 | R452: 40482.0206 | S452: 41696.48122 | T452: 42947.37565 | U452: 44235.79692 | V452: 45562.87083 | W452: 46929.75696 | X452: 341 | Y452: 22905.84822 | Z452: 46929.75696 | AA452: 43
A453: =Data!B342 -> 44 | B453: =HLOOKUP($A$1,Data!$C$1:$AI$388,$X453,FALSE) -> 23459.19224 | C453: 23928.37609 | D453: 24646.22737 | E453: 25632.07647 | F453: 26657.35952 | G453: 27723.6539 | H453: 28832.60006 | I453: 29985.90406 | J453: 31185.34023 | K453: 32432.75384 | L453: 33730.06399 | M453: 35079.26655 | N453: 36482.43721 | O453: 37941.7347 | P453: 39079.98674 | Q453: 40252.38634 | R453: 41459.95793 | S453: 42703.75667 | T453: 43984.86937 | U453: 45304.41545 | V453: 46663.54791 | W453: 48063.45435 | X453: 342 | Y453: 23459.19224 | Z453: 48063.45435 | AA453: 44
A454: =Data!B343 -> 45 | B454: =HLOOKUP($A$1,Data!$C$1:$AI$388,$X454,FALSE) -> 24012.53627 | C454: 24492.78699 | D454: 25227.5706 | E454: 26236.67342 | F454: 27286.14036 | G454: 28377.58598 | H454: 29512.68941 | I454: 30693.19699 | J454: 31920.92487 | K454: 33197.76187 | L454: 34525.67234 | M454: 35906.69923 | N454: 37342.9672 | O454: 38836.68589 | P454: 40001.78647 | Q454: 41201.84006 | R454: 42437.89526 | S454: 43711.03212 | T454: 45022.36309 | U454: 46373.03398 | V454: 47764.225 | W454: 49197.15175 | X454: 343 | Y454: 24012.53627 | Z454: 49197.15175 | AA454: 45
A455: =Data!B344 -> 46 | B455: =HLOOKUP($A$1,Data!$C$1:$AI$388,$X455,FALSE) -> 24565.88029 | C455: 25057.19789 | D455: 25808.91383 | E455: 26841.27038 | F455: 27914.9212 | G455: 29031.51805 | H455: 30192.77877 | I455: 31400.48992 | J455: 32656.50952 | K455: 33962.7699 | L455: 35321.28069 | M455: 36734.13192 | N455: 38203.4972 | O455: 39731.63708 | P455: 40923.5862 | Q455: 42151.29378 | R455: 43415.8326 | S455: 44718.30757 | T455: 46059.8568 | U455: 47441.65251 | V455: 48864.90208 | W455: 50330.84914 | X455: 344 | Y455: 24565.88029 | Z455: 50330.84914 | AA455: 46
A456: =Data!B345 -> 47 | B456: =HLOOKUP($A$1,Data!$C$1:$AI$388,$X456,FALSE) -> 25119.22431 | C456: 25621.6088 | D456: 26390.25706 | E456: 27445.86734 | F456: 28543.70204 | G456: 29685.45012 | H456: 30872.86812 | I456: 32107.78285 | J456: 33392.09416 | K456: 34727.77793 | L456: 36116.88904 | M456: 37561.56461 | N456: 39064.02719 | O456: 40626.58828 | P456: 41845.38593 | Q456: 43100.7475 | R456: 44393.76993 | S456: 45725.58303 | T456: 47097.35052 | U456: 48510.27103 | V456: 49965.57916 | W456: 51464.54654 | X456: 345 | Y456: 25119.22431 | Z456: 51464.54654 | AA456: 47
A457: =Data!B346 -> 48 | B457: =HLOOKUP($A$1,Data!$C$1:$AI$388,$X457,FALSE) -> 25672.56833 | C457: 26186.0197 | D457: 26971.60029 | E457: 28050.4643 | F457: 29172.48287 | G457: 30339.38219 | H457: 31552.95747 | I457: 32815.07577 | J457: 34127.6788 | K457: 35492.78596 | L457: 36912.49739 | M457: 38388.99729 | N457: 39924.55718 | O457: 41521.53947 | P457: 42767.18565 | Q457: 44050.20122 | R457: 45371.70726 | S457: 46732.85848 | T457: 48134.84423 | U457: 49578.88956 | V457: 51066.25625 | W457: 52598.24393 | X457: 346 | Y457: 25672.56833 | Z457: 52598.24393 | AA457: 48
A458: =Data!B347 -> 49 | B458: =HLOOKUP($A$1,Data!$C$1:$AI$388,$X458,FALSE) -> 26225.91235 | C458: 26750.4306 | D458: 27552.94352 | E458: 28655.06126 | F458: 29801.26371 | G458: 30993.31426 | H458: 32233.04683 | I458: 33522.3687 | J458: 34863.26345 | K458: 36257.79399 | L458: 37708.10575 | M458: 39216.42998 | N458: 40785.08718 | O458: 42416.49066 | P458: 43688.98538 | Q458: 44999.65494 | R458: 46349.64459 | S458: 47740.13393 | T458: 49172.33795 | U458: 50647.50809 | V458: 52166.93333 | W458: 53731.94133 | X458: 347 | Y458: 26225.91235 | Z458: 53731.94133 | AA458: 49
A459: =Data!B348 -> 50 | B459: =HLOOKUP($A$1,Data!$C$1:$AI$388,$X459,FALSE) -> 26827.97374 | C459: 27364.53321 | D459: 28185.46921 | E459: 29312.88798 | F459: 30485.40349 | G459: 31704.81963 | H459: 32973.01242 | I459: 34291.93292 | J459: 35663.61023 | K459: 37090.15464 | L459: 38573.76083 | M459: 40116.71126 | N459: 41721.37971 | O459: 43390.2349 | P459: 44691.94195 | Q459: 46032.70021 | R459: 47413.68121 | S459: 48836.09165 | T459: 50301.1744 | U459: 51810.20963 | V459: 53364.51592 | W459: 54965.4514 | X459: 348 | Y459: 26827.97374 | Z459: 54965.4514 | AA459: 50
A460: =Data!B349 -> 51 | B460: =HLOOKUP($A$1,Data!$C$1:$AI$388,$X460,FALSE) -> 27430.03512 | C460: 27978.63582 | D460: 28817.9949 | E460: 29970.71469 | F460: 31169.54328 | G460: 32416.32501 | H460: 33712.97801 | I460: 35061.49713 | J460: 36463.95702 | K460: 37922.5153 | L460: 39439.41591 | M460: 41016.99255 | N460: 42657.67225 | O460: 44363.97914 | P460: 45694.89851 | Q460: 47065.74547 | R460: 48477.71783 | S460: 49932.04937 | T460: 51430.01085 | U460: 52972.91117 | V460: 54562.09851 | W460: 56198.96146 | X460: 349 | Y460: 27430.03512 | Z460: 56198.96146 | AA460: 51
A461: =Data!B350 -> 52 | B461: =HLOOKUP($A$1,Data!$C$1:$AI$388,$X461,FALSE) -> 28032.0965 | C461: 28592.73843 | D461: 29450.52059 | E461: 30628.54141 | F461: 31853.68307 | G461: 33127.83039 | H461: 34452.9436 | I461: 35831.06135 | J461: 37264.3038 | K461: 38754.87595 | L461: 40305.07099 | M461: 41917.27383 | N461: 43593.96479 | O461: 45337.72338 | P461: 46697.85508 | Q461: 48098.79073 | R461: 49541.75445 | S461: 51028.00709 | T461: 52558.8473 | U461: 54135.61272 | V461: 55759.6811 | W461: 57432.47153 | X461: 350 | Y461: 28032.0965 | Z461: 57432.47153 | AA461: 52
A462: =Data!B351 -> 53 | B462: =HLOOKUP($A$1,Data!$C$1:$AI$388,$X462,FALSE) -> 28634.15789 | C462: 29206.84104 | D462: 30083.04628 | E462: 31286.36813 | F462: 32537.82285 | G462: 33839.33577 | H462: 35192.9092 | I462: 36600.62556 | J462: 38064.65059 | K462: 39587.23661 | L462: 41170.72607 | M462: 42817.55512 | N462: 44530.25732 | O462: 46311.46762 | P462: 47700.81164 | Q462: 49131.83599 | R462: 50605.79107 | S462: 52123.96481 | T462: 53687.68375 | U462: 55298.31426 | V462: 56957.26369 | W462: 58665.9816 | X462: 351 | Y462: 28634.15789 | Z462: 58665.9816 | AA462: 53
A463: =Data!B352 -> 54 | B463: =HLOOKUP($A$1,Data!$C$1:$AI$388,$X463,FALSE) -> 29236.21927 | C463: 29820.94366 | D463: 30715.57197 | E463: 31944.19484 | F463: 33221.96264 | G463: 34550.84114 | H463: 35932.87479 | I463: 37370.18978 | J463: 38864.99737 | K463: 40419.59727 | L463: 42036.38116 | M463: 43717.8364 | N463: 45466.54986 | O463: 47285.21185 | P463: 48703.76821 | Q463: 50164.88126 | R463: 51669.82769 | S463: 53219.92252 | T463: 54816.5202 | U463: 56461.01581 | V463: 58154.84628 | W463: 59899.49167 | X463: 352 | Y463: 29236.21927 | Z463: 59899.49167 | AA463: 54
A464: =Data!B353 -> 55 | B464: =HLOOKUP($A$1,Data!$C$1:$AI$388,$X464,FALSE) -> 29838.28065 | C464: 30435.04627 | D464: 31348.09765 | E464: 32602.02156 | F464: 33906.10242 | G464: 35262.34652 | H464: 36672.84038 | I464: 38139.754 | J464: 39665.34416 | K464: 41251.95792 | L464: 42902.03624 | M464: 44618.11769 | N464: 46402.8424 | O464: 48258.95609 | P464: 49706.72477 | Q464: 51197.92652 | R464: 52733.86431 | S464: 54315.88024 | T464: 55945.35665 | U464: 57623.71735 | V464: 59352.42887 | W464: 61133.00174 | X464: 353 | Y464: 29838.28065 | Z464: 61133.00174 | AA464: 55
A465: =Data!B354 -> 56 | B465: =HLOOKUP($A$1,Data!$C$1:$AI$388,$X465,FALSE) -> 30440.34204 | C465: 31049.14888 | D465: 31980.62334 | E465: 33259.84828 | F465: 34590.24221 | G465: 35973.8519 | H465: 37412.80597 | I465: 38909.31821 | J465: 40465.69094 | K465: 42084.31858 | L465: 43767.69132 | M465: 45518.39897 | N465: 47339.13493 | O465: 49232.70033 | P465: 50709.68134 | Q465: 52230.97178 | R465: 53797.90093 | S465: 55411.83796 | T465: 57074.1931 | U465: 58786.41889 | V465: 60550.01146 | W465: 62366.5118 | X465: 354 | Y465: 30440.34204 | Z465: 62366.5118 | AA465: 56
A466: =Data!B355 -> 57 | B466: =HLOOKUP($A$1,Data!$C$1:$AI$388,$X466,FALSE) -> 31042.40342 | C466: =B466*(1+C$407+(-(50-$A466)*(C$408/40))) -> 31663.25149 | D466: 32613.14903 | E466: 33917.67499 | F466: 35274.38199 | G466: 36685.35727 | H466: 38152.77157 | I466: 39678.88243 | J466: 41266.03773 | K466: 42916.67923 | L466: 44633.3464 | M466: 46418.68026 | N466: 48275.42747 | O466: 50206.44457 | P466: 51712.63791 | Q466: 53264.01704 | R466: 54861.93755 | S466: 56507.79568 | T466: 58203.02955 | U466: 59949.12044 | V466: 61747.59405 | W466: 63600.02187 | X466: 355 | Y466: 31042.40342 | Z466: 63600.02187 | AA466: 57
A467: =Data!B356 -> 58 | B467: =HLOOKUP($A$1,Data!$C$1:$AI$388,$X467,FALSE) -> 31644.4648 | C467: 32277.3541 | D467: 33245.67472 | E467: 34575.50171 | F467: 35958.52178 | G467: 37396.86265 | H467: 38892.73716 | I467: 40448.44664 | J467: 42066.38451 | K467: 43749.03989 | L467: 45499.00149 | M467: 47318.96154 | N467: 49211.72001 | O467: 51180.18881 | P467: 52715.59447 | Q467: 54297.06231 | R467: 55925.97417 | S467: =R467*(1+S$407+(-(50-$A467)*(S$408/40))) -> 57603.7534 | T467: 59331.866 | U467: 61111.82198 | V467: 62945.17664 | W467: 64833.53194 | X467: 356 | Y467: 31644.4648 | Z467: 64833.53194 | AA467: 58
A468: =Data!B357 -> 59 | B468: =HLOOKUP($A$1,Data!$C$1:$AI$388,$X468,FALSE) -> 32246.52619 | C468: 32891.45671 | D468: 33878.20041 | E468: 35233.32843 | F468: 36642.66157 | G468: 38108.36803 | H468: 39632.70275 | I468: 41218.01086 | J468: 42866.73129 | K468: 44581.40055 | L468: 46364.65657 | M468: 48219.24283 | N468: 50148.01254 | O468: 52153.93305 | P468: 53718.55104 | Q468: 55330.10757 | R468: 56990.01079 | S468: 58699.71112 | T468: 60460.70245 | U468: 62274.52353 | V468: 64142.75923 | W468: 66067.04201 | X468: 357 | Y468: 32246.52619 | Z468: 66067.04201 | AA468: 59
A469: =Data!B358 -> 60 | B469: =HLOOKUP($A$1,Data!$C$1:$AI$388,$X469,FALSE) -> 32983.93648 | C469: 33643.61521 | D469: 34652.92366 | E469: 36039.04061 | F469: 37480.60224 | G469: 38979.82633 | H469: 40539.01938 | I469: 42160.58015 | J469: 43847.00336 | K469: 45600.88349 | L469: 47424.91883 | M469: 49321.91559 | N469: 51294.79221 | O469: 53346.5839 | P469: 54946.98142 | Q469: 56595.39086 | R469: 58293.25258 | S469: 60042.05016 | T469: 61843.31167 | U469: 63698.61102 | V469: 65609.56935 | W469: 67577.85643 | X469: 358 | Y469: 32983.93648 | Z469: 67577.85643 | AA469: 60
A470: =Data!B359 -> 61 | B470: =HLOOKUP($A$1,Data!$C$1:$AI$388,$X470,FALSE) -> 33721.34677 | C470: 34395.77371 | D470: 35427.64692 | E470: 36844.75279 | F470: 38318.54291 | G470: 39851.28462 | H470: 41445.33601 | I470: 43103.14945 | J470: 44827.27542 | K470: 46620.36644 | L470: 48485.1811 | M470: 50424.58834 | N470: 52441.57188 | O470: 54539.23475 | P470: 56175.41179 | Q470: 57860.67415 | R470: 59596.49437 | S470: 61384.3892 | T470: 63225.92088 | U470: 65122.69851 | V470: 67076.37946 | W470: 69088.67085 | X470: 359 | Y470: 33721.34677 | Z470: 69088.67085 | AA470: 61
A471: =Data!B360 -> 62 | B471: =HLOOKUP($A$1,Data!$C$1:$AI$388,$X471,FALSE) -> 34458.75706 | C471: 35147.9322 | D471: 36202.37017 | E471: 37650.46498 | F471: 39156.48358 | G471: 40722.74292 | H471: 42351.65264 | I471: 44045.71874 | J471: 45807.54749 | K471: 47639.84939 | L471: 49545.44337 | M471: 51527.2611 | N471: 53588.35154 | O471: 55731.88561 | P471: 57403.84217 | Q471: 59125.95744 | R471: 60899.73616 | S471: 62726.72825 | T471: 64608.53009 | U471: 66546.786 | V471: 68543.18958 | W471: 70599.48526 | X471: 360 | Y471: 34458.75706 | Z471: 70599.48526 | AA471: 62
A472: =Data!B361 -> 63 | B472: =HLOOKUP($A$1,Data!$C$1:$AI$388,$X472,FALSE) -> 35196.16735 | C472: 35900.0907 | D472: 36977.09342 | E472: 38456.17716 | F472: 39994.42425 | G472: 41594.20121 | H472: 43257.96926 | I472: 44988.28803 | J472: 46787.81956 | K472: 48659.33234 | L472: 50605.70563 | M472: 52629.93386 | N472: 54735.13121 | O472: 56924.53646 | P472: 58632.27255 | Q472: 60391.24073 | R472: 62202.97795 | S472: 64069.06729 | T472: 65991.13931 | U472: 67970.87349 | V472: 70009.99969 | W472: 72110.29968 | X472: 361 | Y472: 35196.16735 | Z472: 72110.29968 | AA472: 63
A473: =Data!B362 -> 64 | B473: =HLOOKUP($A$1,Data!$C$1:$AI$388,$X473,FALSE) -> 35933.57765 | C473: 36652.2492 | D473: 37751.81667 | E473: 39261.88934 | F473: 40832.36491 | G473: 42465.65951 | H473: 44164.28589 | I473: 45930.85733 | J473: 47768.09162 | K473: 49678.81529 | L473: 51665.9679 | M473: 53732.60661 | N473: 55881.91088 | O473: 58117.18731 | P473: 59860.70293 | Q473: 61656.52402 | R473: 63506.21974 | S473: 65411.40633 | T473: 67373.74852 | U473: 69394.96098 | V473: 71476.80981 | W473: 73621.1141 | X473: 362 | Y473: 35933.57765 | Z473: 73621.1141 | AA473: 64
... 121 more rows

Sheet S2
A1: =Data!E1 -> 2-Highland Council-Caithness HMA | E1: =VLOOKUP($A$1,Map!$O$10:$AC$60,14,FALSE) -> 2-Highland Council-Badenoch & Strathspey HMA | H1: =VLOOKUP($A$1,Map!$O$10:$AC$60,15,FALSE) -> 2-Highland Council-East Ross HMA
A3: 1. Household Projections
A4: Choose NRS household projection variant. | X4: 2
X5: 1
X6: 1
X7: 1
X8: 1
X9: 1
X10: 1
C11: =D11-1 -> 2011 | D11: =D16 -> 2012 | E11: =D11+1 -> 2013 | F11: 2014 | G11: 2015 | H11: 2016 | I11: 2017 | J11: 2018 | K11: 2019 | L11: 2020 | M11: 2021 | N11: 2022
A12: Enter Projections Here | C12: 0 | D12: 0 | E12: 0 | F12: 0 | G12: 0 | H12: 0 | I12: 0 | J12: 0 | K12: 0 | L12: 0 | M12: 0 | N12: 0
D13: =N11+1 -> 2023 | E13: =D13+1 -> 2024 | F13: 2025 | G13: 2026 | H13: 2027 | I13: 2028 | J13: 2029 | K13: 2030 | L13: 2031 | M13: 2032 | N13: 2033
D14: 0 | E14: 0 | F14: 0 | G14: 0 | H14: 0 | I14: 0 | J14: 0 | K14: 0 | L14: 0 | M14: 0 | N14: 0
A16: 1a. Household growth Adjustment | D16: =C300 -> 2012 | E16: =D16+1 -> 2013 | F16: 2014 | G16: 2015 | H16: 2016 | I16: 2017 | J16: 2018 | K16: 2019 | L16: 2020 | M16: 2021 | N16: 2022
D17: 0 | E17: 0 | F17: 0 | G17: 0 | H17: 0 | I17: 0 | J17: 0 | K17: 0 | L17: 0 | M17: 0 | N17: 0
D18: =N16+1 -> 2023 | E18: =D18+1 -> 2024 | F18: 2025 | G18: 2026 | H18: 2027 | I18: 2028 | J18: 2029 | K18: 2030 | L18: 2031 | M18: 2032 | N18: 2033
D19: 0 | E19: 0 | F19: 0 | G19: 0 | H19: 0 | I19: 0 | J19: 0 | K19: 0 | L19: 0 | M19: 0 | N19: 0
A21: 2. Existing Need
A22: Either
A25: Total From HaTAP method | D25: =IF(B312=TRUE,SUM(C312:W312),"-") -> -
A26: Or own exisiting need figures
A29: Existing Need | B29: 72
A31: 2a. Years to clear exisiting need
A34: Existing "Cleared" In? Enter Years | B34: 13
A41: 3. Income, Growth and Distribution
A43: Growth in median income scenario
A45: Change in income distribution
A48: Select part of income distribution interested in
B49: Example A | C49: 75 | D49: %ile
B50: Example B | C50: 25 | D50: %ile
B51: Example Year | C51: 2032
X52: 1
X53: 2
X54: 1
A57: 4. Prices and Afforability | X57: 1
X58: 1
X59: 1
X60: 1
B61: Percentile | C61: 0.25
B64: Income Ratio | C64: 4 | X64: 1
A114: 5. Split Need into Tenure
B115: Proportion of market who buy | C115: 0.5
B116: Upper income-to-rent threshold | C116: 0.25
A117: Lower income-to-rent treshohld | B117: Lower I-rent income limit | C117: 0.35
A118: Rent Growth Assumption
X122: 1
X123: 1
X127: 1
A269: Principal
A270: High migration
A271: Low migration
A272: Alternative headship
A273: Alternative headship with high migration
A274: Alternative headship with low migration
A275: Constrained Housing
A278: Small Area Income Estimates (HW)
A279: CACI Income Data
A299: Households
A300: Year | B300: =Map!T6-1 -> 2011 | C300: =B300+1 -> 2012 | D300: 2013 | E300: 2014 | F300: 2015 | G300: 2016 | H300: 2017 | I300: 2018 | J300: 2019 | K300: 2020 | L300: 2021 | M300: 2022 | N300: 2023 | O300: 2024 | P300: 2025 | Q300: 2026 | R300: 2027 | S300: 2028 | T300: 2029 | U300: 2030 | V300: 2031 | W300: 2032 | X300: Ref
A301: Core (Principal) | B301: =HLOOKUP($A$1,Data!$C$1:$AI$40,B300-($B$300-$X$301),FALSE) -> 11851.42784 | C301: =HLOOKUP($A$1,Data!$C$1:$AI$40,C300-($B$300-$X$301),FALSE) -> 11890.88431 | D301: =HLOOKUP($A$1,Data!$C$1:$AI$40,D300-($B$300-$X$301),FALSE) -> 11930.34078 | E301: =HLOOKUP($A$1,Data!$C$1:$AI$40,E300-($B$300-$X$301),FALSE) -> 11972.95656 | F301: =HLOOKUP($A$1,Data!$C$1:$AI$40,F300-($B$300-$X$301),FALSE) -> 12005.57405 | G301: =HLOOKUP($A$1,Data!$C$1:$AI$40,G300-($B$300-$X$301),FALSE) -> 12030.38675 | H301: =HLOOKUP($A$1,Data!$C$1:$AI$40,H300-($B$300-$X$301),FALSE) -> 12052.3611 | I301: =HLOOKUP($A$1,Data!$C$1:$AI$40,I300-($B$300-$X$301),FALSE) -> 12081.56216 | J301: =HLOOKUP($A$1,Data!$C$1:$AI$40,J300-($B$300-$X$301),FALSE) -> 12103.43806 | K301: =HLOOKUP($A$1,Data!$C$1:$AI$40,K300-($B$300-$X$301),FALSE) -> 12113.22672 | L301: =HLOOKUP($A$1,Data!$C$1:$AI$40,L300-($B$300-$X$301),FALSE) -> 12123.023 | M301: =HLOOKUP($A$1,Data!$C$1:$AI$40,M300-($B$300-$X$301),FALSE) -> 12127.25909 | N301: =HLOOKUP($A$1,Data!$C$1:$AI$40,N300-($B$300-$X$301),FALSE) -> 12130.2045 | O301: =HLOOKUP($A$1,Data!$C$1:$AI$40,O300-($B$300-$X$301),FALSE) -> 12135.60669 | P301: =HLOOKUP($A$1,Data!$C$1:$AI$40,P300-($B$300-$X$301),FALSE) -> 12121.64343 | Q301: =HLOOKUP($A$1,Data!$C$1:$AI$40,Q300-($B$300-$X$301),FALSE) -> 12110.22158 | R301: =HLOOKUP($A$1,Data!$C$1:$AI$40,R300-($B$300-$X$301),FALSE) -> 12098.93295 | S301: =HLOOKUP($A$1,Data!$C$1:$AI$40,S300-($B$300-$X$301),FALSE) -> 12078.79927 | T301: =HLOOKUP($A$1,Data!$C$1:$AI$40,T300-($B$300-$X$301),FALSE) -> 12061.36895 | U301: =HLOOKUP($A$1,Data!$C$1:$AI$40,U300-($B$300-$X$301),FALSE) -> 12027.3575 | V301: =HLOOKUP($A$1,Data!$C$1:$AI$40,V300-($B$300-$X$301),FALSE) -> 11993.27437 | W301: =HLOOKUP($A$1,Data!$C$1:$AI$40,W300-($B$300-$X$301),FALSE) -> 11955.02355 | X301: 19
A302: =CONCATENATE("User (",CHOOSE(X4,A269,A270,A271,A272,A273,A274,A275),")") -> User (High migration) | B302: =IF($B$308=TRUE,C12,HLOOKUP($A$1,Data!$C$1:$AI$184,B300-($B$300-$X$302)+24*($X$4-1),FALSE)) -> 11849.54292 | C302: =IF($B$308=TRUE,D12,HLOOKUP($A$1,Data!$C$1:$AI$184,C300-($B$300-$X$302)+24*($X$4-1),FALSE)) -> 11890.88431 | D302: =IF($B$308=TRUE,E12,HLOOKUP($A$1,Data!$C$1:$AI$184,D300-($B$300-$X$302)+24*($X$4-1),FALSE)) -> 11932.2257 | E302: =IF($B$308=TRUE,F12,HLOOKUP($A$1,Data!$C$1:$AI$184,E300-($B$300-$X$302)+24*($X$4-1),FALSE)) -> 11980.08999 | F302: =IF($B$308=TRUE,G12,HLOOKUP($A$1,Data!$C$1:$AI$184,F300-($B$300-$X$302)+24*($X$4-1),FALSE)) -> 12018.11627 | G302: =IF($B$308=TRUE,H12,HLOOKUP($A$1,Data!$C$1:$AI$184,G300-($B$300-$X$302)+24*($X$4-1),FALSE)) -> 12050.14341 | H302: =IF($B$308=TRUE,I12,HLOOKUP($A$1,Data!$C$1:$AI$184,H300-($B$300-$X$302)+24*($X$4-1),FALSE)) -> 12082.82278 | I302: =IF($B$308=TRUE,J12,HLOOKUP($A$1,Data!$C$1:$AI$184,I300-($B$300-$X$302)+24*($X$4-1),FALSE)) -> 12123.10923 | J302: =IF($B$308=TRUE,K12,HLOOKUP($A$1,Data!$C$1:$AI$184,J300-($B$300-$X$302)+24*($X$4-1),FALSE)) -> 12159.70784 | K302: =IF($B$308=TRUE,L12,HLOOKUP($A$1,Data!$C$1:$AI$184,K300-($B$300-$X$302)+24*($X$4-1),FALSE)) -> 12184.40941 | L302: =IF($B$308=TRUE,M12,HLOOKUP($A$1,Data!$C$1:$AI$184,L300-($B$300-$X$302)+24*($X$4-1),FALSE)) -> 12209.57322 | M302: =IF($B$308=TRUE,N12,HLOOKUP($A$1,Data!$C$1:$AI$184,M300-($B$300-$X$302)+24*($X$4-1),FALSE)) -> 12229.35589 | N302: =IF($B$308=TRUE,D14,HLOOKUP($A$1,Data!$C$1:$AI$184,N300-($B$300-$X$302)+24*($X$4-1),FALSE)) -> 12248.14618 | O302: =IF($B$308=TRUE,E14,HLOOKUP($A$1,Data!$C$1:$AI$184,O300-($B$300-$X$302)+24*($X$4-1),FALSE)) -> 12269.74572 | P302: =IF($B$308=TRUE,F14,HLOOKUP($A$1,Data!$C$1:$AI$184,P300-($B$300-$X$302)+24*($X$4-1),FALSE)) -> 12271.94202 | Q302: =IF($B$308=TRUE,G14,HLOOKUP($A$1,Data!$C$1:$AI$184,Q300-($B$300-$X$302)+24*($X$4-1),FALSE)) -> 12277.09536 | R302: =IF($B$308=TRUE,H14,HLOOKUP($A$1,Data!$C$1:$AI$184,R300-($B$300-$X$302)+24*($X$4-1),FALSE)) -> 12282.49028 | S302: =IF($B$308=TRUE,I14,HLOOKUP($A$1,Data!$C$1:$AI$184,S300-($B$300-$X$302)+24*($X$4-1),FALSE)) -> 12279.2256 | T302: =IF($B$308=TRUE,J14,HLOOKUP($A$1,Data!$C$1:$AI$184,T300-($B$300-$X$302)+24*($X$4-1),FALSE)) -> 12279.0079 | U302: =IF($B$308=TRUE,K14,HLOOKUP($A$1,Data!$C$1:$AI$184,U300-($B$300-$X$302)+24*($X$4-1),FALSE)) -> 12262.07891 | V302: =IF($B$308=TRUE,L14,HLOOKUP($A$1,Data!$C$1:$AI$184,V300-($B$300-$X$302)+24*($X$4-1),FALSE)) -> 12245.53054 | W302: =IF($B$308=TRUE,M14,HLOOKUP($A$1,Data!$C$1:$AI$184,W300-($B$300-$X$302)+24*($X$4-1),FALSE)) -> 12224.93404 | X302: 19
C303: =(C302-B302) -> 41.3413873 | D303: =(D302-C302) -> 41.3413873 | E303: 47.86428911 | F303: 38.02628422 | G303: 32.02714324 | H303: 32.67936313 | I303: 40.28644697 | J303: 36.5986165 | K303: 24.70156502 | L303: 25.16381288 | M303: 19.78267253 | N303: 18.79028941 | O303: 21.59954103 | P303: 2.19629306 | Q303: 5.153345296 | R303: 5.394915068 | S303: -3.264679213 | T303: -0.2176969726 | U303: -16.92899162 | V303: -16.54836481 | W303: -20.59650645
A304: =CONCATENATE(A302, " Adjusted") -> User (High migration) Adjusted | B304: =B302*(1+D17) -> 11849.54292 | C304: =(B304+C303)*(1+E17) -> 11890.88431 | D304: 11932.2257 | E304: 11980.08999 | F304: 12018.11627 | G304: 12050.14341 | H304: 12082.82278 | I304: 12123.10923 | J304: 12159.70784 | K304: 12184.40941 | L304: 12209.57322 | M304: =(L304+M303)*(1+D19) -> 12229.35589 | N304: 12248.14618 | O304: 12269.74572 | P304: 12271.94202 | Q304: 12277.09536 | R304: 12282.49028 | S304: 12279.2256 | T304: 12279.0079 | U304: 12262.07891 | V304: 12245.53054 | W304: 12224.93404
A305: Principal Change | C305: =C301-B301 -> 39.45646809 | D305: =D301-C301 -> 39.45646809 | E305: 42.61578365 | F305: 32.61748801 | G305: 24.81270157 | H305: 21.97435236 | I305: 29.20105973 | J305: 21.87589916 | K305: 9.788659874 | L305: 9.796273282 | M305: 4.236093498 | N305: 2.945409352 | O305: 5.402187025 | P305: -13.96325876 | Q305: -11.42184673 | R305: -11.28862784 | S305: -20.13368044 | T305: -17.43032273 | U305: -34.01144852 | V305: -34.08313256 | W305: -38.25082009
A306: =CONCATENATE(A302," Change") -> User (High migration) Change | C306: =C304-B304 -> 41.3413873 | D306: =D304-C304 -> 41.3413873 | E306: 47.86428911 | F306: 38.02628422 | G306: 32.02714324 | H306: 32.67936313 | I306: 40.28644697 | J306: 36.5986165 | K306: 24.70156502 | L306: 25.16381288 | M306: 19.78267253 | N306: 18.79028941 | O306: 21.59954103 | P306: 2.19629306 | Q306: 5.153345296 | R306: 5.394915068 | S306: -3.264679213 | T306: -0.2176969726 | U306: -16.92899162 | V306: -16.54836481 | W306: -20.59650645
B308: FALSE
A309: Backlog Need | B309: FALSE | C309: =IF(C300-$B300<=$B$34,$B$29/'S2'!$B$34,0) -> 5.538461538 | D309: =IF(D300-$B300<=$B$34,$B$29/'S2'!$B$34,0) -> 5.538461538 | E309: =IF(E300-$B300<=$B$34,$B$29/'S2'!$B$34,0) -> 5.538461538 | F309: =IF(F300-$B300<=$B$34,$B$29/'S2'!$B$34,0) -> 5.538461538 | G309: =IF(G300-$B300<=$B$34,$B$29/'S2'!$B$34,0) -> 5.538461538 | H309: =IF(H300-$B300<=$B$34,$B$29/'S2'!$B$34,0) -> 5.538461538 | I309: =IF(I300-$B300<=$B$34,$B$29/'S2'!$B$34,0) -> 5.538461538 | J309: =IF(J300-$B300<=$B$34,$B$29/'S2'!$B$34,0) -> 5.538461538 | K309: =IF(K300-$B300<=$B$34,$B$29/'S2'!$B$34,0) -> 5.538461538 | L309: =IF(L300-$B300<=$B$34,$B$29/'S2'!$B$34,0) -> 5.538461538 | M309: =IF(M300-$B300<=$B$34,$B$29/'S2'!$B$34,0) -> 5.538461538 | N309: =IF(N300-$B300<=$B$34,$B$29/'S2'!$B$34,0) -> 5.538461538 | O309: =IF(O300-$B300<=$B$34,$B$29/'S2'!$B$34,0) -> 5.538461538 | P309: =IF(P300-$B300<=$B$34,$B$29/'S2'!$B$34,0) -> 0 | Q309: =IF(Q300-$B300<=$B$34,$B$29/'S2'!$B$34,0) -> 0 | R309: =IF(R300-$B300<=$B$34,$B$29/'S2'!$B$34,0) -> 0 | S309: =IF(S300-$B300<=$B$34,$B$29/'S2'!$B$34,0) -> 0 | T309: =IF(T300-$B300<=$B$34,$B$29/'S2'!$B$34,0) -> 0 | U309: =IF(U300-$B300<=$B$34,$B$29/'S2'!$B$34,0) -> 0 | V309: =IF(V300-$B300<=$B$34,$B$29/'S2'!$B$34,0) -> 0 | W309: =IF(W300-$B300<=$B$34,$B$29/'S2'!$B$34,0) -> 0
A310: Backlog Need (TA) | C310: =IF(C300-$B300<=$B$34,HLOOKUP($A$1,Data!$C$1:$AJ$202,'S2'!$X$310,FALSE)/'S2'!$B$34,0) -> 8.615384615 | D310: =IF(D300-$B300<=$B$34,HLOOKUP($A$1,Data!$C$1:$AJ$202,'S2'!$X$310,FALSE)/'S2'!$B$34,0) -> 8.615384615 | E310: =IF(E300-$B300<=$B$34,HLOOKUP($A$1,Data!$C$1:$AJ$202,'S2'!$X$310,FALSE)/'S2'!$B$34,0) -> 8.615384615 | F310: =IF(F300-$B300<=$B$34,HLOOKUP($A$1,Data!$C$1:$AJ$202,'S2'!$X$310,FALSE)/'S2'!$B$34,0) -> 8.615384615 | G310: =IF(G300-$B300<=$B$34,HLOOKUP($A$1,Data!$C$1:$AJ$202,'S2'!$X$310,FALSE)/'S2'!$B$34,0) -> 8.615384615 | H310: =IF(H300-$B300<=$B$34,HLOOKUP($A$1,Data!$C$1:$AJ$202,'S2'!$X$310,FALSE)/'S2'!$B$34,0) -> 8.615384615 | I310: =IF(I300-$B300<=$B$34,HLOOKUP($A$1,Data!$C$1:$AJ$202,'S2'!$X$310,FALSE)/'S2'!$B$34,0) -> 8.615384615 | J310: =IF(J300-$B300<=$B$34,HLOOKUP($A$1,Data!$C$1:$AJ$202,'S2'!$X$310,FALSE)/'S2'!$B$34,0) -> 8.615384615 | K310: =IF(K300-$B300<=$B$34,HLOOKUP($A$1,Data!$C$1:$AJ$202,'S2'!$X$310,FALSE)/'S2'!$B$34,0) -> 8.615384615 | L310: =IF(L300-$B300<=$B$34,HLOOKUP($A$1,Data!$C$1:$AJ$202,'S2'!$X$310,FALSE)/'S2'!$B$34,0) -> 8.615384615 | M310: =IF(M300-$B300<=$B$34,HLOOKUP($A$1,Data!$C$1:$AJ$202,'S2'!$X$310,FALSE)/'S2'!$B$34,0) -> 8.615384615 | N310: =IF(N300-$B300<=$B$34,HLOOKUP($A$1,Data!$C$1:$AJ$202,'S2'!$X$310,FALSE)/'S2'!$B$34,0) -> 8.615384615 | O310: =IF(O300-$B300<=$B$34,HLOOKUP($A$1,Data!$C$1:$AJ$202,'S2'!$X$310,FALSE)/'S2'!$B$34,0) -> 8.615384615 | P310: =IF(P300-$B300<=$B$34,HLOOKUP($A$1,Data!$C$1:$AJ$202,'S2'!$X$310,FALSE)/'S2'!$B$34,0) -> 0 | Q310: =IF(Q300-$B300<=$B$34,HLOOKUP($A$1,Data!$C$1:$AJ$202,'S2'!$X$310,FALSE)/'S2'!$B$34,0) -> 0 | R310: =IF(R300-$B300<=$B$34,HLOOKUP($A$1,Data!$C$1:$AJ$202,'S2'!$X$310,FALSE)/'S2'!$B$34,0) -> 0 | S310: =IF(S300-$B300<=$B$34,HLOOKUP($A$1,Data!$C$1:$AJ$202,'S2'!$X$310,FALSE)/'S2'!$B$34,0) -> 0 | T310: =IF(T300-$B300<=$B$34,HLOOKUP($A$1,Data!$C$1:$AJ$202,'S2'!$X$310,FALSE)/'S2'!$B$34,0) -> 0 | U310: =IF(U300-$B300<=$B$34,HLOOKUP($A$1,Data!$C$1:$AJ$202,'S2'!$X$310,FALSE)/'S2'!$B$34,0) -> 0 | V310: =IF(V300-$B300<=$B$34,HLOOKUP($A$1,Data!$C$1:$AJ$202,'S2'!$X$310,FALSE)/'S2'!$B$34,0) -> 0 | W310: =IF(W300-$B300<=$B$34,HLOOKUP($A$1,Data!$C$1:$AJ$202,'S2'!$X$310,FALSE)/'S2'!$B$34,0) -> 0 | X310: 202
A311: Backlog Need (Traditional) | C311: =IF(C300-$B300<=$B$34,HLOOKUP($A$1,Data!$C$1:$AJ$201,'S2'!$X311,FALSE)/'S2'!$B$34,0) -> 0 | D311: =IF(D300-$B300<=$B$34,HLOOKUP($A$1,Data!$C$1:$AJ$201,'S2'!$X311,FALSE)/'S2'!$B$34,0) -> 0 | E311: =IF(E300-$B300<=$B$34,HLOOKUP($A$1,Data!$C$1:$AJ$201,'S2'!$X311,FALSE)/'S2'!$B$34,0) -> 0 | F311: =IF(F300-$B300<=$B$34,HLOOKUP($A$1,Data!$C$1:$AJ$201,'S2'!$X311,FALSE)/'S2'!$B$34,0) -> 0 | G311: =IF(G300-$B300<=$B$34,HLOOKUP($A$1,Data!$C$1:$AJ$201,'S2'!$X311,FALSE)/'S2'!$B$34,0) -> 0 | H311: =IF(H300-$B300<=$B$34,HLOOKUP($A$1,Data!$C$1:$AJ$201,'S2'!$X311,FALSE)/'S2'!$B$34,0) -> 0 | I311: =IF(I300-$B300<=$B$34,HLOOKUP($A$1,Data!$C$1:$AJ$201,'S2'!$X311,FALSE)/'S2'!$B$34,0) -> 0 | J311: =IF(J300-$B300<=$B$34,HLOOKUP($A$1,Data!$C$1:$AJ$201,'S2'!$X311,FALSE)/'S2'!$B$34,0) -> 0 | K311: =IF(K300-$B300<=$B$34,HLOOKUP($A$1,Data!$C$1:$AJ$201,'S2'!$X311,FALSE)/'S2'!$B$34,0) -> 0 | L311: =IF(L300-$B300<=$B$34,HLOOKUP($A$1,Data!$C$1:$AJ$201,'S2'!$X311,FALSE)/'S2'!$B$34,0) -> 0 | M311: =IF(M300-$B300<=$B$34,HLOOKUP($A$1,Data!$C$1:$AJ$201,'S2'!$X311,FALSE)/'S2'!$B$34,0) -> 0 | N311: =IF(N300-$B300<=$B$34,HLOOKUP($A$1,Data!$C$1:$AJ$201,'S2'!$X311,FALSE)/'S2'!$B$34,0) -> 0 | O311: =IF(O300-$B300<=$B$34,HLOOKUP($A$1,Data!$C$1:$AJ$201,'S2'!$X311,FALSE)/'S2'!$B$34,0) -> 0 | P311: =IF(P300-$B300<=$B$34,HLOOKUP($A$1,Data!$C$1:$AJ$201,'S2'!$X311,FALSE)/'S2'!$B$34,0) -> 0 | Q311: =IF(Q300-$B300<=$B$34,HLOOKUP($A$1,Data!$C$1:$AJ$201,'S2'!$X311,FALSE)/'S2'!$B$34,0) -> 0 | R311: =IF(R300-$B300<=$B$34,HLOOKUP($A$1,Data!$C$1:$AJ$201,'S2'!$X311,FALSE)/'S2'!$B$34,0) -> 0 | S311: =IF(S300-$B300<=$B$34,HLOOKUP($A$1,Data!$C$1:$AJ$201,'S2'!$X311,FALSE)/'S2'!$B$34,0) -> 0 | T311: =IF(T300-$B300<=$B$34,HLOOKUP($A$1,Data!$C$1:$AJ$201,'S2'!$X311,FALSE)/'S2'!$B$34,0) -> 0 | U311: =IF(U300-$B300<=$B$34,HLOOKUP($A$1,Data!$C$1:$AJ$201,'S2'!$X311,FALSE)/'S2'!$B$34,0) -> 0 | V311: =IF(V300-$B300<=$B$34,HLOOKUP($A$1,Data!$C$1:$AJ$201,'S2'!$X311,FALSE)/'S2'!$B$34,0) -> 0 | W311: =IF(W300-$B300<=$B$34,HLOOKUP($A$1,Data!$C$1:$AJ$201,'S2'!$X311,FALSE)/'S2'!$B$34,0) -> 0 | X311: 199
A312: Exisitng Scenario | B312: FALSE | C312: =IF($B$312=TRUE,C310,IF($B$310=TRUE,C311,C309)) -> 5.538461538 | D312: 5.538461538 | E312: 5.538461538 | F312: 5.538461538 | G312: 5.538461538 | H312: 5.538461538 | I312: 5.538461538 | J312: 5.538461538 | K312: 5.538461538 | L312: 5.538461538 | M312: 5.538461538 | N312: 5.538461538 | O312: 5.538461538 | P312: 0 | Q312: 0 | R312: 0 | S312: 0 | T312: 0 | U312: 0 | V312: 0 | W312: 0
A315: Overall | C315: =C300 -> 2012 | D315: =D300 -> 2013 | E315: 2014 | F315: 2015 | G315: 2016 | H315: 2017 | I315: 2018 | J315: 2019 | K315: 2020 | L315: 2021 | M315: 2022 | N315: 2023 | O315: 2024 | P315: 2025 | Q315: 2026 | R315: 2027 | S315: 2028 | T315: 2029 | U315: 2030 | V315: 2031 | W315: 2032
A316: Existing Principal | C316: =IF(C300-$B300<=CoreAssumptions!$F$10,HLOOKUP($A$1,Data!$C$1:$AJ$202,'S2'!$X$310,FALSE)/CoreAssumptions!$F$10,0) -> 22.4 | D316: =IF(D300-$B300<=CoreAssumptions!$F$10,HLOOKUP($A$1,Data!$C$1:$AJ$202,'S2'!$X$310,FALSE)/CoreAssumptions!$F$10,0) -> 22.4 | E316: =IF(E300-$B300<=CoreAssumptions!$F$10,HLOOKUP($A$1,Data!$C$1:$AJ$202,'S2'!$X$310,FALSE)/CoreAssumptions!$F$10,0) -> 22.4 | F316: =IF(F300-$B300<=CoreAssumptions!$F$10,HLOOKUP($A$1,Data!$C$1:$AJ$202,'S2'!$X$310,FALSE)/CoreAssumptions!$F$10,0) -> 22.4 | G316: =IF(G300-$B300<=CoreAssumptions!$F$10,HLOOKUP($A$1,Data!$C$1:$AJ$202,'S2'!$X$310,FALSE)/CoreAssumptions!$F$10,0) -> 22.4 | H316: =IF(H300-$B300<=CoreAssumptions!$F$10,HLOOKUP($A$1,Data!$C$1:$AJ$202,'S2'!$X$310,FALSE)/CoreAssumptions!$F$10,0) -> 0 | I316: =IF(I300-$B300<=CoreAssumptions!$F$10,HLOOKUP($A$1,Data!$C$1:$AJ$202,'S2'!$X$310,FALSE)/CoreAssumptions!$F$10,0) -> 0 | J316: =IF(J300-$B300<=CoreAssumptions!$F$10,HLOOKUP($A$1,Data!$C$1:$AJ$202,'S2'!$X$310,FALSE)/CoreAssumptions!$F$10,0) -> 0 | K316: =IF(K300-$B300<=CoreAssumptions!$F$10,HLOOKUP($A$1,Data!$C$1:$AJ$202,'S2'!$X$310,FALSE)/CoreAssumptions!$F$10,0) -> 0 | L316: =IF(L300-$B300<=CoreAssumptions!$F$10,HLOOKUP($A$1,Data!$C$1:$AJ$202,'S2'!$X$310,FALSE)/CoreAssumptions!$F$10,0) -> 0 | M316: =IF(M300-$B300<=CoreAssumptions!$F$10,HLOOKUP($A$1,Data!$C$1:$AJ$202,'S2'!$X$310,FALSE)/CoreAssumptions!$F$10,0) -> 0 | N316: =IF(N300-$B300<=CoreAssumptions!$F$10,HLOOKUP($A$1,Data!$C$1:$AJ$202,'S2'!$X$310,FALSE)/CoreAssumptions!$F$10,0) -> 0 | O316: =IF(O300-$B300<=CoreAssumptions!$F$10,HLOOKUP($A$1,Data!$C$1:$AJ$202,'S2'!$X$310,FALSE)/CoreAssumptions!$F$10,0) -> 0 | P316: =IF(P300-$B300<=CoreAssumptions!$F$10,HLOOKUP($A$1,Data!$C$1:$AJ$202,'S2'!$X$310,FALSE)/CoreAssumptions!$F$10,0) -> 0 | Q316: =IF(Q300-$B300<=CoreAssumptions!$F$10,HLOOKUP($A$1,Data!$C$1:$AJ$202,'S2'!$X$310,FALSE)/CoreAssumptions!$F$10,0) -> 0 | R316: =IF(R300-$B300<=CoreAssumptions!$F$10,HLOOKUP($A$1,Data!$C$1:$AJ$202,'S2'!$X$310,FALSE)/CoreAssumptions!$F$10,0) -> 0 | S316: =IF(S300-$B300<=CoreAssumptions!$F$10,HLOOKUP($A$1,Data!$C$1:$AJ$202,'S2'!$X$310,FALSE)/CoreAssumptions!$F$10,0) -> 0 | T316: =IF(T300-$B300<=CoreAssumptions!$F$10,HLOOKUP($A$1,Data!$C$1:$AJ$202,'S2'!$X$310,FALSE)/CoreAssumptions!$F$10,0) -> 0 | U316: =IF(U300-$B300<=CoreAssumptions!$F$10,HLOOKUP($A$1,Data!$C$1:$AJ$202,'S2'!$X$310,FALSE)/CoreAssumptions!$F$10,0) -> 0 | V316: =IF(V300-$B300<=CoreAssumptions!$F$10,HLOOKUP($A$1,Data!$C$1:$AJ$202,'S2'!$X$310,FALSE)/CoreAssumptions!$F$10,0) -> 0 | W316: =IF(W300-$B300<=CoreAssumptions!$F$10,HLOOKUP($A$1,Data!$C$1:$AJ$202,'S2'!$X$310,FALSE)/CoreAssumptions!$F$10,0) -> 0
A317: Newly Arising Principal | C317: =C305 -> 39.45646809 | D317: =D305 -> 39.45646809 | E317: 42.61578365 | F317: 32.61748801 | G317: 24.81270157 | H317: 21.97435236 | I317: 29.20105973 | J317: 21.87589916 | K317: 9.788659874 | L317: 9.796273282 | M317: 4.236093498 | N317: 2.945409352 | O317: 5.402187025 | P317: -13.96325876 | Q317: -11.42184673 | R317: -11.28862784 | S317: -20.13368044 | T317: -17.43032273 | U317: -34.01144852 | V317: -34.08313256 | W317: -38.25082009
A318: Newly Arising Scenario | C318: =C306 -> 41.3413873 | D318: 41.3413873 | E318: 47.86428911 | F318: 38.02628422 | G318: 32.02714324 | H318: 32.67936313 | I318: 40.28644697 | J318: 36.5986165 | K318: 24.70156502 | L318: 25.16381288 | M318: 19.78267253 | N318: 18.79028941 | O318: 21.59954103 | P318: 2.19629306 | Q318: 5.153345296 | R318: 5.394915068 | S318: -3.264679213 | T318: -0.2176969726 | U318: -16.92899162 | V318: -16.54836481 | W318: -20.59650645
A319: Total Principal | C319: =C316+C317 -> 61.85646809 | D319: =D316+D317 -> 61.85646809 | E319: 65.01578365 | F319: 55.01748801 | G319: 47.21270157 | H319: 21.97435236 | I319: 29.20105973 | J319: 21.87589916 | K319: 9.788659874 | L319: 9.796273282 | M319: 4.236093498 | N319: 2.945409352 | O319: 5.402187025 | P319: -13.96325876 | Q319: -11.42184673 | R319: -11.28862784 | S319: -20.13368044 | T319: -17.43032273 | U319: -34.01144852 | V319: -34.08313256 | W319: -38.25082009
A320: Total Scenario | C320: =C318+C312 -> 46.87984884 | D320: =D318+D312 -> 46.87984884 | E320: 53.40275065 | F320: 43.56474576 | G320: 37.56560478 | H320: 38.21782467 | I320: 45.82490851 | J320: 42.13707804 | K320: 30.24002656 | L320: 30.70227441 | M320: 25.32113407 | N320: 24.32875094 | O320: 27.13800257 | P320: 2.19629306 | Q320: 5.153345296 | R320: 5.394915068 | S320: -3.264679213 | T320: -0.2176969726 | U320: -16.92899162 | V320: -16.54836481 | W320: -20.59650645
A322: In Current Proportions | C322: =C315 -> 2012 | D322: =D315 -> 2013 | E322: 2014 | F322: 2015 | G322: 2016 | H322: 2017 | I322: 2018 | J322: 2019 | K322: 2020 | L322: 2021 | M322: 2022 | N322: 2023 | O322: 2024 | P322: 2025 | Q322: 2026 | R322: 2027 | S322: 2028 | T322: 2029 | U322: 2030 | V322: 2031 | W322: 2032
A323: Principal Private | C323: =-HLOOKUP($A$1,Data!$C$1:$AI$388,'S2'!$X323,FALSE)*C319/100 -> -42.50776487 | D323: =-HLOOKUP($A$1,Data!$C$1:$AI$388,'S2'!$X323,FALSE)*D319/100 -> -42.50776487 | E323: =-HLOOKUP($A$1,Data!$C$1:$AI$388,'S2'!$X323,FALSE)*E319/100 -> -44.67884652 | F323: =-HLOOKUP($A$1,Data!$C$1:$AI$388,'S2'!$X323,FALSE)*F319/100 -> -37.80801776 | G323: =-HLOOKUP($A$1,Data!$C$1:$AI$388,'S2'!$X323,FALSE)*G319/100 -> -32.44456852 | H323: =-HLOOKUP($A$1,Data!$C$1:$AI$388,'S2'!$X323,FALSE)*H319/100 -> -15.10077494 | I323: =-HLOOKUP($A$1,Data!$C$1:$AI$388,'S2'!$X323,FALSE)*I319/100 -> -20.06696825 | J323: =-HLOOKUP($A$1,Data!$C$1:$AI$388,'S2'!$X323,FALSE)*J319/100 -> -15.0331179 | K323: =-HLOOKUP($A$1,Data!$C$1:$AI$388,'S2'!$X323,FALSE)*K319/100 -> -6.726767065 | L323: =-HLOOKUP($A$1,Data!$C$1:$AI$388,'S2'!$X323,FALSE)*L319/100 -> -6.731999 | M323: =-HLOOKUP($A$1,Data!$C$1:$AI$388,'S2'!$X323,FALSE)*M319/100 -> -2.911043452 | N323: =-HLOOKUP($A$1,Data!$C$1:$AI$388,'S2'!$X323,FALSE)*N319/100 -> -2.024085306 | O323: =-HLOOKUP($A$1,Data!$C$1:$AI$388,'S2'!$X323,FALSE)*O319/100 -> -3.712382924 | P323: =-HLOOKUP($A$1,Data!$C$1:$AI$388,'S2'!$X323,FALSE)*P319/100 -> 9.595551422 | Q323: =-HLOOKUP($A$1,Data!$C$1:$AI$388,'S2'!$X323,FALSE)*Q319/100 -> 7.849093075 | R323: =-HLOOKUP($A$1,Data!$C$1:$AI$388,'S2'!$X323,FALSE)*R319/100 -> 7.757545052 | S323: =-HLOOKUP($A$1,Data!$C$1:$AI$388,'S2'!$X323,FALSE)*S319/100 -> 13.8358652 | T323: =-HLOOKUP($A$1,Data!$C$1:$AI$388,'S2'!$X323,FALSE)*T319/100 -> 11.97811778 | U323: =-HLOOKUP($A$1,Data!$C$1:$AI$388,'S2'!$X323,FALSE)*U319/100 -> 23.37266743 | V323: =-HLOOKUP($A$1,Data!$C$1:$AI$388,'S2'!$X323,FALSE)*V319/100 -> 23.42192869 | W323: =-HLOOKUP($A$1,Data!$C$1:$AI$388,'S2'!$X323,FALSE)*W319/100 -> 26.28596357 | X323: 216
A324: Principal Social | C324: =-HLOOKUP($A$1,Data!$C$1:$AI$388,'S2'!$X324,FALSE)*C319/100 -> -13.00222959 | D324: =-HLOOKUP($A$1,Data!$C$1:$AI$388,'S2'!$X324,FALSE)*D319/100 -> -13.00222959 | E324: =-HLOOKUP($A$1,Data!$C$1:$AI$388,'S2'!$X324,FALSE)*E319/100 -> -13.66631772 | F324: =-HLOOKUP($A$1,Data!$C$1:$AI$388,'S2'!$X324,FALSE)*F319/100 -> -11.56467598 | G324: =-HLOOKUP($A$1,Data!$C$1:$AI$388,'S2'!$X324,FALSE)*G319/100 -> -9.924109869 | H324: =-HLOOKUP($A$1,Data!$C$1:$AI$388,'S2'!$X324,FALSE)*H319/100 -> -4.619008867 | I324: =-HLOOKUP($A$1,Data!$C$1:$AI$388,'S2'!$X324,FALSE)*I319/100 -> -6.138062756 | J324: =-HLOOKUP($A$1,Data!$C$1:$AI$388,'S2'!$X324,FALSE)*J319/100 -> -4.598314003 | K324: =-HLOOKUP($A$1,Data!$C$1:$AI$388,'S2'!$X324,FALSE)*K319/100 -> -2.057576306 | L324: =-HLOOKUP($A$1,Data!$C$1:$AI$388,'S2'!$X324,FALSE)*L319/100 -> -2.059176644 | M324: =-HLOOKUP($A$1,Data!$C$1:$AI$388,'S2'!$X324,FALSE)*M319/100 -> -0.8904268533 | N324: =-HLOOKUP($A$1,Data!$C$1:$AI$388,'S2'!$X324,FALSE)*N319/100 -> -0.6191250457 | O324: =-HLOOKUP($A$1,Data!$C$1:$AI$388,'S2'!$X324,FALSE)*O319/100 -> -1.135539713 | P324: =-HLOOKUP($A$1,Data!$C$1:$AI$388,'S2'!$X324,FALSE)*P319/100 -> 2.935076992 | Q324: =-HLOOKUP($A$1,Data!$C$1:$AI$388,'S2'!$X324,FALSE)*Q319/100 -> 2.400872183 | R324: =-HLOOKUP($A$1,Data!$C$1:$AI$388,'S2'!$X324,FALSE)*R319/100 -> 2.372869572 | S324: =-HLOOKUP($A$1,Data!$C$1:$AI$388,'S2'!$X324,FALSE)*S319/100 -> 4.232099629 | T324: =-HLOOKUP($A$1,Data!$C$1:$AI$388,'S2'!$X324,FALSE)*T319/100 -> 3.663853837 | U324: =-HLOOKUP($A$1,Data!$C$1:$AI$388,'S2'!$X324,FALSE)*U319/100 -> 7.14920648 | V324: =-HLOOKUP($A$1,Data!$C$1:$AI$388,'S2'!$X324,FALSE)*V319/100 -> 7.164274464 | W324: =-HLOOKUP($A$1,Data!$C$1:$AI$388,'S2'!$X324,FALSE)*W319/100 -> 8.040322383 | X324: 217
A325: Principal PRS | C325: =-HLOOKUP($A$1,Data!$C$1:$AI$388,'S2'!$X325,FALSE)*C319/100 -> -6.346473626 | D325: =-HLOOKUP($A$1,Data!$C$1:$AI$388,'S2'!$X325,FALSE)*D319/100 -> -6.346473626 | E325: =-HLOOKUP($A$1,Data!$C$1:$AI$388,'S2'!$X325,FALSE)*E319/100 -> -6.670619403 | F325: =-HLOOKUP($A$1,Data!$C$1:$AI$388,'S2'!$X325,FALSE)*F319/100 -> -5.644794269 | G325: =-HLOOKUP($A$1,Data!$C$1:$AI$388,'S2'!$X325,FALSE)*G319/100 -> -4.844023181 | H325: =-HLOOKUP($A$1,Data!$C$1:$AI$388,'S2'!$X325,FALSE)*H319/100 -> -2.254568552 | I325: =-HLOOKUP($A$1,Data!$C$1:$AI$388,'S2'!$X325,FALSE)*I319/100 -> -2.996028729 | J325: =-HLOOKUP($A$1,Data!$C$1:$AI$388,'S2'!$X325,FALSE)*J319/100 -> -2.244467253 | K325: =-HLOOKUP($A$1,Data!$C$1:$AI$388,'S2'!$X325,FALSE)*K319/100 -> -1.004316503 | L325: =-HLOOKUP($A$1,Data!$C$1:$AI$388,'S2'!$X325,FALSE)*L319/100 -> -1.005097639 | M325: =-HLOOKUP($A$1,Data!$C$1:$AI$388,'S2'!$X325,FALSE)*M319/100 -> -0.4346231929 | N325: =-HLOOKUP($A$1,Data!$C$1:$AI$388,'S2'!$X325,FALSE)*N319/100 -> -0.3021989995 | O325: =-HLOOKUP($A$1,Data!$C$1:$AI$388,'S2'!$X325,FALSE)*O319/100 -> -0.5542643888 | P325: =-HLOOKUP($A$1,Data!$C$1:$AI$388,'S2'!$X325,FALSE)*P319/100 -> 1.432630349 | Q325: =-HLOOKUP($A$1,Data!$C$1:$AI$388,'S2'!$X325,FALSE)*Q319/100 -> 1.171881475 | R325: =-HLOOKUP($A$1,Data!$C$1:$AI$388,'S2'!$X325,FALSE)*R319/100 -> 1.158213216 | S325: =-HLOOKUP($A$1,Data!$C$1:$AI$388,'S2'!$X325,FALSE)*S319/100 -> 2.065715614 | T325: =-HLOOKUP($A$1,Data!$C$1:$AI$388,'S2'!$X325,FALSE)*T319/100 -> 1.788351112 | U325: =-HLOOKUP($A$1,Data!$C$1:$AI$388,'S2'!$X325,FALSE)*U319/100 -> 3.489574619 | V325: =-HLOOKUP($A$1,Data!$C$1:$AI$388,'S2'!$X325,FALSE)*V319/100 -> 3.496929401 | W325: =-HLOOKUP($A$1,Data!$C$1:$AI$388,'S2'!$X325,FALSE)*W319/100 -> 3.924534141 | X325: 218
A326: Scenario Private | C326: =HLOOKUP($A$1,Data!$C$1:$AI$388,'S2'!$X326,FALSE)*C320/100 -> 32.21583212 | D326: =HLOOKUP($A$1,Data!$C$1:$AI$388,'S2'!$X326,FALSE)*D320/100 -> 32.21583212 | E326: =HLOOKUP($A$1,Data!$C$1:$AI$388,'S2'!$X326,FALSE)*E320/100 -> 36.69837025 | F326: =HLOOKUP($A$1,Data!$C$1:$AI$388,'S2'!$X326,FALSE)*F320/100 -> 29.93769329 | G326: =HLOOKUP($A$1,Data!$C$1:$AI$388,'S2'!$X326,FALSE)*G320/100 -> 25.81508361 | H326: =HLOOKUP($A$1,Data!$C$1:$AI$388,'S2'!$X326,FALSE)*H320/100 -> 26.26328911 | I326: =HLOOKUP($A$1,Data!$C$1:$AI$388,'S2'!$X326,FALSE)*I320/100 -> 31.49087713 | J326: =HLOOKUP($A$1,Data!$C$1:$AI$388,'S2'!$X326,FALSE)*J320/100 -> 28.95660003 | K326: =HLOOKUP($A$1,Data!$C$1:$AI$388,'S2'!$X326,FALSE)*K320/100 -> 20.78094625 | L326: =HLOOKUP($A$1,Data!$C$1:$AI$388,'S2'!$X326,FALSE)*L320/100 -> 21.09860298 | M326: =HLOOKUP($A$1,Data!$C$1:$AI$388,'S2'!$X326,FALSE)*M320/100 -> 17.40068333 | N326: =HLOOKUP($A$1,Data!$C$1:$AI$388,'S2'!$X326,FALSE)*N320/100 -> 16.71871765 | O326: =HLOOKUP($A$1,Data!$C$1:$AI$388,'S2'!$X326,FALSE)*O320/100 -> 18.64923537 | P326: =HLOOKUP($A$1,Data!$C$1:$AI$388,'S2'!$X326,FALSE)*P320/100 -> 1.509292591 | Q326: =HLOOKUP($A$1,Data!$C$1:$AI$388,'S2'!$X326,FALSE)*Q320/100 -> 3.541378887 | R326: =HLOOKUP($A$1,Data!$C$1:$AI$388,'S2'!$X326,FALSE)*R320/100 -> 3.707385635 | S326: =HLOOKUP($A$1,Data!$C$1:$AI$388,'S2'!$X326,FALSE)*S320/100 -> -2.243487555 | T326: =HLOOKUP($A$1,Data!$C$1:$AI$388,'S2'!$X326,FALSE)*T320/100 -> -0.1496013595 | U326: =HLOOKUP($A$1,Data!$C$1:$AI$388,'S2'!$X326,FALSE)*U320/100 -> -11.63360304 | V326: =HLOOKUP($A$1,Data!$C$1:$AI$388,'S2'!$X326,FALSE)*V320/100 -> -11.3720363 | W326: =HLOOKUP($A$1,Data!$C$1:$AI$388,'S2'!$X326,FALSE)*W320/100 -> -14.15391923 | X326: 216
A327: Scenario Social | C327: =HLOOKUP($A$1,Data!$C$1:$AI$388,'S2'!$X327,FALSE)*C320/100 -> 9.854144227 | D327: =HLOOKUP($A$1,Data!$C$1:$AI$388,'S2'!$X327,FALSE)*D320/100 -> 9.854144227 | E327: =HLOOKUP($A$1,Data!$C$1:$AI$388,'S2'!$X327,FALSE)*E320/100 -> 11.22525819 | F327: =HLOOKUP($A$1,Data!$C$1:$AI$388,'S2'!$X327,FALSE)*F320/100 -> 9.157309559 | G327: =HLOOKUP($A$1,Data!$C$1:$AI$388,'S2'!$X327,FALSE)*G320/100 -> 7.896290125 | H327: =HLOOKUP($A$1,Data!$C$1:$AI$388,'S2'!$X327,FALSE)*H320/100 -> 8.033386746 | I327: =HLOOKUP($A$1,Data!$C$1:$AI$388,'S2'!$X327,FALSE)*I320/100 -> 9.632395769 | J327: =HLOOKUP($A$1,Data!$C$1:$AI$388,'S2'!$X327,FALSE)*J320/100 -> 8.857213804 | K327: =HLOOKUP($A$1,Data!$C$1:$AI$388,'S2'!$X327,FALSE)*K320/100 -> 6.356453583 | L327: =HLOOKUP($A$1,Data!$C$1:$AI$388,'S2'!$X327,FALSE)*L320/100 -> 6.453618082 | M327: =HLOOKUP($A$1,Data!$C$1:$AI$388,'S2'!$X327,FALSE)*M320/100 -> 5.322502382 | N327: =HLOOKUP($A$1,Data!$C$1:$AI$388,'S2'!$X327,FALSE)*N320/100 -> 5.113903448 | O327: =HLOOKUP($A$1,Data!$C$1:$AI$388,'S2'!$X327,FALSE)*O320/100 -> 5.704408141 | P327: =HLOOKUP($A$1,Data!$C$1:$AI$388,'S2'!$X327,FALSE)*P320/100 -> 0.4616608012 | Q327: =HLOOKUP($A$1,Data!$C$1:$AI$388,'S2'!$X327,FALSE)*Q320/100 -> 1.083233181 | R327: =HLOOKUP($A$1,Data!$C$1:$AI$388,'S2'!$X327,FALSE)*R320/100 -> 1.134011147 | S327: =HLOOKUP($A$1,Data!$C$1:$AI$388,'S2'!$X327,FALSE)*S320/100 -> -0.6862355705 | T327: =HLOOKUP($A$1,Data!$C$1:$AI$388,'S2'!$X327,FALSE)*T320/100 -> -0.04575990363 | U327: =HLOOKUP($A$1,Data!$C$1:$AI$388,'S2'!$X327,FALSE)*U320/100 -> -3.558474038 | V327: =HLOOKUP($A$1,Data!$C$1:$AI$388,'S2'!$X327,FALSE)*V320/100 -> -3.478466283 | W327: =HLOOKUP($A$1,Data!$C$1:$AI$388,'S2'!$X327,FALSE)*W320/100 -> -4.329385655 | X327: 217
A328: Scenario PRS | C328: =HLOOKUP($A$1,Data!$C$1:$AI$388,'S2'!$X328,FALSE)*C320/100 -> 4.809872491 | D328: =HLOOKUP($A$1,Data!$C$1:$AI$388,'S2'!$X328,FALSE)*D320/100 -> 4.809872491 | E328: =HLOOKUP($A$1,Data!$C$1:$AI$388,'S2'!$X328,FALSE)*E320/100 -> 5.479122217 | F328: =HLOOKUP($A$1,Data!$C$1:$AI$388,'S2'!$X328,FALSE)*F320/100 -> 4.469742915 | G328: =HLOOKUP($A$1,Data!$C$1:$AI$388,'S2'!$X328,FALSE)*G320/100 -> 3.854231051 | H328: =HLOOKUP($A$1,Data!$C$1:$AI$388,'S2'!$X328,FALSE)*H320/100 -> 3.921148811 | I328: =HLOOKUP($A$1,Data!$C$1:$AI$388,'S2'!$X328,FALSE)*I320/100 -> 4.701635613 | J328: =HLOOKUP($A$1,Data!$C$1:$AI$388,'S2'!$X328,FALSE)*J320/100 -> 4.323264207 | K328: =HLOOKUP($A$1,Data!$C$1:$AI$388,'S2'!$X328,FALSE)*K320/100 -> 3.102626725 | L328: =HLOOKUP($A$1,Data!$C$1:$AI$388,'S2'!$X328,FALSE)*L320/100 -> 3.150053355 | M328: =HLOOKUP($A$1,Data!$C$1:$AI$388,'S2'!$X328,FALSE)*M320/100 -> 2.597948356 | N328: =HLOOKUP($A$1,Data!$C$1:$AI$388,'S2'!$X328,FALSE)*N320/100 -> 2.496129847 | O328: =HLOOKUP($A$1,Data!$C$1:$AI$388,'S2'!$X328,FALSE)*O320/100 -> 2.784359064 | P328: =HLOOKUP($A$1,Data!$C$1:$AI$388,'S2'!$X328,FALSE)*P320/100 -> 0.225339668 | Q328: =HLOOKUP($A$1,Data!$C$1:$AI$388,'S2'!$X328,FALSE)*Q320/100 -> 0.5287332273 | R328: =HLOOKUP($A$1,Data!$C$1:$AI$388,'S2'!$X328,FALSE)*R320/100 -> 0.553518286 | S328: =HLOOKUP($A$1,Data!$C$1:$AI$388,'S2'!$X328,FALSE)*S320/100 -> -0.3349560872 | T328: =HLOOKUP($A$1,Data!$C$1:$AI$388,'S2'!$X328,FALSE)*T320/100 -> -0.02233570939 | U328: =HLOOKUP($A$1,Data!$C$1:$AI$388,'S2'!$X328,FALSE)*U320/100 -> -1.73691454 | V328: =HLOOKUP($A$1,Data!$C$1:$AI$388,'S2'!$X328,FALSE)*V320/100 -> -1.69786223 | W328: =HLOOKUP($A$1,Data!$C$1:$AI$388,'S2'!$X328,FALSE)*W320/100 -> -2.113201561 | X328: 218
A330: Pri ces | B330: =B300 -> 2011 | C330: =B330+1 -> 2012 | D330: 2013 | E330: 2014 | F330: 2015 | G330: 2016 | H330: 2017 | I330: 2018 | J330: 2019 | K330: 2020 | L330: 2021 | M330: 2022 | N330: 2023 | O330: 2024 | P330: 2025 | Q330: 2026 | R330: 2027 | S330: 2028 | T330: 2029 | U330: 2030 | V330: 2031 | W330: 2032
A331: Principal Scenario | B331: =PriceScenarios!C3 -> 0.004 | C331: =PriceScenarios!D3 -> 0.017 | D331: =PriceScenarios!E3 -> 0.016 | E331: =PriceScenarios!F3 -> 0.036 | F331: =PriceScenarios!G3 -> 0.039 | G331: =PriceScenarios!H3 -> 0.04 | H331: =PriceScenarios!I3 -> 0.04 | I331: =PriceScenarios!J3 -> 0.045 | J331: =PriceScenarios!K3 -> 0.045 | K331: =PriceScenarios!L3 -> 0.045 | L331: =PriceScenarios!M3 -> 0.045 | M331: =PriceScenarios!N3 -> 0.045 | N331: =PriceScenarios!O3 -> 0.045 | O331: =PriceScenarios!P3 -> 0.045 | P331: =PriceScenarios!Q3 -> 0.045 | Q331: =PriceScenarios!R3 -> 0.045 | R331: =PriceScenarios!S3 -> 0.045 | S331: =PriceScenarios!T3 -> 0.045 | T331: =PriceScenarios!U3 -> 0.045 | U331: =PriceScenarios!V3 -> 0.045 | V331: =PriceScenarios!W3 -> 0.045 | W331: =PriceScenarios!X3 -> 0.045
A332: Principal Mean | B332: =HLOOKUP($A$1,Data!$C$1:$AI$207,'S2'!$X332,FALSE) -> 100920.9043 | C332: =B332*(1+B331) -> 101324.5879 | D332: =C332*(1+C331) -> 103047.1059 | E332: 104695.8596 | F332: 108464.9105 | G332: 112695.042 | H332: 117202.8437 | I332: 121890.9574 | J332: 127376.0505 | K332: 133107.9728 | L332: 139097.8316 | M332: 145357.234 | N332: 151898.3095 | O332: 158733.7335 | P332: 165876.7515 | Q332: 173341.2053 | R332: 181141.5595 | S332: 189292.9297 | T332: 197811.1115 | U332: 206712.6115 | V332: 216014.6791 | W332: 225735.3396 | X332: 206
A333: Principal Median | B333: =HLOOKUP($A$1,Data!$C$1:$AI$207,'S2'!$X333,FALSE) -> 82000 | C333: =B333*(1+B331) -> 82328 | D333: =C333*(1+C331) -> 83727.576 | E333: 85067.21722 | F333: 88129.63704 | G333: 91566.69288 | H333: 95229.3606 | I333: 99038.53502 | J333: 103495.2691 | K333: 108152.5562 | L333: 113019.4212 | M333: 118105.2952 | N333: 123420.0335 | O333: 128973.935 | P333: 134777.7621 | Q333: 140842.7613 | R333: 147180.6856 | S333: 153803.8165 | T333: 160724.9882 | U333: 167957.6127 | V333: 175515.7052 | W333: 183413.912 | X333: 207
A334: U | B334: =IF(B333<>0,LN(B333),0) -> 11.31447453 | C334: 11.31846655 | D334: 11.33532366 | E334: 11.35119701 | F334: 11.38656416 | G334: 11.42482287 | H334: 11.46404358 | I334: 11.5032643 | J334: 11.54728118 | K334: 11.59129807 | L334: 11.63531495 | M334: 11.67933184 | N334: 11.72334872 | O334: 11.76736561 | P334: 11.81138249 | Q334: 11.85539938 | R334: 11.89941626 | S334: 11.94343315 | T334: 11.98745004 | U334: 12.03146692 | V334: 12.07548381 | W334: 12.11950069
A335: Sigma2 | B335: =IF(B332<>0,2*LN(B332)-2*B334,0) -> 0.4152356732 | C335: 0.4152356732 | D335: 0.4152356732 | E335: 0.4152356732 | F335: 0.4152356732 | G335: 0.4152356732 | H335: 0.4152356732 | I335: 0.4152356732 | J335: 0.4152356732 | K335: 0.4152356732 | L335: 0.4152356732 | M335: 0.4152356732 | N335: 0.4152356732 | O335: 0.4152356732 | P335: 0.4152356732 | Q335: 0.4152356732 | R335: 0.4152356732 | S335: 0.4152356732 | T335: 0.4152356732 | U335: 0.4152356732 | V335: 0.4152356732 | W335: 0.4152356732
A338: =CONCATENATE("Principal ",$C$61*100,"%ile") -> Principal 25%ile | B338: =EXP(SQRT(B335)*NORMSINV(CoreAssumptions!$F$2)+B334) -> 53095.18584 | C338: =EXP(SQRT(C335)*NORMSINV(CoreAssumptions!$F$2)+C334) -> 53307.56658 | D338: =EXP(SQRT(D335)*NORMSINV(CoreAssumptions!$F$2)+D334) -> 54213.79521 | E338: =EXP(SQRT(E335)*NORMSINV(CoreAssumptions!$F$2)+E334) -> 55081.21594 | F338: =EXP(SQRT(F335)*NORMSINV(CoreAssumptions!$F$2)+F334) -> 57064.13971 | G338: =EXP(SQRT(G335)*NORMSINV(CoreAssumptions!$F$2)+G334) -> 59289.64116 | H338: =EXP(SQRT(H335)*NORMSINV(CoreAssumptions!$F$2)+H334) -> 61661.22681 | I338: =EXP(SQRT(I335)*NORMSINV(CoreAssumptions!$F$2)+I334) -> 64127.67588 | J338: =EXP(SQRT(J335)*NORMSINV(CoreAssumptions!$F$2)+J334) -> 67013.42129 | K338: =EXP(SQRT(K335)*NORMSINV(CoreAssumptions!$F$2)+K334) -> 70029.02525 | L338: =EXP(SQRT(L335)*NORMSINV(CoreAssumptions!$F$2)+L334) -> 73180.33139 | M338: =EXP(SQRT(M335)*NORMSINV(CoreAssumptions!$F$2)+M334) -> 76473.4463 | N338: =EXP(SQRT(N335)*NORMSINV(CoreAssumptions!$F$2)+N334) -> 79914.75138 | O338: =EXP(SQRT(O335)*NORMSINV(CoreAssumptions!$F$2)+O334) -> 83510.9152 | P338: =EXP(SQRT(P335)*NORMSINV(CoreAssumptions!$F$2)+P334) -> 87268.90638 | Q338: =EXP(SQRT(Q335)*NORMSINV(CoreAssumptions!$F$2)+Q334) -> 91196.00717 | R338: =EXP(SQRT(R335)*NORMSINV(CoreAssumptions!$F$2)+R334) -> 95299.82749 | S338: =EXP(SQRT(S335)*NORMSINV(CoreAssumptions!$F$2)+S334) -> 99588.31973 | T338: =EXP(SQRT(T335)*NORMSINV(CoreAssumptions!$F$2)+T334) -> 104069.7941 | U338: =EXP(SQRT(U335)*NORMSINV(CoreAssumptions!$F$2)+U334) -> 108752.9348 | V338: =EXP(SQRT(V335)*NORMSINV(CoreAssumptions!$F$2)+V334) -> 113646.8169 | W338: =EXP(SQRT(W335)*NORMSINV(CoreAssumptions!$F$2)+W334) -> 118760.9237
A339: Income from Afford | B339: =IF(B338/CoreAssumptions!$F$3<=B419,B419,B338/CoreAssumptions!$F$3) -> 13273.79646 | C339: =IF(C338/CoreAssumptions!$F$3<=C419,C419,C338/CoreAssumptions!$F$3) -> 13326.89165 | D339: =IF(D338/CoreAssumptions!$F$3<=D419,D419,D338/CoreAssumptions!$F$3) -> 13553.4488 | E339: =IF(E338/CoreAssumptions!$F$3<=E419,E419,E338/CoreAssumptions!$F$3) -> 13770.30398 | F339: =IF(F338/CoreAssumptions!$F$3<=F419,F419,F338/CoreAssumptions!$F$3) -> 14266.03493 | G339: =IF(G338/CoreAssumptions!$F$3<=G419,G419,G338/CoreAssumptions!$F$3) -> 14822.41029 | H339: =IF(H338/CoreAssumptions!$F$3<=H419,H419,H338/CoreAssumptions!$F$3) -> 15415.3067 | I339: =IF(I338/CoreAssumptions!$F$3<=I419,I419,I338/CoreAssumptions!$F$3) -> 16031.91897 | J339: =IF(J338/CoreAssumptions!$F$3<=J419,J419,J338/CoreAssumptions!$F$3) -> 16753.35532 | K339: =IF(K338/CoreAssumptions!$F$3<=K419,K419,K338/CoreAssumptions!$F$3) -> 17507.25631 | L339: =IF(L338/CoreAssumptions!$F$3<=L419,L419,L338/CoreAssumptions!$F$3) -> 18295.08285 | M339: =IF(M338/CoreAssumptions!$F$3<=M419,M419,M338/CoreAssumptions!$F$3) -> 19118.36158 | N339: =IF(N338/CoreAssumptions!$F$3<=N419,N419,N338/CoreAssumptions!$F$3) -> 19978.68785 | O339: =IF(O338/CoreAssumptions!$F$3<=O419,O419,O338/CoreAssumptions!$F$3) -> 20877.7288 | P339: =IF(P338/CoreAssumptions!$F$3<=P419,P419,P338/CoreAssumptions!$F$3) -> 21817.22659 | Q339: =IF(Q338/CoreAssumptions!$F$3<=Q419,Q419,Q338/CoreAssumptions!$F$3) -> 22799.00179 | R339: =IF(R338/CoreAssumptions!$F$3<=R419,R419,R338/CoreAssumptions!$F$3) -> 23824.95687 | S339: =IF(S338/CoreAssumptions!$F$3<=S419,S419,S338/CoreAssumptions!$F$3) -> 24897.07993 | T339: =IF(T338/CoreAssumptions!$F$3<=T419,T419,T338/CoreAssumptions!$F$3) -> 26017.44853 | U339: =IF(U338/CoreAssumptions!$F$3<=U419,U419,U338/CoreAssumptions!$F$3) -> 27188.23371 | V339: =IF(V338/CoreAssumptions!$F$3<=V419,V419,V338/CoreAssumptions!$F$3) -> 28411.70423 | W339: =IF(W338/CoreAssumptions!$F$3<=W419,W419,W338/CoreAssumptions!$F$3) -> 29690.23092
B340: =IF(B339>B419,VLOOKUP(B339,B$419:$AA$499,B$418+3),10) -> 22 | C340: =IF(C339>C419,VLOOKUP(C339,C$419:$AA$499,C$418+3),10) -> 22 | D340: =IF(D339>D419,VLOOKUP(D339,D$419:$AA$499,D$418+3),10) -> 21 | E340: =IF(E339>E419,VLOOKUP(E339,E$419:$AA$499,E$418+3),10) -> 21 | F340: =IF(F339>F419,VLOOKUP(F339,F$419:$AA$499,F$418+3),10) -> 21 | G340: =IF(G339>G419,VLOOKUP(G339,G$419:$AA$499,G$418+3),10) -> 21 | H340: =IF(H339>H419,VLOOKUP(H339,H$419:$AA$499,H$418+3),10) -> 21 | I340: =IF(I339>I419,VLOOKUP(I339,I$419:$AA$499,I$418+3),10) -> 21 | J340: =IF(J339>J419,VLOOKUP(J339,J$419:$AA$499,J$418+3),10) -> 21 | K340: =IF(K339>K419,VLOOKUP(K339,K$419:$AA$499,K$418+3),10) -> 21 | L340: =IF(L339>L419,VLOOKUP(L339,L$419:$AA$499,L$418+3),10) -> 21 | M340: =IF(M339>M419,VLOOKUP(M339,M$419:$AA$499,M$418+3),10) -> 21 | N340: =IF(N339>N419,VLOOKUP(N339,N$419:$AA$499,N$418+3),10) -> 21 | O340: =IF(O339>O419,VLOOKUP(O339,O$419:$AA$499,O$418+3),10) -> 21 | P340: =IF(P339>P419,VLOOKUP(P339,P$419:$AA$499,P$418+3),10) -> 22 | Q340: =IF(Q339>Q419,VLOOKUP(Q339,Q$419:$AA$499,Q$418+3),10) -> 22 | R340: =IF(R339>R419,VLOOKUP(R339,R$419:$AA$499,R$418+3),10) -> 22 | S340: =IF(S339>S419,VLOOKUP(S339,S$419:$AA$499,S$418+3),10) -> 23 | T340: =IF(T339>T419,VLOOKUP(T339,T$419:$AA$499,T$418+3),10) -> 23 | U340: =IF(U339>U419,VLOOKUP(U339,U$419:$AA$499,U$418+3),10) -> 24 | V340: =IF(V339>V419,VLOOKUP(V339,V$419:$AA$499,V$418+3),10) -> 24 | W340: =IF(W339>W419,VLOOKUP(W339,W$419:$AA$499,W$418+3),10) -> 25
A341: Principal Market | C341: =C317*(100-C340)/100 -> 30.77604511 | D341: =D317*(100-D340)/100 -> 31.17060979 | E341: 33.66646908 | F341: 25.76781553 | G341: 19.60203424 | H341: 17.35973837 | I341: 23.06883719 | J341: 17.28196033 | K341: 7.7330413 | L341: 7.739055893 | M341: 3.346513863 | N341: 2.326873388 | O341: 4.26772775 | P341: -10.89134183 | Q341: -8.909040452 | R341: -8.805129716 | S341: -15.50293394 | T341: -13.4213485 | U341: -25.84870088 | V341: -25.90318075 | W341: -28.68811507
A342: Princpal Subsidy | C342: =C316+(C317*(C340)/100) -> 31.08042298 | D342: =D316+(D317*(D340)/100) -> 30.6858583 | E342: 31.34931457 | F342: 29.24967248 | G342: 27.61066733 | H342: 4.614613996 | I342: 6.132222544 | J342: 4.593938823 | K342: 2.055618574 | L342: 2.057217389 | M342: 0.8895796346 | N342: 0.6185359638 | O342: 1.134459275 | P342: -3.071916928 | Q342: -2.512806281 | R342: -2.483498125 | S342: -4.630746502 | T342: -4.008974227 | U342: -8.162747646 | V342: -8.179951814 | W342: -9.562705023
A347: Scenario | B347: =VLOOKUP($X347,PriceScenarios!$B$3:$AD$21,B330-2009,FALSE) -> 0.004 | C347: =VLOOKUP($X347,PriceScenarios!$B$3:$AD$21,C330-2009,FALSE) -> 0.017 | D347: =VLOOKUP($X347,PriceScenarios!$B$3:$AD$21,D330-2009,FALSE) -> 0.016 | E347: =VLOOKUP($X347,PriceScenarios!$B$3:$AD$21,E330-2009,FALSE) -> 0.036 | F347: =VLOOKUP($X347,PriceScenarios!$B$3:$AD$21,F330-2009,FALSE) -> 0.039 | G347: =VLOOKUP($X347,PriceScenarios!$B$3:$AD$21,G330-2009,FALSE) -> 0.04 | H347: =VLOOKUP($X347,PriceScenarios!$B$3:$AD$21,H330-2009,FALSE) -> 0.04 | I347: =VLOOKUP($X347,PriceScenarios!$B$3:$AD$21,I330-2009,FALSE) -> 0.045 | J347: =VLOOKUP($X347,PriceScenarios!$B$3:$AD$21,J330-2009,FALSE) -> 0.045 | K347: =VLOOKUP($X347,PriceScenarios!$B$3:$AD$21,K330-2009,FALSE) -> 0.045 | L347: =VLOOKUP($X347,PriceScenarios!$B$3:$AD$21,L330-2009,FALSE) -> 0.045 | M347: =VLOOKUP($X347,PriceScenarios!$B$3:$AD$21,M330-2009,FALSE) -> 0.045 | N347: =VLOOKUP($X347,PriceScenarios!$B$3:$AD$21,N330-2009,FALSE) -> 0.045 | O347: =VLOOKUP($X347,PriceScenarios!$B$3:$AD$21,O330-2009,FALSE) -> 0.045 | P347: =VLOOKUP($X347,PriceScenarios!$B$3:$AD$21,P330-2009,FALSE) -> 0.045 | Q347: =VLOOKUP($X347,PriceScenarios!$B$3:$AD$21,Q330-2009,FALSE) -> 0.045 | R347: =VLOOKUP($X347,PriceScenarios!$B$3:$AD$21,R330-2009,FALSE) -> 0.045 | S347: =VLOOKUP($X347,PriceScenarios!$B$3:$AD$21,S330-2009,FALSE) -> 0.045 | T347: =VLOOKUP($X347,PriceScenarios!$B$3:$AD$21,T330-2009,FALSE) -> 0.045 | U347: =VLOOKUP($X347,PriceScenarios!$B$3:$AD$21,U330-2009,FALSE) -> 0.045 | V347: =VLOOKUP($X347,PriceScenarios!$B$3:$AD$21,V330-2009,FALSE) -> 0.045 | W347: =VLOOKUP($X347,PriceScenarios!$B$3:$AD$21,W330-2009,FALSE) -> 0.045 | X347: =CHOOSE(X60,PriceScenarios!$B$3,PriceScenarios!$B$4,PriceScenarios!$B$5,PriceScenarios!$B$6,PriceScenarios!$B$7,PriceScenarios!$B$8,PriceScenarios!$B$9,PriceScenarios!$B$10,PriceScenarios!$B$11,PriceScenarios!$B$12,PriceScenarios!$B$13,PriceScenarios!$B$14,PriceScenarios!$B$15,PriceScenarios!$B$16,PriceScenarios!$B$17,PriceScenarios!$B$18,PriceScenarios!$B$19,PriceScenarios!$B$20,PriceScenarios!$B$21) -> OBR estimates (Core)
A348: Scenario Mean | B348: =HLOOKUP($A$1,Data!$C$1:$AI$207,'S2'!$X348,FALSE) -> 100920.9043 | C348: =B348*(1+B347) -> 101324.5879 | D348: =C348*(1+C347) -> 103047.1059 | E348: 104695.8596 | F348: 108464.9105 | G348: 112695.042 | H348: 117202.8437 | I348: 121890.9574 | J348: 127376.0505 | K348: 133107.9728 | L348: 139097.8316 | M348: 145357.234 | N348: 151898.3095 | O348: 158733.7335 | P348: 165876.7515 | Q348: 173341.2053 | R348: 181141.5595 | S348: 189292.9297 | T348: 197811.1115 | U348: 206712.6115 | V348: =U348*(1+U347) -> 216014.6791 | W348: =V348*(1+V347) -> 225735.3396 | X348: 206
A349: Scenario Median | B349: =HLOOKUP($A$1,Data!$C$1:$AI$207,'S2'!$X349,FALSE) -> 82000 | C349: =B349*(1+B347) -> 82328 | D349: =C349*(1+C347) -> 83727.576 | E349: 85067.21722 | F349: 88129.63704 | G349: 91566.69288 | H349: 95229.3606 | I349: 99038.53502 | J349: 103495.2691 | K349: 108152.5562 | L349: 113019.4212 | M349: 118105.2952 | N349: 123420.0335 | O349: 128973.935 | P349: 134777.7621 | Q349: 140842.7613 | R349: 147180.6856 | S349: 153803.8165 | T349: 160724.9882 | U349: 167957.6127 | V349: =U349*(1+U347) -> 175515.7052 | W349: =V349*(1+V347) -> 183413.912 | X349: 207
A350: U | B350: =IF(B349<>0,LN(B349),0) -> 11.31447453 | C350: 11.31846655 | D350: 11.33532366 | E350: 11.35119701 | F350: 11.38656416 | G350: 11.42482287 | H350: 11.46404358 | I350: 11.5032643 | J350: 11.54728118 | K350: 11.59129807 | L350: 11.63531495 | M350: 11.67933184 | N350: 11.72334872 | O350: 11.76736561 | P350: 11.81138249 | Q350: 11.85539938 | R350: 11.89941626 | S350: 11.94343315 | T350: 11.98745004 | U350: 12.03146692 | V350: =IF(V349<>0,LN(V349),0) -> 12.07548381 | W350: =IF(W349<>0,LN(W349),0) -> 12.11950069
A351: Sigma2 | B351: =IF(B348<>0,2*LN(B348)-2*B350,0) -> 0.4152356732 | C351: 0.4152356732 | D351: 0.4152356732 | E351: 0.4152356732 | F351: 0.4152356732 | G351: 0.4152356732 | H351: 0.4152356732 | I351: 0.4152356732 | J351: 0.4152356732 | K351: 0.4152356732 | L351: 0.4152356732 | M351: 0.4152356732 | N351: 0.4152356732 | O351: 0.4152356732 | P351: 0.4152356732 | Q351: 0.4152356732 | R351: 0.4152356732 | S351: 0.4152356732 | T351: 0.4152356732 | U351: 0.4152356732 | V351: =IF(V348<>0,2*LN(V348)-2*V350,0) -> 0.4152356732 | W351: =IF(W348<>0,2*LN(W348)-2*W350,0) -> 0.4152356732
A353: =CONCATENATE("Scenario ",$C$61*100,"%ile") -> Scenario 25%ile | B353: =EXP(SQRT(B351)*NORMSINV($C$61)+B350) -> 53095.18584 | C353: 53307.56658 | D353: 54213.79521 | E353: 55081.21594 | F353: 57064.13971 | G353: 59289.64116 | H353: 61661.22681 | I353: 64127.67588 | J353: 67013.42129 | K353: 70029.02525 | L353: 73180.33139 | M353: 76473.4463 | N353: 79914.75138 | O353: 83510.9152 | P353: 87268.90638 | Q353: 91196.00717 | R353: 95299.82749 | S353: 99588.31973 | T353: 104069.7941 | U353: 108752.9348 | V353: =EXP(SQRT(V351)*NORMSINV($C$61)+V350) -> 113646.8169 | W353: =EXP(SQRT(W351)*NORMSINV($C$61)+W350) -> 118760.9237
A354: Income from Afford | B354: =IF(B353/$C$64<=B510,B510,B353/$C$64) -> 13273.79646 | C354: =IF(C353/$C$64<=C510,C510,C353/$C$64) -> 13326.89165 | D354: 13553.4488 | E354: 13770.30398 | F354: 14266.03493 | G354: 14822.41029 | H354: 15415.3067 | I354: 16031.91897 | J354: 16753.35532 | K354: 17507.25631 | L354: 18295.08285 | M354: 19118.36158 | N354: 19978.68785 | O354: 20877.7288 | P354: 21817.22659 | Q354: 22799.00179 | R354: 23824.95687 | S354: 24897.07993 | T354: 26017.44853 | U354: 27188.23371 | V354: 28411.70423 | W354: 29690.23092
B355: =IF(B354>B510,VLOOKUP(B354,B510:$AA$590,B509+3),10) -> 22 | C355: =IF(C354>C510,VLOOKUP(C354,C510:$AA$590,C509+3),10) -> 22 | D355: =IF(D354>D510,VLOOKUP(D354,D510:$AA$590,D509+3),10) -> 21 | E355: =IF(E354>E510,VLOOKUP(E354,E510:$AA$590,E509+3),10) -> 21 | F355: =IF(F354>F510,VLOOKUP(F354,F510:$AA$590,F509+3),10) -> 21 | G355: =IF(G354>G510,VLOOKUP(G354,G510:$AA$590,G509+3),10) -> 21 | H355: =IF(H354>H510,VLOOKUP(H354,H510:$AA$590,H509+3),10) -> 21 | I355: =IF(I354>I510,VLOOKUP(I354,I510:$AA$590,I509+3),10) -> 21 | J355: =IF(J354>J510,VLOOKUP(J354,J510:$AA$590,J509+3),10) -> 21 | K355: =IF(K354>K510,VLOOKUP(K354,K510:$AA$590,K509+3),10) -> 21 | L355: =IF(L354>L510,VLOOKUP(L354,L510:$AA$590,L509+3),10) -> 21 | M355: =IF(M354>M510,VLOOKUP(M354,M510:$AA$590,M509+3),10) -> 21 | N355: =IF(N354>N510,VLOOKUP(N354,N510:$AA$590,N509+3),10) -> 21 | O355: =IF(O354>O510,VLOOKUP(O354,O510:$AA$590,O509+3),10) -> 21 | P355: =IF(P354>P510,VLOOKUP(P354,P510:$AA$590,P509+3),10) -> 22 | Q355: =IF(Q354>Q510,VLOOKUP(Q354,Q510:$AA$590,Q509+3),10) -> 22 | R355: =IF(R354>R510,VLOOKUP(R354,R510:$AA$590,R509+3),10) -> 22 | S355: =IF(S354>S510,VLOOKUP(S354,S510:$AA$590,S509+3),10) -> 23 | T355: =IF(T354>T510,VLOOKUP(T354,T510:$AA$590,T509+3),10) -> 23 | U355: =IF(U354>U510,VLOOKUP(U354,U510:$AA$590,U509+3),10) -> 24 | V355: =IF(V354>V510,VLOOKUP(V354,V510:$AA$590,V509+3),10) -> 24 | W355: =IF(W354>W510,VLOOKUP(W354,W510:$AA$590,W509+3),10) -> 25
A356: Scenario Market | C356: =IF(OR($B$312=TRUE,$B$309=FALSE),C318*(100-C355)/100,C320*(100-C355)/100) -> 32.2462821 | D356: =IF(OR($B$312=TRUE,$B$309=FALSE),D318*(100-D355)/100,D320*(100-D355)/100) -> 32.65969597 | E356: 37.8127884 | F356: 30.04076454 | G356: 25.30144316 | H356: 25.81669687 | I356: 31.82629311 | J356: 28.91290704 | K356: 19.51423637 | L356: 19.87941217 | M356: 15.6283113 | N356: 14.84432863 | O356: 17.06363742 | P356: 1.713108587 | Q356: 4.019609331 | R356: 4.208033753 | S356: -2.513802994 | T356: -0.1676266689 | U356: -12.86603363 | V356: -12.57675726 | W356: -15.44737983
A357: Scenario Subsidy | C357: =IF(OR($B$309=FALSE,$B$312=TRUE),C312+(C318*(C355)/100),C320*(C355)/100) -> 14.63356675 | D357: =IF(OR($B$309=FALSE,$B$312=TRUE),D312+(D318*(D355)/100),D320*(D355)/100) -> 14.22015287 | E357: 15.58996225 | F357: 13.52398123 | G357: 12.26416162 | H357: 12.4011278 | I357: 13.9986154 | J357: 13.224171 | K357: 10.72579019 | L357: 10.82286224 | M357: 9.692822771 | N357: 9.484422314 | O357: 10.07436516 | P357: 0.4831844732 | Q357: 1.133735965 | R357: 1.186881315 | S357: -0.7508762189 | T357: -0.05007030369 | U357: -4.062957988 | V357: -3.971607554 | W357: -5.149126612
A360: Intermediate
A362: Rents (Principal)
A363: Rises Principal | B363: =B331 -> 0.004 | C363: =C331 -> 0.017 | D363: 0.016 | E363: 0.036 | F363: 0.039 | G363: 0.04 | H363: 0.04 | I363: 0.045 | J363: 0.045 | K363: 0.045 | L363: 0.045 | M363: 0.045 | N363: 0.045 | O363: 0.045 | P363: 0.045 | Q363: 0.045 | R363: 0.045 | S363: 0.045 | T363: 0.045 | U363: 0.045 | V363: 0.045 | W363: 0.045
A365: Rent Median (Principal) | B365: =HLOOKUP($A$1,Data!$C$1:$AI$211,'S2'!$X365,FALSE) -> 117.6923077 | C365: =B365*(1+B363) -> 118.1630769 | D365: =C365*(1+C363) -> 120.1718492 | E365: 122.0945988 | F365: 126.4900044 | G365: 131.4231145 | H365: 136.6800391 | I365: 142.1472407 | J365: 148.5438665 | K365: 155.2283405 | L365: 162.2136158 | M365: 169.5132286 | N365: 177.1413238 | O365: 185.1126834 | P365: 193.4427542 | Q365: 202.1476781 | R365: 211.2443236 | S365: 220.7503182 | T365: 230.6840825 | U365: 241.0648662 | V365: 251.9127852 | W365: 263.2488605 | X365: 210
A366: Rent 30th%ile (Principal) | B366: =HLOOKUP($A$1,Data!$C$1:$AI$211,'S2'!$X366,FALSE) -> 110.7692308 | C366: =B366*(1+B363) -> 111.2123077 | D366: =C366*(1+C363) -> 113.1029169 | E366: 114.9125636 | F366: 119.0494159 | G366: 123.6923431 | H366: 128.6400368 | I366: 133.7856383 | J366: 139.805992 | K366: 146.0972617 | L366: 152.6716384 | M366: 159.5418622 | N366: 166.721246 | O366: 174.223702 | P366: 182.0637686 | Q366: 190.2566382 | R366: 198.8181869 | S366: 207.7650053 | T366: 217.1144306 | U366: 226.88458 | V366: 237.0943861 | W366: 247.7636334 | X366: 211
A367: Annual Rent Medain | B367: =B365*52 -> 6120 | C367: =C365*52 -> 6144.48 | D367: 6248.93616 | E367: 6348.919139 | F367: 6577.480228 | G367: 6834.001956 | H367: 7107.362035 | I367: 7391.656516 | J367: 7724.281059 | K367: 8071.873707 | L367: 8435.108024 | M367: 8814.687885 | N367: 9211.34884 | O367: 9625.859537 | P367: 10059.02322 | Q367: 10511.67926 | R367: 10984.70483 | S367: 11479.01655 | T367: 11995.57229 | U367: 12535.37304 | V367: 13099.46483 | W367: 13688.94075
A368: Annual Rent 30th | B368: =B366*52 -> 5760 | C368: 5783.04 | D368: 5881.35168 | E368: 5975.453307 | F368: 6190.569626 | G368: 6432.001841 | H368: 6689.281915 | I368: 6956.853192 | J368: 7269.911585 | K368: 7597.057607 | L368: 7938.925199 | M368: 8296.176833 | N368: 8669.50479 | O368: 9059.632506 | P368: 9467.315969 | Q368: 9893.345187 | R368: 10338.54572 | S368: 10803.78028 | T368: 11289.95039 | U368: 11797.99816 | V368: 12328.90808 | W368: 12883.70894
A370: Income above | B370: =B367/CoreAssumptions!$F$6 -> 24480 | C370: =C367/CoreAssumptions!$F$6 -> 24577.92 | D370: =D367/CoreAssumptions!$F$6 -> 24995.74464 | E370: =E367/CoreAssumptions!$F$6 -> 25395.67655 | F370: =F367/CoreAssumptions!$F$6 -> 26309.92091 | G370: =G367/CoreAssumptions!$F$6 -> 27336.00783 | H370: =H367/CoreAssumptions!$F$6 -> 28429.44814 | I370: =I367/CoreAssumptions!$F$6 -> 29566.62606 | J370: =J367/CoreAssumptions!$F$6 -> 30897.12424 | K370: =K367/CoreAssumptions!$F$6 -> 32287.49483 | L370: =L367/CoreAssumptions!$F$6 -> 33740.4321 | M370: =M367/CoreAssumptions!$F$6 -> 35258.75154 | N370: =N367/CoreAssumptions!$F$6 -> 36845.39536 | O370: =O367/CoreAssumptions!$F$6 -> 38503.43815 | P370: =P367/CoreAssumptions!$F$6 -> 40236.09287 | Q370: =Q367/CoreAssumptions!$F$6 -> 42046.71705 | R370: =R367/CoreAssumptions!$F$6 -> 43938.81931 | S370: =S367/CoreAssumptions!$F$6 -> 45916.06618 | T370: =T367/CoreAssumptions!$F$6 -> 47982.28916 | U370: =U367/CoreAssumptions!$F$6 -> 50141.49217 | V370: =V367/CoreAssumptions!$F$6 -> 52397.85932 | W370: =W367/CoreAssumptions!$F$6 -> 54755.76299
A371: Income below | B371: =B368/CoreAssumptions!$F$5 -> 16457.14286 | C371: =C368/CoreAssumptions!$F$5 -> 16522.97143 | D371: =D368/CoreAssumptions!$F$5 -> 16803.86194 | E371: =E368/CoreAssumptions!$F$5 -> 17072.72373 | F371: =F368/CoreAssumptions!$F$5 -> 17687.34179 | G371: =G368/CoreAssumptions!$F$5 -> 18377.14812 | H371: =H368/CoreAssumptions!$F$5 -> 19112.23404 | I371: =I368/CoreAssumptions!$F$5 -> 19876.7234 | J371: =J368/CoreAssumptions!$F$5 -> 20771.17596 | K371: =K368/CoreAssumptions!$F$5 -> 21705.87888 | L371: =L368/CoreAssumptions!$F$5 -> 22682.64343 | M371: =M368/CoreAssumptions!$F$5 -> 23703.36238 | N371: =N368/CoreAssumptions!$F$5 -> 24770.01369 | O371: =O368/CoreAssumptions!$F$5 -> 25884.6643 | P371: =P368/CoreAssumptions!$F$5 -> 27049.4742 | Q371: =Q368/CoreAssumptions!$F$5 -> 28266.70053 | R371: =R368/CoreAssumptions!$F$5 -> 29538.70206 | S371: =S368/CoreAssumptions!$F$5 -> 30867.94365 | T371: =T368/CoreAssumptions!$F$5 -> 32257.00112 | U371: =U368/CoreAssumptions!$F$5 -> 33708.56617 | V371: =V368/CoreAssumptions!$F$5 -> 35225.45164 | W371: =W368/CoreAssumptions!$F$5 -> 36810.59697
A372: Above percentile | B372: =VLOOKUP(B370,B$419:$AA$499,B$418+3) -> 47 | C372: =VLOOKUP(C370,C$419:$AA$499,C$418+3) -> 46 | D372: =VLOOKUP(D370,D$419:$AA$499,D$418+3) -> 46 | E372: =VLOOKUP(E370,E$419:$AA$499,E$418+3) -> 45 | F372: =VLOOKUP(F370,F$419:$AA$499,F$418+3) -> 45 | G372: =VLOOKUP(G370,G$419:$AA$499,G$418+3) -> 45 | H372: =VLOOKUP(H370,H$419:$AA$499,H$418+3) -> 45 | I372: =VLOOKUP(I370,I$419:$AA$499,I$418+3) -> 45 | J372: =VLOOKUP(J370,J$419:$AA$499,J$418+3) -> 45 | K372: =VLOOKUP(K370,K$419:$AA$499,K$418+3) -> 45 | L372: =VLOOKUP(L370,L$419:$AA$499,L$418+3) -> 45 | M372: =VLOOKUP(M370,M$419:$AA$499,M$418+3) -> 45 | N372: =VLOOKUP(N370,N$419:$AA$499,N$418+3) -> 46 | O372: =VLOOKUP(O370,O$419:$AA$499,O$418+3) -> 46 | P372: =VLOOKUP(P370,P$419:$AA$499,P$418+3) -> 47 | Q372: =VLOOKUP(Q370,Q$419:$AA$499,Q$418+3) -> 47 | R372: =VLOOKUP(R370,R$419:$AA$499,R$418+3) -> 48 | S372: =VLOOKUP(S370,S$419:$AA$499,S$418+3) -> 49 | T372: =VLOOKUP(T370,T$419:$AA$499,T$418+3) -> 49 | U372: =VLOOKUP(U370,U$419:$AA$499,U$418+3) -> 50 | V372: =VLOOKUP(V370,V$419:$AA$499,V$418+3) -> 50 | W372: =VLOOKUP(W370,W$419:$AA$499,W$418+3) -> 51
A373: Below percentile | B373: =VLOOKUP(B371,B$419:$AA$499,B$418+3) -> 28 | C373: =VLOOKUP(C371,C$419:$AA$499,C$418+3) -> 28 | D373: =VLOOKUP(D371,D$419:$AA$499,D$418+3) -> 28 | E373: =VLOOKUP(E371,E$419:$AA$499,E$418+3) -> 27 | F373: =VLOOKUP(F371,F$419:$AA$499,F$418+3) -> 27 | G373: =VLOOKUP(G371,G$419:$AA$499,G$418+3) -> 27 | H373: =VLOOKUP(H371,H$419:$AA$499,H$418+3) -> 27 | I373: =VLOOKUP(I371,I$419:$AA$499,I$418+3) -> 27 | J373: =VLOOKUP(J371,J$419:$AA$499,J$418+3) -> 27 | K373: =VLOOKUP(K371,K$419:$AA$499,K$418+3) -> 27 | L373: =VLOOKUP(L371,L$419:$AA$499,L$418+3) -> 27 | M373: =VLOOKUP(M371,M$419:$AA$499,M$418+3) -> 27 | N373: =VLOOKUP(N371,N$419:$AA$499,N$418+3) -> 27 | O373: =VLOOKUP(O371,O$419:$AA$499,O$418+3) -> 28 | P373: =VLOOKUP(P371,P$419:$AA$499,P$418+3) -> 28 | Q373: =VLOOKUP(Q371,Q$419:$AA$499,Q$418+3) -> 28 | R373: =VLOOKUP(R371,R$419:$AA$499,R$418+3) -> 29 | S373: =VLOOKUP(S371,S$419:$AA$499,S$418+3) -> 30 | T373: =VLOOKUP(T371,T$419:$AA$499,T$418+3) -> 31 | U373: =VLOOKUP(U371,U$419:$AA$499,U$418+3) -> 31 | V373: =VLOOKUP(V371,V$419:$AA$499,V$418+3) -> 32 | W373: =VLOOKUP(W371,W$419:$AA$499,W$418+3) -> 33
A377: Social Rent | C377: =C319-C378-C379-C380 -> 33.44781106 | D377: =D319-D378-D379-D380 -> 33.44781106 | E377: 33.90626159 | F377: 31.20672176 | G377: 29.09942942 | H377: 5.933075138 | I377: 7.884286128 | J377: 5.906492772 | K377: 2.642938166 | L377: 2.644993786 | M377: 1.143745244 | N377: 0.7952605249 | O377: 1.512612367 | P377: -3.909712454 | Q377: -3.198117085 | R377: -3.273702074 | S377: -6.040104133 | T377: -5.403400045 | U377: -10.54354904 | V377: -10.90660242 | W377: -12.62277063
A378: BM Rent | C378: =(C372-C373)/100*C317 -> 7.102164255 | D378: =(D372-D373)/100*D317 -> 7.102164255 | E378: 7.670841057 | F378: 5.871147841 | G378: 4.466286282 | H378: 3.955383425 | I378: 5.256190752 | J378: 3.937661848 | K378: 1.761958777 | L378: 1.763329191 | M378: 0.7624968297 | N378: 0.5596277768 | O378: 0.9723936645 | P378: -2.653019165 | Q378: -2.170150879 | R378: -2.14483929 | S378: -3.825399284 | T378: -3.137458091 | U378: -6.46217522 | V378: -6.134963861 | W378: -6.885147617
A379: PRS | C379: =(100-C372)/100*C317-C380 -> 5.918470213 | D379: =(100-D372)/100*D317-D380 -> 5.721187872 | E379: 6.605446466 | F379: 5.055710641 | G379: 3.845968743 | H379: 3.406024616 | I379: 4.526164259 | J379: 3.390764369 | K379: 1.51724228 | L379: 1.518422359 | M379: 0.6565944922 | N379: 0.427084356 | O379: 0.7833171186 | P379: -1.954856227 | Q379: -1.599058543 | R379: -1.467521619 | S379: -2.516710055 | T379: -2.178790341 | U379: -4.081373823 | V379: -4.089975907 | W379: -4.398844311
A380: Buyers | C380: =C341*CoreAssumptions!$F$8 -> 15.38802255 | D380: =D341*CoreAssumptions!$F$8 -> 15.58530489 | E380: =E341*CoreAssumptions!$F$8 -> 16.83323454 | F380: =F341*CoreAssumptions!$F$8 -> 12.88390776 | G380: =G341*CoreAssumptions!$F$8 -> 9.801017118 | H380: =H341*CoreAssumptions!$F$8 -> 8.679869183 | I380: =I341*CoreAssumptions!$F$8 -> 11.53441859 | J380: =J341*CoreAssumptions!$F$8 -> 8.640980167 | K380: =K341*CoreAssumptions!$F$8 -> 3.86652065 | L380: =L341*CoreAssumptions!$F$8 -> 3.869527947 | M380: =M341*CoreAssumptions!$F$8 -> 1.673256932 | N380: =N341*CoreAssumptions!$F$8 -> 1.163436694 | O380: =O341*CoreAssumptions!$F$8 -> 2.133863875 | P380: =P341*CoreAssumptions!$F$8 -> -5.445670917 | Q380: =Q341*CoreAssumptions!$F$8 -> -4.454520226 | R380: =R341*CoreAssumptions!$F$8 -> -4.402564858 | S380: =S341*CoreAssumptions!$F$8 -> -7.751466971 | T380: =T341*CoreAssumptions!$F$8 -> -6.71067425 | U380: =U341*CoreAssumptions!$F$8 -> -12.92435044 | V380: =V341*CoreAssumptions!$F$8 -> -12.95159037 | W380: =W341*CoreAssumptions!$F$8 -> -14.34405753
A382: Rents Scenario | B382: =B330 -> 2011 | C382: =B382+1 -> 2012 | D382: 2013 | E382: 2014 | F382: 2015 | G382: 2016 | H382: 2017 | I382: 2018 | J382: 2019 | K382: 2020 | L382: 2021 | M382: 2022 | N382: 2023 | O382: 2024 | P382: 2025 | Q382: 2026 | R382: 2027 | S382: 2028 | T382: 2029 | U382: 2030 | V382: 2031 | W382: 2032
A383: Rises Scenario | B383: =VLOOKUP($X383,PriceScenarios!$B$3:$AD$21,B382-2009,FALSE) -> 0.004 | C383: =VLOOKUP($X383,PriceScenarios!$B$3:$AD$21,C382-2009,FALSE) -> 0.017 | D383: =VLOOKUP($X383,PriceScenarios!$B$3:$AD$21,D382-2009,FALSE) -> 0.016 | E383: =VLOOKUP($X383,PriceScenarios!$B$3:$AD$21,E382-2009,FALSE) -> 0.036 | F383: =VLOOKUP($X383,PriceScenarios!$B$3:$AD$21,F382-2009,FALSE) -> 0.039 | G383: =VLOOKUP($X383,PriceScenarios!$B$3:$AD$21,G382-2009,FALSE) -> 0.04 | H383: =VLOOKUP($X383,PriceScenarios!$B$3:$AD$21,H382-2009,FALSE) -> 0.04 | I383: =VLOOKUP($X383,PriceScenarios!$B$3:$AD$21,I382-2009,FALSE) -> 0.045 | J383: =VLOOKUP($X383,PriceScenarios!$B$3:$AD$21,J382-2009,FALSE) -> 0.045 | K383: =VLOOKUP($X383,PriceScenarios!$B$3:$AD$21,K382-2009,FALSE) -> 0.045 | L383: =VLOOKUP($X383,PriceScenarios!$B$3:$AD$21,L382-2009,FALSE) -> 0.045 | M383: =VLOOKUP($X383,PriceScenarios!$B$3:$AD$21,M382-2009,FALSE) -> 0.045 | N383: =VLOOKUP($X383,PriceScenarios!$B$3:$AD$21,N382-2009,FALSE) -> 0.045 | O383: =VLOOKUP($X383,PriceScenarios!$B$3:$AD$21,O382-2009,FALSE) -> 0.045 | P383: =VLOOKUP($X383,PriceScenarios!$B$3:$AD$21,P382-2009,FALSE) -> 0.045 | Q383: =VLOOKUP($X383,PriceScenarios!$B$3:$AD$21,Q382-2009,FALSE) -> 0.045 | R383: =VLOOKUP($X383,PriceScenarios!$B$3:$AD$21,R382-2009,FALSE) -> 0.045 | S383: =VLOOKUP($X383,PriceScenarios!$B$3:$AD$21,S382-2009,FALSE) -> 0.045 | T383: =VLOOKUP($X383,PriceScenarios!$B$3:$AD$21,T382-2009,FALSE) -> 0.045 | U383: =VLOOKUP($X383,PriceScenarios!$B$3:$AD$21,U382-2009,FALSE) -> 0.045 | V383: =VLOOKUP($X383,PriceScenarios!$B$3:$AD$21,V382-2009,FALSE) -> 0.045 | W383: =VLOOKUP($X383,PriceScenarios!$B$3:$AD$21,W382-2009,FALSE) -> 0.045 | X383: =CHOOSE(X123,PriceScenarios!$B$3,PriceScenarios!$B$4,PriceScenarios!$B$5,PriceScenarios!$B$6,PriceScenarios!$B$7,PriceScenarios!$B$8,PriceScenarios!$B$9,PriceScenarios!$B$10,PriceScenarios!$B$11,PriceScenarios!$B$12,PriceScenarios!$B$13,PriceScenarios!$B$14,PriceScenarios!$B$15,PriceScenarios!$B$16,PriceScenarios!$B$17,PriceScenarios!$B$18,PriceScenarios!$B$19,PriceScenarios!$B$20,PriceScenarios!$B$21) -> OBR estimates (Core)
A385: Rent Median (Scenario) | B385: =HLOOKUP($A$1,Data!$C$1:$AI$211,'S2'!$X385,FALSE) -> 117.6923077 | C385: =B385*(1+B383) -> 118.1630769 | D385: =C385*(1+C383) -> 120.1718492 | E385: 122.0945988 | F385: 126.4900044 | G385: 131.4231145 | H385: 136.6800391 | I385: 142.1472407 | J385: 148.5438665 | K385: 155.2283405 | L385: 162.2136158 | M385: 169.5132286 | N385: 177.1413238 | O385: 185.1126834 | P385: 193.4427542 | Q385: 202.1476781 | R385: 211.2443236 | S385: 220.7503182 | T385: 230.6840825 | U385: 241.0648662 | V385: =U385*(1+U383) -> 251.9127852 | W385: =V385*(1+V383) -> 263.2488605 | X385: 210
A386: Rent 30th (Scenario) | B386: =HLOOKUP($A$1,Data!$C$1:$AI$211,'S2'!$X386,FALSE) -> 110.7692308 | C386: =B386*(1+B383) -> 111.2123077 | D386: =C386*(1+C383) -> 113.1029169 | E386: 114.9125636 | F386: 119.0494159 | G386: 123.6923431 | H386: 128.6400368 | I386: 133.7856383 | J386: 139.805992 | K386: 146.0972617 | L386: 152.6716384 | M386: 159.5418622 | N386: 166.721246 | O386: 174.223702 | P386: 182.0637686 | Q386: 190.2566382 | R386: 198.8181869 | S386: 207.7650053 | T386: 217.1144306 | U386: 226.88458 | V386: =U386*(1+U383) -> 237.0943861 | W386: =V386*(1+V383) -> 247.7636334 | X386: 211
A387: Annual Rent Medain | B387: =B385*52 -> 6120 | C387: =C385*52 -> 6144.48 | D387: 6248.93616 | E387: 6348.919139 | F387: 6577.480228 | G387: 6834.001956 | H387: 7107.362035 | I387: 7391.656516 | J387: 7724.281059 | K387: 8071.873707 | L387: 8435.108024 | M387: 8814.687885 | N387: 9211.34884 | O387: 9625.859537 | P387: 10059.02322 | Q387: 10511.67926 | R387: 10984.70483 | S387: 11479.01655 | T387: 11995.57229 | U387: 12535.37304 | V387: =V385*52 -> 13099.46483 | W387: =W385*52 -> 13688.94075
A388: Annual Rent 30th | B388: =B386*52 -> 5760 | C388: 5783.04 | D388: 5881.35168 | E388: 5975.453307 | F388: 6190.569626 | G388: 6432.001841 | H388: 6689.281915 | I388: 6956.853192 | J388: 7269.911585 | K388: 7597.057607 | L388: 7938.925199 | M388: 8296.176833 | N388: 8669.50479 | O388: 9059.632506 | P388: 9467.315969 | Q388: 9893.345187 | R388: 10338.54572 | S388: 10803.78028 | T388: 11289.95039 | U388: 11797.99816 | V388: =V386*52 -> 12328.90808 | W388: =W386*52 -> 12883.70894
A390: Income above | B390: =B387/$C$116 -> 24480 | C390: 24577.92 | D390: 24995.74464 | E390: 25395.67655 | F390: 26309.92091 | G390: 27336.00783 | H390: 28429.44814 | I390: 29566.62606 | J390: 30897.12424 | K390: 32287.49483 | L390: 33740.4321 | M390: 35258.75154 | N390: 36845.39536 | O390: 38503.43815 | P390: 40236.09287 | Q390: 42046.71705 | R390: 43938.81931 | S390: 45916.06618 | T390: 47982.28916 | U390: 50141.49217 | V390: =V387/$C$116 -> 52397.85932 | W390: =W387/$C$116 -> 54755.76299
A391: Income below | B391: =B388/$C$117 -> 16457.14286 | C391: 16522.97143 | D391: 16803.86194 | E391: 17072.72373 | F391: 17687.34179 | G391: 18377.14812 | H391: 19112.23404 | I391: 19876.7234 | J391: 20771.17596 | K391: 21705.87888 | L391: 22682.64343 | M391: 23703.36238 | N391: 24770.01369 | O391: 25884.6643 | P391: 27049.4742 | Q391: 28266.70053 | R391: 29538.70206 | S391: 30867.94365 | T391: 32257.00112 | U391: 33708.56617 | V391: =V388/$C$117 -> 35225.45164 | W391: =W388/$C$117 -> 36810.59697
A392: Above percentile | B392: =VLOOKUP(B390,B$510:$AA$590,B$509+3) -> 47 | C392: =VLOOKUP(C390,C$510:$AA$590,C$509+3) -> 46 | D392: =VLOOKUP(D390,D$510:$AA$590,D$509+3) -> 46 | E392: =VLOOKUP(E390,E$510:$AA$590,E$509+3) -> 45 | F392: =VLOOKUP(F390,F$510:$AA$590,F$509+3) -> 45 | G392: =VLOOKUP(G390,G$510:$AA$590,G$509+3) -> 45 | H392: =VLOOKUP(H390,H$510:$AA$590,H$509+3) -> 45 | I392: =VLOOKUP(I390,I$510:$AA$590,I$509+3) -> 45 | J392: =VLOOKUP(J390,J$510:$AA$590,J$509+3) -> 45 | K392: =VLOOKUP(K390,K$510:$AA$590,K$509+3) -> 45 | L392: =VLOOKUP(L390,L$510:$AA$590,L$509+3) -> 45 | M392: =VLOOKUP(M390,M$510:$AA$590,M$509+3) -> 45 | N392: =VLOOKUP(N390,N$510:$AA$590,N$509+3) -> 46 | O392: =VLOOKUP(O390,O$510:$AA$590,O$509+3) -> 46 | P392: =VLOOKUP(P390,P$510:$AA$590,P$509+3) -> 47 | Q392: =VLOOKUP(Q390,Q$510:$AA$590,Q$509+3) -> 47 | R392: =VLOOKUP(R390,R$510:$AA$590,R$509+3) -> 48 | S392: =VLOOKUP(S390,S$510:$AA$590,S$509+3) -> 49 | T392: =VLOOKUP(T390,T$510:$AA$590,T$509+3) -> 49 | U392: =VLOOKUP(U390,U$510:$AA$590,U$509+3) -> 50 | V392: =VLOOKUP(V390,V$510:$AA$590,V$509+3) -> 50 | W392: =VLOOKUP(W390,W$510:$AA$590,W$509+3) -> 51
A393: Below percentile | B393: =VLOOKUP(B391,B$510:$AA$590,B$509+3) -> 28 | C393: =VLOOKUP(C391,C$510:$AA$590,C$509+3) -> 28 | D393: =VLOOKUP(D391,D$510:$AA$590,D$509+3) -> 28 | E393: =VLOOKUP(E391,E$510:$AA$590,E$509+3) -> 27 | F393: =VLOOKUP(F391,F$510:$AA$590,F$509+3) -> 27 | G393: =VLOOKUP(G391,G$510:$AA$590,G$509+3) -> 27 | H393: =VLOOKUP(H391,H$510:$AA$590,H$509+3) -> 27 | I393: =VLOOKUP(I391,I$510:$AA$590,I$509+3) -> 27 | J393: =VLOOKUP(J391,J$510:$AA$590,J$509+3) -> 27 | K393: =VLOOKUP(K391,K$510:$AA$590,K$509+3) -> 27 | L393: =VLOOKUP(L391,L$510:$AA$590,L$509+3) -> 27 | M393: =VLOOKUP(M391,M$510:$AA$590,M$509+3) -> 27 | N393: =VLOOKUP(N391,N$510:$AA$590,N$509+3) -> 27 | O393: =VLOOKUP(O391,O$510:$AA$590,O$509+3) -> 28 | P393: =VLOOKUP(P391,P$510:$AA$590,P$509+3) -> 28 | Q393: =VLOOKUP(Q391,Q$510:$AA$590,Q$509+3) -> 28 | R393: =VLOOKUP(R391,R$510:$AA$590,R$509+3) -> 29 | S393: =VLOOKUP(S391,S$510:$AA$590,S$509+3) -> 30 | T393: =VLOOKUP(T391,T$510:$AA$590,T$509+3) -> 31 | U393: =VLOOKUP(U391,U$510:$AA$590,U$509+3) -> 31 | V393: =VLOOKUP(V391,V$510:$AA$590,V$509+3) -> 32 | W393: =VLOOKUP(W391,W$510:$AA$590,W$509+3) -> 33
A397: Social Rent | C397: =C320-C398-C399-C400 -> 17.11404998 | D397: 17.11404998 | E397: 18.4618196 | F397: 15.80555828 | G397: 14.18579021 | H397: 14.36188958 | I397: 16.41580222 | J397: 15.42008799 | K397: 12.20788409 | L397: 12.33269101 | M397: 10.87978312 | N397: 10.61183968 | O397: 11.58633303 | P397: 0.6149620568 | Q397: 1.442936683 | R397: 1.56452537 | S397: -0.9794037638 | T397: -0.0674860615 | U397: -5.247987401 | V397: -5.295476739 | W397: -6.796847127
A398: BM Rent | C398: =IF($B$312=TRUE,(C392-C393)/100*C318,IF($B$309=TRUE,(C392-C393)/100*C320,(C392-C393)/100*C318)) -> 7.441449715 | D398: =IF($B$312=TRUE,(D392-D393)/100*D318,IF($B$309=TRUE,(D392-D393)/100*D320,(D392-D393)/100*D318)) -> 7.441449715 | E398: 8.61557204 | F398: 6.84473116 | G398: 5.764885784 | H398: 5.882285364 | I398: 7.251560455 | J398: 6.587750971 | K398: 4.446281704 | L398: 4.529486318 | M398: 3.560881056 | N398: 3.570154987 | O398: 3.887917386 | P398: 0.4172956814 | Q398: 0.9791356062 | R398: 1.025033863 | S398: -0.6202890504 | T398: -0.03918545506 | U398: -3.216508407 | V398: -2.978705666 | W398: -3.70737116
A399: PRS | C399: =IF($B$312=TRUE,(100-C392)/100*C318-C400,IF($B$309=TRUE,(100-C392)/100*C320-C400,(100-C392)/100*C318-C400)) -> 6.201208096 | D399: =IF($B$312=TRUE,(100-D392)/100*D318-D400,IF($B$309=TRUE,(100-D392)/100*D320-D400,(100-D392)/100*D318-D400)) -> 5.994501159 | E399: 7.418964812 | F399: 5.894074054 | G399: 4.964207203 | H399: 5.065301285 | I399: 6.24439928 | J399: 5.672785558 | K399: 3.828742578 | L399: 3.900390996 | M399: 3.066314243 | N399: 2.724591964 | O399: 3.13193345 | P399: 0.3074810284 | Q399: 0.7214683414 | R399: 0.7013389589 | S399: -0.4080849016 | T399: -0.02721212157 | U399: -2.031478994 | V399: -1.985803777 | W399: -2.368598241
A400: Buyers | C400: =C356*$C$115 -> 16.12314105 | D400: =D356*$C$115 -> 16.32984799 | E400: 18.9063942 | F400: 15.02038227 | G400: 12.65072158 | H400: 12.90834844 | I400: 15.91314655 | J400: 14.45645352 | K400: 9.757118183 | L400: 9.939706086 | M400: 7.814155651 | N400: 7.422164315 | O400: 8.531818708 | P400: 0.8565542934 | Q400: 2.009804665 | R400: 2.104016877 | S400: -1.256901497 | T400: -0.08381333444 | U400: -6.433016814 | V400: -6.288378628 | W400: -7.723689917
A406: Income Change
A407: Principal | C407: =IncomeScenarios!C4 -> 0.02 | D407: =IncomeScenarios!D4 -> 0.03 | E407: =IncomeScenarios!E4 -> 0.04 | F407: =IncomeScenarios!F4 -> 0.04 | G407: =IncomeScenarios!G4 -> 0.04 | H407: =IncomeScenarios!H4 -> 0.04 | I407: =IncomeScenarios!I4 -> 0.04 | J407: =IncomeScenarios!J4 -> 0.04 | K407: =IncomeScenarios!K4 -> 0.04 | L407: =IncomeScenarios!L4 -> 0.04 | M407: =IncomeScenarios!M4 -> 0.04 | N407: =IncomeScenarios!N4 -> 0.04 | O407: =IncomeScenarios!O4 -> 0.04 | P407: =IncomeScenarios!P4 -> 0.03 | Q407: =IncomeScenarios!Q4 -> 0.03 | R407: =IncomeScenarios!R4 -> 0.03 | S407: =IncomeScenarios!S4 -> 0.03 | T407: =IncomeScenarios!T4 -> 0.03 | U407: =IncomeScenarios!U4 -> 0.03 | V407: =IncomeScenarios!V4 -> 0.03 | W407: =IncomeScenarios!W4 -> 0.03
A408: Principle Distribution | C408: =IncomeScenarios!C25 -> 0 | D408: =IncomeScenarios!D25 -> 0 | E408: =IncomeScenarios!E25 -> 0 | F408: =IncomeScenarios!F25 -> 0 | G408: =IncomeScenarios!G25 -> 0 | H408: =IncomeScenarios!H25 -> 0 | I408: =IncomeScenarios!I25 -> 0 | J408: =IncomeScenarios!J25 -> 0 | K408: =IncomeScenarios!K25 -> 0 | L408: =IncomeScenarios!L25 -> 0 | M408: =IncomeScenarios!M25 -> 0 | N408: =IncomeScenarios!N25 -> 0 | O408: =IncomeScenarios!O25 -> 0 | P408: =IncomeScenarios!P25 -> 0 | Q408: =IncomeScenarios!Q25 -> 0 | R408: =IncomeScenarios!R25 -> 0 | S408: =IncomeScenarios!S25 -> 0 | T408: =IncomeScenarios!T25 -> 0 | U408: =IncomeScenarios!U25 -> 0 | V408: =IncomeScenarios!V25 -> 0 | W408: =IncomeScenarios!W25 -> 0
A409: Scenario | C409: =OFFSET(IncomeScenarios!C2,$X$53,0) -> 0.02 | D409: =OFFSET(IncomeScenarios!D2,$X$53,0) -> 0.03 | E409: =OFFSET(IncomeScenarios!E2,$X$53,0) -> 0.04 | F409: =OFFSET(IncomeScenarios!F2,$X$53,0) -> 0.04 | G409: =OFFSET(IncomeScenarios!G2,$X$53,0) -> 0.04 | H409: =OFFSET(IncomeScenarios!H2,$X$53,0) -> 0.04 | I409: =OFFSET(IncomeScenarios!I2,$X$53,0) -> 0.04 | J409: =OFFSET(IncomeScenarios!J2,$X$53,0) -> 0.04 | K409: =OFFSET(IncomeScenarios!K2,$X$53,0) -> 0.04 | L409: =OFFSET(IncomeScenarios!L2,$X$53,0) -> 0.04 | M409: =OFFSET(IncomeScenarios!M2,$X$53,0) -> 0.04 | N409: =OFFSET(IncomeScenarios!N2,$X$53,0) -> 0.04 | O409: =OFFSET(IncomeScenarios!O2,$X$53,0) -> 0.04 | P409: =OFFSET(IncomeScenarios!P2,$X$53,0) -> 0.03 | Q409: =OFFSET(IncomeScenarios!Q2,$X$53,0) -> 0.03 | R409: =OFFSET(IncomeScenarios!R2,$X$53,0) -> 0.03 | S409: =OFFSET(IncomeScenarios!S2,$X$53,0) -> 0.03 | T409: =OFFSET(IncomeScenarios!T2,$X$53,0) -> 0.03 | U409: =OFFSET(IncomeScenarios!U2,$X$53,0) -> 0.03 | V409: =OFFSET(IncomeScenarios!V2,$X$53,0) -> 0.03 | W409: =OFFSET(IncomeScenarios!W2,$X$53,0) -> 0.03
A410: Scenario Distribution | C410: =OFFSET(IncomeScenarios!C24,$X$54,0) -> 0 | D410: =OFFSET(IncomeScenarios!D24,$X$54,0) -> 0 | E410: =OFFSET(IncomeScenarios!E24,$X$54,0) -> 0 | F410: =OFFSET(IncomeScenarios!F24,$X$54,0) -> 0 | G410: =OFFSET(IncomeScenarios!G24,$X$54,0) -> 0 | H410: =OFFSET(IncomeScenarios!H24,$X$54,0) -> 0 | I410: =OFFSET(IncomeScenarios!I24,$X$54,0) -> 0 | J410: =OFFSET(IncomeScenarios!J24,$X$54,0) -> 0 | K410: =OFFSET(IncomeScenarios!K24,$X$54,0) -> 0 | L410: =OFFSET(IncomeScenarios!L24,$X$54,0) -> 0 | M410: =OFFSET(IncomeScenarios!M24,$X$54,0) -> 0 | N410: =OFFSET(IncomeScenarios!N24,$X$54,0) -> 0 | O410: =OFFSET(IncomeScenarios!O24,$X$54,0) -> 0 | P410: =OFFSET(IncomeScenarios!P24,$X$54,0) -> 0 | Q410: =OFFSET(IncomeScenarios!Q24,$X$54,0) -> 0 | R410: =OFFSET(IncomeScenarios!R24,$X$54,0) -> 0 | S410: =OFFSET(IncomeScenarios!S24,$X$54,0) -> 0 | T410: =OFFSET(IncomeScenarios!T24,$X$54,0) -> 0 | U410: =OFFSET(IncomeScenarios!U24,$X$54,0) -> 0 | V410: =OFFSET(IncomeScenarios!V24,$X$54,0) -> 0 | W410: =OFFSET(IncomeScenarios!W24,$X$54,0) -> 0
A412: Principal
A413: Income
B414: =B382 -> 2011 | C414: =B414+1 -> 2012 | D414: 2013 | E414: 2014 | F414: 2015 | G414: 2016 | H414: 2017 | I414: 2018 | J414: 2019 | K414: 2020 | L414: 2021 | M414: 2022 | N414: 2023 | O414: 2024 | P414: 2025 | Q414: 2026 | R414: 2027 | S414: 2028 | T414: 2029 | U414: 2030 | V414: 2031 | W414: 2032
A415: Principal Median | B415: =B459 -> 25819.19862 | C415: =C459 -> 26335.5826 | D415: 27125.65007 | E415: 28210.67608 | F415: 29339.10312 | G415: 30512.66724 | H415: 31733.17393 | I415: 33002.50089 | J415: 34322.60093 | K415: 35695.50496 | L415: 37123.32516 | M415: 38608.25817 | N415: 40152.5885 | O415: 41758.69204 | P415: 43011.4528 | Q415: 44301.79638 | R415: 45630.85027 | S415: 46999.77578 | T415: 48409.76905 | U415: 49862.06213 | V415: 51357.92399 | W415: 52898.66171
A416: =CONCATENATE("Principal ",C49,"%ile") -> Principal 75%ile | B416: =VLOOKUP($C$49,$A$419:$W$499,25-B418,FALSE) -> 45254.54769 | C416: 46159.63864 | D416: 47544.4278 | E416: 49446.20491 | F416: 51424.05311 | G416: 53481.01524 | H416: 55620.25584 | I416: 57845.06608 | J416: 60158.86872 | K416: 62565.22347 | L416: 65067.83241 | M416: 67670.54571 | N416: 70377.36753 | O416: 73192.46224 | P416: 75388.2361 | Q416: 77649.88319 | R416: 79979.37968 | S416: 82378.76107 | T416: 84850.1239 | U416: 87395.62762 | V416: 90017.49645 | W416: 92718.02134
A417: =CONCATENATE("Principal",C50,"%ile") -> Principal25%ile | B417: =VLOOKUP($C$50,$A$419:$W$499,25-B418,FALSE) -> 14485.08686 | C417: 14774.78859 | D417: 15218.03225 | E417: 15826.75354 | F417: 16459.82368 | G417: 17118.21663 | H417: 17802.9453 | I417: 18515.06311 | J417: 19255.66563 | K417: 20025.89226 | L417: 20826.92795 | M417: 21660.00507 | N417: 22526.40527 | O417: 23427.46148 | P417: 24130.28532 | Q417: 24854.19388 | R417: 25599.8197 | S417: 26367.81429 | T417: 27158.84872 | U417: 27973.61418 | V417: 28812.82261 | W417: 29677.20728
A418: 2 | B418: 23 | C418: =B418-1 -> 22 | D418: 21 | E418: 20 | F418: 19 | G418: 18 | H418: 17 | I418: 16 | J418: 15 | K418: 14 | L418: 13 | M418: 12 | N418: 11 | O418: 10 | P418: 9 | Q418: 8 | R418: 7 | S418: 6 | T418: 5 | U418: 4 | V418: 3 | W418: 2 | Y418: =2011 -> 2011 | Z418: =CONCATENATE("Principal ",C51) -> Principal 2032
A419: =Data!B308 -> 10 | B419: =HLOOKUP($A$1,Data!$C$1:$AI$388,$X419,FALSE) -> 8293.141593 | C419: =B419*(1+C$407+(-(50-$A419)*(C$408/40))) -> 8459.004425 | D419: 8712.774558 | E419: 9061.28554 | F419: 9423.736961 | G419: 9800.68644 | H419: 10192.7139 | I419: 10600.42245 | J419: 11024.43935 | K419: 11465.41693 | L419: 11924.0336 | M419: 12400.99495 | N419: 12897.03474 | O419: 13412.91613 | P419: 13815.30362 | Q419: 14229.76273 | R419: 14656.65561 | S419: =R419*(1+S$407+(-(50-$A419)*(S$408/40))) -> 15096.35528 | T419: 15549.24594 | U419: 16015.72331 | V419: 16496.19501 | W419: 16991.08086 | X419: 308 | Y419: =B419 -> 8293.141593 | Z419: =OFFSET(B419,0,$C$51-2011) -> 16991.08086 | AA419: =A419 -> 10
A420: =Data!B309 -> 11 | B420: =HLOOKUP($A$1,Data!$C$1:$AI$388,$X420,FALSE) -> 8612.336119 | C420: 8784.582842 | D420: 9048.120327 | E420: 9410.04514 | F420: 9786.446946 | G420: 10177.90482 | H420: 10585.02102 | I420: 11008.42186 | J420: 11448.75873 | K420: 11906.70908 | L420: 12382.97744 | M420: 12878.29654 | N420: 13393.4284 | O420: 13929.16554 | P420: 14347.04051 | Q420: 14777.45172 | R420: 15220.77527 | S420: 15677.39853 | T420: 16147.72049 | U420: 16632.1521 | V420: 17131.11666 | W420: 17645.05016 | X420: =X419+1 -> 309 | Y420: =B420 -> 8612.336119 | Z420: 17645.05016 | AA420: =A420 -> 11
A421: =Data!B310 -> 12 | B421: =HLOOKUP($A$1,Data!$C$1:$AI$388,$X421,FALSE) -> 8931.530646 | C421: 9110.161259 | D421: 9383.466096 | E421: 9758.80474 | F421: 10149.15693 | G421: 10555.12321 | H421: 10977.32814 | I421: 11416.42126 | J421: 11873.07811 | K421: 12348.00124 | L421: 12841.92129 | M421: 13355.59814 | N421: 13889.82206 | O421: 14445.41494 | P421: 14878.77739 | Q421: 15325.14071 | R421: 15784.89494 | S421: 16258.44178 | T421: 16746.19504 | U421: 17248.58089 | V421: 17766.03832 | W421: 18299.01946 | X421: =X420+1 -> 310 | Y421: 8931.530646 | Z421: 18299.01946 | AA421: 12
A422: =Data!B311 -> 13 | B422: =HLOOKUP($A$1,Data!$C$1:$AI$388,$X422,FALSE) -> 9250.725172 | C422: 9435.739676 | D422: 9718.811866 | E422: 10107.56434 | F422: 10511.86691 | G422: 10932.34159 | H422: 11369.63525 | I422: 11824.42066 | J422: 12297.39749 | K422: 12789.29339 | L422: 13300.86513 | M422: 13832.89973 | N422: 14386.21572 | O422: 14961.66435 | P422: 15410.51428 | Q422: 15872.82971 | R422: 16349.0146 | S422: 16839.48504 | T422: 17344.66959 | U422: 17865.00968 | V422: 18400.95997 | W422: 18952.98877 | X422: 311 | Y422: 9250.725172 | Z422: 18952.98877 | AA422: 13
A423: =Data!B312 -> 14 | B423: =HLOOKUP($A$1,Data!$C$1:$AI$388,$X423,FALSE) -> 9569.919698 | C423: 9761.318092 | D423: 10054.15764 | E423: 10456.32394 | F423: 10874.5769 | G423: 11309.55997 | H423: 11761.94237 | I423: 12232.42007 | J423: 12721.71687 | K423: 13230.58555 | L423: 13759.80897 | M423: 14310.20133 | N423: 14882.60938 | O423: 15477.91375 | P423: 15942.25117 | Q423: 16420.5187 | R423: 16913.13426 | S423: 17420.52829 | T423: 17943.14414 | U423: 18481.43846 | V423: 19035.88162 | W423: 19606.95807 | X423: 312 | Y423: 9569.919698 | Z423: 19606.95807 | AA423: 14
A424: =Data!B313 -> 15 | B424: =HLOOKUP($A$1,Data!$C$1:$AI$388,$X424,FALSE) -> 9889.114225 | C424: 10086.89651 | D424: 10389.5034 | E424: 10805.08354 | F424: 11237.28688 | G424: 11686.77836 | H424: 12154.24949 | I424: 12640.41947 | J424: 13146.03625 | K424: 13671.8777 | L424: 14218.75281 | M424: 14787.50292 | N424: 15379.00304 | O424: 15994.16316 | P424: 16473.98805 | Q424: 16968.2077 | R424: 17477.25393 | S424: 18001.57154 | T424: 18541.61869 | U424: 19097.86725 | V424: 19670.80327 | W424: 20260.92737 | X424: 313 | Y424: 9889.114225 | Z424: 20260.92737 | AA424: 15
A425: =Data!B314 -> 16 | B425: =HLOOKUP($A$1,Data!$C$1:$AI$388,$X425,FALSE) -> 10208.30875 | C425: 10412.47493 | D425: 10724.84917 | E425: 11153.84314 | F425: 11599.99687 | G425: 12063.99674 | H425: 12546.55661 | I425: 13048.41888 | J425: 13570.35563 | K425: 14113.16986 | L425: 14677.69665 | M425: 15264.80452 | N425: 15875.3967 | O425: 16510.41256 | P425: 17005.72494 | Q425: 17515.89669 | R425: 18041.37359 | S425: 18582.6148 | T425: 19140.09324 | U425: 19714.29604 | V425: 20305.72492 | W425: 20914.89667 | X425: 314 | Y425: 10208.30875 | Z425: 20914.89667 | AA425: 16
A426: =Data!B315 -> 17 | B426: =HLOOKUP($A$1,Data!$C$1:$AI$388,$X426,FALSE) -> 10527.50328 | C426: 10738.05334 | D426: 11060.19494 | E426: 11502.60274 | F426: 11962.70685 | G426: 12441.21512 | H426: 12938.86373 | I426: 13456.41828 | J426: 13994.67501 | K426: 14554.46201 | L426: 15136.64049 | M426: 15742.10611 | N426: 16371.79036 | O426: 17026.66197 | P426: 17537.46183 | Q426: 18063.58568 | R426: 18605.49325 | S426: 19163.65805 | T426: 19738.56779 | U426: 20330.72483 | V426: 20940.64657 | W426: 21568.86597 | X426: 315 | Y426: 10527.50328 | Z426: 21568.86597 | AA426: 17
A427: =Data!B316 -> 18 | B427: =HLOOKUP($A$1,Data!$C$1:$AI$388,$X427,FALSE) -> 10846.6978 | C427: 11063.63176 | D427: 11395.54071 | E427: 11851.36234 | F427: 12325.41684 | G427: 12818.43351 | H427: 13331.17085 | I427: 13864.41768 | J427: 14418.99439 | K427: 14995.75417 | L427: 15595.58433 | M427: 16219.40771 | N427: 16868.18401 | O427: 17542.91137 | P427: 18069.19872 | Q427: 18611.27468 | R427: 19169.61292 | S427: 19744.7013 | T427: 20337.04234 | U427: 20947.15361 | V427: 21575.56822 | W427: 22222.83527 | X427: 316 | Y427: 10846.6978 | Z427: 22222.83527 | AA427: 18
A428: =Data!B317 -> 19 | B428: =HLOOKUP($A$1,Data!$C$1:$AI$388,$X428,FALSE) -> 11165.89233 | C428: 11389.21018 | D428: 11730.88648 | E428: 12200.12194 | F428: 12688.12682 | G428: 13195.65189 | H428: 13723.47797 | I428: 14272.41709 | J428: 14843.31377 | K428: 15437.04632 | L428: 16054.52817 | M428: 16696.7093 | N428: 17364.57767 | O428: 18059.16078 | P428: 18600.9356 | Q428: 19158.96367 | R428: 19733.73258 | S428: 20325.74456 | T428: 20935.5169 | U428: 21563.5824 | V428: 22210.48987 | W428: 22876.80457 | X428: 317 | Y428: 11165.89233 | Z428: 22876.80457 | AA428: 19
A429: =Data!B318 -> 20 | B429: =HLOOKUP($A$1,Data!$C$1:$AI$388,$X429,FALSE) -> 11985.08686 | C429: 12224.78859 | D429: 12591.53225 | E429: 13095.19354 | F429: 13619.00128 | G429: 14163.76133 | H429: 14730.31179 | I429: 15319.52426 | J429: 15932.30523 | K429: 16569.59744 | L429: 17232.38134 | M429: 17921.67659 | N429: 18638.54365 | O429: 19384.0854 | P429: 19965.60796 | Q429: 20564.5762 | R429: 21181.51349 | S429: 21816.95889 | T429: 22471.46766 | U429: 23145.61169 | V429: 23839.98004 | W429: 24555.17944 | X429: 318 | Y429: 11985.08686 | Z429: 24555.17944 | AA429: 20
A430: =Data!B319 -> 21 | B430: =HLOOKUP($A$1,Data!$C$1:$AI$388,$X430,FALSE) -> 12485.08686 | C430: 12734.78859 | D430: 13116.83225 | E430: 13641.50554 | F430: 14187.16576 | G430: 14754.65239 | H430: 15344.83849 | I430: 15958.63203 | J430: 16596.97731 | K430: 17260.8564 | L430: 17951.29066 | M430: 18669.34229 | N430: 19416.11598 | O430: 20192.76062 | P430: 20798.54343 | Q430: 21422.49974 | R430: 22065.17473 | S430: 22727.12997 | T430: 23408.94387 | U430: 24111.21219 | V430: 24834.54855 | W430: 25579.58501 | X430: 319 | Y430: 12485.08686 | Z430: 25579.58501 | AA430: 21
